Workbook

Sheet Disclaimer
B4: Sports & Exhibition Authority of Pittsburgh and Allegheny County
B5: I-579 “Cap” Urban Connector Project
B6: USDOT TIGER Grant Application
B7: 2016-04-29
B14: Disclaimer
B15: ="The Model is provided to "&Client.Name&" on the basis that it is strictly private and confidential. The Recipients agree to not disclose that information to any person or third party except with the prior written consent of HDR Inc. (HDR) or as required by law." -> The Model is provided to Sports & Exhibition Authority of Pittsburgh and Allegheny County on the basis that it is strictly private and confidential. The Recipients agree to not disclose that information to any person or third party except with the prior written consent of HDR Inc. (HDR) or as required by law.
B18: ="HDR retains all intellectual property with respect to this Model. The Recipients agree to use this Model only for the purpose of performing analysis in support of the "&Grant.Name&" for the "&Project.Name&" project. The Model must not be used for any other purpose. " -> HDR retains all intellectual property with respect to this Model. The Recipients agree to use this Model only for the purpose of performing analysis in support of the USDOT TIGER Grant Application for the I-579 “Cap” Urban Connector Project project. The Model must not be used for any other purpose.
B21: By retaining and using this Model, the Recipients represent to HDR that they are capable of making their own independent assessment as to the validity of the assumptions, data and results contained in this Model.
B23: The Model may be a development version and may not be complete or, in the event that development of the Model has concluded, material events may have occurred since completion which are not reflected in the Model. In consultation with the client, HDR used what was deemed the best available data at the time of analysis and makes no warranties as to the accuracy of this information or completeness of the Model.

Sheet Benefits Matrix
A1: SEACAP
A2: TIGER Discretionary Grants Program
A3: Bike Benefits Accounting
A4: Benefit Category | B4: Existing | C4: New | D4: Remaining Road Users and General Public
B5: Work and Other Destination Cycling Trips | C5: Work and Other Destination Cycling Trips
A6: Cyclist Health | B6: No | C6: Yes
A7: Cyclist Mobility | B7: No | C7: Yes
A8: Cyclist Safety | B8: Yes | C8: No
A9: Cyclist Auto Cost Savings | B9: No | C9: Yes
A10: Congestion Relief | D10: Yes
A11: Auto Safety | D11: Yes
A12: Pavement Maintenance | D12: Yes
A13: Environmental Emissions | D13: Yes

Sheet BCA Calcs TIGER Benefits
A1: SEACAP BCA
A2: Common Annualization Parameters
E3: Year | F3: 2016 | G3: =F3+1 -> 2017 | H3: =G3+1 -> 2018 | I3: 2019 | J3: 2020 | K3: 2021 | L3: 2022 | M3: 2023 | N3: 2024 | O3: 2025 | P3: 2026 | Q3: 2027 | R3: 2028 | S3: 2029 | T3: 2030 | U3: 2031 | V3: 2032 | W3: 2033 | X3: =W3+1 -> 2034 | Y3: 2035 | Z3: 2036 | AA3: 2037 | AB3: 2038 | AC3: 2039 | AD3: 2040 | AE3: =AD3+1 -> 2041 | AF3: 2042 | AG3: 2043 | AH3: 2044 | AI3: 2045 | AJ3: 2046 | AK3: 2047 | AL3: 2048 | AM3: 2049 | AN3: 2050
E4: Year of Analysis | F4: 1 | G4: =F4+1 -> 2 | H4: =G4+1 -> 3 | I4: =H4+1 -> 4 | J4: =I4+1 -> 5 | K4: 6 | L4: 7 | M4: 8 | N4: 9 | O4: 10 | P4: 11 | Q4: 12 | R4: 13 | S4: 14 | T4: 15 | U4: 16 | V4: 17 | W4: 18 | X4: 19 | Y4: 20 | Z4: 21 | AA4: 22 | AB4: 23 | AC4: 24 | AD4: 25 | AE4: =AD4+1 -> 26 | AF4: 27 | AG4: 28 | AH4: 29 | AI4: 30 | AJ4: 31 | AK4: 32 | AL4: 33 | AM4: 34 | AN4: 35
E5: Year of Benefits | F5: =IF(F3<Assumptions!$D$91,0,IF(F3=Assumptions!$D$91,1,IF(F3>Assumptions!$D$91,1))) -> 0 | G5: =IF(G3<Assumptions!$D$91,0,IF(G3=Assumptions!$D$91,1,IF(G3>Assumptions!$D$91,1))) -> 0 | H5: =IF(H3<Assumptions!$D$91,0,IF(H3=Assumptions!$D$91,1,IF(H3>Assumptions!$D$91,1))) -> 0 | I5: =IF(I3<Assumptions!$D$91,0,IF(I3=Assumptions!$D$91,1,IF(I3>Assumptions!$D$91,1))) -> 1 | J5: =IF(J3<Assumptions!$D$91,0,IF(J3=Assumptions!$D$91,1,IF(J3>Assumptions!$D$91,1))) -> 1 | K5: =IF(K3<Assumptions!$D$91,0,IF(K3=Assumptions!$D$91,1,IF(K3>Assumptions!$D$91,1))) -> 1 | L5: =IF(L3<Assumptions!$D$91,0,IF(L3=Assumptions!$D$91,1,IF(L3>Assumptions!$D$91,1))) -> 1 | M5: =IF(M3<Assumptions!$D$91,0,IF(M3=Assumptions!$D$91,1,IF(M3>Assumptions!$D$91,1))) -> 1 | N5: =IF(N3<Assumptions!$D$91,0,IF(N3=Assumptions!$D$91,1,IF(N3>Assumptions!$D$91,1))) -> 1 | O5: =IF(O3<Assumptions!$D$91,0,IF(O3=Assumptions!$D$91,1,IF(O3>Assumptions!$D$91,1))) -> 1 | P5: =IF(P3<Assumptions!$D$91,0,IF(P3=Assumptions!$D$91,1,IF(P3>Assumptions!$D$91,1))) -> 1 | Q5: =IF(Q3<Assumptions!$D$91,0,IF(Q3=Assumptions!$D$91,1,IF(Q3>Assumptions!$D$91,1))) -> 1 | R5: =IF(R3<Assumptions!$D$91,0,IF(R3=Assumptions!$D$91,1,IF(R3>Assumptions!$D$91,1))) -> 1 | S5: =IF(S3<Assumptions!$D$91,0,IF(S3=Assumptions!$D$91,1,IF(S3>Assumptions!$D$91,1))) -> 1 | T5: =IF(T3<Assumptions!$D$91,0,IF(T3=Assumptions!$D$91,1,IF(T3>Assumptions!$D$91,1))) -> 1 | U5: =IF(U3<Assumptions!$D$91,0,IF(U3=Assumptions!$D$91,1,IF(U3>Assumptions!$D$91,1))) -> 1 | V5: =IF(V3<Assumptions!$D$91,0,IF(V3=Assumptions!$D$91,1,IF(V3>Assumptions!$D$91,1))) -> 1 | W5: =IF(W3<Assumptions!$D$91,0,IF(W3=Assumptions!$D$91,1,IF(W3>Assumptions!$D$91,1))) -> 1 | X5: =IF(X3<Assumptions!$D$91,0,IF(X3=Assumptions!$D$91,1,IF(X3>Assumptions!$D$91,1))) -> 1 | Y5: =IF(Y3<Assumptions!$D$91,0,IF(Y3=Assumptions!$D$91,1,IF(Y3>Assumptions!$D$91,1))) -> 1 | Z5: =IF(Z3<Assumptions!$D$91,0,IF(Z3=Assumptions!$D$91,1,IF(Z3>Assumptions!$D$91,1))) -> 1 | AA5: =IF(AA3<Assumptions!$D$91,0,IF(AA3=Assumptions!$D$91,1,IF(AA3>Assumptions!$D$91,1))) -> 1 | AB5: =IF(AB3<Assumptions!$D$91,0,IF(AB3=Assumptions!$D$91,1,IF(AB3>Assumptions!$D$91,1))) -> 1 | AC5: =IF(AC3<Assumptions!$D$91,0,IF(AC3=Assumptions!$D$91,1,IF(AC3>Assumptions!$D$91,1))) -> 1 | AD5: =IF(AD3<Assumptions!$D$91,0,IF(AD3=Assumptions!$D$91,1,IF(AD3>Assumptions!$D$91,1))) -> 1 | AE5: =IF(AE3<Assumptions!$D$91,0,IF(AE3=Assumptions!$D$91,1,IF(AE3>Assumptions!$D$91,1))) -> 1 | AF5: =IF(AF3<Assumptions!$D$91,0,IF(AF3=Assumptions!$D$91,1,IF(AF3>Assumptions!$D$91,1))) -> 1 | AG5: =IF(AG3<Assumptions!$D$91,0,IF(AG3=Assumptions!$D$91,1,IF(AG3>Assumptions!$D$91,1))) -> 1 | AH5: =IF(AH3<Assumptions!$D$91,0,IF(AH3=Assumptions!$D$91,1,IF(AH3>Assumptions!$D$91,1))) -> 1 | AI5: =IF(AI3<Assumptions!$D$91,0,IF(AI3=Assumptions!$D$91,1,IF(AI3>Assumptions!$D$91,1))) -> 1 | AJ5: =IF(AJ3<Assumptions!$D$91,0,IF(AJ3=Assumptions!$D$91,1,IF(AJ3>Assumptions!$D$91,1))) -> 1 | AK5: =IF(AK3<Assumptions!$D$91,0,IF(AK3=Assumptions!$D$91,1,IF(AK3>Assumptions!$D$91,1))) -> 1 | AL5: =IF(AL3<Assumptions!$D$91,0,IF(AL3=Assumptions!$D$91,1,IF(AL3>Assumptions!$D$91,1))) -> 1 | AM5: =IF(AM3<Assumptions!$D$91,0,IF(AM3=Assumptions!$D$91,1,IF(AM3>Assumptions!$D$91,1))) -> 1 | AN5: =IF(AN3<Assumptions!$D$91,0,IF(AN3=Assumptions!$D$91,1,IF(AN3>Assumptions!$D$91,1))) -> 1
E6: Discount rate = 7% | F6: =1/(1+Assumptions!$D$89)^F4 -> 0.9345794393 | G6: =1/(1+Assumptions!$D$89)^G4 -> 0.8734387283 | H6: =1/(1+Assumptions!$D$89)^H4 -> 0.8162978769 | I6: =1/(1+Assumptions!$D$89)^I4 -> 0.762895212 | J6: =1/(1+Assumptions!$D$89)^J4 -> 0.7129861795 | K6: =1/(1+Assumptions!$D$89)^K4 -> 0.6663422238 | L6: =1/(1+Assumptions!$D$89)^L4 -> 0.6227497419 | M6: =1/(1+Assumptions!$D$89)^M4 -> 0.5820091046 | N6: =1/(1+Assumptions!$D$89)^N4 -> 0.5439337426 | O6: =1/(1+Assumptions!$D$89)^O4 -> 0.5083492921 | P6: =1/(1+Assumptions!$D$89)^P4 -> 0.4750927964 | Q6: =1/(1+Assumptions!$D$89)^Q4 -> 0.4440119592 | R6: =1/(1+Assumptions!$D$89)^R4 -> 0.4149644479 | S6: =1/(1+Assumptions!$D$89)^S4 -> 0.387817241 | T6: =1/(1+Assumptions!$D$89)^T4 -> 0.3624460196 | U6: =1/(1+Assumptions!$D$89)^U4 -> 0.3387345978 | V6: =1/(1+Assumptions!$D$89)^V4 -> 0.3165743905 | W6: =1/(1+Assumptions!$D$89)^W4 -> 0.2958639163 | X6: =1/(1+Assumptions!$D$89)^X4 -> 0.276508333 | Y6: =1/(1+Assumptions!$D$89)^Y4 -> 0.2584190028 | Z6: =1/(1+Assumptions!$D$89)^Z4 -> 0.2415130867 | AA6: =1/(1+Assumptions!$D$89)^AA4 -> 0.2257131652 | AB6: =1/(1+Assumptions!$D$89)^AB4 -> 0.2109468833 | AC6: =1/(1+Assumptions!$D$89)^AC4 -> 0.1971466199 | AD6: =1/(1+Assumptions!$D$89)^AD4 -> 0.1842491775 | AE6: =1/(1+Assumptions!$D$89)^AE4 -> 0.172195493 | AF6: =1/(1+Assumptions!$D$89)^AF4 -> 0.1609303673 | AG6: =1/(1+Assumptions!$D$89)^AG4 -> 0.1504022124 | AH6: =1/(1+Assumptions!$D$89)^AH4 -> 0.1405628154 | AI6: =1/(1+Assumptions!$D$89)^AI4 -> 0.1313671172 | AJ6: =1/(1+Assumptions!$D$89)^AJ4 -> 0.1227730067 | AK6: =1/(1+Assumptions!$D$89)^AK4 -> 0.1147411277 | AL6: =1/(1+Assumptions!$D$89)^AL4 -> 0.1072346988 | AM6: =1/(1+Assumptions!$D$89)^AM4 -> 0.1002193447 | AN6: =1/(1+Assumptions!$D$89)^AN4 -> 0.09366293897
E7: Discount rate = 3% | F7: =1/(1+0.03)^F4 -> 0.9708737864 | G7: 0.9425959091 | H7: 0.9151416594 | I7: 0.8884870479 | J7: 0.8626087844 | K7: 0.8374842567 | L7: 0.8130915113 | M7: 0.7894092343 | N7: 0.7664167323 | O7: 0.7440939149 | P7: 0.7224212766 | Q7: 0.7013798802 | R7: 0.68095134 | S7: 0.6611178058 | T7: 0.6418619474 | U7: 0.6231669392 | V7: 0.6050164458 | W7: 0.5873946076 | X7: 0.5702860268 | Y7: 0.5536757542 | Z7: 0.5375492759 | AA7: 0.5218925009 | AB7: 0.5066917484 | AC7: 0.4919337363 | AD7: 0.4776055693 | AE7: 0.4636947274 | AF7: 0.4501890558 | AG7: 0.4370767532 | AH7: 0.4243463623 | AI7: 0.4119867595 | AJ7: 0.3999871452 | AK7: 0.3883370341 | AL7: 0.3770262467 | AM7: 0.3660448997 | AN7: 0.3553833978
A8: Daily Rider/Walker-ship
D9: Existing Bikes
E10: Weekday Commuter Riders | F10: =Users!B14 -> 52.4994 | G10: =Users!C14 -> 53.399838 | H10: =Users!D14 -> 54.31571978 | I10: =Users!E14 -> 55.2473102 | J10: =Users!F14 -> 56.1948787 | K10: =Users!G14 -> 57.15869932 | L10: =Users!H14 -> 58.13905081 | M10: =Users!I14 -> 59.1362167 | N10: =Users!J14 -> 60.15048538 | O10: =Users!K14 -> 61.18215018 | P10: =Users!L14 -> 62.23150947 | Q10: =Users!M14 -> 63.29886673 | R10: =Users!N14 -> 64.38453067 | S10: =Users!O14 -> 65.48881526 | T10: =Users!P14 -> 66.61203987 | U10: =Users!Q14 -> 67.75452935 | V10: =Users!R14 -> 68.91661412 | W10: =Users!S14 -> 70.09863026 | X10: =Users!T14 -> 71.30091963 | Y10: =Users!U14 -> 72.52382995 | Z10: =Users!V14 -> 73.76771488 | AA10: =Users!W14 -> 75.03293418 | AB10: =Users!X14 -> 76.31985375 | AC10: =Users!Y14 -> 77.62884579 | AD10: =Users!Z14 -> 78.96028887 | AE10: =Users!AA14 -> 80.31456806 | AF10: =Users!AB14 -> 81.69207503 | AG10: =Users!AC14 -> 83.09320816 | AH10: =Users!AD14 -> 84.51837269 | AI10: =Users!AE14 -> 85.96798078 | AJ10: =Users!AF14 -> 87.44245166 | AK10: =Users!AG14 -> 88.94221179 | AL10: =Users!AH14 -> 90.46769489 | AM10: =Users!AI14 -> 92.01934216 | AN10: =Users!AJ14 -> 93.59760234
E11: Weekday Destination Riders | F11: =Users!B15 -> 84.52978723 | G11: =Users!C15 -> 85.9795911 | H11: =Users!D15 -> 87.45426112 | I11: =Users!E15 -> 88.95422379 | J11: =Users!F15 -> 90.47991291 | K11: =Users!G15 -> 92.03176974 | L11: =Users!H15 -> 93.61024307 | M11: =Users!I15 -> 95.21578943 | N11: =Users!J15 -> 96.84887315 | O11: =Users!K15 -> 98.50996653 | P11: =Users!L15 -> 100.19955 | Q11: =Users!M15 -> 101.9181122 | R11: =Users!N15 -> 103.6661501 | S11: =Users!O15 -> 105.4441693 | T11: =Users!P15 -> 107.252684 | U11: =Users!Q15 -> 109.0922172 | V11: =Users!R15 -> 110.9633011 | W11: =Users!S15 -> 112.8664766 | X11: =Users!T15 -> 114.8022942 | Y11: =Users!U15 -> 116.7713139 | Z11: =Users!V15 -> 118.7741049 | AA11: =Users!W15 -> 120.8112466 | AB11: =Users!X15 -> 122.8833282 | AC11: =Users!Y15 -> 124.9909488 | AD11: =Users!Z15 -> 127.1347181 | AE11: =Users!AA15 -> 129.315256 | AF11: =Users!AB15 -> 131.5331932 | AG11: =Users!AC15 -> 133.7891711 | AH11: =Users!AD15 -> 136.0838421 | AI11: =Users!AE15 -> 138.41787 | AJ11: =Users!AF15 -> 140.7919297 | AK11: =Users!AG15 -> 143.2067079 | AL11: =Users!AH15 -> 145.6629028 | AM11: =Users!AI15 -> 148.161225 | AN11: =Users!AJ15 -> 150.7023968
E12: Total Existing Weekday Riders | F12: =SUM(F10:F11) -> 137.0291872 | G12: 139.3794291 | H12: 141.7699809 | I12: 144.201534 | J12: 146.6747916 | K12: 149.1904691 | L12: 151.7492939 | M12: 154.3520061 | N12: 156.9993585 | O12: 159.6921167 | P12: 162.4310595 | Q12: 165.2169789 | R12: 168.0506807 | S12: 170.9329845 | T12: 173.8647238 | U12: 176.8467466 | V12: 179.8799152 | W12: 182.9651069 | X12: 186.1032139 | Y12: 189.2951438 | Z12: 192.5418198 | AA12: 195.8441808 | AB12: 199.2031819 | AC12: 202.6197946 | AD12: =SUM(AD10:AD11) -> 206.0950069 | AE12: 209.629824 | AF12: 213.2252682 | AG12: 216.8823792 | AH12: 220.6022148 | AI12: 224.3858508 | AJ12: =SUM(AJ10:AJ11) -> 228.2343814 | AK12: =SUM(AK10:AK11) -> 232.1489196 | AL12: =SUM(AL10:AL11) -> 236.1305977 | AM12: =SUM(AM10:AM11) -> 240.1805671 | AN12: =SUM(AN10:AN11) -> 244.2999992
D13: Build + Existing Bikes
E14: Weekday Commuters Riders | F14: =F10+F19 -> 76.7541228 | G14: =G10+G19 -> 81.93551938 | H14: 87.88794891 | I14: 94.74503778 | J14: 102.6639552 | K14: 111.8295678 | L14: 122.4593276 | M14: 134.8090223 | N14: 149.1795412 | O14: 165.9248344 | P14: 185.4612774 | Q14: 199.4677603 | R14: 214.8511581 | S14: 231.7544386 | T14: 250.3355536 | U14: 270.769012 | V14: 293.2476175 | W14: 317.984389 | X14: 345.214683 | Y14: 375.1985385 | Z14: 408.2232678 | AA14: 444.6063202 | AB14: 484.6984453 | AC14: 528.8871894 | AD14: =AD10+AD19 -> 577.6007586 | AE14: 631.3122871 | AF14: 690.5445546 | AG14: 755.875198 | AH14: 827.9424715 | AI14: 907.45161 | AJ14: =AJ10+AJ19 -> 995.1818619 | AK14: 1091.99426 | AL14: 1198.840208 | AM14: 1316.770969 | AN14: 1446.948151
E15: Weekday Destination Riders | F15: =F11+F20 -> 123.5825489 | G15: =G11+G20 -> 131.9251652 | H15: 141.5092291 | I15: 152.5498936 | J15: 165.3002185 | K15: 180.0578592 | L15: 197.1729373 | M15: 217.0572992 | N15: 240.1954094 | O15: 267.1571665 | P15: 298.6129807 | Q15: 321.1649531 | R15: 345.9339093 | S15: 373.1500433 | T15: 403.0676747 | U15: 435.967782 | V15: 472.1608002 | W15: 511.9897131 | X15: 555.8334706 | Y15: 604.1107637 | Z15: 657.284197 | AA15: 715.8648984 | AB15: 780.4176134 | AC15: 851.566334 | AD15: =AD11+AD20 -> 930.0005187 | AE15: 1016.481966 | AF15: 1111.852407 | AG15: 1217.041903 | AH15: 1333.078111 | AI15: 1461.096537 | AJ15: 1602.351856 | AK15: 1758.230427 | AL15: 1930.264112 | AM15: 2120.145561 | AN15: 2329.745089
E16: Total Build + Existing Weekday Riders | F16: =SUM(F14:F15) -> 200.3366717 | G16: 213.8606846 | H16: 229.397178 | I16: 247.2949314 | J16: =SUM(J14:J15) -> 267.9641737 | K16: 291.887427 | L16: 319.632265 | M16: 351.8663216 | N16: 389.3749507 | O16: 433.0820009 | P16: 484.0742582 | Q16: 520.6327135 | R16: 560.7850674 | S16: 604.9044818 | T16: 653.4032284 | U16: 706.7367941 | V16: 765.4084176 | W16: 829.9741021 | X16: 901.0481536 | Y16: 979.3093022 | Z16: 1065.507465 | AA16: 1160.471219 | AB16: 1265.116059 | AC16: 1380.453523 | AD16: =SUM(AD14:AD15) -> 1507.601277 | AE16: 1647.794253 | AF16: 1802.396962 | AG16: 1972.917101 | AH16: 2161.020582 | AI16: 2368.548147 | AJ16: =SUM(AJ14:AJ15) -> 2597.533718 | AK16: =SUM(AK14:AK15) -> 2850.224687 | AL16: =SUM(AL14:AL15) -> 3129.104321 | AM16: =SUM(AM14:AM15) -> 3436.916531 | AN16: =SUM(AN14:AN15) -> 3776.693239
D18: Build Bikes
E19: Weekday Commuters Riders | F19: =Users!B21 -> 24.2547228 | G19: =Users!C21 -> 28.53568137 | H19: =Users!D21 -> 33.57222914 | I19: =Users!E21 -> 39.49772758 | J19: =Users!F21 -> 46.4690765 | K19: =Users!G21 -> 54.6708685 | L19: =Users!H21 -> 64.32027679 | M19: =Users!I21 -> 75.67280564 | N19: =Users!J21 -> 89.02905584 | O19: =Users!K21 -> 104.7426842 | P19: =Users!L21 -> 123.229768 | Q19: =Users!M21 -> 136.1688936 | R19: =Users!N21 -> 150.4666274 | S19: =Users!O21 -> 166.2656233 | T19: =Users!P21 -> 183.7235137 | U19: =Users!Q21 -> 203.0144827 | V19: =Users!R21 -> 224.3310034 | W19: =Users!S21 -> 247.8857587 | X19: =Users!T21 -> 273.9137634 | Y19: =Users!U21 -> 302.6747085 | Z19: =Users!V21 -> 334.4555529 | AA19: =Users!W21 -> 369.573386 | AB19: =Users!X21 -> 408.3785915 | AC19: =Users!Y21 -> 451.2583436 | AD19: =Users!Z21 -> 498.6404697 | AE19: =Users!AA21 -> 550.997719 | AF19: =Users!AB21 -> 608.8524795 | AG19: =Users!AC21 -> 672.7819899 | AH19: =Users!AD21 -> 743.4240988 | AI19: =Users!AE21 -> 821.4836292 | AJ19: =Users!AF21 -> 907.7394103 | AK19: =Users!AG21 -> 1003.052048 | AL19: =Users!AH21 -> 1108.372513 | AM19: =Users!AI21 -> 1224.751627 | AN19: =Users!AJ21 -> 1353.350548
E20: Weekday Destination Riders | F20: =Users!B22 -> 39.0527617 | G20: =Users!C22 -> 45.94557414 | H20: =Users!D22 -> 54.05496798 | I20: =Users!E22 -> 63.59566983 | J20: =Users!F22 -> 74.82030555 | K20: =Users!G22 -> 88.02608948 | L20: =Users!H22 -> 103.5626943 | M20: =Users!I22 -> 121.8415098 | N20: =Users!J22 -> 143.3465363 | O20: =Users!K22 -> 168.6472 | P20: =Users!L22 -> 198.4134307 | Q20: =Users!M22 -> 219.246841 | R20: =Users!N22 -> 242.2677593 | S20: =Users!O22 -> 267.705874 | T20: =Users!P22 -> 295.8149908 | U20: =Users!Q22 -> 326.8755648 | V20: =Users!R22 -> 361.1974991 | W20: =Users!S22 -> 399.1232365 | X20: =Users!T22 -> 441.0311763 | Y20: =Users!U22 -> 487.3394499 | Z20: =Users!V22 -> 538.5100921 | AA20: =Users!W22 -> 595.0536518 | AB20: =Users!X22 -> 657.5342852 | AC20: =Users!Y22 -> 726.5753851 | AD20: =Users!Z22 -> 802.8658006 | AE20: =Users!AA22 -> 887.1667096 | AF20: =Users!AB22 -> 980.3192142 | AG20: =Users!AC22 -> 1083.252732 | AH20: =Users!AD22 -> 1196.994268 | AI20: =Users!AE22 -> 1322.678667 | AJ20: =Users!AF22 -> 1461.559927 | AK20: =Users!AG22 -> 1615.023719 | AL20: =Users!AH22 -> 1784.601209 | AM20: =Users!AI22 -> 1971.984336 | AN20: =Users!AJ22 -> 2179.042692
E21: Total Build Weekday Riders | F21: =SUM(F19:F20) -> 63.3074845 | G21: 74.48125552 | H21: 87.62719712 | I21: =SUM(I19:I20) -> 103.0933974 | J21: =SUM(J19:J20) -> 121.289382 | K21: 142.696958 | L21: 167.8829711 | M21: 197.5143155 | N21: 232.3755921 | O21: 273.3898841 | P21: 321.6431987 | Q21: 355.4157346 | R21: 392.7343867 | S21: 433.9714973 | T21: 479.5385045 | U21: 529.8900475 | V21: 585.5285025 | W21: 647.0089952 | X21: 714.9449397 | Y21: 790.0141584 | Z21: 872.965645 | AA21: 964.6270378 | AB21: 1065.912877 | AC21: 1177.833729 | AD21: =SUM(AD19:AD20) -> 1301.50627 | AE21: 1438.164429 | AF21: 1589.171694 | AG21: 1756.034722 | AH21: 1940.418367 | AI21: 2144.162296 | AJ21: =SUM(AJ19:AJ20) -> 2369.299337 | AK21: =SUM(AK19:AK20) -> 2618.075767 | AL21: =SUM(AL19:AL20) -> 2892.973723 | AM21: =SUM(AM19:AM20) -> 3196.735964 | AN21: =SUM(AN19:AN20) -> 3532.39324
D23: Existing Walkers
E24: Weekday Commuter Walkers | F24: =Users!B16 -> 5319 | G24: =Users!C16 -> 5588.538087 | H24: =Users!D16 -> 5871.734904 | I24: =Users!E16 -> 6169.2826 | J24: =Users!F16 -> 6481.908401 | K24: =Users!G16 -> 6810.376382 | L24: =Users!H16 -> 7155.489341 | M24: =Users!I16 -> 7518.090753 | N24: =Users!J16 -> 7899.066839 | O24: =Users!K16 -> 8299.348729 | P24: =Users!L16 -> 8719.914734 | Q24: =Users!M16 -> 9161.792745 | R24: =Users!N16 -> 9626.062739 | S24: =Users!O16 -> 10113.85942 | T24: =Users!P16 -> 10626.37499 | U24: =Users!Q16 -> 11164.86207 | V24: =Users!R16 -> 11730.63676 | W24: =Users!S16 -> 12325.08184 | X24: =Users!T16 -> 12949.65018 | Y24: =Users!U16 -> 13605.86826 | Z24: =Users!V16 -> 14295.33991 | AA24: =Users!W16 -> 15019.75024 | AB24: =Users!X16 -> 15780.86977 | AC24: =Users!Y16 -> 16580.55871 | AD24: =Users!Z16 -> 17420.77154 | AE24: =Users!AA16 -> 18303.56181 | AF24: =Users!AB16 -> 19231.08711 | AG24: =Users!AC16 -> 20205.61436 | AH24: =Users!AD16 -> 21229.52537 | AI24: =Users!AE16 -> 22305.32263 | AJ24: =Users!AF16 -> 23435.63548 | AK24: =Users!AG16 -> 24623.22645 | AL24: =Users!AH16 -> 25870.99809 | AM24: =Users!AI16 -> 27182.00003 | AN24: =Users!AJ16 -> 28559.43645
E25: Weekday Utilitarian Walkers | F25: =Users!B17 -> 134.2336348 | G25: =Users!C17 -> 141.0358677 | H25: =Users!D17 -> 148.182801 | I25: =Users!E17 -> 155.6919021 | J25: =Users!F17 -> 163.5815238 | K25: =Users!G17 -> 171.8709487 | L25: =Users!H17 -> 180.5804367 | M25: =Users!I17 -> 189.7312743 | N25: =Users!J17 -> 199.3458269 | O25: =Users!K17 -> 209.4475928 | P25: =Users!L17 -> 220.0612614 | Q25: =Users!M17 -> 231.2127733 | R25: =Users!N17 -> 242.9293833 | S25: =Users!O17 -> 255.2397276 | T25: =Users!P17 -> 268.1738934 | U25: =Users!Q17 -> 281.7634927 | V25: =Users!R17 -> 296.0417391 | W25: =Users!S17 -> 311.0435297 | X25: =Users!T17 -> 326.8055298 | Y25: =Users!U17 -> 343.3662625 | Z25: =Users!V17 -> 360.7662034 | AA25: =Users!W17 -> 379.047879 | AB25: =Users!X17 -> 398.2559708 | AC25: =Users!Y17 -> 418.4374246 | AD25: =Users!Z17 -> 439.6415651 | AE25: =Users!AA17 -> 461.9202165 | AF25: =Users!AB17 -> 485.3278291 | AG25: =Users!AC17 -> 509.9216127 | AH25: =Users!AD17 -> 535.7616759 | AI25: =Users!AE17 -> 562.9111735 | AJ25: =Users!AF17 -> 591.4364604 | AK25: =Users!AG17 -> 621.4072542 | AL25: =Users!AH17 -> 652.8968054 | AM25: =Users!AI17 -> 685.9820764 | AN25: =Users!AJ17 -> 720.7439295
E26: Total Existing Weekday Walkers | F26: =SUM(F24:F25) -> 5453.233635 | G26: 5729.573955 | H26: 6019.917705 | I26: 6324.974503 | J26: 6645.489925 | K26: 6982.247331 | L26: 7336.069777 | M26: 7707.822027 | N26: 8098.412666 | O26: 8508.796321 | P26: 8939.975996 | Q26: 9393.005518 | R26: 9868.992122 | S26: 10369.09915 | T26: 10894.54888 | U26: 11446.62557 | V26: 12026.6785 | W26: 12636.12537 | X26: 13276.45571 | Y26: 13949.23452 | Z26: 14656.10611 | AA26: 15398.79812 | AB26: 16179.12574 | AC26: 16998.99613 | AD26: =SUM(AD24:AD25) -> 17860.41311 | AE26: 18765.48203 | AF26: 19716.41494 | AG26: 20715.53597 | AH26: 21765.28704 | AI26: 22868.23381 | AJ26: =SUM(AJ24:AJ25) -> 24027.07194 | AK26: =SUM(AK24:AK25) -> 25244.6337 | AL26: =SUM(AL24:AL25) -> 26523.89489 | AM26: =SUM(AM24:AM25) -> 27867.98211 | AN26: =SUM(AN24:AN25) -> 29280.18038
D27: Build + Existing Walkers
E28: Weekday Commuters Walkers | F28: =F24+F33 -> 6648.75 | G28: =G24+G33 -> 7012.579451 | H28: 7396.753746 | I28: 7802.439142 | J28: 8230.870589 | K28: 8683.355889 | L28: 9161.280121 | M28: 9666.110334 | N28: 10199.40054 | O28: 10762.797 | P28: 11358.04388 | Q28: 11863.23699 | R28: 12392.34165 | S28: 12946.52902 | T28: 13527.02866 | U28: 14135.13143 | V28: 14772.19258 | W28: 15439.63501 | X28: 16138.95262 | Y28: 16871.71396 | Z28: 17639.5659 | AA28: 18444.23766 | AB28: 19287.54489 | AC28: 20171.39403 | AD28: =AD24+AD33 -> 21097.78691 | AE28: 22068.82555 | AF28: 23086.71718 | AG28: 24153.77955 | AH28: 25272.44652 | AI28: 26445.27389 | AJ28: =AJ24+AJ33 -> 27674.94557 | AK28: 28964.27998 | AL28: 30316.2369 | AM28: 31733.92458 | AN28: 33220.60719
E29: Weekday Utilitarian Walkers | F29: =F25+F34 -> 167.7920434 | G29: =G25+G34 -> 176.9738727 | H29: 186.6691372 | I29: 196.9072694 | J29: 207.7194353 | K29: 219.1386394 | L29: 231.1998364 | M29: 243.9400497 | N29: 257.3984971 | O29: 271.6167251 | P29: 286.6387505 | Q29: 299.388122 | R29: 312.7409404 | S29: 326.7267621 | T29: 341.3766168 | U29: 356.7230814 | V29: 372.800358 | W29: 389.6443554 | X29: 407.2927753 | Y29: 425.7852019 | Z29: 445.1631973 | AA29: 465.4704008 | AB29: 486.7526331 | AC29: 509.0580068 | AD29: =AD25+AD34 -> 532.4370413 | AE29: 556.9427841 | AF29: 582.6309383 | AG29: 609.5599965 | AH29: 637.791381 | AI29: 667.3895914 | AJ29: 698.4223604 | AK29: 730.9608158 | AL29: 765.0796525 | AM29: 800.8573118 | AN29: 838.3761706
E30: Total Build +Existing Weekday Walkers | F30: =SUM(F28:F29) -> 6816.542043 | G30: =SUM(G28:G29) -> 7189.553324 | H30: 7583.422884 | I30: 7999.346412 | J30: 8438.590024 | K30: =SUM(K28:K29) -> 8902.494528 | L30: 9392.479958 | M30: 9910.050384 | N30: 10456.79903 | O30: 11034.41372 | P30: 11644.68263 | Q30: 12162.62511 | R30: 12705.08259 | S30: 13273.25578 | T30: 13868.40528 | U30: 14491.85451 | V30: 15144.99294 | W30: 15829.27936 | X30: 16546.2454 | Y30: 17297.49916 | Z30: 18084.7291 | AA30: 18909.70806 | AB30: 19774.29752 | AC30: 20680.45203 | AD30: =SUM(AD28:AD29) -> 21630.22395 | AE30: 22625.76833 | AF30: 23669.34811 | AG30: 24763.33954 | AH30: 25910.2379 | AI30: 27112.66349 | AJ30: =SUM(AJ28:AJ29) -> 28373.36793 | AK30: =SUM(AK28:AK29) -> 29695.24079 | AL30: =SUM(AL28:AL29) -> 31081.31656 | AM30: =SUM(AM28:AM29) -> 32534.78189 | AN30: =SUM(AN28:AN29) -> 34058.98336
D32: Build Walkers
E33: Weekday Commuters Walkers | F33: =Users!B23 -> 1329.75 | G33: =Users!C23 -> 1424.041364 | H33: =Users!D23 -> 1525.018842 | I33: =Users!E23 -> 1633.156542 | J33: =Users!F23 -> 1748.962188 | K33: =Users!G23 -> 1872.979506 | L33: =Users!H23 -> 2005.79078 | M33: =Users!I23 -> 2148.019581 | N33: =Users!J23 -> 2300.333697 | O33: =Users!K23 -> 2463.448268 | P33: =Users!L23 -> 2638.129145 | Q33: =Users!M23 -> 2701.444245 | R33: =Users!N23 -> 2766.278907 | S33: =Users!O23 -> 2832.669601 | T33: =Users!P23 -> 2900.653671 | U33: =Users!Q23 -> 2970.269359 | V33: =Users!R23 -> 3041.555824 | W33: =Users!S23 -> 3114.553163 | X33: =Users!T23 -> 3189.302439 | Y33: =Users!U23 -> 3265.845698 | Z33: =Users!V23 -> 3344.225995 | AA33: =Users!W23 -> 3424.487418 | AB33: =Users!X23 -> 3506.675117 | AC33: =Users!Y23 -> 3590.835319 | AD33: =Users!Z23 -> 3677.015367 | AE33: =Users!AA23 -> 3765.263736 | AF33: =Users!AB23 -> 3855.630065 | AG33: =Users!AC23 -> 3948.165187 | AH33: =Users!AD23 -> 4042.921152 | AI33: =Users!AE23 -> 4139.951259 | AJ33: =Users!AF23 -> 4239.310089 | AK33: =Users!AG23 -> 4341.053532 | AL33: =Users!AH23 -> 4445.238816 | AM33: =Users!AI23 -> 4551.924548 | AN33: =Users!AJ23 -> 4661.170737
E34: Weekday Destination Walkers | F34: =Users!B24 -> 33.55840869 | G34: =Users!C24 -> 35.93800494 | H34: =Users!D24 -> 38.4863362 | I34: =Users!E24 -> 41.21536731 | J34: =Users!F24 -> 44.13791154 | K34: =Users!G24 -> 47.26769072 | L34: =Users!H24 -> 50.6193997 | M34: =Users!I24 -> 54.20877532 | N34: =Users!J24 -> 58.05267029 | O34: =Users!K24 -> 62.16913237 | P34: =Users!L24 -> 66.57748903 | Q34: =Users!M24 -> 68.17534877 | R34: =Users!N24 -> 69.81155714 | S34: =Users!O24 -> 71.48703451 | T34: =Users!P24 -> 73.20272334 | U34: =Users!Q24 -> 74.9595887 | V34: =Users!R24 -> 76.75861882 | W34: =Users!S24 -> 78.60082568 | X34: =Users!T24 -> 80.48724549 | Y34: =Users!U24 -> 82.41893938 | Z34: =Users!V24 -> 84.39699393 | AA34: =Users!W24 -> 86.42252178 | AB34: =Users!X24 -> 88.49666231 | AC34: =Users!Y24 -> 90.6205822 | AD34: =Users!Z24 -> 92.79547617 | AE34: =Users!AA24 -> 95.0225676 | AF34: =Users!AB24 -> 97.30310922 | AG34: =Users!AC24 -> 99.63838385 | AH34: =Users!AD24 -> 102.0297051 | AI34: =Users!AE24 -> 104.478418 | AJ34: =Users!AF24 -> 106.9859 | AK34: =Users!AG24 -> 109.5535616 | AL34: =Users!AH24 -> 112.1828471 | AM34: =Users!AI24 -> 114.8752354 | AN34: =Users!AJ24 -> 117.6322411
E35: Total Build Weekday Walkers | F35: =SUM(F33:F34) -> 1363.308409 | G35: =SUM(G33:G34) -> 1459.979369 | H35: 1563.505178 | I35: 1674.371909 | J35: 1793.100099 | K35: 1920.247197 | L35: 2056.41018 | M35: 2202.228357 | N35: 2358.386367 | O35: 2525.617401 | P35: 2704.706634 | Q35: 2769.619594 | R35: 2836.090464 | S35: 2904.156635 | T35: 2973.856394 | U35: 3045.228948 | V35: 3118.314442 | W35: 3193.153989 | X35: 3269.789685 | Y35: 3348.264637 | Z35: 3428.622989 | AA35: 3510.90994 | AB35: 3595.171779 | AC35: 3681.455902 | AD35: =SUM(AD33:AD34) -> 3769.810843 | AE35: 3860.286303 | AF35: 3952.933175 | AG35: 4047.803571 | AH35: 4144.950857 | AI35: 4244.429677 | AJ35: =SUM(AJ33:AJ34) -> 4346.295989 | AK35: =SUM(AK33:AK34) -> 4450.607093 | AL35: =SUM(AL33:AL34) -> 4557.421663 | AM35: =SUM(AM33:AM34) -> 4666.799783 | AN35: =SUM(AN33:AN34) -> 4778.802978
A36: Benefit Categories
B37: Health Benefits
C38: New Commuter Pedestrian Health Benefits | F38: =IF(Assumptions!$D$20=1,F5*F33*Assumptions!$D$22*Assumptions!$D$59*Assumptions!$D$45,0) -> 0 | G38: =IF(Assumptions!$D$20=1,G5*G33*Assumptions!$D$22*Assumptions!$D$59*Assumptions!$D$45,0) -> 0 | H38: =IF(Assumptions!$D$20=1,H5*H33*Assumptions!$D$22*Assumptions!$D$59*Assumptions!$D$45,0) -> 0 | I38: =IF(Assumptions!$D$20=1,I5*I33*Assumptions!$D$22*Assumptions!$D$59*Assumptions!$D$45,0) -> 147712.8357 | J38: =IF(Assumptions!$D$20=1,J5*J33*Assumptions!$D$22*Assumptions!$D$59*Assumptions!$D$45,0) -> 158187.0186 | K38: =IF(Assumptions!$D$20=1,K5*K33*Assumptions!$D$22*Assumptions!$D$59*Assumptions!$D$45,0) -> 169403.9163 | L38: =IF(Assumptions!$D$20=1,L5*L33*Assumptions!$D$22*Assumptions!$D$59*Assumptions!$D$45,0) -> 181416.194 | M38: =IF(Assumptions!$D$20=1,M5*M33*Assumptions!$D$22*Assumptions!$D$59*Assumptions!$D$45,0) -> 194280.2514 | N38: =IF(Assumptions!$D$20=1,N5*N33*Assumptions!$D$22*Assumptions!$D$59*Assumptions!$D$45,0) -> 208056.4874 | O38: =IF(Assumptions!$D$20=1,O5*O33*Assumptions!$D$22*Assumptions!$D$59*Assumptions!$D$45,0) -> 222809.5838 | P38: =IF(Assumptions!$D$20=1,P5*P33*Assumptions!$D$22*Assumptions!$D$59*Assumptions!$D$45,0) -> 238608.8088 | Q38: =IF(Assumptions!$D$20=1,Q5*Q33*Assumptions!$D$22*Assumptions!$D$59*Assumptions!$D$45,0) -> 244335.4202 | R38: =IF(Assumptions!$D$20=1,R5*R33*Assumptions!$D$22*Assumptions!$D$59*Assumptions!$D$45,0) -> 250199.4703 | S38: =IF(Assumptions!$D$20=1,S5*S33*Assumptions!$D$22*Assumptions!$D$59*Assumptions!$D$45,0) -> 256204.2576 | T38: =IF(Assumptions!$D$20=1,T5*T33*Assumptions!$D$22*Assumptions!$D$59*Assumptions!$D$45,0) -> 262353.1598 | U38: =IF(Assumptions!$D$20=1,U5*U33*Assumptions!$D$22*Assumptions!$D$59*Assumptions!$D$45,0) -> 268649.6356 | V38: =IF(Assumptions!$D$20=1,V5*V33*Assumptions!$D$22*Assumptions!$D$59*Assumptions!$D$45,0) -> 275097.2268 | W38: =IF(Assumptions!$D$20=1,W5*W33*Assumptions!$D$22*Assumptions!$D$59*Assumptions!$D$45,0) -> 281699.5603 | X38: =IF(Assumptions!$D$20=1,X5*X33*Assumptions!$D$22*Assumptions!$D$59*Assumptions!$D$45,0) -> 288460.3497 | Y38: =IF(Assumptions!$D$20=1,Y5*Y33*Assumptions!$D$22*Assumptions!$D$59*Assumptions!$D$45,0) -> 295383.3981 | Z38: =IF(Assumptions!$D$20=1,Z5*Z33*Assumptions!$D$22*Assumptions!$D$59*Assumptions!$D$45,0) -> 302472.5997 | AA38: =IF(Assumptions!$D$20=1,AA5*AA33*Assumptions!$D$22*Assumptions!$D$59*Assumptions!$D$45,0) -> 309731.9421 | AB38: =IF(Assumptions!$D$20=1,AB5*AB33*Assumptions!$D$22*Assumptions!$D$59*Assumptions!$D$45,0) -> 317165.5087 | AC38: =IF(Assumptions!$D$20=1,AC5*AC33*Assumptions!$D$22*Assumptions!$D$59*Assumptions!$D$45,0) -> 324777.4809 | AD38: =IF(Assumptions!$D$20=1,AD5*AD33*Assumptions!$D$22*Assumptions!$D$59*Assumptions!$D$45,0) -> 332572.1404 | AE38: =IF(Assumptions!$D$20=1,AE5*AE33*Assumptions!$D$22*Assumptions!$D$59*Assumptions!$D$45,0) -> 340553.8718 | AF38: =IF(Assumptions!$D$20=1,AF5*AF33*Assumptions!$D$22*Assumptions!$D$59*Assumptions!$D$45,0) -> 348727.1647 | AG38: =IF(Assumptions!$D$20=1,AG5*AG33*Assumptions!$D$22*Assumptions!$D$59*Assumptions!$D$45,0) -> 357096.6167 | AH38: =IF(Assumptions!$D$20=1,AH5*AH33*Assumptions!$D$22*Assumptions!$D$59*Assumptions!$D$45,0) -> 365666.9355 | AI38: =IF(Assumptions!$D$20=1,AI5*AI33*Assumptions!$D$22*Assumptions!$D$59*Assumptions!$D$45,0) -> 374442.9419 | AJ38: =IF(Assumptions!$D$20=1,AJ5*AJ33*Assumptions!$D$22*Assumptions!$D$59*Assumptions!$D$45,0) -> 383429.5725 | AK38: =IF(Assumptions!$D$20=1,AK5*AK33*Assumptions!$D$22*Assumptions!$D$59*Assumptions!$D$45,0) -> 392631.8823 | AL38: =IF(Assumptions!$D$20=1,AL5*AL33*Assumptions!$D$22*Assumptions!$D$59*Assumptions!$D$45,0) -> 402055.0475 | AM38: =IF(Assumptions!$D$20=1,AM5*AM33*Assumptions!$D$22*Assumptions!$D$59*Assumptions!$D$45,0) -> 411704.3686 | AN38: =IF(Assumptions!$D$20=1,AN5*AN33*Assumptions!$D$22*Assumptions!$D$59*Assumptions!$D$45,0) -> 421585.2734
C39: New Utilitarian Pedestrian Health Benefits | F39: =IF(Assumptions!$D$20=1,F5*F34*Assumptions!$D$22*Assumptions!$D$59*Assumptions!$D$47,0) -> 0 | G39: =IF(Assumptions!$D$20=1,G5*G34*Assumptions!$D$22*Assumptions!$D$59*Assumptions!$D$47,0) -> 0 | H39: =IF(Assumptions!$D$20=1,H5*H34*Assumptions!$D$22*Assumptions!$D$59*Assumptions!$D$47,0) -> 0 | I39: =IF(Assumptions!$D$20=1,I5*I34*Assumptions!$D$22*Assumptions!$D$59*Assumptions!$D$47,0) -> 5442.550296 | J39: =IF(Assumptions!$D$20=1,J5*J34*Assumptions!$D$22*Assumptions!$D$59*Assumptions!$D$47,0) -> 5828.476589 | K39: =IF(Assumptions!$D$20=1,K5*K34*Assumptions!$D$22*Assumptions!$D$59*Assumptions!$D$47,0) -> 6241.768566 | L39: =IF(Assumptions!$D$20=1,L5*L34*Assumptions!$D$22*Assumptions!$D$59*Assumptions!$D$47,0) -> 6684.3667 | M39: =IF(Assumptions!$D$20=1,M5*M34*Assumptions!$D$22*Assumptions!$D$59*Assumptions!$D$47,0) -> 7158.349066 | N39: =IF(Assumptions!$D$20=1,N5*N34*Assumptions!$D$22*Assumptions!$D$59*Assumptions!$D$47,0) -> 7665.941091 | O39: =IF(Assumptions!$D$20=1,O5*O34*Assumptions!$D$22*Assumptions!$D$59*Assumptions!$D$47,0) -> 8209.526005 | P39: =IF(Assumptions!$D$20=1,P5*P34*Assumptions!$D$22*Assumptions!$D$59*Assumptions!$D$47,0) -> 8791.65603 | Q39: =IF(Assumptions!$D$20=1,Q5*Q34*Assumptions!$D$22*Assumptions!$D$59*Assumptions!$D$47,0) -> 9002.655775 | R39: =IF(Assumptions!$D$20=1,R5*R34*Assumptions!$D$22*Assumptions!$D$59*Assumptions!$D$47,0) -> 9218.719514 | S39: =IF(Assumptions!$D$20=1,S5*S34*Assumptions!$D$22*Assumptions!$D$59*Assumptions!$D$47,0) -> 9439.968782 | T39: =IF(Assumptions!$D$20=1,T5*T34*Assumptions!$D$22*Assumptions!$D$59*Assumptions!$D$47,0) -> 9666.528033 | U39: =IF(Assumptions!$D$20=1,U5*U34*Assumptions!$D$22*Assumptions!$D$59*Assumptions!$D$47,0) -> 9898.524706 | V39: =IF(Assumptions!$D$20=1,V5*V34*Assumptions!$D$22*Assumptions!$D$59*Assumptions!$D$47,0) -> 10136.0893 | W39: =IF(Assumptions!$D$20=1,W5*W34*Assumptions!$D$22*Assumptions!$D$59*Assumptions!$D$47,0) -> 10379.35544 | X39: =IF(Assumptions!$D$20=1,X5*X34*Assumptions!$D$22*Assumptions!$D$59*Assumptions!$D$47,0) -> 10628.45997 | Y39: =IF(Assumptions!$D$20=1,Y5*Y34*Assumptions!$D$22*Assumptions!$D$59*Assumptions!$D$47,0) -> 10883.54301 | Z39: =IF(Assumptions!$D$20=1,Z5*Z34*Assumptions!$D$22*Assumptions!$D$59*Assumptions!$D$47,0) -> 11144.74804 | AA39: =IF(Assumptions!$D$20=1,AA5*AA34*Assumptions!$D$22*Assumptions!$D$59*Assumptions!$D$47,0) -> 11412.222 | AB39: =IF(Assumptions!$D$20=1,AB5*AB34*Assumptions!$D$22*Assumptions!$D$59*Assumptions!$D$47,0) -> 11686.11532 | AC39: =IF(Assumptions!$D$20=1,AC5*AC34*Assumptions!$D$22*Assumptions!$D$59*Assumptions!$D$47,0) -> 11966.58209 | AD39: =IF(Assumptions!$D$20=1,AD5*AD34*Assumptions!$D$22*Assumptions!$D$59*Assumptions!$D$47,0) -> 12253.78006 | AE39: =IF(Assumptions!$D$20=1,AE5*AE34*Assumptions!$D$22*Assumptions!$D$59*Assumptions!$D$47,0) -> 12547.87078 | AF39: =IF(Assumptions!$D$20=1,AF5*AF34*Assumptions!$D$22*Assumptions!$D$59*Assumptions!$D$47,0) -> 12849.01968 | AG39: =IF(Assumptions!$D$20=1,AG5*AG34*Assumptions!$D$22*Assumptions!$D$59*Assumptions!$D$47,0) -> 13157.39616 | AH39: =IF(Assumptions!$D$20=1,AH5*AH34*Assumptions!$D$22*Assumptions!$D$59*Assumptions!$D$47,0) -> 13473.17366 | AI39: =IF(Assumptions!$D$20=1,AI5*AI34*Assumptions!$D$22*Assumptions!$D$59*Assumptions!$D$47,0) -> 13796.52983 | AJ39: =IF(Assumptions!$D$20=1,AJ5*AJ34*Assumptions!$D$22*Assumptions!$D$59*Assumptions!$D$47,0) -> 14127.64655 | AK39: =IF(Assumptions!$D$20=1,AK5*AK34*Assumptions!$D$22*Assumptions!$D$59*Assumptions!$D$47,0) -> 14466.71006 | AL39: =IF(Assumptions!$D$20=1,AL5*AL34*Assumptions!$D$22*Assumptions!$D$59*Assumptions!$D$47,0) -> 14813.91111 | AM39: =IF(Assumptions!$D$20=1,AM5*AM34*Assumptions!$D$22*Assumptions!$D$59*Assumptions!$D$47,0) -> 15169.44497 | AN39: =IF(Assumptions!$D$20=1,AN5*AN34*Assumptions!$D$22*Assumptions!$D$59*Assumptions!$D$47,0) -> 15533.51165
C40: New Commuter Cyclist Health Benefits | F40: =F5*(F19*Assumptions!$D$45*Assumptions!$D$46)/Assumptions!$D$23*Assumptions!$D$28*Assumptions!$D$21 -> 0 | G40: =G5*(G19*Assumptions!$D$45*Assumptions!$D$46)/Assumptions!$D$23*Assumptions!$D$28*Assumptions!$D$21 -> 0 | H40: =H5*(H19*Assumptions!$D$45*Assumptions!$D$46)/Assumptions!$D$23*Assumptions!$D$28*Assumptions!$D$21 -> 0 | I40: =I5*(I19*Assumptions!$D$45*Assumptions!$D$46)/Assumptions!$D$23*Assumptions!$D$28*Assumptions!$D$21 -> 14043.65154 | J40: =J5*(J19*Assumptions!$D$45*Assumptions!$D$46)/Assumptions!$D$23*Assumptions!$D$28*Assumptions!$D$21 -> 16522.35604 | K40: =K5*(K19*Assumptions!$D$45*Assumptions!$D$46)/Assumptions!$D$23*Assumptions!$D$28*Assumptions!$D$21 -> 19438.55188 | L40: =L5*(L19*Assumptions!$D$45*Assumptions!$D$46)/Assumptions!$D$23*Assumptions!$D$28*Assumptions!$D$21 -> 22869.45629 | M40: =M5*(M19*Assumptions!$D$45*Assumptions!$D$46)/Assumptions!$D$23*Assumptions!$D$28*Assumptions!$D$21 -> 26905.91532 | N40: =N5*(N19*Assumptions!$D$45*Assumptions!$D$46)/Assumptions!$D$23*Assumptions!$D$28*Assumptions!$D$21 -> 31654.80938 | O40: =O5*(O19*Assumptions!$D$45*Assumptions!$D$46)/Assumptions!$D$23*Assumptions!$D$28*Assumptions!$D$21 -> 37241.88323 | P40: =P5*(P19*Assumptions!$D$45*Assumptions!$D$46)/Assumptions!$D$23*Assumptions!$D$28*Assumptions!$D$21 -> 43815.07563 | Q40: =Q5*(Q19*Assumptions!$D$45*Assumptions!$D$46)/Assumptions!$D$23*Assumptions!$D$28*Assumptions!$D$21 -> 48415.65857 | R40: =R5*(R19*Assumptions!$D$45*Assumptions!$D$46)/Assumptions!$D$23*Assumptions!$D$28*Assumptions!$D$21 -> 53499.30272 | S40: =S5*(S19*Assumptions!$D$45*Assumptions!$D$46)/Assumptions!$D$23*Assumptions!$D$28*Assumptions!$D$21 -> 59116.7295 | T40: =T5*(T19*Assumptions!$D$45*Assumptions!$D$46)/Assumptions!$D$23*Assumptions!$D$28*Assumptions!$D$21 -> 65323.9861 | U40: =U5*(U19*Assumptions!$D$45*Assumptions!$D$46)/Assumptions!$D$23*Assumptions!$D$28*Assumptions!$D$21 -> 72183.00464 | V40: =V5*(V19*Assumptions!$D$45*Assumptions!$D$46)/Assumptions!$D$23*Assumptions!$D$28*Assumptions!$D$21 -> 79762.22013 | W40: =W5*(W19*Assumptions!$D$45*Assumptions!$D$46)/Assumptions!$D$23*Assumptions!$D$28*Assumptions!$D$21 -> 88137.25324 | X40: =X5*(X19*Assumptions!$D$45*Assumptions!$D$46)/Assumptions!$D$23*Assumptions!$D$28*Assumptions!$D$21 -> 97391.66483 | Y40: =Y5*(Y19*Assumptions!$D$45*Assumptions!$D$46)/Assumptions!$D$23*Assumptions!$D$28*Assumptions!$D$21 -> 107617.7896 | Z40: =Z5*(Z19*Assumptions!$D$45*Assumptions!$D$46)/Assumptions!$D$23*Assumptions!$D$28*Assumptions!$D$21 -> 118917.6575 | AA40: =AA5*(AA19*Assumptions!$D$45*Assumptions!$D$46)/Assumptions!$D$23*Assumptions!$D$28*Assumptions!$D$21 -> 131404.0116 | AB40: =AB5*(AB19*Assumptions!$D$45*Assumptions!$D$46)/Assumptions!$D$23*Assumptions!$D$28*Assumptions!$D$21 -> 145201.4328 | AC40: =AC5*(AC19*Assumptions!$D$45*Assumptions!$D$46)/Assumptions!$D$23*Assumptions!$D$28*Assumptions!$D$21 -> 160447.5833 | AD40: =AD5*(AD19*Assumptions!$D$45*Assumptions!$D$46)/Assumptions!$D$23*Assumptions!$D$28*Assumptions!$D$21 -> 177294.5795 | AE40: =AE5*(AE19*Assumptions!$D$45*Assumptions!$D$46)/Assumptions!$D$23*Assumptions!$D$28*Assumptions!$D$21 -> 195910.5103 | AF40: =AF5*(AF19*Assumptions!$D$45*Assumptions!$D$46)/Assumptions!$D$23*Assumptions!$D$28*Assumptions!$D$21 -> 216481.1139 | AG40: =AG5*(AG19*Assumptions!$D$45*Assumptions!$D$46)/Assumptions!$D$23*Assumptions!$D$28*Assumptions!$D$21 -> 239211.6309 | AH40: =AH5*(AH19*Assumptions!$D$45*Assumptions!$D$46)/Assumptions!$D$23*Assumptions!$D$28*Assumptions!$D$21 -> 264328.8521 | AI40: =AI5*(AI19*Assumptions!$D$45*Assumptions!$D$46)/Assumptions!$D$23*Assumptions!$D$28*Assumptions!$D$21 -> 292083.3816 | AJ40: =AJ5*(AJ19*Assumptions!$D$45*Assumptions!$D$46)/Assumptions!$D$23*Assumptions!$D$28*Assumptions!$D$21 -> 322752.1367 | AK40: =AK5*(AK19*Assumptions!$D$45*Assumptions!$D$46)/Assumptions!$D$23*Assumptions!$D$28*Assumptions!$D$21 -> 356641.111 | AL40: =AL5*(AL19*Assumptions!$D$45*Assumptions!$D$46)/Assumptions!$D$23*Assumptions!$D$28*Assumptions!$D$21 -> 394088.4277 | AM40: =AM5*(AM19*Assumptions!$D$45*Assumptions!$D$46)/Assumptions!$D$23*Assumptions!$D$28*Assumptions!$D$21 -> 435467.7126 | AN40: =AN5*(AN19*Assumptions!$D$45*Assumptions!$D$46)/Assumptions!$D$23*Assumptions!$D$28*Assumptions!$D$21 -> 481191.8224
C41: New Utilitarian Cyclist Health Benefits | F41: =F5*(F20*Assumptions!$D$47*Assumptions!$D$48)/Assumptions!$D$23*Assumptions!$D$28*Assumptions!$D$21 -> 0 | G41: =G5*(G20*Assumptions!$D$47*Assumptions!$D$48)/Assumptions!$D$23*Assumptions!$D$28*Assumptions!$D$21 -> 0 | H41: =H5*(H20*Assumptions!$D$47*Assumptions!$D$48)/Assumptions!$D$23*Assumptions!$D$28*Assumptions!$D$21 -> 0 | I41: =I5*(I20*Assumptions!$D$47*Assumptions!$D$48)/Assumptions!$D$23*Assumptions!$D$28*Assumptions!$D$21 -> 33013.25425 | J41: =J5*(J20*Assumptions!$D$47*Assumptions!$D$48)/Assumptions!$D$23*Assumptions!$D$28*Assumptions!$D$21 -> 38840.09363 | K41: =K5*(K20*Assumptions!$D$47*Assumptions!$D$48)/Assumptions!$D$23*Assumptions!$D$28*Assumptions!$D$21 -> 45695.37016 | L41: =L5*(L20*Assumptions!$D$47*Assumptions!$D$48)/Assumptions!$D$23*Assumptions!$D$28*Assumptions!$D$21 -> 53760.60299 | M41: =M5*(M20*Assumptions!$D$47*Assumptions!$D$48)/Assumptions!$D$23*Assumptions!$D$28*Assumptions!$D$21 -> 63249.34941 | N41: =N5*(N20*Assumptions!$D$47*Assumptions!$D$48)/Assumptions!$D$23*Assumptions!$D$28*Assumptions!$D$21 -> 74412.85959 | O41: =O5*(O20*Assumptions!$D$47*Assumptions!$D$48)/Assumptions!$D$23*Assumptions!$D$28*Assumptions!$D$21 -> 87546.7293 | P41: =P5*(P20*Assumptions!$D$47*Assumptions!$D$48)/Assumptions!$D$23*Assumptions!$D$28*Assumptions!$D$21 -> 102998.727 | Q41: =Q5*(Q20*Assumptions!$D$47*Assumptions!$D$48)/Assumptions!$D$23*Assumptions!$D$28*Assumptions!$D$21 -> 113813.5934 | R41: =R5*(R20*Assumptions!$D$47*Assumptions!$D$48)/Assumptions!$D$23*Assumptions!$D$28*Assumptions!$D$21 -> 125764.0207 | S41: =S5*(S20*Assumptions!$D$47*Assumptions!$D$48)/Assumptions!$D$23*Assumptions!$D$28*Assumptions!$D$21 -> 138969.2428 | T41: =T5*(T20*Assumptions!$D$47*Assumptions!$D$48)/Assumptions!$D$23*Assumptions!$D$28*Assumptions!$D$21 -> 153561.0133 | U41: =U5*(U20*Assumptions!$D$47*Assumptions!$D$48)/Assumptions!$D$23*Assumptions!$D$28*Assumptions!$D$21 -> 169684.9197 | V41: =V5*(V20*Assumptions!$D$47*Assumptions!$D$48)/Assumptions!$D$23*Assumptions!$D$28*Assumptions!$D$21 -> 187501.8363 | W41: =W5*(W20*Assumptions!$D$47*Assumptions!$D$48)/Assumptions!$D$23*Assumptions!$D$28*Assumptions!$D$21 -> 207189.5291 | X41: =X5*(X20*Assumptions!$D$47*Assumptions!$D$48)/Assumptions!$D$23*Assumptions!$D$28*Assumptions!$D$21 -> 228944.4297 | Y41: =Y5*(Y20*Assumptions!$D$47*Assumptions!$D$48)/Assumptions!$D$23*Assumptions!$D$28*Assumptions!$D$21 -> 252983.5948 | Z41: =Z5*(Z20*Assumptions!$D$47*Assumptions!$D$48)/Assumptions!$D$23*Assumptions!$D$28*Assumptions!$D$21 -> 279546.8722 | AA41: =AA5*(AA20*Assumptions!$D$47*Assumptions!$D$48)/Assumptions!$D$23*Assumptions!$D$28*Assumptions!$D$21 -> 308899.2938 | AB41: =AB5*(AB20*Assumptions!$D$47*Assumptions!$D$48)/Assumptions!$D$23*Assumptions!$D$28*Assumptions!$D$21 -> 341333.7197 | AC41: =AC5*(AC20*Assumptions!$D$47*Assumptions!$D$48)/Assumptions!$D$23*Assumptions!$D$28*Assumptions!$D$21 -> 377173.7602 | AD41: =AD5*(AD20*Assumptions!$D$47*Assumptions!$D$48)/Assumptions!$D$23*Assumptions!$D$28*Assumptions!$D$21 -> 416777.0051 | AE41: =AE5*(AE20*Assumptions!$D$47*Assumptions!$D$48)/Assumptions!$D$23*Assumptions!$D$28*Assumptions!$D$21 -> 460538.5906 | AF41: =AF5*(AF20*Assumptions!$D$47*Assumptions!$D$48)/Assumptions!$D$23*Assumptions!$D$28*Assumptions!$D$21 -> 508895.1426 | AG41: =AG5*(AG20*Assumptions!$D$47*Assumptions!$D$48)/Assumptions!$D$23*Assumptions!$D$28*Assumptions!$D$21 -> 562329.1326 | AH41: =AH5*(AH20*Assumptions!$D$47*Assumptions!$D$48)/Assumptions!$D$23*Assumptions!$D$28*Assumptions!$D$21 -> 621373.6915 | AI41: =AI5*(AI20*Assumptions!$D$47*Assumptions!$D$48)/Assumptions!$D$23*Assumptions!$D$28*Assumptions!$D$21 -> 686617.9291 | AJ41: =AJ5*(AJ20*Assumptions!$D$47*Assumptions!$D$48)/Assumptions!$D$23*Assumptions!$D$28*Assumptions!$D$21 -> 758712.8117 | AK41: =AK5*(AK20*Assumptions!$D$47*Assumptions!$D$48)/Assumptions!$D$23*Assumptions!$D$28*Assumptions!$D$21 -> 838377.6569 | AL41: =AL5*(AL20*Assumptions!$D$47*Assumptions!$D$48)/Assumptions!$D$23*Assumptions!$D$28*Assumptions!$D$21 -> 926407.3109 | AM41: =AM5*(AM20*Assumptions!$D$47*Assumptions!$D$48)/Assumptions!$D$23*Assumptions!$D$28*Assumptions!$D$21 -> 1023680.079 | AN41: =AN5*(AN20*Assumptions!$D$47*Assumptions!$D$48)/Assumptions!$D$23*Assumptions!$D$28*Assumptions!$D$21 -> 1131166.487
C42: Total Health Benefits - undiscounted | F42: =SUM(F38:F41) -> 0 | G42: =SUM(G38:G41) -> 0 | H42: 0 | I42: 200212.2918 | J42: 219377.9449 | K42: 240779.6069 | L42: 264730.62 | M42: 291593.8652 | N42: 321790.0974 | O42: 355807.7223 | P42: 394214.2675 | Q42: 415567.3279 | R42: 438681.5132 | S42: 463730.1987 | T42: 490904.6872 | U42: 520416.0847 | V42: 552497.3726 | W42: 587405.6981 | X42: 625424.9042 | Y42: 666868.3256 | Z42: 712081.8775 | AA42: 761447.4695 | AB42: 815386.7765 | AC42: 874365.4065 | AD42: =SUM(AD38:AD41) -> 938897.5051 | AE42: 1009550.844 | AF42: 1086952.441 | AG42: 1171794.776 | AH42: 1264842.653 | AI42: 1366940.783 | AJ42: =SUM(AJ38:AJ41) -> 1479022.167 | AK42: =SUM(AK38:AK41) -> 1602117.36 | AL42: =SUM(AL38:AL41) -> 1737364.697 | AM42: =SUM(AM38:AM41) -> 1886021.605 | AN42: =SUM(AN38:AN41) -> 2049477.094
C43: Total Health Benefits - discounted | F43: =F42*F6 -> 0 | G43: 0 | H43: 0 | I43: 152740.9988 | J43: 156413.4428 | K43: 160441.6187 | L43: 164860.9252 | M43: 169710.2844 | N43: 175032.492 | O43: 180874.6038 | P43: 187288.3587 | Q43: 184516.8635 | R43: 182037.2319 | S43: 179842.5662 | T43: 177926.4499 | U43: 176282.9331 | V43: 174906.519 | W43: 173792.1503 | X43: 172935.1977 | Y43: 172331.4477 | Z43: 171977.0923 | AA43: 171868.7185 | AB43: 172003.2992 | AC43: 172378.1845 | AD43: =AD42*AD6 -> 172991.0931 | AE43: 173840.1052 | AF43: 174923.6556 | AG43: 176240.5269 | AH43: 177789.8443 | AI43: 179571.0699 | AJ43: =AJ42*AJ6 -> 181583.9985 | AK43: =AK42*AK6 -> 183828.7527 | AL43: =AL42*AL6 -> 186305.78 | AM43: =AM42*AM6 -> 189015.8493 | AN43: =AN42*AN6 -> 191960.048
B44: Commuter Mobility Benefit
C45: Value of Time with Growth | F45: =Assumptions!D94 -> 13.6006149 | G45: =F45*(1+Assumptions!$D$96) -> 13.73662105 | H45: =G45*(1+Assumptions!$D$96) -> 13.87398726 | I45: =H45*(1+Assumptions!$D$96) -> 14.01272714 | J45: =I45*(1+Assumptions!$D$96) -> 14.15285441 | K45: =J45*(1+Assumptions!$D$96) -> 14.29438295 | L45: =K45*(1+Assumptions!$D$96) -> 14.43732678 | M45: =L45*(1+Assumptions!$D$96) -> 14.58170005 | N45: =M45*(1+Assumptions!$D$96) -> 14.72751705 | O45: =N45*(1+Assumptions!$D$96) -> 14.87479222 | P45: =O45*(1+Assumptions!$D$96) -> 15.02354014 | Q45: =P45*(1+Assumptions!$D$96) -> 15.17377554 | R45: =Q45*(1+Assumptions!$D$96) -> 15.3255133 | S45: =R45*(1+Assumptions!$D$96) -> 15.47876843 | T45: =S45*(1+Assumptions!$D$96) -> 15.63355612 | U45: =T45*(1+Assumptions!$D$96) -> 15.78989168 | V45: =U45*(1+Assumptions!$D$96) -> 15.94779059 | W45: =V45*(1+Assumptions!$D$96) -> 16.1072685 | X45: =W45*(1+Assumptions!$D$96) -> 16.26834118 | Y45: =X45*(1+Assumptions!$D$96) -> 16.4310246 | Z45: =Y45*(1+Assumptions!$D$96) -> 16.59533484 | AA45: =Z45*(1+Assumptions!$D$96) -> 16.76128819 | AB45: =AA45*(1+Assumptions!$D$96) -> 16.92890107 | AC45: =AB45*(1+Assumptions!$D$96) -> 17.09819008 | AD45: =AC45*(1+Assumptions!$D$96) -> 17.26917198 | AE45: =AD45*(1+Assumptions!$D$96) -> 17.4418637 | AF45: =AE45*(1+Assumptions!$D$96) -> 17.61628234 | AG45: =AF45*(1+Assumptions!$D$96) -> 17.79244516 | AH45: =AG45*(1+Assumptions!$D$96) -> 17.97036962 | AI45: =AH45*(1+Assumptions!$D$96) -> 18.15007331 | AJ45: =AI45*(1+Assumptions!$D$96) -> 18.33157405 | AK45: =AJ45*(1+Assumptions!$D$96) -> 18.51488979 | AL45: =AK45*(1+Assumptions!$D$96) -> 18.70003868 | AM45: =AL45*(1+Assumptions!$D$96) -> 18.88703907 | AN45: =AM45*(1+Assumptions!$D$96) -> 19.07590946
C46: New Commuter Cyclist Mobility Benefit | F46: =F5*(F19)*Assumptions!$D$45*Assumptions!$D$46*Assumptions!$D$97*F45/60*0.5 -> 0 | G46: =G5*(G19)*Assumptions!$D$45*Assumptions!$D$46*Assumptions!$D$97*G45/60*0.5 -> 0 | H46: =H5*(H19)*Assumptions!$D$45*Assumptions!$D$46*Assumptions!$D$97*H45/60*0.5 -> 0 | I46: =I5*(I19)*Assumptions!$D$45*Assumptions!$D$46*Assumptions!$D$97*I45/60*0.5 -> 45661.34752 | J46: =J5*(J19)*Assumptions!$D$45*Assumptions!$D$46*Assumptions!$D$97*J45/60*0.5 -> 54257.78111 | K46: =K5*(K19)*Assumptions!$D$45*Assumptions!$D$46*Assumptions!$D$97*K45/60*0.5 -> 64472.62227 | L46: =L5*(L19)*Assumptions!$D$45*Assumptions!$D$46*Assumptions!$D$97*L45/60*0.5 -> 76610.5605 | M46: =M5*(M19)*Assumptions!$D$45*Assumptions!$D$46*Assumptions!$D$97*M45/60*0.5 -> 91033.64768 | N46: =N5*(N19)*Assumptions!$D$45*Assumptions!$D$46*Assumptions!$D$97*N45/60*0.5 -> 108172.0974 | O46: =O5*(O19)*Assumptions!$D$45*Assumptions!$D$46*Assumptions!$D$97*O45/60*0.5 -> 128537.1173 | P46: =P5*(P19)*Assumptions!$D$45*Assumptions!$D$46*Assumptions!$D$97*P45/60*0.5 -> 152736.1576 | Q46: =Q5*(Q19)*Assumptions!$D$45*Assumptions!$D$46*Assumptions!$D$97*Q45/60*0.5 -> 170461.1887 | R46: =R5*(R19)*Assumptions!$D$45*Assumptions!$D$46*Assumptions!$D$97*R45/60*0.5 -> 190243.2097 | S46: =S5*(S19)*Assumptions!$D$45*Assumptions!$D$46*Assumptions!$D$97*S45/60*0.5 -> 212320.9342 | T46: =T5*(T19)*Assumptions!$D$45*Assumptions!$D$46*Assumptions!$D$97*T45/60*0.5 -> 236960.7786 | U46: =U5*(U19)*Assumptions!$D$45*Assumptions!$D$46*Assumptions!$D$97*U45/60*0.5 -> 264460.077 | V46: =V5*(V19)*Assumptions!$D$45*Assumptions!$D$46*Assumptions!$D$97*V45/60*0.5 -> 295150.6689 | W46: =W5*(W19)*Assumptions!$D$45*Assumptions!$D$46*Assumptions!$D$97*W45/60*0.5 -> 329402.904 | X46: =X5*(X19)*Assumptions!$D$45*Assumptions!$D$46*Assumptions!$D$97*X45/60*0.5 -> 367630.111 | Y46: =Y5*(Y19)*Assumptions!$D$45*Assumptions!$D$46*Assumptions!$D$97*Y45/60*0.5 -> 410293.5854 | Z46: =Z5*(Z19)*Assumptions!$D$45*Assumptions!$D$46*Assumptions!$D$97*Z45/60*0.5 -> 457908.156 | AA46: =AA5*(AA19)*Assumptions!$D$45*Assumptions!$D$46*Assumptions!$D$97*AA45/60*0.5 -> 511048.3975 | AB46: =AB5*(AB19)*Assumptions!$D$45*Assumptions!$D$46*Assumptions!$D$97*AB45/60*0.5 -> 570355.564 | AC46: =AC5*(AC19)*Assumptions!$D$45*Assumptions!$D$46*Assumptions!$D$97*AC45/60*0.5 -> 636545.3272 | AD46: =AD5*(AD19)*Assumptions!$D$45*Assumptions!$D$46*Assumptions!$D$97*AD45/60*0.5 -> 710416.4124 | AE46: =AE5*(AE19)*Assumptions!$D$45*Assumptions!$D$46*Assumptions!$D$97*AE45/60*0.5 -> 792860.2371 | AF46: =AF5*(AF19)*Assumptions!$D$45*Assumptions!$D$46*Assumptions!$D$97*AF45/60*0.5 -> 884871.6676 | AG46: =AG5*(AG19)*Assumptions!$D$45*Assumptions!$D$46*Assumptions!$D$97*AG45/60*0.5 -> 987561.0247 | AH46: =AH5*(AH19)*Assumptions!$D$45*Assumptions!$D$46*Assumptions!$D$97*AH45/60*0.5 -> 1102167.482 | AI46: =AI5*(AI19)*Assumptions!$D$45*Assumptions!$D$46*Assumptions!$D$97*AI45/60*0.5 -> 1230074.018 | AJ46: =AJ5*(AJ19)*Assumptions!$D$45*Assumptions!$D$46*Assumptions!$D$97*AJ45/60*0.5 -> 1372824.108 | AK46: =AK5*(AK19)*Assumptions!$D$45*Assumptions!$D$46*Assumptions!$D$97*AK45/60*0.5 -> 1532140.345 | AL46: =AL5*(AL19)*Assumptions!$D$45*Assumptions!$D$46*Assumptions!$D$97*AL45/60*0.5 -> 1709945.232 | AM46: =AM5*(AM19)*Assumptions!$D$45*Assumptions!$D$46*Assumptions!$D$97*AM45/60*0.5 -> 1908384.377 | AN46: =AN5*(AN19)*Assumptions!$D$45*Assumptions!$D$46*Assumptions!$D$97*AN45/60*0.5 -> 2129852.383
C47: New Utilitarian Cyclist Mobility Benefit | F47: =F5*(F20)*Assumptions!$D$47*Assumptions!$D$48*Assumptions!$D$97*Assumptions!$D$94/60*0.5 -> 0 | G47: =G5*(G20)*Assumptions!$D$47*Assumptions!$D$48*Assumptions!$D$97*Assumptions!$D$94/60*0.5 -> 0 | H47: =H5*(H20)*Assumptions!$D$47*Assumptions!$D$48*Assumptions!$D$97*Assumptions!$D$94/60*0.5 -> 0 | I47: =I5*(I20)*Assumptions!$D$47*Assumptions!$D$48*Assumptions!$D$97*Assumptions!$D$94/60*0.5 -> 104182.0489 | J47: =J5*(J20)*Assumptions!$D$47*Assumptions!$D$48*Assumptions!$D$97*Assumptions!$D$94/60*0.5 -> 122570.1805 | K47: =K5*(K20)*Assumptions!$D$47*Assumptions!$D$48*Assumptions!$D$97*Assumptions!$D$94/60*0.5 -> 144203.8174 | L47: =L5*(L20)*Assumptions!$D$47*Assumptions!$D$48*Assumptions!$D$97*Assumptions!$D$94/60*0.5 -> 169655.7911 | M47: =M5*(M20)*Assumptions!$D$47*Assumptions!$D$48*Assumptions!$D$97*Assumptions!$D$94/60*0.5 -> 199600.0383 | N47: =N5*(N20)*Assumptions!$D$47*Assumptions!$D$48*Assumptions!$D$97*Assumptions!$D$94/60*0.5 -> 234829.445 | O47: =O5*(O20)*Assumptions!$D$47*Assumptions!$D$48*Assumptions!$D$97*Assumptions!$D$94/60*0.5 -> 276276.8421 | P47: =P5*(P20)*Assumptions!$D$47*Assumptions!$D$48*Assumptions!$D$97*Assumptions!$D$94/60*0.5 -> 325039.7047 | Q47: =Q5*(Q20)*Assumptions!$D$47*Assumptions!$D$48*Assumptions!$D$97*Assumptions!$D$94/60*0.5 -> 359168.8737 | R47: =R5*(R20)*Assumptions!$D$47*Assumptions!$D$48*Assumptions!$D$97*Assumptions!$D$94/60*0.5 -> 396881.6054 | S47: =S5*(S20)*Assumptions!$D$47*Assumptions!$D$48*Assumptions!$D$97*Assumptions!$D$94/60*0.5 -> 438554.174 | T47: =T5*(T20)*Assumptions!$D$47*Assumptions!$D$48*Assumptions!$D$97*Assumptions!$D$94/60*0.5 -> 484602.3622 | U47: =U5*(U20)*Assumptions!$D$47*Assumptions!$D$48*Assumptions!$D$97*Assumptions!$D$94/60*0.5 -> 535485.6103 | V47: =V5*(V20)*Assumptions!$D$47*Assumptions!$D$48*Assumptions!$D$97*Assumptions!$D$94/60*0.5 -> 591711.5994 | W47: =W5*(W20)*Assumptions!$D$47*Assumptions!$D$48*Assumptions!$D$97*Assumptions!$D$94/60*0.5 -> 653841.3173 | X47: =X5*(X20)*Assumptions!$D$47*Assumptions!$D$48*Assumptions!$D$97*Assumptions!$D$94/60*0.5 -> 722494.6556 | Y47: =Y5*(Y20)*Assumptions!$D$47*Assumptions!$D$48*Assumptions!$D$97*Assumptions!$D$94/60*0.5 -> 798356.5944 | Z47: =Z5*(Z20)*Assumptions!$D$47*Assumptions!$D$48*Assumptions!$D$97*Assumptions!$D$94/60*0.5 -> 882184.0369 | AA47: =AA5*(AA20)*Assumptions!$D$47*Assumptions!$D$48*Assumptions!$D$97*Assumptions!$D$94/60*0.5 -> 974813.3607 | AB47: =AB5*(AB20)*Assumptions!$D$47*Assumptions!$D$48*Assumptions!$D$97*Assumptions!$D$94/60*0.5 -> 1077168.764 | AC47: =AC5*(AC20)*Assumptions!$D$47*Assumptions!$D$48*Assumptions!$D$97*Assumptions!$D$94/60*0.5 -> 1190271.484 | AD47: =AD5*(AD20)*Assumptions!$D$47*Assumptions!$D$48*Assumptions!$D$97*Assumptions!$D$94/60*0.5 -> 1315249.99 | AE47: =AE5*(AE20)*Assumptions!$D$47*Assumptions!$D$48*Assumptions!$D$97*Assumptions!$D$94/60*0.5 -> 1453351.238 | AF47: =AF5*(AF20)*Assumptions!$D$47*Assumptions!$D$48*Assumptions!$D$97*Assumptions!$D$94/60*0.5 -> 1605953.119 | AG47: =AG5*(AG20)*Assumptions!$D$47*Assumptions!$D$48*Assumptions!$D$97*Assumptions!$D$94/60*0.5 -> 1774578.196 | AH47: =AH5*(AH20)*Assumptions!$D$47*Assumptions!$D$48*Assumptions!$D$97*Assumptions!$D$94/60*0.5 -> 1960908.907 | AI47: =AI5*(AI20)*Assumptions!$D$47*Assumptions!$D$48*Assumptions!$D$97*Assumptions!$D$94/60*0.5 -> 2166804.342 | AJ47: =AJ5*(AJ20)*Assumptions!$D$47*Assumptions!$D$48*Assumptions!$D$97*Assumptions!$D$94/60*0.5 -> 2394318.798 | AK47: =AK5*(AK20)*Assumptions!$D$47*Assumptions!$D$48*Assumptions!$D$97*Assumptions!$D$94/60*0.5 -> 2645722.271 | AL47: =AL5*(AL20)*Assumptions!$D$47*Assumptions!$D$48*Assumptions!$D$97*Assumptions!$D$94/60*0.5 -> 2923523.11 | AM47: =AM5*(AM20)*Assumptions!$D$47*Assumptions!$D$48*Assumptions!$D$97*Assumptions!$D$94/60*0.5 -> 3230493.036 | AN47: =AN5*(AN20)*Assumptions!$D$47*Assumptions!$D$48*Assumptions!$D$97*Assumptions!$D$94/60*0.5 -> 3569694.805
C48: Total Cyclist Commuter Mobility Benefit - undiscounted | F48: =SUM(F46:F47) -> 0 | G48: 0 | H48: 0 | I48: 149843.3964 | J48: 176827.9616 | K48: 208676.4396 | L48: 246266.3516 | M48: 290633.6859 | N48: 343001.5424 | O48: 404813.9593 | P48: 477775.8623 | Q48: 529630.0624 | R48: 587124.8151 | S48: 650875.1082 | T48: 721563.1408 | U48: 799945.6872 | V48: 886862.2682 | W48: 983244.2213 | X48: 1090124.767 | Y48: 1208650.18 | Z48: 1340092.193 | AA48: 1485861.758 | AB48: 1647524.328 | AC48: 1826816.811 | AD48: =SUM(AD46:AD47) -> 2025666.402 | AE48: 2246211.476 | AF48: 2490824.786 | AG48: 2762139.221 | AH48: 3063076.388 | AI48: 3396878.36 | AJ48: =SUM(AJ46:AJ47) -> 3767142.905 | AK48: =SUM(AK46:AK47) -> 4177862.617 | AL48: =SUM(AL46:AL47) -> 4633468.342 | AM48: =SUM(AM46:AM47) -> 5138877.413 | AN48: =SUM(AN46:AN47) -> 5699547.189
C49: Total Cyclist Commuter Mobility Benefit - discounted | F49: =F48*F6 -> 0 | G49: 0 | H49: 0 | I49: 114314.8097 | J49: 126075.8928 | K49: 139049.9228 | L49: 153362.3069 | M49: 169151.4513 | N49: 186570.1127 | O49: 205786.8897 | P49: 226987.8705 | Q49: 235162.0817 | R49: 243635.9247 | S49: 252420.5887 | T49: 261527.6883 | U49: 270969.2806 | V49: 280757.882 | W49: 290906.486 | X49: 301428.582 | Y49: 312338.1742 | Z49: 323649.802 | AA49: 335378.5605 | AB49: 347540.1221 | AC49: 360150.7596 | AD49: =AD48*AD6 -> 373227.3685 | AE49: 386787.4924 | AF49: 400849.3477 | AG49: 415431.8498 | AH49: 430554.6408 | AI49: 446238.1174 | AJ49: =AJ48*AJ6 -> 462503.4611 | AK49: =AK48*AK6 -> 479372.6682 | AL49: =AL48*AL6 -> 496868.5822 | AM49: =AM48*AM6 -> 515014.9268 | AN49: =AN48*AN6 -> 533836.3405
B50: Accident Cost Savings - Existing Cyclists & Walkers
C51: Existing Cyclist and Ped Safety Savings
C52: Number of bike and pedestrian accidents avoided | F52: =F5*(Assumptions!$D$8+Assumptions!$D$11+Assumptions!$D$63*Assumptions!$D$62) -> 0 | G52: =G5*(Assumptions!$D$8+Assumptions!$D$11+Assumptions!$D$63*Assumptions!$D$62) -> 0 | H52: =H5*(Assumptions!$D$8+Assumptions!$D$11+Assumptions!$D$63*Assumptions!$D$62) -> 0 | I52: =I5*(Assumptions!$D$8+Assumptions!$D$11+Assumptions!$D$63*Assumptions!$D$62) -> 1.686666667 | J52: =J5*(Assumptions!$D$8+Assumptions!$D$11+Assumptions!$D$63*Assumptions!$D$62) -> 1.686666667 | K52: =K5*(Assumptions!$D$8+Assumptions!$D$11+Assumptions!$D$63*Assumptions!$D$62) -> 1.686666667 | L52: =L5*(Assumptions!$D$8+Assumptions!$D$11+Assumptions!$D$63*Assumptions!$D$62) -> 1.686666667 | M52: =M5*(Assumptions!$D$8+Assumptions!$D$11+Assumptions!$D$63*Assumptions!$D$62) -> 1.686666667 | N52: =N5*(Assumptions!$D$8+Assumptions!$D$11+Assumptions!$D$63*Assumptions!$D$62) -> 1.686666667 | O52: =O5*(Assumptions!$D$8+Assumptions!$D$11+Assumptions!$D$63*Assumptions!$D$62) -> 1.686666667 | P52: =P5*(Assumptions!$D$8+Assumptions!$D$11+Assumptions!$D$63*Assumptions!$D$62) -> 1.686666667 | Q52: =Q5*(Assumptions!$D$8+Assumptions!$D$11+Assumptions!$D$63*Assumptions!$D$62) -> 1.686666667 | R52: =R5*(Assumptions!$D$8+Assumptions!$D$11+Assumptions!$D$63*Assumptions!$D$62) -> 1.686666667 | S52: =S5*(Assumptions!$D$8+Assumptions!$D$11+Assumptions!$D$63*Assumptions!$D$62) -> 1.686666667 | T52: =T5*(Assumptions!$D$8+Assumptions!$D$11+Assumptions!$D$63*Assumptions!$D$62) -> 1.686666667 | U52: =U5*(Assumptions!$D$8+Assumptions!$D$11+Assumptions!$D$63*Assumptions!$D$62) -> 1.686666667 | V52: =V5*(Assumptions!$D$8+Assumptions!$D$11+Assumptions!$D$63*Assumptions!$D$62) -> 1.686666667 | W52: =W5*(Assumptions!$D$8+Assumptions!$D$11+Assumptions!$D$63*Assumptions!$D$62) -> 1.686666667 | X52: =X5*(Assumptions!$D$8+Assumptions!$D$11+Assumptions!$D$63*Assumptions!$D$62) -> 1.686666667 | Y52: =Y5*(Assumptions!$D$8+Assumptions!$D$11+Assumptions!$D$63*Assumptions!$D$62) -> 1.686666667 | Z52: =Z5*(Assumptions!$D$8+Assumptions!$D$11+Assumptions!$D$63*Assumptions!$D$62) -> 1.686666667 | AA52: =AA5*(Assumptions!$D$8+Assumptions!$D$11+Assumptions!$D$63*Assumptions!$D$62) -> 1.686666667 | AB52: =AB5*(Assumptions!$D$8+Assumptions!$D$11+Assumptions!$D$63*Assumptions!$D$62) -> 1.686666667 | AC52: =AC5*(Assumptions!$D$8+Assumptions!$D$11+Assumptions!$D$63*Assumptions!$D$62) -> 1.686666667 | AD52: =AD5*(Assumptions!$D$8+Assumptions!$D$11+Assumptions!$D$63*Assumptions!$D$62) -> 1.686666667 | AE52: =AE5*(Assumptions!$D$8+Assumptions!$D$11+Assumptions!$D$63*Assumptions!$D$62) -> 1.686666667 | AF52: =AF5*(Assumptions!$D$8+Assumptions!$D$11+Assumptions!$D$63*Assumptions!$D$62) -> 1.686666667 | AG52: =AG5*(Assumptions!$D$8+Assumptions!$D$11+Assumptions!$D$63*Assumptions!$D$62) -> 1.686666667 | AH52: =AH5*(Assumptions!$D$8+Assumptions!$D$11+Assumptions!$D$63*Assumptions!$D$62) -> 1.686666667 | AI52: =AI5*(Assumptions!$D$8+Assumptions!$D$11+Assumptions!$D$63*Assumptions!$D$62) -> 1.686666667 | AJ52: =AJ5*(Assumptions!$D$8+Assumptions!$D$11+Assumptions!$D$63*Assumptions!$D$62) -> 1.686666667 | AK52: =AK5*(Assumptions!$D$8+Assumptions!$D$11+Assumptions!$D$63*Assumptions!$D$62) -> 1.686666667 | AL52: =AL5*(Assumptions!$D$8+Assumptions!$D$11+Assumptions!$D$63*Assumptions!$D$62) -> 1.686666667 | AM52: =AM5*(Assumptions!$D$8+Assumptions!$D$11+Assumptions!$D$63*Assumptions!$D$62) -> 1.686666667 | AN52: =AN5*(Assumptions!$D$8+Assumptions!$D$11+Assumptions!$D$63*Assumptions!$D$62) -> 1.686666667
C53: Cost of accident | G53: =G52*SUMPRODUCT($E$55:$E$61,G64:G70) -> 0 | H53: 0 | I53: 148544.3253 | J53: 150029.7685 | K53: 151530.0662 | L53: 153045.3669 | M53: 154575.8206 | N53: 156121.5788 | O53: 157682.7946 | P53: 159259.6225 | Q53: 160852.2187 | R53: 162460.7409 | S53: 164085.3483 | T53: 165726.2018 | U53: 167383.4638 | V53: 169057.2985 | W53: 170747.8714 | X53: 172455.3502 | Y53: 174179.9037 | Z53: 175921.7027 | AA53: 177680.9197 | AB53: 179457.7289 | AC53: 181252.3062 | AD53: =AD52*SUMPRODUCT($E$55:$E$61,AD64:AD70) -> 183064.8293 | AE53: 184895.4776 | AF53: 186744.4323 | AG53: 188611.8767 | AH53: 190497.9954 | AI53: 192402.9754 | AJ53: =AJ52*SUMPRODUCT($E$55:$E$61,AJ64:AJ70) -> 194327.0051 | AK53: =AK52*SUMPRODUCT($E$55:$E$61,AK64:AK70) -> 196270.2752 | AL53: =AL52*SUMPRODUCT($E$55:$E$61,AL64:AL70) -> 198232.9779 | AM53: =AM52*SUMPRODUCT($E$55:$E$61,AM64:AM70) -> 200215.3077 | AN53: =AN52*SUMPRODUCT($E$55:$E$61,AN64:AN70) -> 202217.4608
C54: Type of accident
D55: ='ACCIDENT COSTS'!B$54 -> O - No Injury | E55: ='Accident Data'!D3 -> 0
D56: ='ACCIDENT COSTS'!B$55 -> C - Possible Injury | E56: ='Accident Data'!D4 -> 0.6326530612
D57: ='ACCIDENT COSTS'!B$56 -> B - Non Incapacitating | E57: ='Accident Data'!D5 -> 0.3673469388
D58: ='ACCIDENT COSTS'!B$57 -> A - Incapacitating | E58: ='Accident Data'!D6 -> 0
D59: ='ACCIDENT COSTS'!B$58 -> K - Killed | E59: ='Accident Data'!D7 -> 0
D60: ='ACCIDENT COSTS'!B$59 -> Injured - Severity Unknown | E60: 0
D61: ='ACCIDENT COSTS'!B$60 -> Unknown - If Injured | E61: 0
C63: Cost per accident ($2013) + Growth over time (1.07%)
D64: ='ACCIDENT COSTS'!B$54 -> O - No Injury | E64: ='ACCIDENT COSTS'!D54 -> 3234.816 | G64: =E64 -> 3234.816 | H64: =$G64*(1+'ACCIDENT COSTS'!$D$65)^(H$3-$G$3) -> 3267.16416 | I64: =$G64*(1+'ACCIDENT COSTS'!$D$65)^(I$3-$G$3) -> 3299.835802 | J64: =$G64*(1+'ACCIDENT COSTS'!$D$65)^(J$3-$G$3) -> 3332.83416 | K64: =$G64*(1+'ACCIDENT COSTS'!$D$65)^(K$3-$G$3) -> 3366.162501 | L64: =$G64*(1+'ACCIDENT COSTS'!$D$65)^(L$3-$G$3) -> 3399.824126 | M64: =$G64*(1+'ACCIDENT COSTS'!$D$65)^(M$3-$G$3) -> 3433.822367 | N64: =$G64*(1+'ACCIDENT COSTS'!$D$65)^(N$3-$G$3) -> 3468.160591 | O64: =$G64*(1+'ACCIDENT COSTS'!$D$65)^(O$3-$G$3) -> 3502.842197 | P64: =$G64*(1+'ACCIDENT COSTS'!$D$65)^(P$3-$G$3) -> 3537.870619 | Q64: =$G64*(1+'ACCIDENT COSTS'!$D$65)^(Q$3-$G$3) -> 3573.249325 | R64: =$G64*(1+'ACCIDENT COSTS'!$D$65)^(R$3-$G$3) -> 3608.981818 | S64: =$G64*(1+'ACCIDENT COSTS'!$D$65)^(S$3-$G$3) -> 3645.071637 | T64: =$G64*(1+'ACCIDENT COSTS'!$D$65)^(T$3-$G$3) -> 3681.522353 | U64: =$G64*(1+'ACCIDENT COSTS'!$D$65)^(U$3-$G$3) -> 3718.337577 | V64: =$G64*(1+'ACCIDENT COSTS'!$D$65)^(V$3-$G$3) -> 3755.520952 | W64: =$G64*(1+'ACCIDENT COSTS'!$D$65)^(W$3-$G$3) -> 3793.076162 | X64: =$G64*(1+'ACCIDENT COSTS'!$D$65)^(X$3-$G$3) -> 3831.006923 | Y64: =$G64*(1+'ACCIDENT COSTS'!$D$65)^(Y$3-$G$3) -> 3869.316993 | Z64: =$G64*(1+'ACCIDENT COSTS'!$D$65)^(Z$3-$G$3) -> 3908.010163 | AA64: =$G64*(1+'ACCIDENT COSTS'!$D$65)^(AA$3-$G$3) -> 3947.090264 | AB64: =$G64*(1+'ACCIDENT COSTS'!$D$65)^(AB$3-$G$3) -> 3986.561167 | AC64: =$G64*(1+'ACCIDENT COSTS'!$D$65)^(AC$3-$G$3) -> 4026.426779 | AD64: =$G64*(1+'ACCIDENT COSTS'!$D$65)^(AD$3-$G$3) -> 4066.691046 | AE64: =$G64*(1+'ACCIDENT COSTS'!$D$65)^(AE$3-$G$3) -> 4107.357957 | AF64: =$G64*(1+'ACCIDENT COSTS'!$D$65)^(AF$3-$G$3) -> 4148.431536 | AG64: =$G64*(1+'ACCIDENT COSTS'!$D$65)^(AG$3-$G$3) -> 4189.915852 | AH64: =$G64*(1+'ACCIDENT COSTS'!$D$65)^(AH$3-$G$3) -> 4231.81501 | AI64: =$G64*(1+'ACCIDENT COSTS'!$D$65)^(AI$3-$G$3) -> 4274.13316 | AJ64: =$G64*(1+'ACCIDENT COSTS'!$D$65)^(AJ$3-$G$3) -> 4316.874492 | AK64: =$G64*(1+'ACCIDENT COSTS'!$D$65)^(AK$3-$G$3) -> 4360.043237 | AL64: =$G64*(1+'ACCIDENT COSTS'!$D$65)^(AL$3-$G$3) -> 4403.643669 | AM64: =$G64*(1+'ACCIDENT COSTS'!$D$65)^(AM$3-$G$3) -> 4447.680106 | AN64: =$G64*(1+'ACCIDENT COSTS'!$D$65)^(AN$3-$G$3) -> 4492.156907
D65: ='ACCIDENT COSTS'!B$55 -> C - Possible Injury | E65: ='ACCIDENT COSTS'!D55 -> 63854.496 | G65: =E65 -> 63854.496 | H65: =$G65*(1+'ACCIDENT COSTS'!$D$65)^(H$3-$G$3) -> 64493.04096 | I65: =$G65*(1+'ACCIDENT COSTS'!$D$65)^(I$3-$G$3) -> 65137.97137 | J65: =$G65*(1+'ACCIDENT COSTS'!$D$65)^(J$3-$G$3) -> 65789.35108 | K65: =$G65*(1+'ACCIDENT COSTS'!$D$65)^(K$3-$G$3) -> 66447.24459 | L65: =$G65*(1+'ACCIDENT COSTS'!$D$65)^(L$3-$G$3) -> 67111.71704 | M65: =$G65*(1+'ACCIDENT COSTS'!$D$65)^(M$3-$G$3) -> 67782.83421 | N65: =$G65*(1+'ACCIDENT COSTS'!$D$65)^(N$3-$G$3) -> 68460.66255 | O65: =$G65*(1+'ACCIDENT COSTS'!$D$65)^(O$3-$G$3) -> 69145.26918 | P65: =$G65*(1+'ACCIDENT COSTS'!$D$65)^(P$3-$G$3) -> 69836.72187 | Q65: =$G65*(1+'ACCIDENT COSTS'!$D$65)^(Q$3-$G$3) -> 70535.08909 | R65: =$G65*(1+'ACCIDENT COSTS'!$D$65)^(R$3-$G$3) -> 71240.43998 | S65: =$G65*(1+'ACCIDENT COSTS'!$D$65)^(S$3-$G$3) -> 71952.84438 | T65: =$G65*(1+'ACCIDENT COSTS'!$D$65)^(T$3-$G$3) -> 72672.37282 | U65: =$G65*(1+'ACCIDENT COSTS'!$D$65)^(U$3-$G$3) -> 73399.09655 | V65: =$G65*(1+'ACCIDENT COSTS'!$D$65)^(V$3-$G$3) -> 74133.08752 | W65: =$G65*(1+'ACCIDENT COSTS'!$D$65)^(W$3-$G$3) -> 74874.41839 | X65: =$G65*(1+'ACCIDENT COSTS'!$D$65)^(X$3-$G$3) -> 75623.16258 | Y65: =$G65*(1+'ACCIDENT COSTS'!$D$65)^(Y$3-$G$3) -> 76379.3942 | Z65: =$G65*(1+'ACCIDENT COSTS'!$D$65)^(Z$3-$G$3) -> 77143.18814 | AA65: =$G65*(1+'ACCIDENT COSTS'!$D$65)^(AA$3-$G$3) -> 77914.62003 | AB65: =$G65*(1+'ACCIDENT COSTS'!$D$65)^(AB$3-$G$3) -> 78693.76623 | AC65: =$G65*(1+'ACCIDENT COSTS'!$D$65)^(AC$3-$G$3) -> 79480.70389 | AD65: =$G65*(1+'ACCIDENT COSTS'!$D$65)^(AD$3-$G$3) -> 80275.51093 | AE65: =$G65*(1+'ACCIDENT COSTS'!$D$65)^(AE$3-$G$3) -> 81078.26604 | AF65: =$G65*(1+'ACCIDENT COSTS'!$D$65)^(AF$3-$G$3) -> 81889.0487 | AG65: =$G65*(1+'ACCIDENT COSTS'!$D$65)^(AG$3-$G$3) -> 82707.93918 | AH65: =$G65*(1+'ACCIDENT COSTS'!$D$65)^(AH$3-$G$3) -> 83535.01857 | AI65: =$G65*(1+'ACCIDENT COSTS'!$D$65)^(AI$3-$G$3) -> 84370.36876 | AJ65: =$G65*(1+'ACCIDENT COSTS'!$D$65)^(AJ$3-$G$3) -> 85214.07245 | AK65: =$G65*(1+'ACCIDENT COSTS'!$D$65)^(AK$3-$G$3) -> 86066.21317 | AL65: =$G65*(1+'ACCIDENT COSTS'!$D$65)^(AL$3-$G$3) -> 86926.8753 | AM65: =$G65*(1+'ACCIDENT COSTS'!$D$65)^(AM$3-$G$3) -> 87796.14406 | AN65: =$G65*(1+'ACCIDENT COSTS'!$D$65)^(AN$3-$G$3) -> 88674.1055
D66: ='ACCIDENT COSTS'!B$56 -> B - Non Incapacitating | E66: ='ACCIDENT COSTS'!D56 -> 125049.888 | G66: 125049.888 | H66: =$G66*(1+'ACCIDENT COSTS'!$D$65)^(H$3-$G$3) -> 126300.3869 | I66: =$G66*(1+'ACCIDENT COSTS'!$D$65)^(I$3-$G$3) -> 127563.3907 | J66: =$G66*(1+'ACCIDENT COSTS'!$D$65)^(J$3-$G$3) -> 128839.0247 | K66: =$G66*(1+'ACCIDENT COSTS'!$D$65)^(K$3-$G$3) -> 130127.4149 | L66: =$G66*(1+'ACCIDENT COSTS'!$D$65)^(L$3-$G$3) -> 131428.6891 | M66: =$G66*(1+'ACCIDENT COSTS'!$D$65)^(M$3-$G$3) -> 132742.9759 | N66: =$G66*(1+'ACCIDENT COSTS'!$D$65)^(N$3-$G$3) -> 134070.4057 | O66: =$G66*(1+'ACCIDENT COSTS'!$D$65)^(O$3-$G$3) -> 135411.1098 | P66: =$G66*(1+'ACCIDENT COSTS'!$D$65)^(P$3-$G$3) -> 136765.2209 | Q66: =$G66*(1+'ACCIDENT COSTS'!$D$65)^(Q$3-$G$3) -> 138132.8731 | R66: =$G66*(1+'ACCIDENT COSTS'!$D$65)^(R$3-$G$3) -> 139514.2018 | S66: =$G66*(1+'ACCIDENT COSTS'!$D$65)^(S$3-$G$3) -> 140909.3438 | T66: =$G66*(1+'ACCIDENT COSTS'!$D$65)^(T$3-$G$3) -> 142318.4373 | U66: =$G66*(1+'ACCIDENT COSTS'!$D$65)^(U$3-$G$3) -> 143741.6216 | V66: =$G66*(1+'ACCIDENT COSTS'!$D$65)^(V$3-$G$3) -> 145179.0378 | W66: =$G66*(1+'ACCIDENT COSTS'!$D$65)^(W$3-$G$3) -> 146630.8282 | X66: =$G66*(1+'ACCIDENT COSTS'!$D$65)^(X$3-$G$3) -> 148097.1365 | Y66: =$G66*(1+'ACCIDENT COSTS'!$D$65)^(Y$3-$G$3) -> 149578.1079 | Z66: =$G66*(1+'ACCIDENT COSTS'!$D$65)^(Z$3-$G$3) -> 151073.8889 | AA66: =$G66*(1+'ACCIDENT COSTS'!$D$65)^(AA$3-$G$3) -> 152584.6278 | AB66: =$G66*(1+'ACCIDENT COSTS'!$D$65)^(AB$3-$G$3) -> 154110.4741 | AC66: =$G66*(1+'ACCIDENT COSTS'!$D$65)^(AC$3-$G$3) -> 155651.5789 | AD66: =$G66*(1+'ACCIDENT COSTS'!$D$65)^(AD$3-$G$3) -> 157208.0946 | AE66: =$G66*(1+'ACCIDENT COSTS'!$D$65)^(AE$3-$G$3) -> 158780.1756 | AF66: =$G66*(1+'ACCIDENT COSTS'!$D$65)^(AF$3-$G$3) -> 160367.9773 | AG66: =$G66*(1+'ACCIDENT COSTS'!$D$65)^(AG$3-$G$3) -> 161971.6571 | AH66: =$G66*(1+'ACCIDENT COSTS'!$D$65)^(AH$3-$G$3) -> 163591.3737 | AI66: =$G66*(1+'ACCIDENT COSTS'!$D$65)^(AI$3-$G$3) -> 165227.2874 | AJ66: =$G66*(1+'ACCIDENT COSTS'!$D$65)^(AJ$3-$G$3) -> 166879.5603 | AK66: =$G66*(1+'ACCIDENT COSTS'!$D$65)^(AK$3-$G$3) -> 168548.3559 | AL66: =$G66*(1+'ACCIDENT COSTS'!$D$65)^(AL$3-$G$3) -> 170233.8395 | AM66: =$G66*(1+'ACCIDENT COSTS'!$D$65)^(AM$3-$G$3) -> 171936.1779 | AN66: =$G66*(1+'ACCIDENT COSTS'!$D$65)^(AN$3-$G$3) -> 173655.5396
D67: ='ACCIDENT COSTS'!B$57 -> A - Incapacitating | E67: ='ACCIDENT COSTS'!D57 -> 459120.288 | G67: 459120.288 | H67: =$G67*(1+'ACCIDENT COSTS'!$D$65)^(H$3-$G$3) -> 463711.4909 | I67: =$G67*(1+'ACCIDENT COSTS'!$D$65)^(I$3-$G$3) -> 468348.6058 | J67: =$G67*(1+'ACCIDENT COSTS'!$D$65)^(J$3-$G$3) -> 473032.0918 | K67: =$G67*(1+'ACCIDENT COSTS'!$D$65)^(K$3-$G$3) -> 477762.4128 | L67: =$G67*(1+'ACCIDENT COSTS'!$D$65)^(L$3-$G$3) -> 482540.0369 | M67: =$G67*(1+'ACCIDENT COSTS'!$D$65)^(M$3-$G$3) -> 487365.4373 | N67: =$G67*(1+'ACCIDENT COSTS'!$D$65)^(N$3-$G$3) -> 492239.0916 | O67: =$G67*(1+'ACCIDENT COSTS'!$D$65)^(O$3-$G$3) -> 497161.4826 | P67: =$G67*(1+'ACCIDENT COSTS'!$D$65)^(P$3-$G$3) -> 502133.0974 | Q67: =$G67*(1+'ACCIDENT COSTS'!$D$65)^(Q$3-$G$3) -> 507154.4283 | R67: =$G67*(1+'ACCIDENT COSTS'!$D$65)^(R$3-$G$3) -> 512225.9726 | S67: =$G67*(1+'ACCIDENT COSTS'!$D$65)^(S$3-$G$3) -> 517348.2324 | T67: =$G67*(1+'ACCIDENT COSTS'!$D$65)^(T$3-$G$3) -> 522521.7147 | U67: =$G67*(1+'ACCIDENT COSTS'!$D$65)^(U$3-$G$3) -> 527746.9318 | V67: =$G67*(1+'ACCIDENT COSTS'!$D$65)^(V$3-$G$3) -> 533024.4011 | W67: =$G67*(1+'ACCIDENT COSTS'!$D$65)^(W$3-$G$3) -> 538354.6452 | X67: =$G67*(1+'ACCIDENT COSTS'!$D$65)^(X$3-$G$3) -> 543738.1916 | Y67: =$G67*(1+'ACCIDENT COSTS'!$D$65)^(Y$3-$G$3) -> 549175.5735 | Z67: =$G67*(1+'ACCIDENT COSTS'!$D$65)^(Z$3-$G$3) -> 554667.3293 | AA67: =$G67*(1+'ACCIDENT COSTS'!$D$65)^(AA$3-$G$3) -> 560214.0026 | AB67: =$G67*(1+'ACCIDENT COSTS'!$D$65)^(AB$3-$G$3) -> 565816.1426 | AC67: =$G67*(1+'ACCIDENT COSTS'!$D$65)^(AC$3-$G$3) -> 571474.304 | AD67: =$G67*(1+'ACCIDENT COSTS'!$D$65)^(AD$3-$G$3) -> 577189.047 | AE67: =$G67*(1+'ACCIDENT COSTS'!$D$65)^(AE$3-$G$3) -> 582960.9375 | AF67: =$G67*(1+'ACCIDENT COSTS'!$D$65)^(AF$3-$G$3) -> 588790.5469 | AG67: =$G67*(1+'ACCIDENT COSTS'!$D$65)^(AG$3-$G$3) -> 594678.4524 | AH67: =$G67*(1+'ACCIDENT COSTS'!$D$65)^(AH$3-$G$3) -> 600625.2369 | AI67: =$G67*(1+'ACCIDENT COSTS'!$D$65)^(AI$3-$G$3) -> 606631.4893 | AJ67: =$G67*(1+'ACCIDENT COSTS'!$D$65)^(AJ$3-$G$3) -> 612697.8041 | AK67: =$G67*(1+'ACCIDENT COSTS'!$D$65)^(AK$3-$G$3) -> 618824.7822 | AL67: =$G67*(1+'ACCIDENT COSTS'!$D$65)^(AL$3-$G$3) -> 625013.03 | AM67: =$G67*(1+'ACCIDENT COSTS'!$D$65)^(AM$3-$G$3) -> 631263.1603 | AN67: =$G67*(1+'ACCIDENT COSTS'!$D$65)^(AN$3-$G$3) -> 637575.7919
D68: ='ACCIDENT COSTS'!B$58 -> K - Killed | E68: 9200000 | G68: 9200000 | H68: =$G68*(1+'ACCIDENT COSTS'!$D$65)^(H$3-$G$3) -> 9292000 | I68: =$G68*(1+'ACCIDENT COSTS'!$D$65)^(I$3-$G$3) -> 9384920 | J68: =$G68*(1+'ACCIDENT COSTS'!$D$65)^(J$3-$G$3) -> 9478769.2 | K68: =$G68*(1+'ACCIDENT COSTS'!$D$65)^(K$3-$G$3) -> 9573556.892 | L68: =$G68*(1+'ACCIDENT COSTS'!$D$65)^(L$3-$G$3) -> 9669292.461 | M68: =$G68*(1+'ACCIDENT COSTS'!$D$65)^(M$3-$G$3) -> 9765985.386 | N68: =$G68*(1+'ACCIDENT COSTS'!$D$65)^(N$3-$G$3) -> 9863645.239 | O68: =$G68*(1+'ACCIDENT COSTS'!$D$65)^(O$3-$G$3) -> 9962281.692 | P68: =$G68*(1+'ACCIDENT COSTS'!$D$65)^(P$3-$G$3) -> 10061904.51 | Q68: =$G68*(1+'ACCIDENT COSTS'!$D$65)^(Q$3-$G$3) -> 10162523.55 | R68: =$G68*(1+'ACCIDENT COSTS'!$D$65)^(R$3-$G$3) -> 10264148.79 | S68: =$G68*(1+'ACCIDENT COSTS'!$D$65)^(S$3-$G$3) -> 10366790.28 | T68: =$G68*(1+'ACCIDENT COSTS'!$D$65)^(T$3-$G$3) -> 10470458.18 | U68: =$G68*(1+'ACCIDENT COSTS'!$D$65)^(U$3-$G$3) -> 10575162.76 | V68: =$G68*(1+'ACCIDENT COSTS'!$D$65)^(V$3-$G$3) -> 10680914.39 | W68: =$G68*(1+'ACCIDENT COSTS'!$D$65)^(W$3-$G$3) -> 10787723.53 | X68: =$G68*(1+'ACCIDENT COSTS'!$D$65)^(X$3-$G$3) -> 10895600.77 | Y68: =$G68*(1+'ACCIDENT COSTS'!$D$65)^(Y$3-$G$3) -> 11004556.78 | Z68: =$G68*(1+'ACCIDENT COSTS'!$D$65)^(Z$3-$G$3) -> 11114602.34 | AA68: =$G68*(1+'ACCIDENT COSTS'!$D$65)^(AA$3-$G$3) -> 11225748.37 | AB68: =$G68*(1+'ACCIDENT COSTS'!$D$65)^(AB$3-$G$3) -> 11338005.85 | AC68: =$G68*(1+'ACCIDENT COSTS'!$D$65)^(AC$3-$G$3) -> 11451385.91 | AD68: =$G68*(1+'ACCIDENT COSTS'!$D$65)^(AD$3-$G$3) -> 11565899.77 | AE68: =$G68*(1+'ACCIDENT COSTS'!$D$65)^(AE$3-$G$3) -> 11681558.77 | AF68: =$G68*(1+'ACCIDENT COSTS'!$D$65)^(AF$3-$G$3) -> 11798374.35 | AG68: =$G68*(1+'ACCIDENT COSTS'!$D$65)^(AG$3-$G$3) -> 11916358.1 | AH68: =$G68*(1+'ACCIDENT COSTS'!$D$65)^(AH$3-$G$3) -> 12035521.68 | AI68: =$G68*(1+'ACCIDENT COSTS'!$D$65)^(AI$3-$G$3) -> 12155876.9 | AJ68: =$G68*(1+'ACCIDENT COSTS'!$D$65)^(AJ$3-$G$3) -> 12277435.66 | AK68: =$G68*(1+'ACCIDENT COSTS'!$D$65)^(AK$3-$G$3) -> 12400210.02 | AL68: =$G68*(1+'ACCIDENT COSTS'!$D$65)^(AL$3-$G$3) -> 12524212.12 | AM68: =$G68*(1+'ACCIDENT COSTS'!$D$65)^(AM$3-$G$3) -> 12649454.24 | AN68: =$G68*(1+'ACCIDENT COSTS'!$D$65)^(AN$3-$G$3) -> 12775948.78
D69: ='ACCIDENT COSTS'!B$59 -> Injured - Severity Unknown | E69: ='ACCIDENT COSTS'!D59 -> 174029.568 | G69: 174029.568 | H69: =$G69*(1+'ACCIDENT COSTS'!$D$65)^(H$3-$G$3) -> 175769.8637 | I69: =$G69*(1+'ACCIDENT COSTS'!$D$65)^(I$3-$G$3) -> 177527.5623 | J69: =$G69*(1+'ACCIDENT COSTS'!$D$65)^(J$3-$G$3) -> 179302.8379 | K69: =$G69*(1+'ACCIDENT COSTS'!$D$65)^(K$3-$G$3) -> 181095.8663 | L69: =$G69*(1+'ACCIDENT COSTS'!$D$65)^(L$3-$G$3) -> 182906.825 | M69: =$G69*(1+'ACCIDENT COSTS'!$D$65)^(M$3-$G$3) -> 184735.8932 | N69: =$G69*(1+'ACCIDENT COSTS'!$D$65)^(N$3-$G$3) -> 186583.2522 | O69: =$G69*(1+'ACCIDENT COSTS'!$D$65)^(O$3-$G$3) -> 188449.0847 | P69: =$G69*(1+'ACCIDENT COSTS'!$D$65)^(P$3-$G$3) -> 190333.5755 | Q69: =$G69*(1+'ACCIDENT COSTS'!$D$65)^(Q$3-$G$3) -> 192236.9113 | R69: =$G69*(1+'ACCIDENT COSTS'!$D$65)^(R$3-$G$3) -> 194159.2804 | S69: =$G69*(1+'ACCIDENT COSTS'!$D$65)^(S$3-$G$3) -> 196100.8732 | T69: =$G69*(1+'ACCIDENT COSTS'!$D$65)^(T$3-$G$3) -> 198061.8819 | U69: =$G69*(1+'ACCIDENT COSTS'!$D$65)^(U$3-$G$3) -> 200042.5008 | V69: =$G69*(1+'ACCIDENT COSTS'!$D$65)^(V$3-$G$3) -> 202042.9258 | W69: =$G69*(1+'ACCIDENT COSTS'!$D$65)^(W$3-$G$3) -> 204063.355 | X69: =$G69*(1+'ACCIDENT COSTS'!$D$65)^(X$3-$G$3) -> 206103.9886 | Y69: =$G69*(1+'ACCIDENT COSTS'!$D$65)^(Y$3-$G$3) -> 208165.0285 | Z69: =$G69*(1+'ACCIDENT COSTS'!$D$65)^(Z$3-$G$3) -> 210246.6787 | AA69: =$G69*(1+'ACCIDENT COSTS'!$D$65)^(AA$3-$G$3) -> 212349.1455 | AB69: =$G69*(1+'ACCIDENT COSTS'!$D$65)^(AB$3-$G$3) -> 214472.637 | AC69: =$G69*(1+'ACCIDENT COSTS'!$D$65)^(AC$3-$G$3) -> 216617.3634 | AD69: =$G69*(1+'ACCIDENT COSTS'!$D$65)^(AD$3-$G$3) -> 218783.537 | AE69: =$G69*(1+'ACCIDENT COSTS'!$D$65)^(AE$3-$G$3) -> 220971.3724 | AF69: =$G69*(1+'ACCIDENT COSTS'!$D$65)^(AF$3-$G$3) -> 223181.0861 | AG69: =$G69*(1+'ACCIDENT COSTS'!$D$65)^(AG$3-$G$3) -> 225412.8969 | AH69: =$G69*(1+'ACCIDENT COSTS'!$D$65)^(AH$3-$G$3) -> 227667.0259 | AI69: =$G69*(1+'ACCIDENT COSTS'!$D$65)^(AI$3-$G$3) -> 229943.6962 | AJ69: =$G69*(1+'ACCIDENT COSTS'!$D$65)^(AJ$3-$G$3) -> 232243.1331 | AK69: =$G69*(1+'ACCIDENT COSTS'!$D$65)^(AK$3-$G$3) -> 234565.5645 | AL69: =$G69*(1+'ACCIDENT COSTS'!$D$65)^(AL$3-$G$3) -> 236911.2201 | AM69: =$G69*(1+'ACCIDENT COSTS'!$D$65)^(AM$3-$G$3) -> 239280.3323 | AN69: =$G69*(1+'ACCIDENT COSTS'!$D$65)^(AN$3-$G$3) -> 241673.1356
D70: ='ACCIDENT COSTS'!B$60 -> Unknown - If Injured | E70: ='ACCIDENT COSTS'!D60 -> 132245.28 | G70: 132245.28 | H70: =$G70*(1+'ACCIDENT COSTS'!$D$65)^(H$3-$G$3) -> 133567.7328 | I70: =$G70*(1+'ACCIDENT COSTS'!$D$65)^(I$3-$G$3) -> 134903.4101 | J70: =$G70*(1+'ACCIDENT COSTS'!$D$65)^(J$3-$G$3) -> 136252.4442 | K70: =$G70*(1+'ACCIDENT COSTS'!$D$65)^(K$3-$G$3) -> 137614.9687 | L70: =$G70*(1+'ACCIDENT COSTS'!$D$65)^(L$3-$G$3) -> 138991.1184 | M70: =$G70*(1+'ACCIDENT COSTS'!$D$65)^(M$3-$G$3) -> 140381.0295 | N70: =$G70*(1+'ACCIDENT COSTS'!$D$65)^(N$3-$G$3) -> 141784.8398 | O70: =$G70*(1+'ACCIDENT COSTS'!$D$65)^(O$3-$G$3) -> 143202.6882 | P70: =$G70*(1+'ACCIDENT COSTS'!$D$65)^(P$3-$G$3) -> 144634.7151 | Q70: =$G70*(1+'ACCIDENT COSTS'!$D$65)^(Q$3-$G$3) -> 146081.0623 | R70: =$G70*(1+'ACCIDENT COSTS'!$D$65)^(R$3-$G$3) -> 147541.8729 | S70: =$G70*(1+'ACCIDENT COSTS'!$D$65)^(S$3-$G$3) -> 149017.2916 | T70: =$G70*(1+'ACCIDENT COSTS'!$D$65)^(T$3-$G$3) -> 150507.4645 | U70: =$G70*(1+'ACCIDENT COSTS'!$D$65)^(U$3-$G$3) -> 152012.5392 | V70: =$G70*(1+'ACCIDENT COSTS'!$D$65)^(V$3-$G$3) -> 153532.6646 | W70: =$G70*(1+'ACCIDENT COSTS'!$D$65)^(W$3-$G$3) -> 155067.9912 | X70: =$G70*(1+'ACCIDENT COSTS'!$D$65)^(X$3-$G$3) -> 156618.6711 | Y70: =$G70*(1+'ACCIDENT COSTS'!$D$65)^(Y$3-$G$3) -> 158184.8578 | Z70: =$G70*(1+'ACCIDENT COSTS'!$D$65)^(Z$3-$G$3) -> 159766.7064 | AA70: =$G70*(1+'ACCIDENT COSTS'!$D$65)^(AA$3-$G$3) -> 161364.3735 | AB70: =$G70*(1+'ACCIDENT COSTS'!$D$65)^(AB$3-$G$3) -> 162978.0172 | AC70: =$G70*(1+'ACCIDENT COSTS'!$D$65)^(AC$3-$G$3) -> 164607.7974 | AD70: =$G70*(1+'ACCIDENT COSTS'!$D$65)^(AD$3-$G$3) -> 166253.8754 | AE70: =$G70*(1+'ACCIDENT COSTS'!$D$65)^(AE$3-$G$3) -> 167916.4141 | AF70: =$G70*(1+'ACCIDENT COSTS'!$D$65)^(AF$3-$G$3) -> 169595.5783 | AG70: =$G70*(1+'ACCIDENT COSTS'!$D$65)^(AG$3-$G$3) -> 171291.534 | AH70: =$G70*(1+'ACCIDENT COSTS'!$D$65)^(AH$3-$G$3) -> 173004.4494 | AI70: =$G70*(1+'ACCIDENT COSTS'!$D$65)^(AI$3-$G$3) -> 174734.4939 | AJ70: =$G70*(1+'ACCIDENT COSTS'!$D$65)^(AJ$3-$G$3) -> 176481.8388 | AK70: =$G70*(1+'ACCIDENT COSTS'!$D$65)^(AK$3-$G$3) -> 178246.6572 | AL70: =$G70*(1+'ACCIDENT COSTS'!$D$65)^(AL$3-$G$3) -> 180029.1238 | AM70: =$G70*(1+'ACCIDENT COSTS'!$D$65)^(AM$3-$G$3) -> 181829.415 | AN70: =$G70*(1+'ACCIDENT COSTS'!$D$65)^(AN$3-$G$3) -> 183647.7092
C71: Total Existing Cyclist Accident Savings Benefit - undiscounted | F71: =F53 -> 0 | G71: =G53 -> 0 | H71: 0 | I71: 148544.3253 | J71: 150029.7685 | K71: 151530.0662 | L71: 153045.3669 | M71: 154575.8206 | N71: 156121.5788 | O71: 157682.7946 | P71: 159259.6225 | Q71: 160852.2187 | R71: =R53 -> 162460.7409 | S71: =S53 -> 164085.3483 | T71: 165726.2018 | U71: 167383.4638 | V71: 169057.2985 | W71: 170747.8714 | X71: 172455.3502 | Y71: 174179.9037 | Z71: 175921.7027 | AA71: 177680.9197 | AB71: 179457.7289 | AC71: 181252.3062 | AD71: =AD53 -> 183064.8293 | AE71: 184895.4776 | AF71: 186744.4323 | AG71: 188611.8767 | AH71: 190497.9954 | AI71: 192402.9754 | AJ71: =AJ53 -> 194327.0051 | AK71: =AK53 -> 196270.2752 | AL71: =AL53 -> 198232.9779 | AM71: =AM53 -> 200215.3077 | AN71: =AN53 -> 202217.4608
C72: Total Existing Cyclist Accident Savings Benefit - discounted | F72: =F71*F$6 -> 0 | G72: =G71*G$6 -> 0 | H72: 0 | I72: 113323.7545 | J72: 106969.1515 | K72: 100970.8813 | L72: 95308.96273 | M72: 89964.53491 | N72: 84919.79464 | O72: 80157.937 | P72: 75663.09941 | Q72: 71420.30879 | R72: 67415.43166 | S72: 63635.12708 | T72: 60066.8022 | U72: 56698.5703 | V72: 53519.21122 | W72: 50518.13395 | X72: 47685.34139 | Y72: 45011.39702 | Z72: 42487.39344 | AA72: 40104.92278 | AB72: 37856.04861 | AC72: 35733.27953 | AD72: =AD71*AD$6 -> 33729.54423 | AE72: 31838.16792 | AF72: 30052.85009 | AG72: 28367.64354 | AH72: 26776.93456 | AI72: 25275.42421 | AJ72: =AJ71*AJ$6 -> 23858.1107 | AK72: =AK71*AK$6 -> 22520.27272 | AL72: =AL71*AL$6 -> 21257.45369 | AM72: =AM71*AM$6 -> 20065.44694 | AN72: =AN71*AN$6 -> 18940.28169
B73: Auto Use Benefit
C74: New Cyclist Reduced Congestion Costs - undiscounted | F74: =F5*(F19)*Assumptions!$D$51*Assumptions!$D$53*Assumptions!$D$45*Assumptions!$D$46*Assumptions!$D$54+F5*(F20)*Assumptions!$D$51*Assumptions!$D$52*Assumptions!$D$47*Assumptions!$D$48*Assumptions!$D$54 -> 0 | G74: =G5*(G19)*Assumptions!$D$51*Assumptions!$D$53*Assumptions!$D$45*Assumptions!$D$46*Assumptions!$D$54+G5*(G20)*Assumptions!$D$51*Assumptions!$D$52*Assumptions!$D$47*Assumptions!$D$48*Assumptions!$D$54 -> 0 | H74: =H5*(H19)*Assumptions!$D$51*Assumptions!$D$53*Assumptions!$D$45*Assumptions!$D$46*Assumptions!$D$54+H5*(H20)*Assumptions!$D$51*Assumptions!$D$52*Assumptions!$D$47*Assumptions!$D$48*Assumptions!$D$54 -> 0 | I74: =I5*(I19)*Assumptions!$D$51*Assumptions!$D$53*Assumptions!$D$45*Assumptions!$D$46*Assumptions!$D$54+I5*(I20)*Assumptions!$D$51*Assumptions!$D$52*Assumptions!$D$47*Assumptions!$D$48*Assumptions!$D$54 -> 2038.871645 | J74: =J5*(J19)*Assumptions!$D$51*Assumptions!$D$53*Assumptions!$D$45*Assumptions!$D$46*Assumptions!$D$54+J5*(J20)*Assumptions!$D$51*Assumptions!$D$52*Assumptions!$D$47*Assumptions!$D$48*Assumptions!$D$54 -> 2398.73249 | K74: =K5*(K19)*Assumptions!$D$51*Assumptions!$D$53*Assumptions!$D$45*Assumptions!$D$46*Assumptions!$D$54+K5*(K20)*Assumptions!$D$51*Assumptions!$D$52*Assumptions!$D$47*Assumptions!$D$48*Assumptions!$D$54 -> 2822.108774 | L74: =L5*(L19)*Assumptions!$D$51*Assumptions!$D$53*Assumptions!$D$45*Assumptions!$D$46*Assumptions!$D$54+L5*(L20)*Assumptions!$D$51*Assumptions!$D$52*Assumptions!$D$47*Assumptions!$D$48*Assumptions!$D$54 -> 3320.210973 | M74: =M5*(M19)*Assumptions!$D$51*Assumptions!$D$53*Assumptions!$D$45*Assumptions!$D$46*Assumptions!$D$54+M5*(M20)*Assumptions!$D$51*Assumptions!$D$52*Assumptions!$D$47*Assumptions!$D$48*Assumptions!$D$54 -> 3906.22821 | N74: =N5*(N19)*Assumptions!$D$51*Assumptions!$D$53*Assumptions!$D$45*Assumptions!$D$46*Assumptions!$D$54+N5*(N20)*Assumptions!$D$51*Assumptions!$D$52*Assumptions!$D$47*Assumptions!$D$48*Assumptions!$D$54 -> 4595.677489 | O74: =O5*(O19)*Assumptions!$D$51*Assumptions!$D$53*Assumptions!$D$45*Assumptions!$D$46*Assumptions!$D$54+O5*(O20)*Assumptions!$D$51*Assumptions!$D$52*Assumptions!$D$47*Assumptions!$D$48*Assumptions!$D$54 -> 5406.814565 | P74: =P5*(P19)*Assumptions!$D$51*Assumptions!$D$53*Assumptions!$D$45*Assumptions!$D$46*Assumptions!$D$54+P5*(P20)*Assumptions!$D$51*Assumptions!$D$52*Assumptions!$D$47*Assumptions!$D$48*Assumptions!$D$54 -> 6361.117336 | Q74: =Q5*(Q19)*Assumptions!$D$51*Assumptions!$D$53*Assumptions!$D$45*Assumptions!$D$46*Assumptions!$D$54+Q5*(Q20)*Assumptions!$D$51*Assumptions!$D$52*Assumptions!$D$47*Assumptions!$D$48*Assumptions!$D$54 -> 7029.034656 | R74: =R5*(R19)*Assumptions!$D$51*Assumptions!$D$53*Assumptions!$D$45*Assumptions!$D$46*Assumptions!$D$54+R5*(R20)*Assumptions!$D$51*Assumptions!$D$52*Assumptions!$D$47*Assumptions!$D$48*Assumptions!$D$54 -> 7767.083295 | S74: =S5*(S19)*Assumptions!$D$51*Assumptions!$D$53*Assumptions!$D$45*Assumptions!$D$46*Assumptions!$D$54+S5*(S20)*Assumptions!$D$51*Assumptions!$D$52*Assumptions!$D$47*Assumptions!$D$48*Assumptions!$D$54 -> 8582.627041 | T74: =T5*(T19)*Assumptions!$D$51*Assumptions!$D$53*Assumptions!$D$45*Assumptions!$D$46*Assumptions!$D$54+T5*(T20)*Assumptions!$D$51*Assumptions!$D$52*Assumptions!$D$47*Assumptions!$D$48*Assumptions!$D$54 -> 9483.802881 | U74: =U5*(U19)*Assumptions!$D$51*Assumptions!$D$53*Assumptions!$D$45*Assumptions!$D$46*Assumptions!$D$54+U5*(U20)*Assumptions!$D$51*Assumptions!$D$52*Assumptions!$D$47*Assumptions!$D$48*Assumptions!$D$54 -> 10479.60218 | V74: =V5*(V19)*Assumptions!$D$51*Assumptions!$D$53*Assumptions!$D$45*Assumptions!$D$46*Assumptions!$D$54+V5*(V20)*Assumptions!$D$51*Assumptions!$D$52*Assumptions!$D$47*Assumptions!$D$48*Assumptions!$D$54 -> 11579.96041 | W74: =W5*(W19)*Assumptions!$D$51*Assumptions!$D$53*Assumptions!$D$45*Assumptions!$D$46*Assumptions!$D$54+W5*(W20)*Assumptions!$D$51*Assumptions!$D$52*Assumptions!$D$47*Assumptions!$D$48*Assumptions!$D$54 -> 12795.85626 | X74: =X5*(X19)*Assumptions!$D$51*Assumptions!$D$53*Assumptions!$D$45*Assumptions!$D$46*Assumptions!$D$54+X5*(X20)*Assumptions!$D$51*Assumptions!$D$52*Assumptions!$D$47*Assumptions!$D$48*Assumptions!$D$54 -> 14139.42116 | Y74: =Y5*(Y19)*Assumptions!$D$51*Assumptions!$D$53*Assumptions!$D$45*Assumptions!$D$46*Assumptions!$D$54+Y5*(Y20)*Assumptions!$D$51*Assumptions!$D$52*Assumptions!$D$47*Assumptions!$D$48*Assumptions!$D$54 -> 15624.06038 | Z74: =Z5*(Z19)*Assumptions!$D$51*Assumptions!$D$53*Assumptions!$D$45*Assumptions!$D$46*Assumptions!$D$54+Z5*(Z20)*Assumptions!$D$51*Assumptions!$D$52*Assumptions!$D$47*Assumptions!$D$48*Assumptions!$D$54 -> 17264.58673 | AA74: =AA5*(AA19)*Assumptions!$D$51*Assumptions!$D$53*Assumptions!$D$45*Assumptions!$D$46*Assumptions!$D$54+AA5*(AA20)*Assumptions!$D$51*Assumptions!$D$52*Assumptions!$D$47*Assumptions!$D$48*Assumptions!$D$54 -> 19077.36833 | AB74: =AB5*(AB19)*Assumptions!$D$51*Assumptions!$D$53*Assumptions!$D$45*Assumptions!$D$46*Assumptions!$D$54+AB5*(AB20)*Assumptions!$D$51*Assumptions!$D$52*Assumptions!$D$47*Assumptions!$D$48*Assumptions!$D$54 -> 21080.49201 | AC74: =AC5*(AC19)*Assumptions!$D$51*Assumptions!$D$53*Assumptions!$D$45*Assumptions!$D$46*Assumptions!$D$54+AC5*(AC20)*Assumptions!$D$51*Assumptions!$D$52*Assumptions!$D$47*Assumptions!$D$48*Assumptions!$D$54 -> 23293.94367 | AD74: =AD5*(AD19)*Assumptions!$D$51*Assumptions!$D$53*Assumptions!$D$45*Assumptions!$D$46*Assumptions!$D$54+AD5*(AD20)*Assumptions!$D$51*Assumptions!$D$52*Assumptions!$D$47*Assumptions!$D$48*Assumptions!$D$54 -> 25739.80775 | AE74: =AE5*(AE19)*Assumptions!$D$51*Assumptions!$D$53*Assumptions!$D$45*Assumptions!$D$46*Assumptions!$D$54+AE5*(AE20)*Assumptions!$D$51*Assumptions!$D$52*Assumptions!$D$47*Assumptions!$D$48*Assumptions!$D$54 -> 28442.48757 | AF74: =AF5*(AF19)*Assumptions!$D$51*Assumptions!$D$53*Assumptions!$D$45*Assumptions!$D$46*Assumptions!$D$54+AF5*(AF20)*Assumptions!$D$51*Assumptions!$D$52*Assumptions!$D$47*Assumptions!$D$48*Assumptions!$D$54 -> 31428.94876 | AG74: =AG5*(AG19)*Assumptions!$D$51*Assumptions!$D$53*Assumptions!$D$45*Assumptions!$D$46*Assumptions!$D$54+AG5*(AG20)*Assumptions!$D$51*Assumptions!$D$52*Assumptions!$D$47*Assumptions!$D$48*Assumptions!$D$54 -> 34728.98838 | AH74: =AH5*(AH19)*Assumptions!$D$51*Assumptions!$D$53*Assumptions!$D$45*Assumptions!$D$46*Assumptions!$D$54+AH5*(AH20)*Assumptions!$D$51*Assumptions!$D$52*Assumptions!$D$47*Assumptions!$D$48*Assumptions!$D$54 -> 38375.53216 | AI74: =AI5*(AI19)*Assumptions!$D$51*Assumptions!$D$53*Assumptions!$D$45*Assumptions!$D$46*Assumptions!$D$54+AI5*(AI20)*Assumptions!$D$51*Assumptions!$D$52*Assumptions!$D$47*Assumptions!$D$48*Assumptions!$D$54 -> 42404.96304 | AJ74: =AJ5*(AJ19)*Assumptions!$D$51*Assumptions!$D$53*Assumptions!$D$45*Assumptions!$D$46*Assumptions!$D$54+AJ5*(AJ20)*Assumptions!$D$51*Assumptions!$D$52*Assumptions!$D$47*Assumptions!$D$48*Assumptions!$D$54 -> 46857.48416 | AK74: =AK5*(AK19)*Assumptions!$D$51*Assumptions!$D$53*Assumptions!$D$45*Assumptions!$D$46*Assumptions!$D$54+AK5*(AK20)*Assumptions!$D$51*Assumptions!$D$52*Assumptions!$D$47*Assumptions!$D$48*Assumptions!$D$54 -> 51777.51999 | AL74: =AL5*(AL19)*Assumptions!$D$51*Assumptions!$D$53*Assumptions!$D$45*Assumptions!$D$46*Assumptions!$D$54+AL5*(AL20)*Assumptions!$D$51*Assumptions!$D$52*Assumptions!$D$47*Assumptions!$D$48*Assumptions!$D$54 -> 57214.15959 | AM74: =AM5*(AM19)*Assumptions!$D$51*Assumptions!$D$53*Assumptions!$D$45*Assumptions!$D$46*Assumptions!$D$54+AM5*(AM20)*Assumptions!$D$51*Assumptions!$D$52*Assumptions!$D$47*Assumptions!$D$48*Assumptions!$D$54 -> 63221.64635 | AN74: =AN5*(AN19)*Assumptions!$D$51*Assumptions!$D$53*Assumptions!$D$45*Assumptions!$D$46*Assumptions!$D$54+AN5*(AN20)*Assumptions!$D$51*Assumptions!$D$52*Assumptions!$D$47*Assumptions!$D$48*Assumptions!$D$54 -> 69859.91921
C75: New Cyclist Reduced VOC Costs - undiscounted | F75: =F5*(F19)*Assumptions!$D$46*'OTHER VEHICLE COSTS'!$D$88*Assumptions!$D$58*Assumptions!$D$54+F5*(F20)*Assumptions!$D$48*'OTHER VEHICLE COSTS'!$D$88*Assumptions!$D$58*Assumptions!$D$54 -> 0 | G75: =G5*(G19)*Assumptions!$D$46*'OTHER VEHICLE COSTS'!$D$88*Assumptions!$D$58*Assumptions!$D$54+G5*(G20)*Assumptions!$D$48*'OTHER VEHICLE COSTS'!$D$88*Assumptions!$D$58*Assumptions!$D$54 -> 0 | H75: =H5*(H19)*Assumptions!$D$46*'OTHER VEHICLE COSTS'!$D$88*Assumptions!$D$58*Assumptions!$D$54+H5*(H20)*Assumptions!$D$48*'OTHER VEHICLE COSTS'!$D$88*Assumptions!$D$58*Assumptions!$D$54 -> 0 | I75: =I5*(I19)*Assumptions!$D$46*'OTHER VEHICLE COSTS'!$D$88*Assumptions!$D$58*Assumptions!$D$54+I5*(I20)*Assumptions!$D$48*'OTHER VEHICLE COSTS'!$D$88*Assumptions!$D$58*Assumptions!$D$54 -> 22.71126101 | J75: =J5*(J19)*Assumptions!$D$46*'OTHER VEHICLE COSTS'!$D$88*Assumptions!$D$58*Assumptions!$D$54+J5*(J20)*Assumptions!$D$48*'OTHER VEHICLE COSTS'!$D$88*Assumptions!$D$58*Assumptions!$D$54 -> 26.71979858 | K75: =K5*(K19)*Assumptions!$D$46*'OTHER VEHICLE COSTS'!$D$88*Assumptions!$D$58*Assumptions!$D$54+K5*(K20)*Assumptions!$D$48*'OTHER VEHICLE COSTS'!$D$88*Assumptions!$D$58*Assumptions!$D$54 -> 31.43584303 | L75: =L5*(L19)*Assumptions!$D$46*'OTHER VEHICLE COSTS'!$D$88*Assumptions!$D$58*Assumptions!$D$54+L5*(L20)*Assumptions!$D$48*'OTHER VEHICLE COSTS'!$D$88*Assumptions!$D$58*Assumptions!$D$54 -> 36.98426933 | M75: =M5*(M19)*Assumptions!$D$46*'OTHER VEHICLE COSTS'!$D$88*Assumptions!$D$58*Assumptions!$D$54+M5*(M20)*Assumptions!$D$48*'OTHER VEHICLE COSTS'!$D$88*Assumptions!$D$58*Assumptions!$D$54 -> 43.51199287 | N75: =N5*(N19)*Assumptions!$D$46*'OTHER VEHICLE COSTS'!$D$88*Assumptions!$D$58*Assumptions!$D$54+N5*(N20)*Assumptions!$D$48*'OTHER VEHICLE COSTS'!$D$88*Assumptions!$D$58*Assumptions!$D$54 -> 51.19185961 | O75: =O5*(O19)*Assumptions!$D$46*'OTHER VEHICLE COSTS'!$D$88*Assumptions!$D$58*Assumptions!$D$54+O5*(O20)*Assumptions!$D$48*'OTHER VEHICLE COSTS'!$D$88*Assumptions!$D$58*Assumptions!$D$54 -> 60.22722283 | P75: =P5*(P19)*Assumptions!$D$46*'OTHER VEHICLE COSTS'!$D$88*Assumptions!$D$58*Assumptions!$D$54+P5*(P20)*Assumptions!$D$48*'OTHER VEHICLE COSTS'!$D$88*Assumptions!$D$58*Assumptions!$D$54 -> 70.85732766 | Q75: =Q5*(Q19)*Assumptions!$D$46*'OTHER VEHICLE COSTS'!$D$88*Assumptions!$D$58*Assumptions!$D$54+Q5*(Q20)*Assumptions!$D$48*'OTHER VEHICLE COSTS'!$D$88*Assumptions!$D$58*Assumptions!$D$54 -> 78.29734706 | R75: =R5*(R19)*Assumptions!$D$46*'OTHER VEHICLE COSTS'!$D$88*Assumptions!$D$58*Assumptions!$D$54+R5*(R20)*Assumptions!$D$48*'OTHER VEHICLE COSTS'!$D$88*Assumptions!$D$58*Assumptions!$D$54 -> 86.5185685 | S75: =S5*(S19)*Assumptions!$D$46*'OTHER VEHICLE COSTS'!$D$88*Assumptions!$D$58*Assumptions!$D$54+S5*(S20)*Assumptions!$D$48*'OTHER VEHICLE COSTS'!$D$88*Assumptions!$D$58*Assumptions!$D$54 -> 95.60301819 | T75: =T5*(T19)*Assumptions!$D$46*'OTHER VEHICLE COSTS'!$D$88*Assumptions!$D$58*Assumptions!$D$54+T5*(T20)*Assumptions!$D$48*'OTHER VEHICLE COSTS'!$D$88*Assumptions!$D$58*Assumptions!$D$54 -> 105.6413351 | U75: =U5*(U19)*Assumptions!$D$46*'OTHER VEHICLE COSTS'!$D$88*Assumptions!$D$58*Assumptions!$D$54+U5*(U20)*Assumptions!$D$48*'OTHER VEHICLE COSTS'!$D$88*Assumptions!$D$58*Assumptions!$D$54 -> 116.7336753 | V75: =V5*(V19)*Assumptions!$D$46*'OTHER VEHICLE COSTS'!$D$88*Assumptions!$D$58*Assumptions!$D$54+V5*(V20)*Assumptions!$D$48*'OTHER VEHICLE COSTS'!$D$88*Assumptions!$D$58*Assumptions!$D$54 -> 128.9907112 | W75: =W5*(W19)*Assumptions!$D$46*'OTHER VEHICLE COSTS'!$D$88*Assumptions!$D$58*Assumptions!$D$54+W5*(W20)*Assumptions!$D$48*'OTHER VEHICLE COSTS'!$D$88*Assumptions!$D$58*Assumptions!$D$54 -> 142.5347359 | X75: =X5*(X19)*Assumptions!$D$46*'OTHER VEHICLE COSTS'!$D$88*Assumptions!$D$58*Assumptions!$D$54+X5*(X20)*Assumptions!$D$48*'OTHER VEHICLE COSTS'!$D$88*Assumptions!$D$58*Assumptions!$D$54 -> 157.5008831 | Y75: =Y5*(Y19)*Assumptions!$D$46*'OTHER VEHICLE COSTS'!$D$88*Assumptions!$D$58*Assumptions!$D$54+Y5*(Y20)*Assumptions!$D$48*'OTHER VEHICLE COSTS'!$D$88*Assumptions!$D$58*Assumptions!$D$54 -> 174.0384759 | Z75: =Z5*(Z19)*Assumptions!$D$46*'OTHER VEHICLE COSTS'!$D$88*Assumptions!$D$58*Assumptions!$D$54+Z5*(Z20)*Assumptions!$D$48*'OTHER VEHICLE COSTS'!$D$88*Assumptions!$D$58*Assumptions!$D$54 -> 192.3125158 | AA75: =AA5*(AA19)*Assumptions!$D$46*'OTHER VEHICLE COSTS'!$D$88*Assumptions!$D$58*Assumptions!$D$54+AA5*(AA20)*Assumptions!$D$48*'OTHER VEHICLE COSTS'!$D$88*Assumptions!$D$58*Assumptions!$D$54 -> 212.50533 | AB75: =AB5*(AB19)*Assumptions!$D$46*'OTHER VEHICLE COSTS'!$D$88*Assumptions!$D$58*Assumptions!$D$54+AB5*(AB20)*Assumptions!$D$48*'OTHER VEHICLE COSTS'!$D$88*Assumptions!$D$58*Assumptions!$D$54 -> 234.8183896 | AC75: =AC5*(AC19)*Assumptions!$D$46*'OTHER VEHICLE COSTS'!$D$88*Assumptions!$D$58*Assumptions!$D$54+AC5*(AC20)*Assumptions!$D$48*'OTHER VEHICLE COSTS'!$D$88*Assumptions!$D$58*Assumptions!$D$54 -> 259.4743206 | AD75: =AD5*(AD19)*Assumptions!$D$46*'OTHER VEHICLE COSTS'!$D$88*Assumptions!$D$58*Assumptions!$D$54+AD5*(AD20)*Assumptions!$D$48*'OTHER VEHICLE COSTS'!$D$88*Assumptions!$D$58*Assumptions!$D$54 -> 286.7191242 | AE75: =AE5*(AE19)*Assumptions!$D$46*'OTHER VEHICLE COSTS'!$D$88*Assumptions!$D$58*Assumptions!$D$54+AE5*(AE20)*Assumptions!$D$48*'OTHER VEHICLE COSTS'!$D$88*Assumptions!$D$58*Assumptions!$D$54 -> 316.8246323 | AF75: =AF5*(AF19)*Assumptions!$D$46*'OTHER VEHICLE COSTS'!$D$88*Assumptions!$D$58*Assumptions!$D$54+AF5*(AF20)*Assumptions!$D$48*'OTHER VEHICLE COSTS'!$D$88*Assumptions!$D$58*Assumptions!$D$54 -> 350.0912186 | AG75: =AG5*(AG19)*Assumptions!$D$46*'OTHER VEHICLE COSTS'!$D$88*Assumptions!$D$58*Assumptions!$D$54+AG5*(AG20)*Assumptions!$D$48*'OTHER VEHICLE COSTS'!$D$88*Assumptions!$D$58*Assumptions!$D$54 -> 386.8507966 | AH75: =AH5*(AH19)*Assumptions!$D$46*'OTHER VEHICLE COSTS'!$D$88*Assumptions!$D$58*Assumptions!$D$54+AH5*(AH20)*Assumptions!$D$48*'OTHER VEHICLE COSTS'!$D$88*Assumptions!$D$58*Assumptions!$D$54 -> 427.4701302 | AI75: =AI5*(AI19)*Assumptions!$D$46*'OTHER VEHICLE COSTS'!$D$88*Assumptions!$D$58*Assumptions!$D$54+AI5*(AI20)*Assumptions!$D$48*'OTHER VEHICLE COSTS'!$D$88*Assumptions!$D$58*Assumptions!$D$54 -> 472.3544939 | AJ75: =AJ5*(AJ19)*Assumptions!$D$46*'OTHER VEHICLE COSTS'!$D$88*Assumptions!$D$58*Assumptions!$D$54+AJ5*(AJ20)*Assumptions!$D$48*'OTHER VEHICLE COSTS'!$D$88*Assumptions!$D$58*Assumptions!$D$54 -> 521.9517158 | AK75: =AK5*(AK19)*Assumptions!$D$46*'OTHER VEHICLE COSTS'!$D$88*Assumptions!$D$58*Assumptions!$D$54+AK5*(AK20)*Assumptions!$D$48*'OTHER VEHICLE COSTS'!$D$88*Assumptions!$D$58*Assumptions!$D$54 -> 576.7566459 | AL75: =AL5*(AL19)*Assumptions!$D$46*'OTHER VEHICLE COSTS'!$D$88*Assumptions!$D$58*Assumptions!$D$54+AL5*(AL20)*Assumptions!$D$48*'OTHER VEHICLE COSTS'!$D$88*Assumptions!$D$58*Assumptions!$D$54 -> 637.3160938 | AM75: =AM5*(AM19)*Assumptions!$D$46*'OTHER VEHICLE COSTS'!$D$88*Assumptions!$D$58*Assumptions!$D$54+AM5*(AM20)*Assumptions!$D$48*'OTHER VEHICLE COSTS'!$D$88*Assumptions!$D$58*Assumptions!$D$54 -> 704.2342836 | AN75: =AN5*(AN19)*Assumptions!$D$46*'OTHER VEHICLE COSTS'!$D$88*Assumptions!$D$58*Assumptions!$D$54+AN5*(AN20)*Assumptions!$D$48*'OTHER VEHICLE COSTS'!$D$88*Assumptions!$D$58*Assumptions!$D$54 -> 778.1788834
C76: Reduced Auto Use Benefit - undiscounted | F76: =SUM(F74:F75) -> 0 | G76: 0 | H76: 0 | I76: 2061.582906 | J76: 2425.452288 | K76: 2853.544617 | L76: 3357.195242 | M76: 3949.740203 | N76: 4646.869348 | O76: 5467.041788 | P76: 6431.974664 | Q76: 7107.332004 | R76: 7853.601864 | S76: 8678.23006 | T76: 9589.444216 | U76: 10596.33586 | V76: 11708.95112 | W76: 12938.39099 | X76: 14296.92205 | Y76: 15798.09886 | Z76: 17456.89924 | AA76: 19289.87366 | AB76: 21315.3104 | AC76: 23553.41799 | AD76: =SUM(AD74:AD75) -> 26026.52688 | AE76: 28759.3122 | AF76: 31779.03998 | AG76: 35115.83918 | AH76: 38803.00229 | AI76: 42877.31753 | AJ76: =SUM(AJ74:AJ75) -> 47379.43587 | AK76: =SUM(AK74:AK75) -> 52354.27664 | AL76: =SUM(AL74:AL75) -> 57851.47568 | AM76: =SUM(AM74:AM75) -> 63925.88063 | AN76: =SUM(AN74:AN75) -> 70638.0981
C77: Reduced Auto Use Benefit - discounted | F77: =F76*F6 -> 0 | G77: 0 | H77: 0 | I77: 1572.771728 | J77: 1729.313961 | K77: 1901.437266 | L77: 2090.692471 | M77: 2298.784759 | N77: 2527.589036 | O77: 2779.166823 | P77: 3055.784829 | Q77: 3155.740408 | R77: 3258.965561 | S77: 3365.567239 | T77: 3475.655887 | U77: 3589.345565 | V77: 3706.754065 | W77: 3828.00303 | X77: 3953.218082 | Y77: 4082.528954 | Z77: 4216.069621 | AA77: 4353.97844 | AB77: 4496.398296 | AC77: 4643.476744 | AD77: =AD76*AD6 -> 4795.366171 | AE77: 4952.223943 | AF77: 5114.212576 | AG77: 5281.499903 | AH77: 5454.259246 | AI77: 5632.669595 | AJ77: =AJ76*AJ6 -> 5816.915797 | AK77: =AK76*AK6 -> 6007.188744 | AL77: =AL76*AL6 -> 6203.685572 | AM77: =AM76*AM6 -> 6406.609866 | AN77: =AN76*AN6 -> 6616.171871
B79: Pavement Maintenance
C80: Reduced Pavement Maintenance Benefit - undiscounted | F80: =F5*(F19)*Assumptions!$D$45*Assumptions!$D$46*Assumptions!$D$57*Assumptions!$D$58*Assumptions!$D$54+F5*(F20)*Assumptions!$D$47*Assumptions!$D$48*Assumptions!$D$57*Assumptions!$D$58*Assumptions!$D$54 -> 0 | G80: =G5*(G19)*Assumptions!$D$45*Assumptions!$D$46*Assumptions!$D$57*Assumptions!$D$58*Assumptions!$D$54+G5*(G20)*Assumptions!$D$47*Assumptions!$D$48*Assumptions!$D$57*Assumptions!$D$58*Assumptions!$D$54 -> 0 | H80: =H5*(H19)*Assumptions!$D$45*Assumptions!$D$46*Assumptions!$D$57*Assumptions!$D$58*Assumptions!$D$54+H5*(H20)*Assumptions!$D$47*Assumptions!$D$48*Assumptions!$D$57*Assumptions!$D$58*Assumptions!$D$54 -> 0 | I80: =I5*(I19)*Assumptions!$D$45*Assumptions!$D$46*Assumptions!$D$57*Assumptions!$D$58*Assumptions!$D$54+I5*(I20)*Assumptions!$D$47*Assumptions!$D$48*Assumptions!$D$57*Assumptions!$D$58*Assumptions!$D$54 -> 4667.814812 | J80: =J5*(J19)*Assumptions!$D$45*Assumptions!$D$46*Assumptions!$D$57*Assumptions!$D$58*Assumptions!$D$54+J5*(J20)*Assumptions!$D$47*Assumptions!$D$48*Assumptions!$D$57*Assumptions!$D$58*Assumptions!$D$54 -> 5491.684127 | K80: =K5*(K19)*Assumptions!$D$45*Assumptions!$D$46*Assumptions!$D$57*Assumptions!$D$58*Assumptions!$D$54+K5*(K20)*Assumptions!$D$47*Assumptions!$D$48*Assumptions!$D$57*Assumptions!$D$58*Assumptions!$D$54 -> 6460.966375 | L80: =L5*(L19)*Assumptions!$D$45*Assumptions!$D$46*Assumptions!$D$57*Assumptions!$D$58*Assumptions!$D$54+L5*(L20)*Assumptions!$D$47*Assumptions!$D$48*Assumptions!$D$57*Assumptions!$D$58*Assumptions!$D$54 -> 7601.32694 | M80: =M5*(M19)*Assumptions!$D$45*Assumptions!$D$46*Assumptions!$D$57*Assumptions!$D$58*Assumptions!$D$54+M5*(M20)*Assumptions!$D$47*Assumptions!$D$48*Assumptions!$D$57*Assumptions!$D$58*Assumptions!$D$54 -> 8942.961145 | N80: =N5*(N19)*Assumptions!$D$45*Assumptions!$D$46*Assumptions!$D$57*Assumptions!$D$58*Assumptions!$D$54+N5*(N20)*Assumptions!$D$47*Assumptions!$D$48*Assumptions!$D$57*Assumptions!$D$58*Assumptions!$D$54 -> 10521.39379 | O80: =O5*(O19)*Assumptions!$D$45*Assumptions!$D$46*Assumptions!$D$57*Assumptions!$D$58*Assumptions!$D$54+O5*(O20)*Assumptions!$D$47*Assumptions!$D$48*Assumptions!$D$57*Assumptions!$D$58*Assumptions!$D$54 -> 12378.41979 | P80: =P5*(P19)*Assumptions!$D$45*Assumptions!$D$46*Assumptions!$D$57*Assumptions!$D$58*Assumptions!$D$54+P5*(P20)*Assumptions!$D$47*Assumptions!$D$48*Assumptions!$D$57*Assumptions!$D$58*Assumptions!$D$54 -> 14563.21088 | Q80: =Q5*(Q19)*Assumptions!$D$45*Assumptions!$D$46*Assumptions!$D$57*Assumptions!$D$58*Assumptions!$D$54+Q5*(Q20)*Assumptions!$D$47*Assumptions!$D$48*Assumptions!$D$57*Assumptions!$D$58*Assumptions!$D$54 -> 16092.34803 | R80: =R5*(R19)*Assumptions!$D$45*Assumptions!$D$46*Assumptions!$D$57*Assumptions!$D$58*Assumptions!$D$54+R5*(R20)*Assumptions!$D$47*Assumptions!$D$48*Assumptions!$D$57*Assumptions!$D$58*Assumptions!$D$54 -> 17782.04457 | S80: =S5*(S19)*Assumptions!$D$45*Assumptions!$D$46*Assumptions!$D$57*Assumptions!$D$58*Assumptions!$D$54+S5*(S20)*Assumptions!$D$47*Assumptions!$D$48*Assumptions!$D$57*Assumptions!$D$58*Assumptions!$D$54 -> 19649.15925 | T80: =T5*(T19)*Assumptions!$D$45*Assumptions!$D$46*Assumptions!$D$57*Assumptions!$D$58*Assumptions!$D$54+T5*(T20)*Assumptions!$D$47*Assumptions!$D$48*Assumptions!$D$57*Assumptions!$D$58*Assumptions!$D$54 -> 21712.32097 | U80: =U5*(U19)*Assumptions!$D$45*Assumptions!$D$46*Assumptions!$D$57*Assumptions!$D$58*Assumptions!$D$54+U5*(U20)*Assumptions!$D$47*Assumptions!$D$48*Assumptions!$D$57*Assumptions!$D$58*Assumptions!$D$54 -> 23992.11467 | V80: =V5*(V19)*Assumptions!$D$45*Assumptions!$D$46*Assumptions!$D$57*Assumptions!$D$58*Assumptions!$D$54+V5*(V20)*Assumptions!$D$47*Assumptions!$D$48*Assumptions!$D$57*Assumptions!$D$58*Assumptions!$D$54 -> 26511.28671 | W80: =W5*(W19)*Assumptions!$D$45*Assumptions!$D$46*Assumptions!$D$57*Assumptions!$D$58*Assumptions!$D$54+W5*(W20)*Assumptions!$D$47*Assumptions!$D$48*Assumptions!$D$57*Assumptions!$D$58*Assumptions!$D$54 -> 29294.97182 | X80: =X5*(X19)*Assumptions!$D$45*Assumptions!$D$46*Assumptions!$D$57*Assumptions!$D$58*Assumptions!$D$54+X5*(X20)*Assumptions!$D$47*Assumptions!$D$48*Assumptions!$D$57*Assumptions!$D$58*Assumptions!$D$54 -> 32370.94386 | Y80: =Y5*(Y19)*Assumptions!$D$45*Assumptions!$D$46*Assumptions!$D$57*Assumptions!$D$58*Assumptions!$D$54+Y5*(Y20)*Assumptions!$D$47*Assumptions!$D$48*Assumptions!$D$57*Assumptions!$D$58*Assumptions!$D$54 -> 35769.89296 | Z80: =Z5*(Z19)*Assumptions!$D$45*Assumptions!$D$46*Assumptions!$D$57*Assumptions!$D$58*Assumptions!$D$54+Z5*(Z20)*Assumptions!$D$47*Assumptions!$D$48*Assumptions!$D$57*Assumptions!$D$58*Assumptions!$D$54 -> 39525.73173 | AA80: =AA5*(AA19)*Assumptions!$D$45*Assumptions!$D$46*Assumptions!$D$57*Assumptions!$D$58*Assumptions!$D$54+AA5*(AA20)*Assumptions!$D$47*Assumptions!$D$48*Assumptions!$D$57*Assumptions!$D$58*Assumptions!$D$54 -> 43675.93356 | AB80: =AB5*(AB19)*Assumptions!$D$45*Assumptions!$D$46*Assumptions!$D$57*Assumptions!$D$58*Assumptions!$D$54+AB5*(AB20)*Assumptions!$D$47*Assumptions!$D$48*Assumptions!$D$57*Assumptions!$D$58*Assumptions!$D$54 -> 48261.90658 | AC80: =AC5*(AC19)*Assumptions!$D$45*Assumptions!$D$46*Assumptions!$D$57*Assumptions!$D$58*Assumptions!$D$54+AC5*(AC20)*Assumptions!$D$47*Assumptions!$D$48*Assumptions!$D$57*Assumptions!$D$58*Assumptions!$D$54 -> 53329.40677 | AD80: =AD5*(AD19)*Assumptions!$D$45*Assumptions!$D$46*Assumptions!$D$57*Assumptions!$D$58*Assumptions!$D$54+AD5*(AD20)*Assumptions!$D$47*Assumptions!$D$48*Assumptions!$D$57*Assumptions!$D$58*Assumptions!$D$54 -> 58928.99448 | AE80: =AE5*(AE19)*Assumptions!$D$45*Assumptions!$D$46*Assumptions!$D$57*Assumptions!$D$58*Assumptions!$D$54+AE5*(AE20)*Assumptions!$D$47*Assumptions!$D$48*Assumptions!$D$57*Assumptions!$D$58*Assumptions!$D$54 -> 65116.5389 | AF80: =AF5*(AF19)*Assumptions!$D$45*Assumptions!$D$46*Assumptions!$D$57*Assumptions!$D$58*Assumptions!$D$54+AF5*(AF20)*Assumptions!$D$47*Assumptions!$D$48*Assumptions!$D$57*Assumptions!$D$58*Assumptions!$D$54 -> 71953.77549 | AG80: =AG5*(AG19)*Assumptions!$D$45*Assumptions!$D$46*Assumptions!$D$57*Assumptions!$D$58*Assumptions!$D$54+AG5*(AG20)*Assumptions!$D$47*Assumptions!$D$48*Assumptions!$D$57*Assumptions!$D$58*Assumptions!$D$54 -> 79508.92191 | AH80: =AH5*(AH19)*Assumptions!$D$45*Assumptions!$D$46*Assumptions!$D$57*Assumptions!$D$58*Assumptions!$D$54+AH5*(AH20)*Assumptions!$D$47*Assumptions!$D$48*Assumptions!$D$57*Assumptions!$D$58*Assumptions!$D$54 -> 87857.35871 | AI80: =AI5*(AI19)*Assumptions!$D$45*Assumptions!$D$46*Assumptions!$D$57*Assumptions!$D$58*Assumptions!$D$54+AI5*(AI20)*Assumptions!$D$47*Assumptions!$D$48*Assumptions!$D$57*Assumptions!$D$58*Assumptions!$D$54 -> 97082.38138 | AJ80: =AJ5*(AJ19)*Assumptions!$D$45*Assumptions!$D$46*Assumptions!$D$57*Assumptions!$D$58*Assumptions!$D$54+AJ5*(AJ20)*Assumptions!$D$47*Assumptions!$D$48*Assumptions!$D$57*Assumptions!$D$58*Assumptions!$D$54 -> 107276.0314 | AK80: =AK5*(AK19)*Assumptions!$D$45*Assumptions!$D$46*Assumptions!$D$57*Assumptions!$D$58*Assumptions!$D$54+AK5*(AK20)*Assumptions!$D$47*Assumptions!$D$48*Assumptions!$D$57*Assumptions!$D$58*Assumptions!$D$54 -> 118540.0147 | AL80: =AL5*(AL19)*Assumptions!$D$45*Assumptions!$D$46*Assumptions!$D$57*Assumptions!$D$58*Assumptions!$D$54+AL5*(AL20)*Assumptions!$D$47*Assumptions!$D$48*Assumptions!$D$57*Assumptions!$D$58*Assumptions!$D$54 -> 130986.7163 | AM80: =AM5*(AM19)*Assumptions!$D$45*Assumptions!$D$46*Assumptions!$D$57*Assumptions!$D$58*Assumptions!$D$54+AM5*(AM20)*Assumptions!$D$47*Assumptions!$D$48*Assumptions!$D$57*Assumptions!$D$58*Assumptions!$D$54 -> 144740.3215 | AN80: =AN5*(AN19)*Assumptions!$D$45*Assumptions!$D$46*Assumptions!$D$57*Assumptions!$D$58*Assumptions!$D$54+AN5*(AN20)*Assumptions!$D$47*Assumptions!$D$48*Assumptions!$D$57*Assumptions!$D$58*Assumptions!$D$54 -> 159938.0552
C81: Reduced Pavement Maintenance Benefit - discounted | F81: =F80*F6 -> 0 | G81: 0 | H81: 0 | I81: 3561.053571 | J81: 3915.494884 | K81: 4305.214702 | L81: 4733.72439 | M81: 5204.884808 | N81: 5722.9411 | O81: 6292.560938 | P81: 6918.876583 | Q81: 7145.194976 | R81: 7378.916307 | S81: 7620.282728 | T81: 7869.544313 | U81: 8126.959314 | V81: 8392.794432 | W81: 8667.325091 | X81: 8950.835724 | Y81: 9243.620071 | Z81: 9545.981475 | AA81: 9858.233205 | AB81: 10180.69878 | AC81: 10513.71229 | AD81: =AD80*AD6 -> 10857.61877 | AE81: 11212.77452 | AF81: 11579.54752 | AG81: 11958.31776 | AH81: 12349.47769 | AI81: 12753.43257 | AJ81: =AJ80*AJ6 -> 13170.60092 | AK81: =AK80*AK6 -> 13601.41497 | AL81: =AL80*AL6 -> 14046.32107 | AM81: =AM80*AM6 -> 14505.78017 | AN81: =AN80*AN6 -> 14980.26831
B83: Emissions Savings
C84: Rate of emissions (grams / mile)
C85: Nox | G85: 0.609864236 | H85: 0.609864236 | I85: 0.609864236 | J85: 0.609864236 | K85: 0.609864236 | L85: 0.609864236 | M85: 0.609864236 | N85: 0.609864236 | O85: 0.609864236 | P85: 0.609864236 | Q85: 0.609864236 | R85: 0.609864236 | S85: 0.609864236 | T85: 0.609864236 | U85: 0.609864236 | V85: 0.609864236 | W85: 0.609864236 | X85: 0.609864236 | Y85: 0.609864236 | Z85: 0.609864236 | AA85: 0.609864236 | AB85: 0.609864236 | AC85: 0.609864236 | AD85: 0.609864236 | AE85: 0.609864236 | AF85: 0.609864236 | AG85: 0.609864236 | AH85: 0.609864236 | AI85: 0.609864236 | AJ85: 0.609864236 | AK85: 0.609864236 | AL85: 0.609864236 | AM85: 0.609864236 | AN85: 0.609864236
C86: CO2 | G86: 316.40705 | H86: 316.40705 | I86: 316.40705 | J86: 316.40705 | K86: 316.40705 | L86: 316.40705 | M86: 316.40705 | N86: 316.40705 | O86: 316.40705 | P86: 316.40705 | Q86: 316.40705 | R86: 316.40705 | S86: 316.40705 | T86: 316.40705 | U86: 316.40705 | V86: 316.40705 | W86: 316.40705 | X86: 316.40705 | Y86: 316.40705 | Z86: 316.40705 | AA86: 316.40705 | AB86: 316.40705 | AC86: 316.40705 | AD86: 316.40705 | AE86: 316.40705 | AF86: 316.40705 | AG86: 316.40705 | AH86: 316.40705 | AI86: 316.40705 | AJ86: 316.40705 | AK86: 316.40705 | AL86: 316.40705 | AM86: 316.40705 | AN86: 316.40705
C87: VOC | G87: 0.2891523572 | H87: 0.2891523572 | I87: 0.2891523572 | J87: 0.2891523572 | K87: 0.2891523572 | L87: 0.2891523572 | M87: 0.2891523572 | N87: 0.2891523572 | O87: 0.2891523572 | P87: 0.2891523572 | Q87: 0.2891523572 | R87: 0.2891523572 | S87: 0.2891523572 | T87: 0.2891523572 | U87: 0.2891523572 | V87: 0.2891523572 | W87: 0.2891523572 | X87: 0.2891523572 | Y87: 0.2891523572 | Z87: 0.2891523572 | AA87: 0.2891523572 | AB87: 0.2891523572 | AC87: 0.2891523572 | AD87: 0.2891523572 | AE87: 0.2891523572 | AF87: 0.2891523572 | AG87: 0.2891523572 | AH87: 0.2891523572 | AI87: 0.2891523572 | AJ87: 0.2891523572 | AK87: 0.2891523572 | AL87: 0.2891523572 | AM87: 0.2891523572 | AN87: 0.2891523572
C88: PM | G88: 0.06381181146 | H88: 0.06381181146 | I88: 0.06381181146 | J88: 0.06381181146 | K88: 0.06381181146 | L88: 0.06381181146 | M88: 0.06381181146 | N88: 0.06381181146 | O88: 0.06381181146 | P88: 0.06381181146 | Q88: 0.06381181146 | R88: 0.06381181146 | S88: 0.06381181146 | T88: 0.06381181146 | U88: 0.06381181146 | V88: 0.06381181146 | W88: 0.06381181146 | X88: 0.06381181146 | Y88: 0.06381181146 | Z88: 0.06381181146 | AA88: 0.06381181146 | AB88: 0.06381181146 | AC88: 0.06381181146 | AD88: 0.06381181146 | AE88: 0.06381181146 | AF88: 0.06381181146 | AG88: 0.06381181146 | AH88: 0.06381181146 | AI88: 0.06381181146 | AJ88: 0.06381181146 | AK88: 0.06381181146 | AL88: 0.06381181146 | AM88: 0.06381181146 | AN88: 0.06381181146
C89: SO2 | G89: 0.03295318224 | H89: 0.03295318224 | I89: 0.03295318224 | J89: 0.03295318224 | K89: 0.03295318224 | L89: 0.03295318224 | M89: 0.03295318224 | N89: 0.03295318224 | O89: 0.03295318224 | P89: 0.03295318224 | Q89: 0.03295318224 | R89: 0.03295318224 | S89: 0.03295318224 | T89: 0.03295318224 | U89: 0.03295318224 | V89: 0.03295318224 | W89: 0.03295318224 | X89: 0.03295318224 | Y89: 0.03295318224 | Z89: 0.03295318224 | AA89: 0.03295318224 | AB89: 0.03295318224 | AC89: 0.03295318224 | AD89: 0.03295318224 | AE89: 0.03295318224 | AF89: 0.03295318224 | AG89: 0.03295318224 | AH89: 0.03295318224 | AI89: 0.03295318224 | AJ89: 0.03295318224 | AK89: 0.03295318224 | AL89: 0.03295318224 | AM89: 0.03295318224 | AN89: 0.03295318224
C90: CO | G90: 9.75019424 | H90: 9.75019424 | I90: 9.75019424 | J90: 9.75019424 | K90: 9.75019424 | L90: 9.75019424 | M90: 9.75019424 | N90: 9.75019424 | O90: 9.75019424 | P90: 9.75019424 | Q90: 9.75019424 | R90: 9.75019424 | S90: 9.75019424 | T90: 9.75019424 | U90: 9.75019424 | V90: 9.75019424 | W90: 9.75019424 | X90: 9.75019424 | Y90: 9.75019424 | Z90: 9.75019424 | AA90: 9.75019424 | AB90: 9.75019424 | AC90: 9.75019424 | AD90: 9.75019424 | AE90: 9.75019424 | AF90: 9.75019424 | AG90: 9.75019424 | AH90: 9.75019424 | AI90: 9.75019424 | AJ90: 9.75019424 | AK90: 9.75019424 | AL90: 9.75019424 | AM90: 9.75019424 | AN90: 9.75019424
C91: Total value of emissions reduction ($/ton)
C92: Nox | G92: 7877 | H92: 7877 | I92: 7877 | J92: 7877 | K92: 7877 | L92: 7877 | M92: 7877 | N92: 7877 | O92: 7877 | P92: 7877 | Q92: 7877 | R92: 7877 | S92: 7877 | T92: 7877 | U92: 7877 | V92: 7877 | W92: 7877 | X92: 7877 | Y92: 7877 | Z92: 7877 | AA92: 7877 | AB92: 7877 | AC92: 7877 | AD92: 7877 | AE92: 7877 | AF92: 7877 | AG92: 7877 | AH92: 7877 | AI92: 7877 | AJ92: 7877 | AK92: 7877 | AL92: 7877 | AM92: 7877 | AN92: 7877
C93: CO2 | G93: 39 | H93: 40 | I93: 42 | J93: 43 | K93: 44 | L93: 45 | M93: 46 | N93: 47 | O93: 48 | P93: 49 | Q93: 50 | R93: 51 | S93: 53 | T93: 53 | U93: 54 | V93: 55 | W93: 56 | X93: 57 | Y93: 58 | Z93: 59 | AA93: 60 | AB93: 61 | AC93: 62 | AD93: 62 | AE93: 62 | AF93: 62 | AG93: 62 | AH93: 62 | AI93: 62 | AJ93: 62 | AK93: 62 | AL93: 62 | AM93: 62 | AN93: 62
C94: VOC | G94: 1999 | H94: 1999 | I94: 1999 | J94: 1999 | K94: 1999 | L94: 1999 | M94: 1999 | N94: 1999 | O94: 1999 | P94: 1999 | Q94: 1999 | R94: 1999 | S94: 1999 | T94: 1999 | U94: 1999 | V94: 1999 | W94: 1999 | X94: 1999 | Y94: 1999 | Z94: 1999 | AA94: 1999 | AB94: 1999 | AC94: 1999 | AD94: 1999 | AE94: 1999 | AF94: 1999 | AG94: 1999 | AH94: 1999 | AI94: 1999 | AJ94: 1999 | AK94: 1999 | AL94: 1999 | AM94: 1999 | AN94: 1999
C95: PM | G95: 360383 | H95: 360383 | I95: 360383 | J95: 360383 | K95: 360383 | L95: 360383 | M95: 360383 | N95: 360383 | O95: 360383 | P95: 360383 | Q95: 360383 | R95: 360383 | S95: 360383 | T95: 360383 | U95: 360383 | V95: 360383 | W95: 360383 | X95: 360383 | Y95: 360383 | Z95: 360383 | AA95: 360383 | AB95: 360383 | AC95: 360383 | AD95: 360383 | AE95: 360383 | AF95: 360383 | AG95: 360383 | AH95: 360383 | AI95: 360383 | AJ95: 360383 | AK95: 360383 | AL95: 360383 | AM95: 360383 | AN95: 360383
C96: SO2 | G96: 46561 | H96: 46561 | I96: 46561 | J96: 46561 | K96: 46561 | L96: 46561 | M96: 46561 | N96: 46561 | O96: 46561 | P96: 46561 | Q96: 46561 | R96: 46561 | S96: 46561 | T96: 46561 | U96: 46561 | V96: 46561 | W96: 46561 | X96: 46561 | Y96: 46561 | Z96: 46561 | AA96: 46561 | AB96: 46561 | AC96: 46561 | AD96: 46561 | AE96: 46561 | AF96: 46561 | AG96: 46561 | AH96: 46561 | AI96: 46561 | AJ96: 46561 | AK96: 46561 | AL96: 46561 | AM96: 46561 | AN96: 46561
C97: CO | G97: 0 | H97: 0 | I97: 0 | J97: 0 | K97: 0 | L97: 0 | M97: 0 | N97: 0 | O97: 0 | P97: 0 | Q97: 0 | R97: 0 | S97: 0 | T97: 0 | U97: 0 | V97: 0 | W97: 0 | X97: 0 | Y97: 0 | Z97: 0 | AA97: 0 | AB97: 0 | AC97: 0 | AD97: 0 | AE97: 0 | AF97: 0 | AG97: 0 | AH97: 0 | AI97: 0 | AJ97: 0 | AK97: 0 | AL97: 0 | AM97: 0 | AN97: 0
C98: Total tons of emissions savings
C99: Nox | E99: 0.08796624236 | G99: =G106/G92 -> 0 | H99: =H106/H92 -> 0 | I99: =I106/I92 -> 0.01824827089 | J99: 0.0214690907 | K99: 0.02525838521 | L99: 0.0297164902 | M99: 0.03496145073 | N99: 0.04113214678 | O99: 0.04839197068 | P99: 0.05693315351 | Q99: 0.06291113463 | R99: 0.06951680377 | S99: 0.07681606816 | T99: 0.08488175532 | U99: 0.09379433963 | V99: 0.1036427453 | W99: 0.1145252335 | X99: 0.1265503831 | Y99: 0.1398381733 | Z99: 0.1545211815 | AA99: 0.1707459055 | AB99: 0.1886742256 | AC99: 0.2084850193 | AD99: =AD106/AD92 -> 0.2303759463 | AE99: 0.2545654207 | AF99: 0.2812947899 | AG99: 0.3108307428 | AH99: 0.3434679708 | AI99: 0.3795321077 | AJ99: =AJ106/AJ92 -> 0.4193829791 | AK99: 0.4634181919 | AL99: 0.512077102 | AM99: 0.5658451977 | AN99: 0.6252589435
C100: CO2 | E100: 272.5810788 | G100: =G107/G93 -> 0 | H100: 0 | I100: =I107/I93 -> 9.467486729 | J100: 11.13849814 | K100: 13.10444306 | L100: 15.41737726 | M100: 18.13854434 | N100: 21.33999742 | O100: 25.10650697 | P100: 29.53780544 | Q100: 32.63927502 | R100: 36.06639889 | S100: 39.85337078 | T100: 44.03797471 | U100: 48.66196205 | V100: 53.77146807 | W100: 59.41747222 | X100: 65.6563068 | Y100: 72.55021901 | Z100: 80.16799201 | AA100: 88.58563117 | AB100: 97.88712244 | AC100: 108.1652703 | AD100: =AD107/AD93 -> 119.5226237 | AE100: 132.0724992 | AF100: 145.9401116 | AG100: 161.2638233 | AH100: 178.1965247 | AI100: 196.9071598 | AJ100: 217.5824116 | AK100: 240.4285648 | AL100: 265.6735642 | AM100: 293.5692884 | AN100: 324.3940637
C101: VOC | E101: 0.04170706336 | G101: 0 | H101: 0 | I101: =I108/I94 -> 0.00865197569 | J101: 0.0101790494 | K101: 0.01197565162 | L101: 0.01408935413 | M101: 0.01657612513 | N101: 0.01950181122 | O101: 0.0229438809 | P101: 0.02699347588 | Q101: 0.02982779084 | R101: 0.03295970888 | S101: 0.03642047831 | T101: 0.04024462854 | U101: 0.04447031453 | V101: 0.04913969756 | W101: 0.0542993658 | X101: 0.06000079921 | Y101: 0.06630088313 | Z101: 0.07326247586 | AA101: 0.08095503582 | AB101: 0.08945531459 | AC101: 0.09884812262 | AD101: =AD108/AD94 -> 0.1092271755 | AE101: 0.1206960289 | AF101: 0.133369112 | AG101: 0.1473728687 | AH101: 0.1628470199 | AI101: 0.179945957 | AJ101: 0.1988402825 | AK101: 0.2197185122 | AL101: 0.2427889559 | AM101: 0.2682817963 | AN101: 0.2964513849
C102: PM | E102: 0.009204155517 | G102: 0 | H102: 0 | I102: =I109/I95 -> 0.001909367943 | J102: 0.002246371385 | K102: 0.002642855934 | L102: 0.003109320007 | M102: 0.003658114988 | N102: 0.004303772283 | O102: 0.005063388091 | P102: 0.005957076089 | Q102: 0.006582569079 | R102: 0.007273738832 | S102: 0.008037481409 | T102: 0.008881416957 | U102: 0.009813965738 | V102: 0.01084443214 | W102: 0.01198309752 | X102: 0.01324132275 | Y102: 0.01463166164 | Z102: 0.01616798612 | AA102: 0.01786562466 | AB102: 0.01974151525 | AC102: 0.02181437435 | AD102: =AD109/AD95 -> 0.02410488366 | AE102: 0.02663589644 | AF102: 0.02943266556 | AG102: 0.03252309545 | AH102: 0.03593802047 | AI102: 0.03971151262 | AJ102: 0.04388122145 | AK102: 0.0484887497 | AL102: 0.05358006842 | AM102: 0.0592059756 | AN102: 0.06542260304
C103: SO2 | E103: 0.004753135935 | G103: 0 | H103: 0 | I103: =I110/I96 -> 0.0009860204302 | J103: 0.001160053036 | K103: 0.001364802397 | L103: 0.00160569002 | M103: 0.001889094309 | N103: 0.002222519454 | O103: 0.002614794138 | P103: 0.003076305303 | Q103: 0.00339931736 | R103: 0.003756245683 | S103: 0.004150651479 | T103: 0.004586469885 | U103: 0.005068049223 | V103: 0.005600194391 | W103: 0.006188214802 | X103: 0.006837977356 | Y103: 0.007555964979 | Z103: 0.008349341301 | AA103: 0.009226022138 | AB103: 0.01019475446 | AC103: 0.01126520368 | AD103: =AD110/AD96 -> 0.01244805007 | AE103: 0.01375509532 | AF103: 0.01519938033 | AG103: 0.01679531527 | AH103: 0.01855882337 | AI103: 0.02050749983 | AJ103: 0.02266078731 | AK103: 0.02504016998 | AL103: 0.02766938782 | AM103: 0.03057467354 | AN103: 0.03378501427
C104: CO
C105: Total value of savings (assuming 3.2 mi / trip)
C106: Nox | G106: =G$5*(G$19)*Assumptions!$D$45*Assumptions!$D$46*'BCA Calcs TIGER Benefits'!G85*'BCA Calcs TIGER Benefits'!G92*Assumptions!$D$53*Assumptions!$D$54/1000000+G$5*(G$20)*Assumptions!$D$47*Assumptions!$D$48*'BCA Calcs TIGER Benefits'!G85*'BCA Calcs TIGER Benefits'!G92*Assumptions!$D$53*Assumptions!$D$54/1000000 -> 0 | H106: =H$5*(H$19)*Assumptions!$D$45*Assumptions!$D$46*'BCA Calcs TIGER Benefits'!H85*'BCA Calcs TIGER Benefits'!H92*Assumptions!$D$53*Assumptions!$D$54/1000000+H$5*(H$20)*Assumptions!$D$47*Assumptions!$D$48*'BCA Calcs TIGER Benefits'!H85*'BCA Calcs TIGER Benefits'!H92*Assumptions!$D$53*Assumptions!$D$54/1000000 -> 0 | I106: =I$5*(I$19)*Assumptions!$D$45*Assumptions!$D$46*'BCA Calcs TIGER Benefits'!I85*'BCA Calcs TIGER Benefits'!I92*Assumptions!$D$53*Assumptions!$D$54/1000000+I$5*(I$20)*Assumptions!$D$47*Assumptions!$D$48*'BCA Calcs TIGER Benefits'!I85*'BCA Calcs TIGER Benefits'!I92*Assumptions!$D$53*Assumptions!$D$54/1000000 -> 143.7416298 | J106: =J$5*(J$19)*Assumptions!$D$45*Assumptions!$D$46*'BCA Calcs TIGER Benefits'!J85*'BCA Calcs TIGER Benefits'!J92*Assumptions!$D$53*Assumptions!$D$54/1000000+J$5*(J$20)*Assumptions!$D$47*Assumptions!$D$48*'BCA Calcs TIGER Benefits'!J85*'BCA Calcs TIGER Benefits'!J92*Assumptions!$D$53*Assumptions!$D$54/1000000 -> 169.1120275 | K106: =K$5*(K$19)*Assumptions!$D$45*Assumptions!$D$46*'BCA Calcs TIGER Benefits'!K85*'BCA Calcs TIGER Benefits'!K92*Assumptions!$D$53*Assumptions!$D$54/1000000+K$5*(K$20)*Assumptions!$D$47*Assumptions!$D$48*'BCA Calcs TIGER Benefits'!K85*'BCA Calcs TIGER Benefits'!K92*Assumptions!$D$53*Assumptions!$D$54/1000000 -> 198.9603003 | L106: =L$5*(L$19)*Assumptions!$D$45*Assumptions!$D$46*'BCA Calcs TIGER Benefits'!L85*'BCA Calcs TIGER Benefits'!L92*Assumptions!$D$53*Assumptions!$D$54/1000000+L$5*(L$20)*Assumptions!$D$47*Assumptions!$D$48*'BCA Calcs TIGER Benefits'!L85*'BCA Calcs TIGER Benefits'!L92*Assumptions!$D$53*Assumptions!$D$54/1000000 -> 234.0767933 | M106: =M$5*(M$19)*Assumptions!$D$45*Assumptions!$D$46*'BCA Calcs TIGER Benefits'!M85*'BCA Calcs TIGER Benefits'!M92*Assumptions!$D$53*Assumptions!$D$54/1000000+M$5*(M$20)*Assumptions!$D$47*Assumptions!$D$48*'BCA Calcs TIGER Benefits'!M85*'BCA Calcs TIGER Benefits'!M92*Assumptions!$D$53*Assumptions!$D$54/1000000 -> 275.3913474 | N106: =N$5*(N$19)*Assumptions!$D$45*Assumptions!$D$46*'BCA Calcs TIGER Benefits'!N85*'BCA Calcs TIGER Benefits'!N92*Assumptions!$D$53*Assumptions!$D$54/1000000+N$5*(N$20)*Assumptions!$D$47*Assumptions!$D$48*'BCA Calcs TIGER Benefits'!N85*'BCA Calcs TIGER Benefits'!N92*Assumptions!$D$53*Assumptions!$D$54/1000000 -> 323.9979202 | O106: =O$5*(O$19)*Assumptions!$D$45*Assumptions!$D$46*'BCA Calcs TIGER Benefits'!O85*'BCA Calcs TIGER Benefits'!O92*Assumptions!$D$53*Assumptions!$D$54/1000000+O$5*(O$20)*Assumptions!$D$47*Assumptions!$D$48*'BCA Calcs TIGER Benefits'!O85*'BCA Calcs TIGER Benefits'!O92*Assumptions!$D$53*Assumptions!$D$54/1000000 -> 381.1835531 | P106: =P$5*(P$19)*Assumptions!$D$45*Assumptions!$D$46*'BCA Calcs TIGER Benefits'!P85*'BCA Calcs TIGER Benefits'!P92*Assumptions!$D$53*Assumptions!$D$54/1000000+P$5*(P$20)*Assumptions!$D$47*Assumptions!$D$48*'BCA Calcs TIGER Benefits'!P85*'BCA Calcs TIGER Benefits'!P92*Assumptions!$D$53*Assumptions!$D$54/1000000 -> 448.4624502 | Q106: =Q$5*(Q$19)*Assumptions!$D$45*Assumptions!$D$46*'BCA Calcs TIGER Benefits'!Q85*'BCA Calcs TIGER Benefits'!Q92*Assumptions!$D$53*Assumptions!$D$54/1000000+Q$5*(Q$20)*Assumptions!$D$47*Assumptions!$D$48*'BCA Calcs TIGER Benefits'!Q85*'BCA Calcs TIGER Benefits'!Q92*Assumptions!$D$53*Assumptions!$D$54/1000000 -> 495.5510075 | R106: =R$5*(R$19)*Assumptions!$D$45*Assumptions!$D$46*'BCA Calcs TIGER Benefits'!R85*'BCA Calcs TIGER Benefits'!R92*Assumptions!$D$53*Assumptions!$D$54/1000000+R$5*(R$20)*Assumptions!$D$47*Assumptions!$D$48*'BCA Calcs TIGER Benefits'!R85*'BCA Calcs TIGER Benefits'!R92*Assumptions!$D$53*Assumptions!$D$54/1000000 -> 547.5838633 | S106: =S$5*(S$19)*Assumptions!$D$45*Assumptions!$D$46*'BCA Calcs TIGER Benefits'!S85*'BCA Calcs TIGER Benefits'!S92*Assumptions!$D$53*Assumptions!$D$54/1000000+S$5*(S$20)*Assumptions!$D$47*Assumptions!$D$48*'BCA Calcs TIGER Benefits'!S85*'BCA Calcs TIGER Benefits'!S92*Assumptions!$D$53*Assumptions!$D$54/1000000 -> 605.0801689 | T106: =T$5*(T$19)*Assumptions!$D$45*Assumptions!$D$46*'BCA Calcs TIGER Benefits'!T85*'BCA Calcs TIGER Benefits'!T92*Assumptions!$D$53*Assumptions!$D$54/1000000+T$5*(T$20)*Assumptions!$D$47*Assumptions!$D$48*'BCA Calcs TIGER Benefits'!T85*'BCA Calcs TIGER Benefits'!T92*Assumptions!$D$53*Assumptions!$D$54/1000000 -> 668.6135866 | U106: =U$5*(U$19)*Assumptions!$D$45*Assumptions!$D$46*'BCA Calcs TIGER Benefits'!U85*'BCA Calcs TIGER Benefits'!U92*Assumptions!$D$53*Assumptions!$D$54/1000000+U$5*(U$20)*Assumptions!$D$47*Assumptions!$D$48*'BCA Calcs TIGER Benefits'!U85*'BCA Calcs TIGER Benefits'!U92*Assumptions!$D$53*Assumptions!$D$54/1000000 -> 738.8180132 | V106: =V$5*(V$19)*Assumptions!$D$45*Assumptions!$D$46*'BCA Calcs TIGER Benefits'!V85*'BCA Calcs TIGER Benefits'!V92*Assumptions!$D$53*Assumptions!$D$54/1000000+V$5*(V$20)*Assumptions!$D$47*Assumptions!$D$48*'BCA Calcs TIGER Benefits'!V85*'BCA Calcs TIGER Benefits'!V92*Assumptions!$D$53*Assumptions!$D$54/1000000 -> 816.3939046 | W106: =W$5*(W$19)*Assumptions!$D$45*Assumptions!$D$46*'BCA Calcs TIGER Benefits'!W85*'BCA Calcs TIGER Benefits'!W92*Assumptions!$D$53*Assumptions!$D$54/1000000+W$5*(W$20)*Assumptions!$D$47*Assumptions!$D$48*'BCA Calcs TIGER Benefits'!W85*'BCA Calcs TIGER Benefits'!W92*Assumptions!$D$53*Assumptions!$D$54/1000000 -> 902.1152646 | X106: =X$5*(X$19)*Assumptions!$D$45*Assumptions!$D$46*'BCA Calcs TIGER Benefits'!X85*'BCA Calcs TIGER Benefits'!X92*Assumptions!$D$53*Assumptions!$D$54/1000000+X$5*(X$20)*Assumptions!$D$47*Assumptions!$D$48*'BCA Calcs TIGER Benefits'!X85*'BCA Calcs TIGER Benefits'!X92*Assumptions!$D$53*Assumptions!$D$54/1000000 -> 996.8373674 | Y106: =Y$5*(Y$19)*Assumptions!$D$45*Assumptions!$D$46*'BCA Calcs TIGER Benefits'!Y85*'BCA Calcs TIGER Benefits'!Y92*Assumptions!$D$53*Assumptions!$D$54/1000000+Y$5*(Y$20)*Assumptions!$D$47*Assumptions!$D$48*'BCA Calcs TIGER Benefits'!Y85*'BCA Calcs TIGER Benefits'!Y92*Assumptions!$D$53*Assumptions!$D$54/1000000 -> 1101.505291 | Z106: =Z$5*(Z$19)*Assumptions!$D$45*Assumptions!$D$46*'BCA Calcs TIGER Benefits'!Z85*'BCA Calcs TIGER Benefits'!Z92*Assumptions!$D$53*Assumptions!$D$54/1000000+Z$5*(Z$20)*Assumptions!$D$47*Assumptions!$D$48*'BCA Calcs TIGER Benefits'!Z85*'BCA Calcs TIGER Benefits'!Z92*Assumptions!$D$53*Assumptions!$D$54/1000000 -> 1217.163347 | AA106: =AA$5*(AA$19)*Assumptions!$D$45*Assumptions!$D$46*'BCA Calcs TIGER Benefits'!AA85*'BCA Calcs TIGER Benefits'!AA92*Assumptions!$D$53*Assumptions!$D$54/1000000+AA$5*(AA$20)*Assumptions!$D$47*Assumptions!$D$48*'BCA Calcs TIGER Benefits'!AA85*'BCA Calcs TIGER Benefits'!AA92*Assumptions!$D$53*Assumptions!$D$54/1000000 -> 1344.965498 | AB106: =AB$5*(AB$19)*Assumptions!$D$45*Assumptions!$D$46*'BCA Calcs TIGER Benefits'!AB85*'BCA Calcs TIGER Benefits'!AB92*Assumptions!$D$53*Assumptions!$D$54/1000000+AB$5*(AB$20)*Assumptions!$D$47*Assumptions!$D$48*'BCA Calcs TIGER Benefits'!AB85*'BCA Calcs TIGER Benefits'!AB92*Assumptions!$D$53*Assumptions!$D$54/1000000 -> 1486.186875 | AC106: =AC$5*(AC$19)*Assumptions!$D$45*Assumptions!$D$46*'BCA Calcs TIGER Benefits'!AC85*'BCA Calcs TIGER Benefits'!AC92*Assumptions!$D$53*Assumptions!$D$54/1000000+AC$5*(AC$20)*Assumptions!$D$47*Assumptions!$D$48*'BCA Calcs TIGER Benefits'!AC85*'BCA Calcs TIGER Benefits'!AC92*Assumptions!$D$53*Assumptions!$D$54/1000000 -> 1642.236497 | AD106: =AD$5*(AD$19)*Assumptions!$D$45*Assumptions!$D$46*'BCA Calcs TIGER Benefits'!AD85*'BCA Calcs TIGER Benefits'!AD92*Assumptions!$D$53*Assumptions!$D$54/1000000+AD$5*(AD$20)*Assumptions!$D$47*Assumptions!$D$48*'BCA Calcs TIGER Benefits'!AD85*'BCA Calcs TIGER Benefits'!AD92*Assumptions!$D$53*Assumptions!$D$54/1000000 -> 1814.671329 | AE106: =AE$5*(AE$19)*Assumptions!$D$45*Assumptions!$D$46*'BCA Calcs TIGER Benefits'!AE85*'BCA Calcs TIGER Benefits'!AE92*Assumptions!$D$53*Assumptions!$D$54/1000000+AE$5*(AE$20)*Assumptions!$D$47*Assumptions!$D$48*'BCA Calcs TIGER Benefits'!AE85*'BCA Calcs TIGER Benefits'!AE92*Assumptions!$D$53*Assumptions!$D$54/1000000 -> 2005.211819 | AF106: =AF$5*(AF$19)*Assumptions!$D$45*Assumptions!$D$46*'BCA Calcs TIGER Benefits'!AF85*'BCA Calcs TIGER Benefits'!AF92*Assumptions!$D$53*Assumptions!$D$54/1000000+AF$5*(AF$20)*Assumptions!$D$47*Assumptions!$D$48*'BCA Calcs TIGER Benefits'!AF85*'BCA Calcs TIGER Benefits'!AF92*Assumptions!$D$53*Assumptions!$D$54/1000000 -> 2215.75906 | AG106: =AG$5*(AG$19)*Assumptions!$D$45*Assumptions!$D$46*'BCA Calcs TIGER Benefits'!AG85*'BCA Calcs TIGER Benefits'!AG92*Assumptions!$D$53*Assumptions!$D$54/1000000+AG$5*(AG$20)*Assumptions!$D$47*Assumptions!$D$48*'BCA Calcs TIGER Benefits'!AG85*'BCA Calcs TIGER Benefits'!AG92*Assumptions!$D$53*Assumptions!$D$54/1000000 -> 2448.413761 | AH106: =AH$5*(AH$19)*Assumptions!$D$45*Assumptions!$D$46*'BCA Calcs TIGER Benefits'!AH85*'BCA Calcs TIGER Benefits'!AH92*Assumptions!$D$53*Assumptions!$D$54/1000000+AH$5*(AH$20)*Assumptions!$D$47*Assumptions!$D$48*'BCA Calcs TIGER Benefits'!AH85*'BCA Calcs TIGER Benefits'!AH92*Assumptions!$D$53*Assumptions!$D$54/1000000 -> 2705.497206 | AI106: =AI$5*(AI$19)*Assumptions!$D$45*Assumptions!$D$46*'BCA Calcs TIGER Benefits'!AI85*'BCA Calcs TIGER Benefits'!AI92*Assumptions!$D$53*Assumptions!$D$54/1000000+AI$5*(AI$20)*Assumptions!$D$47*Assumptions!$D$48*'BCA Calcs TIGER Benefits'!AI85*'BCA Calcs TIGER Benefits'!AI92*Assumptions!$D$53*Assumptions!$D$54/1000000 -> 2989.574413 | AJ106: =AJ$5*(AJ$19)*Assumptions!$D$45*Assumptions!$D$46*'BCA Calcs TIGER Benefits'!AJ85*'BCA Calcs TIGER Benefits'!AJ92*Assumptions!$D$53*Assumptions!$D$54/1000000+AJ$5*(AJ$20)*Assumptions!$D$47*Assumptions!$D$48*'BCA Calcs TIGER Benefits'!AJ85*'BCA Calcs TIGER Benefits'!AJ92*Assumptions!$D$53*Assumptions!$D$54/1000000 -> 3303.479726 | AK106: =AK$5*(AK$19)*Assumptions!$D$45*Assumptions!$D$46*'BCA Calcs TIGER Benefits'!AK85*'BCA Calcs TIGER Benefits'!AK92*Assumptions!$D$53*Assumptions!$D$54/1000000+AK$5*(AK$20)*Assumptions!$D$47*Assumptions!$D$48*'BCA Calcs TIGER Benefits'!AK85*'BCA Calcs TIGER Benefits'!AK92*Assumptions!$D$53*Assumptions!$D$54/1000000 -> 3650.345097 | AL106: =AL$5*(AL$19)*Assumptions!$D$45*Assumptions!$D$46*'BCA Calcs TIGER Benefits'!AL85*'BCA Calcs TIGER Benefits'!AL92*Assumptions!$D$53*Assumptions!$D$54/1000000+AL$5*(AL$20)*Assumptions!$D$47*Assumptions!$D$48*'BCA Calcs TIGER Benefits'!AL85*'BCA Calcs TIGER Benefits'!AL92*Assumptions!$D$53*Assumptions!$D$54/1000000 -> 4033.631332 | AM106: =AM$5*(AM$19)*Assumptions!$D$45*Assumptions!$D$46*'BCA Calcs TIGER Benefits'!AM85*'BCA Calcs TIGER Benefits'!AM92*Assumptions!$D$53*Assumptions!$D$54/1000000+AM$5*(AM$20)*Assumptions!$D$47*Assumptions!$D$48*'BCA Calcs TIGER Benefits'!AM85*'BCA Calcs TIGER Benefits'!AM92*Assumptions!$D$53*Assumptions!$D$54/1000000 -> 4457.162622 | AN106: =AN$5*(AN$19)*Assumptions!$D$45*Assumptions!$D$46*'BCA Calcs TIGER Benefits'!AN85*'BCA Calcs TIGER Benefits'!AN92*Assumptions!$D$53*Assumptions!$D$54/1000000+AN$5*(AN$20)*Assumptions!$D$47*Assumptions!$D$48*'BCA Calcs TIGER Benefits'!AN85*'BCA Calcs TIGER Benefits'!AN92*Assumptions!$D$53*Assumptions!$D$54/1000000 -> 4925.164698
C107: CO2 | G107: =G$5*(G$19)*Assumptions!$D$45*Assumptions!$D$46*'BCA Calcs TIGER Benefits'!G86*'BCA Calcs TIGER Benefits'!G93*Assumptions!$D$53*Assumptions!$D$54/1000000+G$5*(G$20)*Assumptions!$D$47*Assumptions!$D$48*'BCA Calcs TIGER Benefits'!G86*'BCA Calcs TIGER Benefits'!G93*Assumptions!$D$53*Assumptions!$D$54/1000000 -> 0 | H107: =H$5*(H$19)*Assumptions!$D$45*Assumptions!$D$46*'BCA Calcs TIGER Benefits'!H86*'BCA Calcs TIGER Benefits'!H93*Assumptions!$D$53*Assumptions!$D$54/1000000+H$5*(H$20)*Assumptions!$D$47*Assumptions!$D$48*'BCA Calcs TIGER Benefits'!H86*'BCA Calcs TIGER Benefits'!H93*Assumptions!$D$53*Assumptions!$D$54/1000000 -> 0 | I107: =I$5*(I$19)*Assumptions!$D$45*Assumptions!$D$46*'BCA Calcs TIGER Benefits'!I86*'BCA Calcs TIGER Benefits'!I93*Assumptions!$D$53*Assumptions!$D$54/1000000+I$5*(I$20)*Assumptions!$D$47*Assumptions!$D$48*'BCA Calcs TIGER Benefits'!I86*'BCA Calcs TIGER Benefits'!I93*Assumptions!$D$53*Assumptions!$D$54/1000000 -> 397.6344426 | J107: =J$5*(J$19)*Assumptions!$D$45*Assumptions!$D$46*'BCA Calcs TIGER Benefits'!J86*'BCA Calcs TIGER Benefits'!J93*Assumptions!$D$53*Assumptions!$D$54/1000000+J$5*(J$20)*Assumptions!$D$47*Assumptions!$D$48*'BCA Calcs TIGER Benefits'!J86*'BCA Calcs TIGER Benefits'!J93*Assumptions!$D$53*Assumptions!$D$54/1000000 -> 478.9554199 | K107: =K$5*(K$19)*Assumptions!$D$45*Assumptions!$D$46*'BCA Calcs TIGER Benefits'!K86*'BCA Calcs TIGER Benefits'!K93*Assumptions!$D$53*Assumptions!$D$54/1000000+K$5*(K$20)*Assumptions!$D$47*Assumptions!$D$48*'BCA Calcs TIGER Benefits'!K86*'BCA Calcs TIGER Benefits'!K93*Assumptions!$D$53*Assumptions!$D$54/1000000 -> 576.5954946 | L107: =L$5*(L$19)*Assumptions!$D$45*Assumptions!$D$46*'BCA Calcs TIGER Benefits'!L86*'BCA Calcs TIGER Benefits'!L93*Assumptions!$D$53*Assumptions!$D$54/1000000+L$5*(L$20)*Assumptions!$D$47*Assumptions!$D$48*'BCA Calcs TIGER Benefits'!L86*'BCA Calcs TIGER Benefits'!L93*Assumptions!$D$53*Assumptions!$D$54/1000000 -> 693.7819766 | M107: =M$5*(M$19)*Assumptions!$D$45*Assumptions!$D$46*'BCA Calcs TIGER Benefits'!M86*'BCA Calcs TIGER Benefits'!M93*Assumptions!$D$53*Assumptions!$D$54/1000000+M$5*(M$20)*Assumptions!$D$47*Assumptions!$D$48*'BCA Calcs TIGER Benefits'!M86*'BCA Calcs TIGER Benefits'!M93*Assumptions!$D$53*Assumptions!$D$54/1000000 -> 834.3730398 | N107: =N$5*(N$19)*Assumptions!$D$45*Assumptions!$D$46*'BCA Calcs TIGER Benefits'!N86*'BCA Calcs TIGER Benefits'!N93*Assumptions!$D$53*Assumptions!$D$54/1000000+N$5*(N$20)*Assumptions!$D$47*Assumptions!$D$48*'BCA Calcs TIGER Benefits'!N86*'BCA Calcs TIGER Benefits'!N93*Assumptions!$D$53*Assumptions!$D$54/1000000 -> 1002.979879 | O107: =O$5*(O$19)*Assumptions!$D$45*Assumptions!$D$46*'BCA Calcs TIGER Benefits'!O86*'BCA Calcs TIGER Benefits'!O93*Assumptions!$D$53*Assumptions!$D$54/1000000+O$5*(O$20)*Assumptions!$D$47*Assumptions!$D$48*'BCA Calcs TIGER Benefits'!O86*'BCA Calcs TIGER Benefits'!O93*Assumptions!$D$53*Assumptions!$D$54/1000000 -> 1205.112334 | P107: =P$5*(P$19)*Assumptions!$D$45*Assumptions!$D$46*'BCA Calcs TIGER Benefits'!P86*'BCA Calcs TIGER Benefits'!P93*Assumptions!$D$53*Assumptions!$D$54/1000000+P$5*(P$20)*Assumptions!$D$47*Assumptions!$D$48*'BCA Calcs TIGER Benefits'!P86*'BCA Calcs TIGER Benefits'!P93*Assumptions!$D$53*Assumptions!$D$54/1000000 -> 1447.352467 | Q107: =Q$5*(Q$19)*Assumptions!$D$45*Assumptions!$D$46*'BCA Calcs TIGER Benefits'!Q86*'BCA Calcs TIGER Benefits'!Q93*Assumptions!$D$53*Assumptions!$D$54/1000000+Q$5*(Q$20)*Assumptions!$D$47*Assumptions!$D$48*'BCA Calcs TIGER Benefits'!Q86*'BCA Calcs TIGER Benefits'!Q93*Assumptions!$D$53*Assumptions!$D$54/1000000 -> 1631.963751 | R107: =R$5*(R$19)*Assumptions!$D$45*Assumptions!$D$46*'BCA Calcs TIGER Benefits'!R86*'BCA Calcs TIGER Benefits'!R93*Assumptions!$D$53*Assumptions!$D$54/1000000+R$5*(R$20)*Assumptions!$D$47*Assumptions!$D$48*'BCA Calcs TIGER Benefits'!R86*'BCA Calcs TIGER Benefits'!R93*Assumptions!$D$53*Assumptions!$D$54/1000000 -> 1839.386344 | S107: =S$5*(S$19)*Assumptions!$D$45*Assumptions!$D$46*'BCA Calcs TIGER Benefits'!S86*'BCA Calcs TIGER Benefits'!S93*Assumptions!$D$53*Assumptions!$D$54/1000000+S$5*(S$20)*Assumptions!$D$47*Assumptions!$D$48*'BCA Calcs TIGER Benefits'!S86*'BCA Calcs TIGER Benefits'!S93*Assumptions!$D$53*Assumptions!$D$54/1000000 -> 2112.228651 | T107: =T$5*(T$19)*Assumptions!$D$45*Assumptions!$D$46*'BCA Calcs TIGER Benefits'!T86*'BCA Calcs TIGER Benefits'!T93*Assumptions!$D$53*Assumptions!$D$54/1000000+T$5*(T$20)*Assumptions!$D$47*Assumptions!$D$48*'BCA Calcs TIGER Benefits'!T86*'BCA Calcs TIGER Benefits'!T93*Assumptions!$D$53*Assumptions!$D$54/1000000 -> 2334.01266 | U107: =U$5*(U$19)*Assumptions!$D$45*Assumptions!$D$46*'BCA Calcs TIGER Benefits'!U86*'BCA Calcs TIGER Benefits'!U93*Assumptions!$D$53*Assumptions!$D$54/1000000+U$5*(U$20)*Assumptions!$D$47*Assumptions!$D$48*'BCA Calcs TIGER Benefits'!U86*'BCA Calcs TIGER Benefits'!U93*Assumptions!$D$53*Assumptions!$D$54/1000000 -> 2627.745951 | V107: =V$5*(V$19)*Assumptions!$D$45*Assumptions!$D$46*'BCA Calcs TIGER Benefits'!V86*'BCA Calcs TIGER Benefits'!V93*Assumptions!$D$53*Assumptions!$D$54/1000000+V$5*(V$20)*Assumptions!$D$47*Assumptions!$D$48*'BCA Calcs TIGER Benefits'!V86*'BCA Calcs TIGER Benefits'!V93*Assumptions!$D$53*Assumptions!$D$54/1000000 -> 2957.430744 | W107: =W$5*(W$19)*Assumptions!$D$45*Assumptions!$D$46*'BCA Calcs TIGER Benefits'!W86*'BCA Calcs TIGER Benefits'!W93*Assumptions!$D$53*Assumptions!$D$54/1000000+W$5*(W$20)*Assumptions!$D$47*Assumptions!$D$48*'BCA Calcs TIGER Benefits'!W86*'BCA Calcs TIGER Benefits'!W93*Assumptions!$D$53*Assumptions!$D$54/1000000 -> 3327.378444 | X107: =X$5*(X$19)*Assumptions!$D$45*Assumptions!$D$46*'BCA Calcs TIGER Benefits'!X86*'BCA Calcs TIGER Benefits'!X93*Assumptions!$D$53*Assumptions!$D$54/1000000+X$5*(X$20)*Assumptions!$D$47*Assumptions!$D$48*'BCA Calcs TIGER Benefits'!X86*'BCA Calcs TIGER Benefits'!X93*Assumptions!$D$53*Assumptions!$D$54/1000000 -> 3742.409488 | Y107: =Y$5*(Y$19)*Assumptions!$D$45*Assumptions!$D$46*'BCA Calcs TIGER Benefits'!Y86*'BCA Calcs TIGER Benefits'!Y93*Assumptions!$D$53*Assumptions!$D$54/1000000+Y$5*(Y$20)*Assumptions!$D$47*Assumptions!$D$48*'BCA Calcs TIGER Benefits'!Y86*'BCA Calcs TIGER Benefits'!Y93*Assumptions!$D$53*Assumptions!$D$54/1000000 -> 4207.912703 | Z107: =Z$5*(Z$19)*Assumptions!$D$45*Assumptions!$D$46*'BCA Calcs TIGER Benefits'!Z86*'BCA Calcs TIGER Benefits'!Z93*Assumptions!$D$53*Assumptions!$D$54/1000000+Z$5*(Z$20)*Assumptions!$D$47*Assumptions!$D$48*'BCA Calcs TIGER Benefits'!Z86*'BCA Calcs TIGER Benefits'!Z93*Assumptions!$D$53*Assumptions!$D$54/1000000 -> 4729.911529 | AA107: =AA$5*(AA$19)*Assumptions!$D$45*Assumptions!$D$46*'BCA Calcs TIGER Benefits'!AA86*'BCA Calcs TIGER Benefits'!AA93*Assumptions!$D$53*Assumptions!$D$54/1000000+AA$5*(AA$20)*Assumptions!$D$47*Assumptions!$D$48*'BCA Calcs TIGER Benefits'!AA86*'BCA Calcs TIGER Benefits'!AA93*Assumptions!$D$53*Assumptions!$D$54/1000000 -> 5315.13787 | AB107: =AB$5*(AB$19)*Assumptions!$D$45*Assumptions!$D$46*'BCA Calcs TIGER Benefits'!AB86*'BCA Calcs TIGER Benefits'!AB93*Assumptions!$D$53*Assumptions!$D$54/1000000+AB$5*(AB$20)*Assumptions!$D$47*Assumptions!$D$48*'BCA Calcs TIGER Benefits'!AB86*'BCA Calcs TIGER Benefits'!AB93*Assumptions!$D$53*Assumptions!$D$54/1000000 -> 5971.114469 | AC107: =AC$5*(AC$19)*Assumptions!$D$45*Assumptions!$D$46*'BCA Calcs TIGER Benefits'!AC86*'BCA Calcs TIGER Benefits'!AC93*Assumptions!$D$53*Assumptions!$D$54/1000000+AC$5*(AC$20)*Assumptions!$D$47*Assumptions!$D$48*'BCA Calcs TIGER Benefits'!AC86*'BCA Calcs TIGER Benefits'!AC93*Assumptions!$D$53*Assumptions!$D$54/1000000 -> 6706.246759 | AD107: =AD$5*(AD$19)*Assumptions!$D$45*Assumptions!$D$46*'BCA Calcs TIGER Benefits'!AD86*'BCA Calcs TIGER Benefits'!AD93*Assumptions!$D$53*Assumptions!$D$54/1000000+AD$5*(AD$20)*Assumptions!$D$47*Assumptions!$D$48*'BCA Calcs TIGER Benefits'!AD86*'BCA Calcs TIGER Benefits'!AD93*Assumptions!$D$53*Assumptions!$D$54/1000000 -> 7410.402668 | AE107: =AE$5*(AE$19)*Assumptions!$D$45*Assumptions!$D$46*'BCA Calcs TIGER Benefits'!AE86*'BCA Calcs TIGER Benefits'!AE93*Assumptions!$D$53*Assumptions!$D$54/1000000+AE$5*(AE$20)*Assumptions!$D$47*Assumptions!$D$48*'BCA Calcs TIGER Benefits'!AE86*'BCA Calcs TIGER Benefits'!AE93*Assumptions!$D$53*Assumptions!$D$54/1000000 -> 8188.494948 | AF107: =AF$5*(AF$19)*Assumptions!$D$45*Assumptions!$D$46*'BCA Calcs TIGER Benefits'!AF86*'BCA Calcs TIGER Benefits'!AF93*Assumptions!$D$53*Assumptions!$D$54/1000000+AF$5*(AF$20)*Assumptions!$D$47*Assumptions!$D$48*'BCA Calcs TIGER Benefits'!AF86*'BCA Calcs TIGER Benefits'!AF93*Assumptions!$D$53*Assumptions!$D$54/1000000 -> 9048.286918 | AG107: =AG$5*(AG$19)*Assumptions!$D$45*Assumptions!$D$46*'BCA Calcs TIGER Benefits'!AG86*'BCA Calcs TIGER Benefits'!AG93*Assumptions!$D$53*Assumptions!$D$54/1000000+AG$5*(AG$20)*Assumptions!$D$47*Assumptions!$D$48*'BCA Calcs TIGER Benefits'!AG86*'BCA Calcs TIGER Benefits'!AG93*Assumptions!$D$53*Assumptions!$D$54/1000000 -> 9998.357044 | AH107: =AH$5*(AH$19)*Assumptions!$D$45*Assumptions!$D$46*'BCA Calcs TIGER Benefits'!AH86*'BCA Calcs TIGER Benefits'!AH93*Assumptions!$D$53*Assumptions!$D$54/1000000+AH$5*(AH$20)*Assumptions!$D$47*Assumptions!$D$48*'BCA Calcs TIGER Benefits'!AH86*'BCA Calcs TIGER Benefits'!AH93*Assumptions!$D$53*Assumptions!$D$54/1000000 -> 11048.18453 | AI107: =AI$5*(AI$19)*Assumptions!$D$45*Assumptions!$D$46*'BCA Calcs TIGER Benefits'!AI86*'BCA Calcs TIGER Benefits'!AI93*Assumptions!$D$53*Assumptions!$D$54/1000000+AI$5*(AI$20)*Assumptions!$D$47*Assumptions!$D$48*'BCA Calcs TIGER Benefits'!AI86*'BCA Calcs TIGER Benefits'!AI93*Assumptions!$D$53*Assumptions!$D$54/1000000 -> 12208.24391 | AJ107: =AJ$5*(AJ$19)*Assumptions!$D$45*Assumptions!$D$46*'BCA Calcs TIGER Benefits'!AJ86*'BCA Calcs TIGER Benefits'!AJ93*Assumptions!$D$53*Assumptions!$D$54/1000000+AJ$5*(AJ$20)*Assumptions!$D$47*Assumptions!$D$48*'BCA Calcs TIGER Benefits'!AJ86*'BCA Calcs TIGER Benefits'!AJ93*Assumptions!$D$53*Assumptions!$D$54/1000000 -> 13490.10952 | AK107: =AK$5*(AK$19)*Assumptions!$D$45*Assumptions!$D$46*'BCA Calcs TIGER Benefits'!AK86*'BCA Calcs TIGER Benefits'!AK93*Assumptions!$D$53*Assumptions!$D$54/1000000+AK$5*(AK$20)*Assumptions!$D$47*Assumptions!$D$48*'BCA Calcs TIGER Benefits'!AK86*'BCA Calcs TIGER Benefits'!AK93*Assumptions!$D$53*Assumptions!$D$54/1000000 -> 14906.57102 | AL107: =AL$5*(AL$19)*Assumptions!$D$45*Assumptions!$D$46*'BCA Calcs TIGER Benefits'!AL86*'BCA Calcs TIGER Benefits'!AL93*Assumptions!$D$53*Assumptions!$D$54/1000000+AL$5*(AL$20)*Assumptions!$D$47*Assumptions!$D$48*'BCA Calcs TIGER Benefits'!AL86*'BCA Calcs TIGER Benefits'!AL93*Assumptions!$D$53*Assumptions!$D$54/1000000 -> 16471.76098 | AM107: =AM$5*(AM$19)*Assumptions!$D$45*Assumptions!$D$46*'BCA Calcs TIGER Benefits'!AM86*'BCA Calcs TIGER Benefits'!AM93*Assumptions!$D$53*Assumptions!$D$54/1000000+AM$5*(AM$20)*Assumptions!$D$47*Assumptions!$D$48*'BCA Calcs TIGER Benefits'!AM86*'BCA Calcs TIGER Benefits'!AM93*Assumptions!$D$53*Assumptions!$D$54/1000000 -> 18201.29588 | AN107: =AN$5*(AN$19)*Assumptions!$D$45*Assumptions!$D$46*'BCA Calcs TIGER Benefits'!AN86*'BCA Calcs TIGER Benefits'!AN93*Assumptions!$D$53*Assumptions!$D$54/1000000+AN$5*(AN$20)*Assumptions!$D$47*Assumptions!$D$48*'BCA Calcs TIGER Benefits'!AN86*'BCA Calcs TIGER Benefits'!AN93*Assumptions!$D$53*Assumptions!$D$54/1000000 -> 20112.43195
C108: VOC | G108: =G$5*(G$19)*Assumptions!$D$45*Assumptions!$D$46*'BCA Calcs TIGER Benefits'!G87*'BCA Calcs TIGER Benefits'!G94*Assumptions!$D$53*Assumptions!$D$54/1000000+G$5*(G$20)*Assumptions!$D$47*Assumptions!$D$48*'BCA Calcs TIGER Benefits'!G87*'BCA Calcs TIGER Benefits'!G94*Assumptions!$D$53*Assumptions!$D$54/1000000 -> 0 | H108: =H$5*(H$19)*Assumptions!$D$45*Assumptions!$D$46*'BCA Calcs TIGER Benefits'!H87*'BCA Calcs TIGER Benefits'!H94*Assumptions!$D$53*Assumptions!$D$54/1000000+H$5*(H$20)*Assumptions!$D$47*Assumptions!$D$48*'BCA Calcs TIGER Benefits'!H87*'BCA Calcs TIGER Benefits'!H94*Assumptions!$D$53*Assumptions!$D$54/1000000 -> 0 | I108: =I$5*(I$19)*Assumptions!$D$45*Assumptions!$D$46*'BCA Calcs TIGER Benefits'!I87*'BCA Calcs TIGER Benefits'!I94*Assumptions!$D$53*Assumptions!$D$54/1000000+I$5*(I$20)*Assumptions!$D$47*Assumptions!$D$48*'BCA Calcs TIGER Benefits'!I87*'BCA Calcs TIGER Benefits'!I94*Assumptions!$D$53*Assumptions!$D$54/1000000 -> 17.2952994 | J108: =J$5*(J$19)*Assumptions!$D$45*Assumptions!$D$46*'BCA Calcs TIGER Benefits'!J87*'BCA Calcs TIGER Benefits'!J94*Assumptions!$D$53*Assumptions!$D$54/1000000+J$5*(J$20)*Assumptions!$D$47*Assumptions!$D$48*'BCA Calcs TIGER Benefits'!J87*'BCA Calcs TIGER Benefits'!J94*Assumptions!$D$53*Assumptions!$D$54/1000000 -> 20.34791975 | K108: =K$5*(K$19)*Assumptions!$D$45*Assumptions!$D$46*'BCA Calcs TIGER Benefits'!K87*'BCA Calcs TIGER Benefits'!K94*Assumptions!$D$53*Assumptions!$D$54/1000000+K$5*(K$20)*Assumptions!$D$47*Assumptions!$D$48*'BCA Calcs TIGER Benefits'!K87*'BCA Calcs TIGER Benefits'!K94*Assumptions!$D$53*Assumptions!$D$54/1000000 -> 23.93932758 | L108: =L$5*(L$19)*Assumptions!$D$45*Assumptions!$D$46*'BCA Calcs TIGER Benefits'!L87*'BCA Calcs TIGER Benefits'!L94*Assumptions!$D$53*Assumptions!$D$54/1000000+L$5*(L$20)*Assumptions!$D$47*Assumptions!$D$48*'BCA Calcs TIGER Benefits'!L87*'BCA Calcs TIGER Benefits'!L94*Assumptions!$D$53*Assumptions!$D$54/1000000 -> 28.1646189 | M108: =M$5*(M$19)*Assumptions!$D$45*Assumptions!$D$46*'BCA Calcs TIGER Benefits'!M87*'BCA Calcs TIGER Benefits'!M94*Assumptions!$D$53*Assumptions!$D$54/1000000+M$5*(M$20)*Assumptions!$D$47*Assumptions!$D$48*'BCA Calcs TIGER Benefits'!M87*'BCA Calcs TIGER Benefits'!M94*Assumptions!$D$53*Assumptions!$D$54/1000000 -> 33.13567414 | N108: =N$5*(N$19)*Assumptions!$D$45*Assumptions!$D$46*'BCA Calcs TIGER Benefits'!N87*'BCA Calcs TIGER Benefits'!N94*Assumptions!$D$53*Assumptions!$D$54/1000000+N$5*(N$20)*Assumptions!$D$47*Assumptions!$D$48*'BCA Calcs TIGER Benefits'!N87*'BCA Calcs TIGER Benefits'!N94*Assumptions!$D$53*Assumptions!$D$54/1000000 -> 38.98412062 | O108: =O$5*(O$19)*Assumptions!$D$45*Assumptions!$D$46*'BCA Calcs TIGER Benefits'!O87*'BCA Calcs TIGER Benefits'!O94*Assumptions!$D$53*Assumptions!$D$54/1000000+O$5*(O$20)*Assumptions!$D$47*Assumptions!$D$48*'BCA Calcs TIGER Benefits'!O87*'BCA Calcs TIGER Benefits'!O94*Assumptions!$D$53*Assumptions!$D$54/1000000 -> 45.86481791 | P108: =P$5*(P$19)*Assumptions!$D$45*Assumptions!$D$46*'BCA Calcs TIGER Benefits'!P87*'BCA Calcs TIGER Benefits'!P94*Assumptions!$D$53*Assumptions!$D$54/1000000+P$5*(P$20)*Assumptions!$D$47*Assumptions!$D$48*'BCA Calcs TIGER Benefits'!P87*'BCA Calcs TIGER Benefits'!P94*Assumptions!$D$53*Assumptions!$D$54/1000000 -> 53.95995828 | Q108: =Q$5*(Q$19)*Assumptions!$D$45*Assumptions!$D$46*'BCA Calcs TIGER Benefits'!Q87*'BCA Calcs TIGER Benefits'!Q94*Assumptions!$D$53*Assumptions!$D$54/1000000+Q$5*(Q$20)*Assumptions!$D$47*Assumptions!$D$48*'BCA Calcs TIGER Benefits'!Q87*'BCA Calcs TIGER Benefits'!Q94*Assumptions!$D$53*Assumptions!$D$54/1000000 -> 59.6257539 | R108: =R$5*(R$19)*Assumptions!$D$45*Assumptions!$D$46*'BCA Calcs TIGER Benefits'!R87*'BCA Calcs TIGER Benefits'!R94*Assumptions!$D$53*Assumptions!$D$54/1000000+R$5*(R$20)*Assumptions!$D$47*Assumptions!$D$48*'BCA Calcs TIGER Benefits'!R87*'BCA Calcs TIGER Benefits'!R94*Assumptions!$D$53*Assumptions!$D$54/1000000 -> 65.88645805 | S108: =S$5*(S$19)*Assumptions!$D$45*Assumptions!$D$46*'BCA Calcs TIGER Benefits'!S87*'BCA Calcs TIGER Benefits'!S94*Assumptions!$D$53*Assumptions!$D$54/1000000+S$5*(S$20)*Assumptions!$D$47*Assumptions!$D$48*'BCA Calcs TIGER Benefits'!S87*'BCA Calcs TIGER Benefits'!S94*Assumptions!$D$53*Assumptions!$D$54/1000000 -> 72.80453615 | T108: =T$5*(T$19)*Assumptions!$D$45*Assumptions!$D$46*'BCA Calcs TIGER Benefits'!T87*'BCA Calcs TIGER Benefits'!T94*Assumptions!$D$53*Assumptions!$D$54/1000000+T$5*(T$20)*Assumptions!$D$47*Assumptions!$D$48*'BCA Calcs TIGER Benefits'!T87*'BCA Calcs TIGER Benefits'!T94*Assumptions!$D$53*Assumptions!$D$54/1000000 -> 80.44901245 | U108: =U$5*(U$19)*Assumptions!$D$45*Assumptions!$D$46*'BCA Calcs TIGER Benefits'!U87*'BCA Calcs TIGER Benefits'!U94*Assumptions!$D$53*Assumptions!$D$54/1000000+U$5*(U$20)*Assumptions!$D$47*Assumptions!$D$48*'BCA Calcs TIGER Benefits'!U87*'BCA Calcs TIGER Benefits'!U94*Assumptions!$D$53*Assumptions!$D$54/1000000 -> 88.89615875 | V108: =V$5*(V$19)*Assumptions!$D$45*Assumptions!$D$46*'BCA Calcs TIGER Benefits'!V87*'BCA Calcs TIGER Benefits'!V94*Assumptions!$D$53*Assumptions!$D$54/1000000+V$5*(V$20)*Assumptions!$D$47*Assumptions!$D$48*'BCA Calcs TIGER Benefits'!V87*'BCA Calcs TIGER Benefits'!V94*Assumptions!$D$53*Assumptions!$D$54/1000000 -> 98.23025542 | W108: =W$5*(W$19)*Assumptions!$D$45*Assumptions!$D$46*'BCA Calcs TIGER Benefits'!W87*'BCA Calcs TIGER Benefits'!W94*Assumptions!$D$53*Assumptions!$D$54/1000000+W$5*(W$20)*Assumptions!$D$47*Assumptions!$D$48*'BCA Calcs TIGER Benefits'!W87*'BCA Calcs TIGER Benefits'!W94*Assumptions!$D$53*Assumptions!$D$54/1000000 -> 108.5444322 | X108: =X$5*(X$19)*Assumptions!$D$45*Assumptions!$D$46*'BCA Calcs TIGER Benefits'!X87*'BCA Calcs TIGER Benefits'!X94*Assumptions!$D$53*Assumptions!$D$54/1000000+X$5*(X$20)*Assumptions!$D$47*Assumptions!$D$48*'BCA Calcs TIGER Benefits'!X87*'BCA Calcs TIGER Benefits'!X94*Assumptions!$D$53*Assumptions!$D$54/1000000 -> 119.9415976 | Y108: =Y$5*(Y$19)*Assumptions!$D$45*Assumptions!$D$46*'BCA Calcs TIGER Benefits'!Y87*'BCA Calcs TIGER Benefits'!Y94*Assumptions!$D$53*Assumptions!$D$54/1000000+Y$5*(Y$20)*Assumptions!$D$47*Assumptions!$D$48*'BCA Calcs TIGER Benefits'!Y87*'BCA Calcs TIGER Benefits'!Y94*Assumptions!$D$53*Assumptions!$D$54/1000000 -> 132.5354654 | Z108: =Z$5*(Z$19)*Assumptions!$D$45*Assumptions!$D$46*'BCA Calcs TIGER Benefits'!Z87*'BCA Calcs TIGER Benefits'!Z94*Assumptions!$D$53*Assumptions!$D$54/1000000+Z$5*(Z$20)*Assumptions!$D$47*Assumptions!$D$48*'BCA Calcs TIGER Benefits'!Z87*'BCA Calcs TIGER Benefits'!Z94*Assumptions!$D$53*Assumptions!$D$54/1000000 -> 146.4516892 | AA108: =AA$5*(AA$19)*Assumptions!$D$45*Assumptions!$D$46*'BCA Calcs TIGER Benefits'!AA87*'BCA Calcs TIGER Benefits'!AA94*Assumptions!$D$53*Assumptions!$D$54/1000000+AA$5*(AA$20)*Assumptions!$D$47*Assumptions!$D$48*'BCA Calcs TIGER Benefits'!AA87*'BCA Calcs TIGER Benefits'!AA94*Assumptions!$D$53*Assumptions!$D$54/1000000 -> 161.8291166 | AB108: =AB$5*(AB$19)*Assumptions!$D$45*Assumptions!$D$46*'BCA Calcs TIGER Benefits'!AB87*'BCA Calcs TIGER Benefits'!AB94*Assumptions!$D$53*Assumptions!$D$54/1000000+AB$5*(AB$20)*Assumptions!$D$47*Assumptions!$D$48*'BCA Calcs TIGER Benefits'!AB87*'BCA Calcs TIGER Benefits'!AB94*Assumptions!$D$53*Assumptions!$D$54/1000000 -> 178.8211739 | AC108: =AC$5*(AC$19)*Assumptions!$D$45*Assumptions!$D$46*'BCA Calcs TIGER Benefits'!AC87*'BCA Calcs TIGER Benefits'!AC94*Assumptions!$D$53*Assumptions!$D$54/1000000+AC$5*(AC$20)*Assumptions!$D$47*Assumptions!$D$48*'BCA Calcs TIGER Benefits'!AC87*'BCA Calcs TIGER Benefits'!AC94*Assumptions!$D$53*Assumptions!$D$54/1000000 -> 197.5973971 | AD108: =AD$5*(AD$19)*Assumptions!$D$45*Assumptions!$D$46*'BCA Calcs TIGER Benefits'!AD87*'BCA Calcs TIGER Benefits'!AD94*Assumptions!$D$53*Assumptions!$D$54/1000000+AD$5*(AD$20)*Assumptions!$D$47*Assumptions!$D$48*'BCA Calcs TIGER Benefits'!AD87*'BCA Calcs TIGER Benefits'!AD94*Assumptions!$D$53*Assumptions!$D$54/1000000 -> 218.3451238 | AE108: =AE$5*(AE$19)*Assumptions!$D$45*Assumptions!$D$46*'BCA Calcs TIGER Benefits'!AE87*'BCA Calcs TIGER Benefits'!AE94*Assumptions!$D$53*Assumptions!$D$54/1000000+AE$5*(AE$20)*Assumptions!$D$47*Assumptions!$D$48*'BCA Calcs TIGER Benefits'!AE87*'BCA Calcs TIGER Benefits'!AE94*Assumptions!$D$53*Assumptions!$D$54/1000000 -> 241.2713618 | AF108: =AF$5*(AF$19)*Assumptions!$D$45*Assumptions!$D$46*'BCA Calcs TIGER Benefits'!AF87*'BCA Calcs TIGER Benefits'!AF94*Assumptions!$D$53*Assumptions!$D$54/1000000+AF$5*(AF$20)*Assumptions!$D$47*Assumptions!$D$48*'BCA Calcs TIGER Benefits'!AF87*'BCA Calcs TIGER Benefits'!AF94*Assumptions!$D$53*Assumptions!$D$54/1000000 -> 266.6048548 | AG108: =AG$5*(AG$19)*Assumptions!$D$45*Assumptions!$D$46*'BCA Calcs TIGER Benefits'!AG87*'BCA Calcs TIGER Benefits'!AG94*Assumptions!$D$53*Assumptions!$D$54/1000000+AG$5*(AG$20)*Assumptions!$D$47*Assumptions!$D$48*'BCA Calcs TIGER Benefits'!AG87*'BCA Calcs TIGER Benefits'!AG94*Assumptions!$D$53*Assumptions!$D$54/1000000 -> 294.5983646 | AH108: =AH$5*(AH$19)*Assumptions!$D$45*Assumptions!$D$46*'BCA Calcs TIGER Benefits'!AH87*'BCA Calcs TIGER Benefits'!AH94*Assumptions!$D$53*Assumptions!$D$54/1000000+AH$5*(AH$20)*Assumptions!$D$47*Assumptions!$D$48*'BCA Calcs TIGER Benefits'!AH87*'BCA Calcs TIGER Benefits'!AH94*Assumptions!$D$53*Assumptions!$D$54/1000000 -> 325.5311928 | AI108: =AI$5*(AI$19)*Assumptions!$D$45*Assumptions!$D$46*'BCA Calcs TIGER Benefits'!AI87*'BCA Calcs TIGER Benefits'!AI94*Assumptions!$D$53*Assumptions!$D$54/1000000+AI$5*(AI$20)*Assumptions!$D$47*Assumptions!$D$48*'BCA Calcs TIGER Benefits'!AI87*'BCA Calcs TIGER Benefits'!AI94*Assumptions!$D$53*Assumptions!$D$54/1000000 -> 359.7119681 | AJ108: =AJ$5*(AJ$19)*Assumptions!$D$45*Assumptions!$D$46*'BCA Calcs TIGER Benefits'!AJ87*'BCA Calcs TIGER Benefits'!AJ94*Assumptions!$D$53*Assumptions!$D$54/1000000+AJ$5*(AJ$20)*Assumptions!$D$47*Assumptions!$D$48*'BCA Calcs TIGER Benefits'!AJ87*'BCA Calcs TIGER Benefits'!AJ94*Assumptions!$D$53*Assumptions!$D$54/1000000 -> 397.4817247 | AK108: =AK$5*(AK$19)*Assumptions!$D$45*Assumptions!$D$46*'BCA Calcs TIGER Benefits'!AK87*'BCA Calcs TIGER Benefits'!AK94*Assumptions!$D$53*Assumptions!$D$54/1000000+AK$5*(AK$20)*Assumptions!$D$47*Assumptions!$D$48*'BCA Calcs TIGER Benefits'!AK87*'BCA Calcs TIGER Benefits'!AK94*Assumptions!$D$53*Assumptions!$D$54/1000000 -> 439.2173058 | AL108: =AL$5*(AL$19)*Assumptions!$D$45*Assumptions!$D$46*'BCA Calcs TIGER Benefits'!AL87*'BCA Calcs TIGER Benefits'!AL94*Assumptions!$D$53*Assumptions!$D$54/1000000+AL$5*(AL$20)*Assumptions!$D$47*Assumptions!$D$48*'BCA Calcs TIGER Benefits'!AL87*'BCA Calcs TIGER Benefits'!AL94*Assumptions!$D$53*Assumptions!$D$54/1000000 -> 485.3351229 | AM108: =AM$5*(AM$19)*Assumptions!$D$45*Assumptions!$D$46*'BCA Calcs TIGER Benefits'!AM87*'BCA Calcs TIGER Benefits'!AM94*Assumptions!$D$53*Assumptions!$D$54/1000000+AM$5*(AM$20)*Assumptions!$D$47*Assumptions!$D$48*'BCA Calcs TIGER Benefits'!AM87*'BCA Calcs TIGER Benefits'!AM94*Assumptions!$D$53*Assumptions!$D$54/1000000 -> 536.2953108 | AN108: =AN$5*(AN$19)*Assumptions!$D$45*Assumptions!$D$46*'BCA Calcs TIGER Benefits'!AN87*'BCA Calcs TIGER Benefits'!AN94*Assumptions!$D$53*Assumptions!$D$54/1000000+AN$5*(AN$20)*Assumptions!$D$47*Assumptions!$D$48*'BCA Calcs TIGER Benefits'!AN87*'BCA Calcs TIGER Benefits'!AN94*Assumptions!$D$53*Assumptions!$D$54/1000000 -> 592.6063185
C109: PM | G109: =G$5*(G$19)*Assumptions!$D$45*Assumptions!$D$46*'BCA Calcs TIGER Benefits'!G88*'BCA Calcs TIGER Benefits'!G95*Assumptions!$D$53*Assumptions!$D$54/1000000+G$5*(G$20)*Assumptions!$D$47*Assumptions!$D$48*'BCA Calcs TIGER Benefits'!G88*'BCA Calcs TIGER Benefits'!G95*Assumptions!$D$53*Assumptions!$D$54/1000000 -> 0 | H109: =H$5*(H$19)*Assumptions!$D$45*Assumptions!$D$46*'BCA Calcs TIGER Benefits'!H88*'BCA Calcs TIGER Benefits'!H95*Assumptions!$D$53*Assumptions!$D$54/1000000+H$5*(H$20)*Assumptions!$D$47*Assumptions!$D$48*'BCA Calcs TIGER Benefits'!H88*'BCA Calcs TIGER Benefits'!H95*Assumptions!$D$53*Assumptions!$D$54/1000000 -> 0 | I109: =I$5*(I$19)*Assumptions!$D$45*Assumptions!$D$46*'BCA Calcs TIGER Benefits'!I88*'BCA Calcs TIGER Benefits'!I95*Assumptions!$D$53*Assumptions!$D$54/1000000+I$5*(I$20)*Assumptions!$D$47*Assumptions!$D$48*'BCA Calcs TIGER Benefits'!I88*'BCA Calcs TIGER Benefits'!I95*Assumptions!$D$53*Assumptions!$D$54/1000000 -> 688.1037474 | J109: =J$5*(J$19)*Assumptions!$D$45*Assumptions!$D$46*'BCA Calcs TIGER Benefits'!J88*'BCA Calcs TIGER Benefits'!J95*Assumptions!$D$53*Assumptions!$D$54/1000000+J$5*(J$20)*Assumptions!$D$47*Assumptions!$D$48*'BCA Calcs TIGER Benefits'!J88*'BCA Calcs TIGER Benefits'!J95*Assumptions!$D$53*Assumptions!$D$54/1000000 -> 809.5540588 | K109: =K$5*(K$19)*Assumptions!$D$45*Assumptions!$D$46*'BCA Calcs TIGER Benefits'!K88*'BCA Calcs TIGER Benefits'!K95*Assumptions!$D$53*Assumptions!$D$54/1000000+K$5*(K$20)*Assumptions!$D$47*Assumptions!$D$48*'BCA Calcs TIGER Benefits'!K88*'BCA Calcs TIGER Benefits'!K95*Assumptions!$D$53*Assumptions!$D$54/1000000 -> 952.4403502 | L109: =L$5*(L$19)*Assumptions!$D$45*Assumptions!$D$46*'BCA Calcs TIGER Benefits'!L88*'BCA Calcs TIGER Benefits'!L95*Assumptions!$D$53*Assumptions!$D$54/1000000+L$5*(L$20)*Assumptions!$D$47*Assumptions!$D$48*'BCA Calcs TIGER Benefits'!L88*'BCA Calcs TIGER Benefits'!L95*Assumptions!$D$53*Assumptions!$D$54/1000000 -> 1120.546072 | M109: =M$5*(M$19)*Assumptions!$D$45*Assumptions!$D$46*'BCA Calcs TIGER Benefits'!M88*'BCA Calcs TIGER Benefits'!M95*Assumptions!$D$53*Assumptions!$D$54/1000000+M$5*(M$20)*Assumptions!$D$47*Assumptions!$D$48*'BCA Calcs TIGER Benefits'!M88*'BCA Calcs TIGER Benefits'!M95*Assumptions!$D$53*Assumptions!$D$54/1000000 -> 1318.322454 | N109: =N$5*(N$19)*Assumptions!$D$45*Assumptions!$D$46*'BCA Calcs TIGER Benefits'!N88*'BCA Calcs TIGER Benefits'!N95*Assumptions!$D$53*Assumptions!$D$54/1000000+N$5*(N$20)*Assumptions!$D$47*Assumptions!$D$48*'BCA Calcs TIGER Benefits'!N88*'BCA Calcs TIGER Benefits'!N95*Assumptions!$D$53*Assumptions!$D$54/1000000 -> 1551.006367 | O109: =O$5*(O$19)*Assumptions!$D$45*Assumptions!$D$46*'BCA Calcs TIGER Benefits'!O88*'BCA Calcs TIGER Benefits'!O95*Assumptions!$D$53*Assumptions!$D$54/1000000+O$5*(O$20)*Assumptions!$D$47*Assumptions!$D$48*'BCA Calcs TIGER Benefits'!O88*'BCA Calcs TIGER Benefits'!O95*Assumptions!$D$53*Assumptions!$D$54/1000000 -> 1824.758991 | P109: =P$5*(P$19)*Assumptions!$D$45*Assumptions!$D$46*'BCA Calcs TIGER Benefits'!P88*'BCA Calcs TIGER Benefits'!P95*Assumptions!$D$53*Assumptions!$D$54/1000000+P$5*(P$20)*Assumptions!$D$47*Assumptions!$D$48*'BCA Calcs TIGER Benefits'!P88*'BCA Calcs TIGER Benefits'!P95*Assumptions!$D$53*Assumptions!$D$54/1000000 -> 2146.828952 | Q109: =Q$5*(Q$19)*Assumptions!$D$45*Assumptions!$D$46*'BCA Calcs TIGER Benefits'!Q88*'BCA Calcs TIGER Benefits'!Q95*Assumptions!$D$53*Assumptions!$D$54/1000000+Q$5*(Q$20)*Assumptions!$D$47*Assumptions!$D$48*'BCA Calcs TIGER Benefits'!Q88*'BCA Calcs TIGER Benefits'!Q95*Assumptions!$D$53*Assumptions!$D$54/1000000 -> 2372.245992 | R109: =R$5*(R$19)*Assumptions!$D$45*Assumptions!$D$46*'BCA Calcs TIGER Benefits'!R88*'BCA Calcs TIGER Benefits'!R95*Assumptions!$D$53*Assumptions!$D$54/1000000+R$5*(R$20)*Assumptions!$D$47*Assumptions!$D$48*'BCA Calcs TIGER Benefits'!R88*'BCA Calcs TIGER Benefits'!R95*Assumptions!$D$53*Assumptions!$D$54/1000000 -> 2621.331822 | S109: =S$5*(S$19)*Assumptions!$D$45*Assumptions!$D$46*'BCA Calcs TIGER Benefits'!S88*'BCA Calcs TIGER Benefits'!S95*Assumptions!$D$53*Assumptions!$D$54/1000000+S$5*(S$20)*Assumptions!$D$47*Assumptions!$D$48*'BCA Calcs TIGER Benefits'!S88*'BCA Calcs TIGER Benefits'!S95*Assumptions!$D$53*Assumptions!$D$54/1000000 -> 2896.571663 | T109: =T$5*(T$19)*Assumptions!$D$45*Assumptions!$D$46*'BCA Calcs TIGER Benefits'!T88*'BCA Calcs TIGER Benefits'!T95*Assumptions!$D$53*Assumptions!$D$54/1000000+T$5*(T$20)*Assumptions!$D$47*Assumptions!$D$48*'BCA Calcs TIGER Benefits'!T88*'BCA Calcs TIGER Benefits'!T95*Assumptions!$D$53*Assumptions!$D$54/1000000 -> 3200.711687 | U109: =U$5*(U$19)*Assumptions!$D$45*Assumptions!$D$46*'BCA Calcs TIGER Benefits'!U88*'BCA Calcs TIGER Benefits'!U95*Assumptions!$D$53*Assumptions!$D$54/1000000+U$5*(U$20)*Assumptions!$D$47*Assumptions!$D$48*'BCA Calcs TIGER Benefits'!U88*'BCA Calcs TIGER Benefits'!U95*Assumptions!$D$53*Assumptions!$D$54/1000000 -> 3536.786415 | V109: =V$5*(V$19)*Assumptions!$D$45*Assumptions!$D$46*'BCA Calcs TIGER Benefits'!V88*'BCA Calcs TIGER Benefits'!V95*Assumptions!$D$53*Assumptions!$D$54/1000000+V$5*(V$20)*Assumptions!$D$47*Assumptions!$D$48*'BCA Calcs TIGER Benefits'!V88*'BCA Calcs TIGER Benefits'!V95*Assumptions!$D$53*Assumptions!$D$54/1000000 -> 3908.148988 | W109: =W$5*(W$19)*Assumptions!$D$45*Assumptions!$D$46*'BCA Calcs TIGER Benefits'!W88*'BCA Calcs TIGER Benefits'!W95*Assumptions!$D$53*Assumptions!$D$54/1000000+W$5*(W$20)*Assumptions!$D$47*Assumptions!$D$48*'BCA Calcs TIGER Benefits'!W88*'BCA Calcs TIGER Benefits'!W95*Assumptions!$D$53*Assumptions!$D$54/1000000 -> 4318.504632 | X109: =X$5*(X$19)*Assumptions!$D$45*Assumptions!$D$46*'BCA Calcs TIGER Benefits'!X88*'BCA Calcs TIGER Benefits'!X95*Assumptions!$D$53*Assumptions!$D$54/1000000+X$5*(X$20)*Assumptions!$D$47*Assumptions!$D$48*'BCA Calcs TIGER Benefits'!X88*'BCA Calcs TIGER Benefits'!X95*Assumptions!$D$53*Assumptions!$D$54/1000000 -> 4771.947618 | Y109: =Y$5*(Y$19)*Assumptions!$D$45*Assumptions!$D$46*'BCA Calcs TIGER Benefits'!Y88*'BCA Calcs TIGER Benefits'!Y95*Assumptions!$D$53*Assumptions!$D$54/1000000+Y$5*(Y$20)*Assumptions!$D$47*Assumptions!$D$48*'BCA Calcs TIGER Benefits'!Y88*'BCA Calcs TIGER Benefits'!Y95*Assumptions!$D$53*Assumptions!$D$54/1000000 -> 5273.002118 | Z109: =Z$5*(Z$19)*Assumptions!$D$45*Assumptions!$D$46*'BCA Calcs TIGER Benefits'!Z88*'BCA Calcs TIGER Benefits'!Z95*Assumptions!$D$53*Assumptions!$D$54/1000000+Z$5*(Z$20)*Assumptions!$D$47*Assumptions!$D$48*'BCA Calcs TIGER Benefits'!Z88*'BCA Calcs TIGER Benefits'!Z95*Assumptions!$D$53*Assumptions!$D$54/1000000 -> 5826.66734 | AA109: =AA$5*(AA$19)*Assumptions!$D$45*Assumptions!$D$46*'BCA Calcs TIGER Benefits'!AA88*'BCA Calcs TIGER Benefits'!AA95*Assumptions!$D$53*Assumptions!$D$54/1000000+AA$5*(AA$20)*Assumptions!$D$47*Assumptions!$D$48*'BCA Calcs TIGER Benefits'!AA88*'BCA Calcs TIGER Benefits'!AA95*Assumptions!$D$53*Assumptions!$D$54/1000000 -> 6438.467411 | AB109: =AB$5*(AB$19)*Assumptions!$D$45*Assumptions!$D$46*'BCA Calcs TIGER Benefits'!AB88*'BCA Calcs TIGER Benefits'!AB95*Assumptions!$D$53*Assumptions!$D$54/1000000+AB$5*(AB$20)*Assumptions!$D$47*Assumptions!$D$48*'BCA Calcs TIGER Benefits'!AB88*'BCA Calcs TIGER Benefits'!AB95*Assumptions!$D$53*Assumptions!$D$54/1000000 -> 7114.506489 | AC109: =AC$5*(AC$19)*Assumptions!$D$45*Assumptions!$D$46*'BCA Calcs TIGER Benefits'!AC88*'BCA Calcs TIGER Benefits'!AC95*Assumptions!$D$53*Assumptions!$D$54/1000000+AC$5*(AC$20)*Assumptions!$D$47*Assumptions!$D$48*'BCA Calcs TIGER Benefits'!AC88*'BCA Calcs TIGER Benefits'!AC95*Assumptions!$D$53*Assumptions!$D$54/1000000 -> 7861.529671 | AD109: =AD$5*(AD$19)*Assumptions!$D$45*Assumptions!$D$46*'BCA Calcs TIGER Benefits'!AD88*'BCA Calcs TIGER Benefits'!AD95*Assumptions!$D$53*Assumptions!$D$54/1000000+AD$5*(AD$20)*Assumptions!$D$47*Assumptions!$D$48*'BCA Calcs TIGER Benefits'!AD88*'BCA Calcs TIGER Benefits'!AD95*Assumptions!$D$53*Assumptions!$D$54/1000000 -> 8686.990286 | AE109: =AE$5*(AE$19)*Assumptions!$D$45*Assumptions!$D$46*'BCA Calcs TIGER Benefits'!AE88*'BCA Calcs TIGER Benefits'!AE95*Assumptions!$D$53*Assumptions!$D$54/1000000+AE$5*(AE$20)*Assumptions!$D$47*Assumptions!$D$48*'BCA Calcs TIGER Benefits'!AE88*'BCA Calcs TIGER Benefits'!AE95*Assumptions!$D$53*Assumptions!$D$54/1000000 -> 9599.124266 | AF109: =AF$5*(AF$19)*Assumptions!$D$45*Assumptions!$D$46*'BCA Calcs TIGER Benefits'!AF88*'BCA Calcs TIGER Benefits'!AF95*Assumptions!$D$53*Assumptions!$D$54/1000000+AF$5*(AF$20)*Assumptions!$D$47*Assumptions!$D$48*'BCA Calcs TIGER Benefits'!AF88*'BCA Calcs TIGER Benefits'!AF95*Assumptions!$D$53*Assumptions!$D$54/1000000 -> 10607.03231 | AG109: =AG$5*(AG$19)*Assumptions!$D$45*Assumptions!$D$46*'BCA Calcs TIGER Benefits'!AG88*'BCA Calcs TIGER Benefits'!AG95*Assumptions!$D$53*Assumptions!$D$54/1000000+AG$5*(AG$20)*Assumptions!$D$47*Assumptions!$D$48*'BCA Calcs TIGER Benefits'!AG88*'BCA Calcs TIGER Benefits'!AG95*Assumptions!$D$53*Assumptions!$D$54/1000000 -> 11720.77071 | AH109: =AH$5*(AH$19)*Assumptions!$D$45*Assumptions!$D$46*'BCA Calcs TIGER Benefits'!AH88*'BCA Calcs TIGER Benefits'!AH95*Assumptions!$D$53*Assumptions!$D$54/1000000+AH$5*(AH$20)*Assumptions!$D$47*Assumptions!$D$48*'BCA Calcs TIGER Benefits'!AH88*'BCA Calcs TIGER Benefits'!AH95*Assumptions!$D$53*Assumptions!$D$54/1000000 -> 12951.45163 | AI109: =AI$5*(AI$19)*Assumptions!$D$45*Assumptions!$D$46*'BCA Calcs TIGER Benefits'!AI88*'BCA Calcs TIGER Benefits'!AI95*Assumptions!$D$53*Assumptions!$D$54/1000000+AI$5*(AI$20)*Assumptions!$D$47*Assumptions!$D$48*'BCA Calcs TIGER Benefits'!AI88*'BCA Calcs TIGER Benefits'!AI95*Assumptions!$D$53*Assumptions!$D$54/1000000 -> 14311.35405 | AJ109: =AJ$5*(AJ$19)*Assumptions!$D$45*Assumptions!$D$46*'BCA Calcs TIGER Benefits'!AJ88*'BCA Calcs TIGER Benefits'!AJ95*Assumptions!$D$53*Assumptions!$D$54/1000000+AJ$5*(AJ$20)*Assumptions!$D$47*Assumptions!$D$48*'BCA Calcs TIGER Benefits'!AJ88*'BCA Calcs TIGER Benefits'!AJ95*Assumptions!$D$53*Assumptions!$D$54/1000000 -> 15814.04623 | AK109: =AK$5*(AK$19)*Assumptions!$D$45*Assumptions!$D$46*'BCA Calcs TIGER Benefits'!AK88*'BCA Calcs TIGER Benefits'!AK95*Assumptions!$D$53*Assumptions!$D$54/1000000+AK$5*(AK$20)*Assumptions!$D$47*Assumptions!$D$48*'BCA Calcs TIGER Benefits'!AK88*'BCA Calcs TIGER Benefits'!AK95*Assumptions!$D$53*Assumptions!$D$54/1000000 -> 17474.52108 | AL109: =AL$5*(AL$19)*Assumptions!$D$45*Assumptions!$D$46*'BCA Calcs TIGER Benefits'!AL88*'BCA Calcs TIGER Benefits'!AL95*Assumptions!$D$53*Assumptions!$D$54/1000000+AL$5*(AL$20)*Assumptions!$D$47*Assumptions!$D$48*'BCA Calcs TIGER Benefits'!AL88*'BCA Calcs TIGER Benefits'!AL95*Assumptions!$D$53*Assumptions!$D$54/1000000 -> 19309.3458 | AM109: =AM$5*(AM$19)*Assumptions!$D$45*Assumptions!$D$46*'BCA Calcs TIGER Benefits'!AM88*'BCA Calcs TIGER Benefits'!AM95*Assumptions!$D$53*Assumptions!$D$54/1000000+AM$5*(AM$20)*Assumptions!$D$47*Assumptions!$D$48*'BCA Calcs TIGER Benefits'!AM88*'BCA Calcs TIGER Benefits'!AM95*Assumptions!$D$53*Assumptions!$D$54/1000000 -> 21336.8271 | AN109: =AN$5*(AN$19)*Assumptions!$D$45*Assumptions!$D$46*'BCA Calcs TIGER Benefits'!AN88*'BCA Calcs TIGER Benefits'!AN95*Assumptions!$D$53*Assumptions!$D$54/1000000+AN$5*(AN$20)*Assumptions!$D$47*Assumptions!$D$48*'BCA Calcs TIGER Benefits'!AN88*'BCA Calcs TIGER Benefits'!AN95*Assumptions!$D$53*Assumptions!$D$54/1000000 -> 23577.19395
C110: SO2 | G110: =G$5*(G$19)*Assumptions!$D$45*Assumptions!$D$46*'BCA Calcs TIGER Benefits'!G89*'BCA Calcs TIGER Benefits'!G96*Assumptions!$D$53*Assumptions!$D$54/1000000+G$5*(G$20)*Assumptions!$D$47*Assumptions!$D$48*'BCA Calcs TIGER Benefits'!G89*'BCA Calcs TIGER Benefits'!G96*Assumptions!$D$53*Assumptions!$D$54/1000000 -> 0 | H110: =H$5*(H$19)*Assumptions!$D$45*Assumptions!$D$46*'BCA Calcs TIGER Benefits'!H89*'BCA Calcs TIGER Benefits'!H96*Assumptions!$D$53*Assumptions!$D$54/1000000+H$5*(H$20)*Assumptions!$D$47*Assumptions!$D$48*'BCA Calcs TIGER Benefits'!H89*'BCA Calcs TIGER Benefits'!H96*Assumptions!$D$53*Assumptions!$D$54/1000000 -> 0 | I110: =I$5*(I$19)*Assumptions!$D$45*Assumptions!$D$46*'BCA Calcs TIGER Benefits'!I89*'BCA Calcs TIGER Benefits'!I96*Assumptions!$D$53*Assumptions!$D$54/1000000+I$5*(I$20)*Assumptions!$D$47*Assumptions!$D$48*'BCA Calcs TIGER Benefits'!I89*'BCA Calcs TIGER Benefits'!I96*Assumptions!$D$53*Assumptions!$D$54/1000000 -> 45.91009725 | J110: =J$5*(J$19)*Assumptions!$D$45*Assumptions!$D$46*'BCA Calcs TIGER Benefits'!J89*'BCA Calcs TIGER Benefits'!J96*Assumptions!$D$53*Assumptions!$D$54/1000000+J$5*(J$20)*Assumptions!$D$47*Assumptions!$D$48*'BCA Calcs TIGER Benefits'!J89*'BCA Calcs TIGER Benefits'!J96*Assumptions!$D$53*Assumptions!$D$54/1000000 -> 54.01322942 | K110: =K$5*(K$19)*Assumptions!$D$45*Assumptions!$D$46*'BCA Calcs TIGER Benefits'!K89*'BCA Calcs TIGER Benefits'!K96*Assumptions!$D$53*Assumptions!$D$54/1000000+K$5*(K$20)*Assumptions!$D$47*Assumptions!$D$48*'BCA Calcs TIGER Benefits'!K89*'BCA Calcs TIGER Benefits'!K96*Assumptions!$D$53*Assumptions!$D$54/1000000 -> 63.54656441 | L110: =L$5*(L$19)*Assumptions!$D$45*Assumptions!$D$46*'BCA Calcs TIGER Benefits'!L89*'BCA Calcs TIGER Benefits'!L96*Assumptions!$D$53*Assumptions!$D$54/1000000+L$5*(L$20)*Assumptions!$D$47*Assumptions!$D$48*'BCA Calcs TIGER Benefits'!L89*'BCA Calcs TIGER Benefits'!L96*Assumptions!$D$53*Assumptions!$D$54/1000000 -> 74.76253303 | M110: =M$5*(M$19)*Assumptions!$D$45*Assumptions!$D$46*'BCA Calcs TIGER Benefits'!M89*'BCA Calcs TIGER Benefits'!M96*Assumptions!$D$53*Assumptions!$D$54/1000000+M$5*(M$20)*Assumptions!$D$47*Assumptions!$D$48*'BCA Calcs TIGER Benefits'!M89*'BCA Calcs TIGER Benefits'!M96*Assumptions!$D$53*Assumptions!$D$54/1000000 -> 87.9581201 | N110: =N$5*(N$19)*Assumptions!$D$45*Assumptions!$D$46*'BCA Calcs TIGER Benefits'!N89*'BCA Calcs TIGER Benefits'!N96*Assumptions!$D$53*Assumptions!$D$54/1000000+N$5*(N$20)*Assumptions!$D$47*Assumptions!$D$48*'BCA Calcs TIGER Benefits'!N89*'BCA Calcs TIGER Benefits'!N96*Assumptions!$D$53*Assumptions!$D$54/1000000 -> 103.4827283 | O110: =O$5*(O$19)*Assumptions!$D$45*Assumptions!$D$46*'BCA Calcs TIGER Benefits'!O89*'BCA Calcs TIGER Benefits'!O96*Assumptions!$D$53*Assumptions!$D$54/1000000+O$5*(O$20)*Assumptions!$D$47*Assumptions!$D$48*'BCA Calcs TIGER Benefits'!O89*'BCA Calcs TIGER Benefits'!O96*Assumptions!$D$53*Assumptions!$D$54/1000000 -> 121.7474298 | P110: =P$5*(P$19)*Assumptions!$D$45*Assumptions!$D$46*'BCA Calcs TIGER Benefits'!P89*'BCA Calcs TIGER Benefits'!P96*Assumptions!$D$53*Assumptions!$D$54/1000000+P$5*(P$20)*Assumptions!$D$47*Assumptions!$D$48*'BCA Calcs TIGER Benefits'!P89*'BCA Calcs TIGER Benefits'!P96*Assumptions!$D$53*Assumptions!$D$54/1000000 -> 143.2358512 | Q110: =Q$5*(Q$19)*Assumptions!$D$45*Assumptions!$D$46*'BCA Calcs TIGER Benefits'!Q89*'BCA Calcs TIGER Benefits'!Q96*Assumptions!$D$53*Assumptions!$D$54/1000000+Q$5*(Q$20)*Assumptions!$D$47*Assumptions!$D$48*'BCA Calcs TIGER Benefits'!Q89*'BCA Calcs TIGER Benefits'!Q96*Assumptions!$D$53*Assumptions!$D$54/1000000 -> 158.2756156 | R110: =R$5*(R$19)*Assumptions!$D$45*Assumptions!$D$46*'BCA Calcs TIGER Benefits'!R89*'BCA Calcs TIGER Benefits'!R96*Assumptions!$D$53*Assumptions!$D$54/1000000+R$5*(R$20)*Assumptions!$D$47*Assumptions!$D$48*'BCA Calcs TIGER Benefits'!R89*'BCA Calcs TIGER Benefits'!R96*Assumptions!$D$53*Assumptions!$D$54/1000000 -> 174.8945552 | S110: =S$5*(S$19)*Assumptions!$D$45*Assumptions!$D$46*'BCA Calcs TIGER Benefits'!S89*'BCA Calcs TIGER Benefits'!S96*Assumptions!$D$53*Assumptions!$D$54/1000000+S$5*(S$20)*Assumptions!$D$47*Assumptions!$D$48*'BCA Calcs TIGER Benefits'!S89*'BCA Calcs TIGER Benefits'!S96*Assumptions!$D$53*Assumptions!$D$54/1000000 -> 193.2584835 | T110: =T$5*(T$19)*Assumptions!$D$45*Assumptions!$D$46*'BCA Calcs TIGER Benefits'!T89*'BCA Calcs TIGER Benefits'!T96*Assumptions!$D$53*Assumptions!$D$54/1000000+T$5*(T$20)*Assumptions!$D$47*Assumptions!$D$48*'BCA Calcs TIGER Benefits'!T89*'BCA Calcs TIGER Benefits'!T96*Assumptions!$D$53*Assumptions!$D$54/1000000 -> 213.5506243 | U110: =U$5*(U$19)*Assumptions!$D$45*Assumptions!$D$46*'BCA Calcs TIGER Benefits'!U89*'BCA Calcs TIGER Benefits'!U96*Assumptions!$D$53*Assumptions!$D$54/1000000+U$5*(U$20)*Assumptions!$D$47*Assumptions!$D$48*'BCA Calcs TIGER Benefits'!U89*'BCA Calcs TIGER Benefits'!U96*Assumptions!$D$53*Assumptions!$D$54/1000000 -> 235.9734399 | V110: =V$5*(V$19)*Assumptions!$D$45*Assumptions!$D$46*'BCA Calcs TIGER Benefits'!V89*'BCA Calcs TIGER Benefits'!V96*Assumptions!$D$53*Assumptions!$D$54/1000000+V$5*(V$20)*Assumptions!$D$47*Assumptions!$D$48*'BCA Calcs TIGER Benefits'!V89*'BCA Calcs TIGER Benefits'!V96*Assumptions!$D$53*Assumptions!$D$54/1000000 -> 260.750651 | W110: =W$5*(W$19)*Assumptions!$D$45*Assumptions!$D$46*'BCA Calcs TIGER Benefits'!W89*'BCA Calcs TIGER Benefits'!W96*Assumptions!$D$53*Assumptions!$D$54/1000000+W$5*(W$20)*Assumptions!$D$47*Assumptions!$D$48*'BCA Calcs TIGER Benefits'!W89*'BCA Calcs TIGER Benefits'!W96*Assumptions!$D$53*Assumptions!$D$54/1000000 -> 288.1294694 | X110: =X$5*(X$19)*Assumptions!$D$45*Assumptions!$D$46*'BCA Calcs TIGER Benefits'!X89*'BCA Calcs TIGER Benefits'!X96*Assumptions!$D$53*Assumptions!$D$54/1000000+X$5*(X$20)*Assumptions!$D$47*Assumptions!$D$48*'BCA Calcs TIGER Benefits'!X89*'BCA Calcs TIGER Benefits'!X96*Assumptions!$D$53*Assumptions!$D$54/1000000 -> 318.3830637 | Y110: =Y$5*(Y$19)*Assumptions!$D$45*Assumptions!$D$46*'BCA Calcs TIGER Benefits'!Y89*'BCA Calcs TIGER Benefits'!Y96*Assumptions!$D$53*Assumptions!$D$54/1000000+Y$5*(Y$20)*Assumptions!$D$47*Assumptions!$D$48*'BCA Calcs TIGER Benefits'!Y89*'BCA Calcs TIGER Benefits'!Y96*Assumptions!$D$53*Assumptions!$D$54/1000000 -> 351.8132854 | Z110: =Z$5*(Z$19)*Assumptions!$D$45*Assumptions!$D$46*'BCA Calcs TIGER Benefits'!Z89*'BCA Calcs TIGER Benefits'!Z96*Assumptions!$D$53*Assumptions!$D$54/1000000+Z$5*(Z$20)*Assumptions!$D$47*Assumptions!$D$48*'BCA Calcs TIGER Benefits'!Z89*'BCA Calcs TIGER Benefits'!Z96*Assumptions!$D$53*Assumptions!$D$54/1000000 -> 388.7536803 | AA110: =AA$5*(AA$19)*Assumptions!$D$45*Assumptions!$D$46*'BCA Calcs TIGER Benefits'!AA89*'BCA Calcs TIGER Benefits'!AA96*Assumptions!$D$53*Assumptions!$D$54/1000000+AA$5*(AA$20)*Assumptions!$D$47*Assumptions!$D$48*'BCA Calcs TIGER Benefits'!AA89*'BCA Calcs TIGER Benefits'!AA96*Assumptions!$D$53*Assumptions!$D$54/1000000 -> 429.5728168 | AB110: =AB$5*(AB$19)*Assumptions!$D$45*Assumptions!$D$46*'BCA Calcs TIGER Benefits'!AB89*'BCA Calcs TIGER Benefits'!AB96*Assumptions!$D$53*Assumptions!$D$54/1000000+AB$5*(AB$20)*Assumptions!$D$47*Assumptions!$D$48*'BCA Calcs TIGER Benefits'!AB89*'BCA Calcs TIGER Benefits'!AB96*Assumptions!$D$53*Assumptions!$D$54/1000000 -> 474.6779625 | AC110: =AC$5*(AC$19)*Assumptions!$D$45*Assumptions!$D$46*'BCA Calcs TIGER Benefits'!AC89*'BCA Calcs TIGER Benefits'!AC96*Assumptions!$D$53*Assumptions!$D$54/1000000+AC$5*(AC$20)*Assumptions!$D$47*Assumptions!$D$48*'BCA Calcs TIGER Benefits'!AC89*'BCA Calcs TIGER Benefits'!AC96*Assumptions!$D$53*Assumptions!$D$54/1000000 -> 524.5191486 | AD110: =AD$5*(AD$19)*Assumptions!$D$45*Assumptions!$D$46*'BCA Calcs TIGER Benefits'!AD89*'BCA Calcs TIGER Benefits'!AD96*Assumptions!$D$53*Assumptions!$D$54/1000000+AD$5*(AD$20)*Assumptions!$D$47*Assumptions!$D$48*'BCA Calcs TIGER Benefits'!AD89*'BCA Calcs TIGER Benefits'!AD96*Assumptions!$D$53*Assumptions!$D$54/1000000 -> 579.5936592 | AE110: =AE$5*(AE$19)*Assumptions!$D$45*Assumptions!$D$46*'BCA Calcs TIGER Benefits'!AE89*'BCA Calcs TIGER Benefits'!AE96*Assumptions!$D$53*Assumptions!$D$54/1000000+AE$5*(AE$20)*Assumptions!$D$47*Assumptions!$D$48*'BCA Calcs TIGER Benefits'!AE89*'BCA Calcs TIGER Benefits'!AE96*Assumptions!$D$53*Assumptions!$D$54/1000000 -> 640.4509934 | AF110: =AF$5*(AF$19)*Assumptions!$D$45*Assumptions!$D$46*'BCA Calcs TIGER Benefits'!AF89*'BCA Calcs TIGER Benefits'!AF96*Assumptions!$D$53*Assumptions!$D$54/1000000+AF$5*(AF$20)*Assumptions!$D$47*Assumptions!$D$48*'BCA Calcs TIGER Benefits'!AF89*'BCA Calcs TIGER Benefits'!AF96*Assumptions!$D$53*Assumptions!$D$54/1000000 -> 707.6983477 | AG110: =AG$5*(AG$19)*Assumptions!$D$45*Assumptions!$D$46*'BCA Calcs TIGER Benefits'!AG89*'BCA Calcs TIGER Benefits'!AG96*Assumptions!$D$53*Assumptions!$D$54/1000000+AG$5*(AG$20)*Assumptions!$D$47*Assumptions!$D$48*'BCA Calcs TIGER Benefits'!AG89*'BCA Calcs TIGER Benefits'!AG96*Assumptions!$D$53*Assumptions!$D$54/1000000 -> 782.0066742 | AH110: =AH$5*(AH$19)*Assumptions!$D$45*Assumptions!$D$46*'BCA Calcs TIGER Benefits'!AH89*'BCA Calcs TIGER Benefits'!AH96*Assumptions!$D$53*Assumptions!$D$54/1000000+AH$5*(AH$20)*Assumptions!$D$47*Assumptions!$D$48*'BCA Calcs TIGER Benefits'!AH89*'BCA Calcs TIGER Benefits'!AH96*Assumptions!$D$53*Assumptions!$D$54/1000000 -> 864.117375 | AI110: =AI$5*(AI$19)*Assumptions!$D$45*Assumptions!$D$46*'BCA Calcs TIGER Benefits'!AI89*'BCA Calcs TIGER Benefits'!AI96*Assumptions!$D$53*Assumptions!$D$54/1000000+AI$5*(AI$20)*Assumptions!$D$47*Assumptions!$D$48*'BCA Calcs TIGER Benefits'!AI89*'BCA Calcs TIGER Benefits'!AI96*Assumptions!$D$53*Assumptions!$D$54/1000000 -> 954.8496994 | AJ110: =AJ$5*(AJ$19)*Assumptions!$D$45*Assumptions!$D$46*'BCA Calcs TIGER Benefits'!AJ89*'BCA Calcs TIGER Benefits'!AJ96*Assumptions!$D$53*Assumptions!$D$54/1000000+AJ$5*(AJ$20)*Assumptions!$D$47*Assumptions!$D$48*'BCA Calcs TIGER Benefits'!AJ89*'BCA Calcs TIGER Benefits'!AJ96*Assumptions!$D$53*Assumptions!$D$54/1000000 -> 1055.108918 | AK110: =AK$5*(AK$19)*Assumptions!$D$45*Assumptions!$D$46*'BCA Calcs TIGER Benefits'!AK89*'BCA Calcs TIGER Benefits'!AK96*Assumptions!$D$53*Assumptions!$D$54/1000000+AK$5*(AK$20)*Assumptions!$D$47*Assumptions!$D$48*'BCA Calcs TIGER Benefits'!AK89*'BCA Calcs TIGER Benefits'!AK96*Assumptions!$D$53*Assumptions!$D$54/1000000 -> 1165.895354 | AL110: =AL$5*(AL$19)*Assumptions!$D$45*Assumptions!$D$46*'BCA Calcs TIGER Benefits'!AL89*'BCA Calcs TIGER Benefits'!AL96*Assumptions!$D$53*Assumptions!$D$54/1000000+AL$5*(AL$20)*Assumptions!$D$47*Assumptions!$D$48*'BCA Calcs TIGER Benefits'!AL89*'BCA Calcs TIGER Benefits'!AL96*Assumptions!$D$53*Assumptions!$D$54/1000000 -> 1288.314366 | AM110: =AM$5*(AM$19)*Assumptions!$D$45*Assumptions!$D$46*'BCA Calcs TIGER Benefits'!AM89*'BCA Calcs TIGER Benefits'!AM96*Assumptions!$D$53*Assumptions!$D$54/1000000+AM$5*(AM$20)*Assumptions!$D$47*Assumptions!$D$48*'BCA Calcs TIGER Benefits'!AM89*'BCA Calcs TIGER Benefits'!AM96*Assumptions!$D$53*Assumptions!$D$54/1000000 -> 1423.587375 | AN110: =AN$5*(AN$19)*Assumptions!$D$45*Assumptions!$D$46*'BCA Calcs TIGER Benefits'!AN89*'BCA Calcs TIGER Benefits'!AN96*Assumptions!$D$53*Assumptions!$D$54/1000000+AN$5*(AN$20)*Assumptions!$D$47*Assumptions!$D$48*'BCA Calcs TIGER Benefits'!AN89*'BCA Calcs TIGER Benefits'!AN96*Assumptions!$D$53*Assumptions!$D$54/1000000 -> 1573.064049
C111: CO | G111: =G$5*(G$19)*Assumptions!$D$45*Assumptions!$D$46*'BCA Calcs TIGER Benefits'!G90*'BCA Calcs TIGER Benefits'!G97*Assumptions!$D$53*Assumptions!$D$54/1000000+G$5*(G$20)*Assumptions!$D$47*Assumptions!$D$48*'BCA Calcs TIGER Benefits'!G90*'BCA Calcs TIGER Benefits'!G97*Assumptions!$D$53*Assumptions!$D$54/1000000 -> 0 | H111: =H$5*(H$19)*Assumptions!$D$45*Assumptions!$D$46*'BCA Calcs TIGER Benefits'!H90*'BCA Calcs TIGER Benefits'!H97*Assumptions!$D$53*Assumptions!$D$54/1000000+H$5*(H$20)*Assumptions!$D$47*Assumptions!$D$48*'BCA Calcs TIGER Benefits'!H90*'BCA Calcs TIGER Benefits'!H97*Assumptions!$D$53*Assumptions!$D$54/1000000 -> 0 | I111: =I$5*(I$19)*Assumptions!$D$45*Assumptions!$D$46*'BCA Calcs TIGER Benefits'!I90*'BCA Calcs TIGER Benefits'!I97*Assumptions!$D$53*Assumptions!$D$54/1000000+I$5*(I$20)*Assumptions!$D$47*Assumptions!$D$48*'BCA Calcs TIGER Benefits'!I90*'BCA Calcs TIGER Benefits'!I97*Assumptions!$D$53*Assumptions!$D$54/1000000 -> 0 | J111: =J$5*(J$19)*Assumptions!$D$45*Assumptions!$D$46*'BCA Calcs TIGER Benefits'!J90*'BCA Calcs TIGER Benefits'!J97*Assumptions!$D$53*Assumptions!$D$54/1000000+J$5*(J$20)*Assumptions!$D$47*Assumptions!$D$48*'BCA Calcs TIGER Benefits'!J90*'BCA Calcs TIGER Benefits'!J97*Assumptions!$D$53*Assumptions!$D$54/1000000 -> 0 | K111: =K$5*(K$19)*Assumptions!$D$45*Assumptions!$D$46*'BCA Calcs TIGER Benefits'!K90*'BCA Calcs TIGER Benefits'!K97*Assumptions!$D$53*Assumptions!$D$54/1000000+K$5*(K$20)*Assumptions!$D$47*Assumptions!$D$48*'BCA Calcs TIGER Benefits'!K90*'BCA Calcs TIGER Benefits'!K97*Assumptions!$D$53*Assumptions!$D$54/1000000 -> 0 | L111: =L$5*(L$19)*Assumptions!$D$45*Assumptions!$D$46*'BCA Calcs TIGER Benefits'!L90*'BCA Calcs TIGER Benefits'!L97*Assumptions!$D$53*Assumptions!$D$54/1000000+L$5*(L$20)*Assumptions!$D$47*Assumptions!$D$48*'BCA Calcs TIGER Benefits'!L90*'BCA Calcs TIGER Benefits'!L97*Assumptions!$D$53*Assumptions!$D$54/1000000 -> 0 | M111: =M$5*(M$19)*Assumptions!$D$45*Assumptions!$D$46*'BCA Calcs TIGER Benefits'!M90*'BCA Calcs TIGER Benefits'!M97*Assumptions!$D$53*Assumptions!$D$54/1000000+M$5*(M$20)*Assumptions!$D$47*Assumptions!$D$48*'BCA Calcs TIGER Benefits'!M90*'BCA Calcs TIGER Benefits'!M97*Assumptions!$D$53*Assumptions!$D$54/1000000 -> 0 | N111: =N$5*(N$19)*Assumptions!$D$45*Assumptions!$D$46*'BCA Calcs TIGER Benefits'!N90*'BCA Calcs TIGER Benefits'!N97*Assumptions!$D$53*Assumptions!$D$54/1000000+N$5*(N$20)*Assumptions!$D$47*Assumptions!$D$48*'BCA Calcs TIGER Benefits'!N90*'BCA Calcs TIGER Benefits'!N97*Assumptions!$D$53*Assumptions!$D$54/1000000 -> 0 | O111: =O$5*(O$19)*Assumptions!$D$45*Assumptions!$D$46*'BCA Calcs TIGER Benefits'!O90*'BCA Calcs TIGER Benefits'!O97*Assumptions!$D$53*Assumptions!$D$54/1000000+O$5*(O$20)*Assumptions!$D$47*Assumptions!$D$48*'BCA Calcs TIGER Benefits'!O90*'BCA Calcs TIGER Benefits'!O97*Assumptions!$D$53*Assumptions!$D$54/1000000 -> 0 | P111: =P$5*(P$19)*Assumptions!$D$45*Assumptions!$D$46*'BCA Calcs TIGER Benefits'!P90*'BCA Calcs TIGER Benefits'!P97*Assumptions!$D$53*Assumptions!$D$54/1000000+P$5*(P$20)*Assumptions!$D$47*Assumptions!$D$48*'BCA Calcs TIGER Benefits'!P90*'BCA Calcs TIGER Benefits'!P97*Assumptions!$D$53*Assumptions!$D$54/1000000 -> 0 | Q111: =Q$5*(Q$19)*Assumptions!$D$45*Assumptions!$D$46*'BCA Calcs TIGER Benefits'!Q90*'BCA Calcs TIGER Benefits'!Q97*Assumptions!$D$53*Assumptions!$D$54/1000000+Q$5*(Q$20)*Assumptions!$D$47*Assumptions!$D$48*'BCA Calcs TIGER Benefits'!Q90*'BCA Calcs TIGER Benefits'!Q97*Assumptions!$D$53*Assumptions!$D$54/1000000 -> 0 | R111: =R$5*(R$19)*Assumptions!$D$45*Assumptions!$D$46*'BCA Calcs TIGER Benefits'!R90*'BCA Calcs TIGER Benefits'!R97*Assumptions!$D$53*Assumptions!$D$54/1000000+R$5*(R$20)*Assumptions!$D$47*Assumptions!$D$48*'BCA Calcs TIGER Benefits'!R90*'BCA Calcs TIGER Benefits'!R97*Assumptions!$D$53*Assumptions!$D$54/1000000 -> 0 | S111: =S$5*(S$19)*Assumptions!$D$45*Assumptions!$D$46*'BCA Calcs TIGER Benefits'!S90*'BCA Calcs TIGER Benefits'!S97*Assumptions!$D$53*Assumptions!$D$54/1000000+S$5*(S$20)*Assumptions!$D$47*Assumptions!$D$48*'BCA Calcs TIGER Benefits'!S90*'BCA Calcs TIGER Benefits'!S97*Assumptions!$D$53*Assumptions!$D$54/1000000 -> 0 | T111: =T$5*(T$19)*Assumptions!$D$45*Assumptions!$D$46*'BCA Calcs TIGER Benefits'!T90*'BCA Calcs TIGER Benefits'!T97*Assumptions!$D$53*Assumptions!$D$54/1000000+T$5*(T$20)*Assumptions!$D$47*Assumptions!$D$48*'BCA Calcs TIGER Benefits'!T90*'BCA Calcs TIGER Benefits'!T97*Assumptions!$D$53*Assumptions!$D$54/1000000 -> 0 | U111: =U$5*(U$19)*Assumptions!$D$45*Assumptions!$D$46*'BCA Calcs TIGER Benefits'!U90*'BCA Calcs TIGER Benefits'!U97*Assumptions!$D$53*Assumptions!$D$54/1000000+U$5*(U$20)*Assumptions!$D$47*Assumptions!$D$48*'BCA Calcs TIGER Benefits'!U90*'BCA Calcs TIGER Benefits'!U97*Assumptions!$D$53*Assumptions!$D$54/1000000 -> 0 | V111: =V$5*(V$19)*Assumptions!$D$45*Assumptions!$D$46*'BCA Calcs TIGER Benefits'!V90*'BCA Calcs TIGER Benefits'!V97*Assumptions!$D$53*Assumptions!$D$54/1000000+V$5*(V$20)*Assumptions!$D$47*Assumptions!$D$48*'BCA Calcs TIGER Benefits'!V90*'BCA Calcs TIGER Benefits'!V97*Assumptions!$D$53*Assumptions!$D$54/1000000 -> 0 | W111: =W$5*(W$19)*Assumptions!$D$45*Assumptions!$D$46*'BCA Calcs TIGER Benefits'!W90*'BCA Calcs TIGER Benefits'!W97*Assumptions!$D$53*Assumptions!$D$54/1000000+W$5*(W$20)*Assumptions!$D$47*Assumptions!$D$48*'BCA Calcs TIGER Benefits'!W90*'BCA Calcs TIGER Benefits'!W97*Assumptions!$D$53*Assumptions!$D$54/1000000 -> 0 | X111: =X$5*(X$19)*Assumptions!$D$45*Assumptions!$D$46*'BCA Calcs TIGER Benefits'!X90*'BCA Calcs TIGER Benefits'!X97*Assumptions!$D$53*Assumptions!$D$54/1000000+X$5*(X$20)*Assumptions!$D$47*Assumptions!$D$48*'BCA Calcs TIGER Benefits'!X90*'BCA Calcs TIGER Benefits'!X97*Assumptions!$D$53*Assumptions!$D$54/1000000 -> 0 | Y111: =Y$5*(Y$19)*Assumptions!$D$45*Assumptions!$D$46*'BCA Calcs TIGER Benefits'!Y90*'BCA Calcs TIGER Benefits'!Y97*Assumptions!$D$53*Assumptions!$D$54/1000000+Y$5*(Y$20)*Assumptions!$D$47*Assumptions!$D$48*'BCA Calcs TIGER Benefits'!Y90*'BCA Calcs TIGER Benefits'!Y97*Assumptions!$D$53*Assumptions!$D$54/1000000 -> 0 | Z111: =Z$5*(Z$19)*Assumptions!$D$45*Assumptions!$D$46*'BCA Calcs TIGER Benefits'!Z90*'BCA Calcs TIGER Benefits'!Z97*Assumptions!$D$53*Assumptions!$D$54/1000000+Z$5*(Z$20)*Assumptions!$D$47*Assumptions!$D$48*'BCA Calcs TIGER Benefits'!Z90*'BCA Calcs TIGER Benefits'!Z97*Assumptions!$D$53*Assumptions!$D$54/1000000 -> 0 | AA111: =AA$5*(AA$19)*Assumptions!$D$45*Assumptions!$D$46*'BCA Calcs TIGER Benefits'!AA90*'BCA Calcs TIGER Benefits'!AA97*Assumptions!$D$53*Assumptions!$D$54/1000000+AA$5*(AA$20)*Assumptions!$D$47*Assumptions!$D$48*'BCA Calcs TIGER Benefits'!AA90*'BCA Calcs TIGER Benefits'!AA97*Assumptions!$D$53*Assumptions!$D$54/1000000 -> 0 | AB111: =AB$5*(AB$19)*Assumptions!$D$45*Assumptions!$D$46*'BCA Calcs TIGER Benefits'!AB90*'BCA Calcs TIGER Benefits'!AB97*Assumptions!$D$53*Assumptions!$D$54/1000000+AB$5*(AB$20)*Assumptions!$D$47*Assumptions!$D$48*'BCA Calcs TIGER Benefits'!AB90*'BCA Calcs TIGER Benefits'!AB97*Assumptions!$D$53*Assumptions!$D$54/1000000 -> 0 | AC111: =AC$5*(AC$19)*Assumptions!$D$45*Assumptions!$D$46*'BCA Calcs TIGER Benefits'!AC90*'BCA Calcs TIGER Benefits'!AC97*Assumptions!$D$53*Assumptions!$D$54/1000000+AC$5*(AC$20)*Assumptions!$D$47*Assumptions!$D$48*'BCA Calcs TIGER Benefits'!AC90*'BCA Calcs TIGER Benefits'!AC97*Assumptions!$D$53*Assumptions!$D$54/1000000 -> 0 | AD111: =AD$5*(AD$19)*Assumptions!$D$45*Assumptions!$D$46*'BCA Calcs TIGER Benefits'!AD90*'BCA Calcs TIGER Benefits'!AD97*Assumptions!$D$53*Assumptions!$D$54/1000000+AD$5*(AD$20)*Assumptions!$D$47*Assumptions!$D$48*'BCA Calcs TIGER Benefits'!AD90*'BCA Calcs TIGER Benefits'!AD97*Assumptions!$D$53*Assumptions!$D$54/1000000 -> 0 | AE111: =AE$5*(AE$19)*Assumptions!$D$45*Assumptions!$D$46*'BCA Calcs TIGER Benefits'!AE90*'BCA Calcs TIGER Benefits'!AE97*Assumptions!$D$53*Assumptions!$D$54/1000000+AE$5*(AE$20)*Assumptions!$D$47*Assumptions!$D$48*'BCA Calcs TIGER Benefits'!AE90*'BCA Calcs TIGER Benefits'!AE97*Assumptions!$D$53*Assumptions!$D$54/1000000 -> 0 | AF111: =AF$5*(AF$19)*Assumptions!$D$45*Assumptions!$D$46*'BCA Calcs TIGER Benefits'!AF90*'BCA Calcs TIGER Benefits'!AF97*Assumptions!$D$53*Assumptions!$D$54/1000000+AF$5*(AF$20)*Assumptions!$D$47*Assumptions!$D$48*'BCA Calcs TIGER Benefits'!AF90*'BCA Calcs TIGER Benefits'!AF97*Assumptions!$D$53*Assumptions!$D$54/1000000 -> 0 | AG111: =AG$5*(AG$19)*Assumptions!$D$45*Assumptions!$D$46*'BCA Calcs TIGER Benefits'!AG90*'BCA Calcs TIGER Benefits'!AG97*Assumptions!$D$53*Assumptions!$D$54/1000000+AG$5*(AG$20)*Assumptions!$D$47*Assumptions!$D$48*'BCA Calcs TIGER Benefits'!AG90*'BCA Calcs TIGER Benefits'!AG97*Assumptions!$D$53*Assumptions!$D$54/1000000 -> 0 | AH111: =AH$5*(AH$19)*Assumptions!$D$45*Assumptions!$D$46*'BCA Calcs TIGER Benefits'!AH90*'BCA Calcs TIGER Benefits'!AH97*Assumptions!$D$53*Assumptions!$D$54/1000000+AH$5*(AH$20)*Assumptions!$D$47*Assumptions!$D$48*'BCA Calcs TIGER Benefits'!AH90*'BCA Calcs TIGER Benefits'!AH97*Assumptions!$D$53*Assumptions!$D$54/1000000 -> 0 | AI111: =AI$5*(AI$19)*Assumptions!$D$45*Assumptions!$D$46*'BCA Calcs TIGER Benefits'!AI90*'BCA Calcs TIGER Benefits'!AI97*Assumptions!$D$53*Assumptions!$D$54/1000000+AI$5*(AI$20)*Assumptions!$D$47*Assumptions!$D$48*'BCA Calcs TIGER Benefits'!AI90*'BCA Calcs TIGER Benefits'!AI97*Assumptions!$D$53*Assumptions!$D$54/1000000 -> 0 | AJ111: =AJ$5*(AJ$19)*Assumptions!$D$45*Assumptions!$D$46*'BCA Calcs TIGER Benefits'!AJ90*'BCA Calcs TIGER Benefits'!AJ97*Assumptions!$D$53*Assumptions!$D$54/1000000+AJ$5*(AJ$20)*Assumptions!$D$47*Assumptions!$D$48*'BCA Calcs TIGER Benefits'!AJ90*'BCA Calcs TIGER Benefits'!AJ97*Assumptions!$D$53*Assumptions!$D$54/1000000 -> 0 | AK111: =AK$5*(AK$19)*Assumptions!$D$45*Assumptions!$D$46*'BCA Calcs TIGER Benefits'!AK90*'BCA Calcs TIGER Benefits'!AK97*Assumptions!$D$53*Assumptions!$D$54/1000000+AK$5*(AK$20)*Assumptions!$D$47*Assumptions!$D$48*'BCA Calcs TIGER Benefits'!AK90*'BCA Calcs TIGER Benefits'!AK97*Assumptions!$D$53*Assumptions!$D$54/1000000 -> 0 | AL111: =AL$5*(AL$19)*Assumptions!$D$45*Assumptions!$D$46*'BCA Calcs TIGER Benefits'!AL90*'BCA Calcs TIGER Benefits'!AL97*Assumptions!$D$53*Assumptions!$D$54/1000000+AL$5*(AL$20)*Assumptions!$D$47*Assumptions!$D$48*'BCA Calcs TIGER Benefits'!AL90*'BCA Calcs TIGER Benefits'!AL97*Assumptions!$D$53*Assumptions!$D$54/1000000 -> 0 | AM111: =AM$5*(AM$19)*Assumptions!$D$45*Assumptions!$D$46*'BCA Calcs TIGER Benefits'!AM90*'BCA Calcs TIGER Benefits'!AM97*Assumptions!$D$53*Assumptions!$D$54/1000000+AM$5*(AM$20)*Assumptions!$D$47*Assumptions!$D$48*'BCA Calcs TIGER Benefits'!AM90*'BCA Calcs TIGER Benefits'!AM97*Assumptions!$D$53*Assumptions!$D$54/1000000 -> 0 | AN111: =AN$5*(AN$19)*Assumptions!$D$45*Assumptions!$D$46*'BCA Calcs TIGER Benefits'!AN90*'BCA Calcs TIGER Benefits'!AN97*Assumptions!$D$53*Assumptions!$D$54/1000000+AN$5*(AN$20)*Assumptions!$D$47*Assumptions!$D$48*'BCA Calcs TIGER Benefits'!AN90*'BCA Calcs TIGER Benefits'!AN97*Assumptions!$D$53*Assumptions!$D$54/1000000 -> 0
C112: Total Undiscounted | G112: =SUM(G106:G111)*Assumptions!$D$54 -> 0 | H112: =SUM(H106:H111)*Assumptions!$D$54 -> 0 | I112: =SUM(I106:I111)*Assumptions!$D$54 -> 129.2685216 | J112: =SUM(J106:J111)*Assumptions!$D$54 -> 153.1982655 | K112: =SUM(K106:K111)*Assumptions!$D$54 -> 181.5482037 | L112: =SUM(L106:L111)*Assumptions!$D$54 -> 215.1331994 | M112: =SUM(M106:M111)*Assumptions!$D$54 -> 254.9180635 | N112: =SUM(N106:N111)*Assumptions!$D$54 -> 302.0451015 | O112: =SUM(O106:O111)*Assumptions!$D$54 -> 357.8667126 | P112: =SUM(P106:P111)*Assumptions!$D$54 -> 423.9839679 | Q112: =SUM(Q106:Q111)*Assumptions!$D$54 -> 471.766212 | R112: =SUM(R106:R111)*Assumptions!$D$54 -> 524.9083042 | S112: =SUM(S106:S111)*Assumptions!$D$54 -> 587.9943503 | T112: =SUM(T106:T111)*Assumptions!$D$54 -> 649.733757 | U112: =SUM(U106:U111)*Assumptions!$D$54 -> 722.8219977 | V112: =SUM(V106:V111)*Assumptions!$D$54 -> 804.0954543 | W112: =SUM(W106:W111)*Assumptions!$D$54 -> 894.4672242 | X112: =SUM(X106:X111)*Assumptions!$D$54 -> 994.9519134 | Y112: =SUM(Y106:Y111)*Assumptions!$D$54 -> 1106.676886 | Z112: =SUM(Z106:Z111)*Assumptions!$D$54 -> 1230.894759 | AA112: =SUM(AA106:AA111)*Assumptions!$D$54 -> 1368.997271 | AB112: =SUM(AB106:AB111)*Assumptions!$D$54 -> 1522.530697 | AC112: =SUM(AC106:AC111)*Assumptions!$D$54 -> 1693.212947 | AD112: =SUM(AD106:AD111)*Assumptions!$D$54 -> 1871.000307 | AE112: =SUM(AE106:AE111)*Assumptions!$D$54 -> 2067.455339 | AF112: =SUM(AF106:AF111)*Assumptions!$D$54 -> 2284.538149 | AG112: =SUM(AG106:AG111)*Assumptions!$D$54 -> 2524.414655 | AH112: =SUM(AH106:AH111)*Assumptions!$D$54 -> 2789.478194 | AI112: =SUM(AI106:AI111)*Assumptions!$D$54 -> 3082.373404 | AJ112: =SUM(AJ106:AJ111)*Assumptions!$D$54 -> 3406.022612 | AK112: =SUM(AK106:AK111)*Assumptions!$D$54 -> 3763.654986 | AL112: =SUM(AL106:AL111)*Assumptions!$D$54 -> 4158.83876 | AM112: =SUM(AM106:AM111)*Assumptions!$D$54 -> 4595.516829 | AN112: =SUM(AN106:AN111)*Assumptions!$D$54 -> 5078.046096
C113: Total Discounted | G113: =(G6*(G106+G108+G109+G110+G111)+G7*G107)*Assumptions!$D$54 -> 0 | H113: =(H6*(H106+H108+H109+H110+H111)+H7*H107)*Assumptions!$D$54 -> 0 | I113: =(I6*(I106+I108+I109+I110+I111)+I7*I107)*Assumptions!$D$54 -> 103.6123002 | J113: =(J6*(J106+J108+J109+J110+J111)+J7*J107)*Assumptions!$D$54 -> 116.3945018 | K113: =(K6*(K106+K108+K109+K110+K111)+K7*K107)*Assumptions!$D$54 -> 130.8412063 | L113: =(L6*(L106+L108+L109+L110+L111)+L7*L107)*Assumptions!$D$54 -> 147.1797133 | M113: =(M6*(M106+M108+M109+M110+M111)+M7*M107)*Assumptions!$D$54 -> 165.6695416 | N113: =(N6*(N106+N108+N109+N110+N111)+N7*N107)*Assumptions!$D$54 -> 186.6071187 | O113: =(O6*(O106+O108+O109+O110+O111)+O7*O107)*Assumptions!$D$54 -> 210.3311653 | P113: =(P6*(P106+P108+P109+P110+P111)+P7*P107)*Assumptions!$D$54 -> 237.2288775 | Q113: =(Q6*(Q106+Q108+Q109+Q110+Q111)+Q7*Q107)*Assumptions!$D$54 -> 251.4713519 | R113: =(R6*(R106+R108+R109+R110+R111)+R7*R107)*Assumptions!$D$54 -> 266.7435503 | S113: =(S6*(S106+S108+S109+S110+S111)+S7*S107)*Assumptions!$D$54 -> 285.761675 | T113: =(T6*(T106+T108+T109+T110+T111)+T7*T107)*Assumptions!$D$54 -> 300.7094453 | U113: =(U6*(U106+U108+U109+U110+U111)+U7*U107)*Assumptions!$D$54 -> 319.586412 | V113: =(V6*(V106+V108+V109+V110+V111)+V7*V107)*Assumptions!$D$54 -> 339.8607686 | W113: =(W6*(W106+W108+W109+W110+W111)+W7*W107)*Assumptions!$D$54 -> 361.6438698 | X113: =(X6*(X106+X108+X109+X110+X111)+X7*X107)*Assumptions!$D$54 -> 385.0561379 | Y113: =(Y6*(Y106+Y108+Y109+Y110+Y111)+Y7*Y107)*Assumptions!$D$54 -> 410.2278008 | Z113: =(Z6*(Z106+Z108+Z109+Z110+Z111)+Z7*Z107)*Assumptions!$D$54 -> 437.299691 | AA113: =(AA6*(AA106+AA108+AA109+AA110+AA111)+AA7*AA107)*Assumptions!$D$54 -> 466.4241076 | AB113: =(AB6*(AB106+AB108+AB109+AB110+AB111)+AB7*AB107)*Assumptions!$D$54 -> 497.7657496 | AC113: =(AC6*(AC106+AC108+AC109+AC110+AC111)+AC7*AC107)*Assumptions!$D$54 -> 531.5027238 | AD113: =(AD6*(AD106+AD108+AD109+AD110+AD111)+AD7*AD107)*Assumptions!$D$54 -> 562.1191665 | AE113: =(AE6*(AE106+AE108+AE109+AE110+AE111)+AE7*AE107)*Assumptions!$D$54 -> 594.7004922 | AF113: =(AF6*(AF106+AF108+AF109+AF110+AF111)+AF7*AF107)*Assumptions!$D$54 -> 629.3811242 | AG113: =(AG6*(AG106+AG108+AG109+AG110+AG111)+AG7*AG107)*Assumptions!$D$54 -> 666.3049906 | AH113: =(AH6*(AH106+AH108+AH109+AH110+AH111)+AH7*AH107)*Assumptions!$D$54 -> 705.6262077 | AI113: =(AI6*(AI106+AI108+AI109+AI110+AI111)+AI7*AI107)*Assumptions!$D$54 -> 747.5098121 | AJ113: =(AJ6*(AJ106+AJ108+AJ109+AJ110+AJ111)+AJ7*AJ107)*Assumptions!$D$54 -> 792.1325458 | AK113: =(AK6*(AK106+AK108+AK109+AK110+AK111)+AK7*AK107)*Assumptions!$D$54 -> 839.6836985 | AL113: =(AL6*(AL106+AL108+AL109+AL110+AL111)+AL7*AL107)*Assumptions!$D$54 -> 890.3660109 | AM113: =(AM6*(AM106+AM108+AM109+AM110+AM111)+AM7*AM107)*Assumptions!$D$54 -> 944.3966432 | AN113: =(AN6*(AN106+AN108+AN109+AN110+AN111)+AN7*AN107)*Assumptions!$D$54 -> 1002.008213
B114: Travel Time Savings - Commuting Pedestrians
C115: Value of Time with Growth | F115: =Assumptions!D95 -> 25.8 | G115: =F115*(1+Assumptions!$D$96) -> 26.058 | H115: =G115*(1+Assumptions!$D$96) -> 26.31858 | I115: =H115*(1+Assumptions!$D$96) -> 26.5817658 | J115: =I115*(1+Assumptions!$D$96) -> 26.84758346 | K115: =J115*(1+Assumptions!$D$96) -> 27.11605929 | L115: =K115*(1+Assumptions!$D$96) -> 27.38721989 | M115: =L115*(1+Assumptions!$D$96) -> 27.66109208 | N115: =M115*(1+Assumptions!$D$96) -> 27.93770301 | O115: =N115*(1+Assumptions!$D$96) -> 28.21708004 | P115: =O115*(1+Assumptions!$D$96) -> 28.49925084 | Q115: =P115*(1+Assumptions!$D$96) -> 28.78424334 | R115: =Q115*(1+Assumptions!$D$96) -> 29.07208578 | S115: =R115*(1+Assumptions!$D$96) -> 29.36280664 | T115: =S115*(1+Assumptions!$D$96) -> 29.6564347 | U115: =T115*(1+Assumptions!$D$96) -> 29.95299905 | V115: =U115*(1+Assumptions!$D$96) -> 30.25252904 | W115: =V115*(1+Assumptions!$D$96) -> 30.55505433 | X115: =W115*(1+Assumptions!$D$96) -> 30.86060487 | Y115: =X115*(1+Assumptions!$D$96) -> 31.16921092 | Z115: =Y115*(1+Assumptions!$D$96) -> 31.48090303 | AA115: =Z115*(1+Assumptions!$D$96) -> 31.79571206 | AB115: =AA115*(1+Assumptions!$D$96) -> 32.11366918 | AC115: =AB115*(1+Assumptions!$D$96) -> 32.43480587 | AD115: =AC115*(1+Assumptions!$D$96) -> 32.75915393 | AE115: =AD115*(1+Assumptions!$D$96) -> 33.08674547 | AF115: =AE115*(1+Assumptions!$D$96) -> 33.41761293 | AG115: =AF115*(1+Assumptions!$D$96) -> 33.75178906 | AH115: =AG115*(1+Assumptions!$D$96) -> 34.08930695 | AI115: =AH115*(1+Assumptions!$D$96) -> 34.43020002 | AJ115: =AI115*(1+Assumptions!$D$96) -> 34.77450202 | AK115: =AJ115*(1+Assumptions!$D$96) -> 35.12224704 | AL115: =AK115*(1+Assumptions!$D$96) -> 35.47346951 | AM115: =AL115*(1+Assumptions!$D$96) -> 35.8282042 | AN115: =AM115*(1+Assumptions!$D$96) -> 36.18648624
C116: Total Undiscounted | F116: =F5*(Assumptions!$D$64*F115/60)*Assumptions!$D$93*Assumptions!$D$16 -> 0 | G116: =G5*(Assumptions!$D$64*G115/60)*Assumptions!$D$93*Assumptions!$D$16 -> 0 | H116: =H5*(Assumptions!$D$64*H115/60)*Assumptions!$D$93*Assumptions!$D$16 -> 0 | I116: =I5*(Assumptions!$D$64*I115/60)*Assumptions!$D$93*Assumptions!$D$16 -> 371470.4968 | J116: =J5*(Assumptions!$D$64*J115/60)*Assumptions!$D$93*Assumptions!$D$16 -> 375185.2018 | K116: =K5*(Assumptions!$D$64*K115/60)*Assumptions!$D$93*Assumptions!$D$16 -> 378937.0538 | L116: =L5*(Assumptions!$D$64*L115/60)*Assumptions!$D$93*Assumptions!$D$16 -> 382726.4243 | M116: =M5*(Assumptions!$D$64*M115/60)*Assumptions!$D$93*Assumptions!$D$16 -> 386553.6886 | N116: =N5*(Assumptions!$D$64*N115/60)*Assumptions!$D$93*Assumptions!$D$16 -> 390419.2254 | O116: =O5*(Assumptions!$D$64*O115/60)*Assumptions!$D$93*Assumptions!$D$16 -> 394323.4177 | P116: =P5*(Assumptions!$D$64*P115/60)*Assumptions!$D$93*Assumptions!$D$16 -> 398266.6519 | Q116: =Q5*(Assumptions!$D$64*Q115/60)*Assumptions!$D$93*Assumptions!$D$16 -> 402249.3184 | R116: =R5*(Assumptions!$D$64*R115/60)*Assumptions!$D$93*Assumptions!$D$16 -> 406271.8116 | S116: =S5*(Assumptions!$D$64*S115/60)*Assumptions!$D$93*Assumptions!$D$16 -> 410334.5297 | T116: =T5*(Assumptions!$D$64*T115/60)*Assumptions!$D$93*Assumptions!$D$16 -> 414437.875 | U116: =U5*(Assumptions!$D$64*U115/60)*Assumptions!$D$93*Assumptions!$D$16 -> 418582.2537 | V116: =V5*(Assumptions!$D$64*V115/60)*Assumptions!$D$93*Assumptions!$D$16 -> 422768.0763 | W116: =W5*(Assumptions!$D$64*W115/60)*Assumptions!$D$93*Assumptions!$D$16 -> 426995.757 | X116: =X5*(Assumptions!$D$64*X115/60)*Assumptions!$D$93*Assumptions!$D$16 -> 431265.7146 | Y116: =Y5*(Assumptions!$D$64*Y115/60)*Assumptions!$D$93*Assumptions!$D$16 -> 435578.3718 | Z116: =Z5*(Assumptions!$D$64*Z115/60)*Assumptions!$D$93*Assumptions!$D$16 -> 439934.1555 | AA116: =AA5*(Assumptions!$D$64*AA115/60)*Assumptions!$D$93*Assumptions!$D$16 -> 444333.497 | AB116: =AB5*(Assumptions!$D$64*AB115/60)*Assumptions!$D$93*Assumptions!$D$16 -> 448776.832 | AC116: =AC5*(Assumptions!$D$64*AC115/60)*Assumptions!$D$93*Assumptions!$D$16 -> 453264.6003 | AD116: =AD5*(Assumptions!$D$64*AD115/60)*Assumptions!$D$93*Assumptions!$D$16 -> 457797.2463 | AE116: =AE5*(Assumptions!$D$64*AE115/60)*Assumptions!$D$93*Assumptions!$D$16 -> 462375.2188 | AF116: =AF5*(Assumptions!$D$64*AF115/60)*Assumptions!$D$93*Assumptions!$D$16 -> 466998.971 | AG116: =AG5*(Assumptions!$D$64*AG115/60)*Assumptions!$D$93*Assumptions!$D$16 -> 471668.9607 | AH116: =AH5*(Assumptions!$D$64*AH115/60)*Assumptions!$D$93*Assumptions!$D$16 -> 476385.6503 | AI116: =AI5*(Assumptions!$D$64*AI115/60)*Assumptions!$D$93*Assumptions!$D$16 -> 481149.5068 | AJ116: =AJ5*(Assumptions!$D$64*AJ115/60)*Assumptions!$D$93*Assumptions!$D$16 -> 485961.0019 | AK116: =AK5*(Assumptions!$D$64*AK115/60)*Assumptions!$D$93*Assumptions!$D$16 -> 490820.6119 | AL116: =AL5*(Assumptions!$D$64*AL115/60)*Assumptions!$D$93*Assumptions!$D$16 -> 495728.818 | AM116: =AM5*(Assumptions!$D$64*AM115/60)*Assumptions!$D$93*Assumptions!$D$16 -> 500686.1062 | AN116: =AN5*(Assumptions!$D$64*AN115/60)*Assumptions!$D$93*Assumptions!$D$16 -> 505692.9672
C117: Total DIscounted | F117: =F116*F6 -> 0 | G117: 0 | H117: 0 | I117: 283393.0634 | J117: 267501.8636 | K117: 252501.7591 | L117: 238342.782 | M117: 224977.7661 | N117: 212362.1905 | O117: 200454.0303 | P117: 189213.6174 | Q117: 178603.508 | R117: 168588.358 | S117: 159134.8052 | T117: 150211.3582 | U117: 141788.2914 | V117: 133837.5461 | W117: 126332.6369 | X117: 119248.5638 | Y117: 112561.7285 | Z117: 106249.8559 | AA117: 100291.92 | AB117: 94668.07403 | AC117: 89359.5839 | AD117: =AD116*AD6 -> 84348.76611 | AE117: 79618.92876 | AF117: 75154.31593 | AG117: 70940.05522 | AH117: 66962.1082 | AI117: 63207.22363 | AJ117: =AJ116*AJ6 -> 59662.89333 | AK117: =AK116*AK6 -> 56317.31053 | AL117: =AL116*AL6 -> 53159.3305 | AM117: =AM116*AM6 -> 50178.43346 | AN117: =AN116*AN6 -> 47364.68953
B118: Insecurity in Walking/Biking - Mixed Traffic
C119: Dangerous mid-walk crossers | F119: =F5*((Assumptions!$D$65*Assumptions!$D$66*(Users!$B$33)*Assumptions!$D$93)+(Assumptions!$D$65*Assumptions!$D$66*(Users!$B$34)*Assumptions!$D$93)) -> 0 | G119: =G5*((Assumptions!$D$65*Assumptions!$D$66*(Users!$B$33)*Assumptions!$D$93)+(Assumptions!$D$65*Assumptions!$D$66*(Users!$B$34)*Assumptions!$D$93)) -> 0 | H119: =H5*((Assumptions!$D$65*Assumptions!$D$66*(Users!$B$33)*Assumptions!$D$93)+(Assumptions!$D$65*Assumptions!$D$66*(Users!$B$34)*Assumptions!$D$93)) -> 0 | I119: =I5*((Assumptions!$D$65*Assumptions!$D$66*(Users!$B$33)*Assumptions!$D$93)+(Assumptions!$D$65*Assumptions!$D$66*(Users!$B$34)*Assumptions!$D$93)) -> 4259.642375 | J119: =J5*((Assumptions!$D$65*Assumptions!$D$66*(Users!$B$33)*Assumptions!$D$93)+(Assumptions!$D$65*Assumptions!$D$66*(Users!$B$34)*Assumptions!$D$93)) -> 4259.642375 | K119: =K5*((Assumptions!$D$65*Assumptions!$D$66*(Users!$B$33)*Assumptions!$D$93)+(Assumptions!$D$65*Assumptions!$D$66*(Users!$B$34)*Assumptions!$D$93)) -> 4259.642375 | L119: =L5*((Assumptions!$D$65*Assumptions!$D$66*(Users!$B$33)*Assumptions!$D$93)+(Assumptions!$D$65*Assumptions!$D$66*(Users!$B$34)*Assumptions!$D$93)) -> 4259.642375 | M119: =M5*((Assumptions!$D$65*Assumptions!$D$66*(Users!$B$33)*Assumptions!$D$93)+(Assumptions!$D$65*Assumptions!$D$66*(Users!$B$34)*Assumptions!$D$93)) -> 4259.642375 | N119: =N5*((Assumptions!$D$65*Assumptions!$D$66*(Users!$B$33)*Assumptions!$D$93)+(Assumptions!$D$65*Assumptions!$D$66*(Users!$B$34)*Assumptions!$D$93)) -> 4259.642375 | O119: =O5*((Assumptions!$D$65*Assumptions!$D$66*(Users!$B$33)*Assumptions!$D$93)+(Assumptions!$D$65*Assumptions!$D$66*(Users!$B$34)*Assumptions!$D$93)) -> 4259.642375 | P119: =P5*((Assumptions!$D$65*Assumptions!$D$66*(Users!$B$33)*Assumptions!$D$93)+(Assumptions!$D$65*Assumptions!$D$66*(Users!$B$34)*Assumptions!$D$93)) -> 4259.642375 | Q119: =Q5*((Assumptions!$D$65*Assumptions!$D$66*(Users!$B$33)*Assumptions!$D$93)+(Assumptions!$D$65*Assumptions!$D$66*(Users!$B$34)*Assumptions!$D$93)) -> 4259.642375 | R119: =R5*((Assumptions!$D$65*Assumptions!$D$66*(Users!$B$33)*Assumptions!$D$93)+(Assumptions!$D$65*Assumptions!$D$66*(Users!$B$34)*Assumptions!$D$93)) -> 4259.642375 | S119: =S5*((Assumptions!$D$65*Assumptions!$D$66*(Users!$B$33)*Assumptions!$D$93)+(Assumptions!$D$65*Assumptions!$D$66*(Users!$B$34)*Assumptions!$D$93)) -> 4259.642375 | T119: =T5*((Assumptions!$D$65*Assumptions!$D$66*(Users!$B$33)*Assumptions!$D$93)+(Assumptions!$D$65*Assumptions!$D$66*(Users!$B$34)*Assumptions!$D$93)) -> 4259.642375 | U119: =U5*((Assumptions!$D$65*Assumptions!$D$66*(Users!$B$33)*Assumptions!$D$93)+(Assumptions!$D$65*Assumptions!$D$66*(Users!$B$34)*Assumptions!$D$93)) -> 4259.642375 | V119: =V5*((Assumptions!$D$65*Assumptions!$D$66*(Users!$B$33)*Assumptions!$D$93)+(Assumptions!$D$65*Assumptions!$D$66*(Users!$B$34)*Assumptions!$D$93)) -> 4259.642375 | W119: =W5*((Assumptions!$D$65*Assumptions!$D$66*(Users!$B$33)*Assumptions!$D$93)+(Assumptions!$D$65*Assumptions!$D$66*(Users!$B$34)*Assumptions!$D$93)) -> 4259.642375 | X119: =X5*((Assumptions!$D$65*Assumptions!$D$66*(Users!$B$33)*Assumptions!$D$93)+(Assumptions!$D$65*Assumptions!$D$66*(Users!$B$34)*Assumptions!$D$93)) -> 4259.642375 | Y119: =Y5*((Assumptions!$D$65*Assumptions!$D$66*(Users!$B$33)*Assumptions!$D$93)+(Assumptions!$D$65*Assumptions!$D$66*(Users!$B$34)*Assumptions!$D$93)) -> 4259.642375 | Z119: =Z5*((Assumptions!$D$65*Assumptions!$D$66*(Users!$B$33)*Assumptions!$D$93)+(Assumptions!$D$65*Assumptions!$D$66*(Users!$B$34)*Assumptions!$D$93)) -> 4259.642375 | AA119: =AA5*((Assumptions!$D$65*Assumptions!$D$66*(Users!$B$33)*Assumptions!$D$93)+(Assumptions!$D$65*Assumptions!$D$66*(Users!$B$34)*Assumptions!$D$93)) -> 4259.642375 | AB119: =AB5*((Assumptions!$D$65*Assumptions!$D$66*(Users!$B$33)*Assumptions!$D$93)+(Assumptions!$D$65*Assumptions!$D$66*(Users!$B$34)*Assumptions!$D$93)) -> 4259.642375 | AC119: =AC5*((Assumptions!$D$65*Assumptions!$D$66*(Users!$B$33)*Assumptions!$D$93)+(Assumptions!$D$65*Assumptions!$D$66*(Users!$B$34)*Assumptions!$D$93)) -> 4259.642375 | AD119: =AD5*((Assumptions!$D$65*Assumptions!$D$66*(Users!$B$33)*Assumptions!$D$93)+(Assumptions!$D$65*Assumptions!$D$66*(Users!$B$34)*Assumptions!$D$93)) -> 4259.642375 | AE119: =AE5*((Assumptions!$D$65*Assumptions!$D$66*(Users!$B$33)*Assumptions!$D$93)+(Assumptions!$D$65*Assumptions!$D$66*(Users!$B$34)*Assumptions!$D$93)) -> 4259.642375 | AF119: =AF5*((Assumptions!$D$65*Assumptions!$D$66*(Users!$B$33)*Assumptions!$D$93)+(Assumptions!$D$65*Assumptions!$D$66*(Users!$B$34)*Assumptions!$D$93)) -> 4259.642375 | AG119: =AG5*((Assumptions!$D$65*Assumptions!$D$66*(Users!$B$33)*Assumptions!$D$93)+(Assumptions!$D$65*Assumptions!$D$66*(Users!$B$34)*Assumptions!$D$93)) -> 4259.642375 | AH119: =AH5*((Assumptions!$D$65*Assumptions!$D$66*(Users!$B$33)*Assumptions!$D$93)+(Assumptions!$D$65*Assumptions!$D$66*(Users!$B$34)*Assumptions!$D$93)) -> 4259.642375 | AI119: =AI5*((Assumptions!$D$65*Assumptions!$D$66*(Users!$B$33)*Assumptions!$D$93)+(Assumptions!$D$65*Assumptions!$D$66*(Users!$B$34)*Assumptions!$D$93)) -> 4259.642375 | AJ119: =AJ5*((Assumptions!$D$65*Assumptions!$D$66*(Users!$B$33)*Assumptions!$D$93)+(Assumptions!$D$65*Assumptions!$D$66*(Users!$B$34)*Assumptions!$D$93)) -> 4259.642375 | AK119: =AK5*((Assumptions!$D$65*Assumptions!$D$66*(Users!$B$33)*Assumptions!$D$93)+(Assumptions!$D$65*Assumptions!$D$66*(Users!$B$34)*Assumptions!$D$93)) -> 4259.642375 | AL119: =AL5*((Assumptions!$D$65*Assumptions!$D$66*(Users!$B$33)*Assumptions!$D$93)+(Assumptions!$D$65*Assumptions!$D$66*(Users!$B$34)*Assumptions!$D$93)) -> 4259.642375 | AM119: =AM5*((Assumptions!$D$65*Assumptions!$D$66*(Users!$B$33)*Assumptions!$D$93)+(Assumptions!$D$65*Assumptions!$D$66*(Users!$B$34)*Assumptions!$D$93)) -> 4259.642375 | AN119: =AN5*((Assumptions!$D$65*Assumptions!$D$66*(Users!$B$33)*Assumptions!$D$93)+(Assumptions!$D$65*Assumptions!$D$66*(Users!$B$34)*Assumptions!$D$93)) -> 4259.642375
C120: Existing cyclists | F120: =F5*(Users!B14*Assumptions!$D$66*Assumptions!$D$53) -> 0 | G120: =G5*(Users!C14*Assumptions!$D$66*Assumptions!$D$53) -> 0 | H120: =H5*(Users!D14*Assumptions!$D$66*Assumptions!$D$53) -> 0 | I120: =I5*(Users!E14*Assumptions!$D$66*Assumptions!$D$53) -> 62.45313794 | J120: =J5*(Users!F14*Assumptions!$D$66*Assumptions!$D$53) -> 63.52429645 | K120: =K5*(Users!G14*Assumptions!$D$66*Assumptions!$D$53) -> 64.61382682 | L120: =L5*(Users!H14*Assumptions!$D$66*Assumptions!$D$53) -> 65.72204415 | M120: =M5*(Users!I14*Assumptions!$D$66*Assumptions!$D$53) -> 66.84926897 | N120: =N5*(Users!J14*Assumptions!$D$66*Assumptions!$D$53) -> 67.99582726 | O120: =O5*(Users!K14*Assumptions!$D$66*Assumptions!$D$53) -> 69.16205062 | P120: =P5*(Users!L14*Assumptions!$D$66*Assumptions!$D$53) -> 70.34827634 | Q120: =Q5*(Users!M14*Assumptions!$D$66*Assumptions!$D$53) -> 71.5548475 | R120: =R5*(Users!N14*Assumptions!$D$66*Assumptions!$D$53) -> 72.78211303 | S120: =S5*(Users!O14*Assumptions!$D$66*Assumptions!$D$53) -> 74.03042788 | T120: =T5*(Users!P14*Assumptions!$D$66*Assumptions!$D$53) -> 75.30015307 | U120: =U5*(Users!Q14*Assumptions!$D$66*Assumptions!$D$53) -> 76.59165582 | V120: =V5*(Users!R14*Assumptions!$D$66*Assumptions!$D$53) -> 77.90530964 | W120: =W5*(Users!S14*Assumptions!$D$66*Assumptions!$D$53) -> 79.24149446 | X120: =X5*(Users!T14*Assumptions!$D$66*Assumptions!$D$53) -> 80.60059672 | Y120: =Y5*(Users!U14*Assumptions!$D$66*Assumptions!$D$53) -> 81.98300948 | Z120: =Z5*(Users!V14*Assumptions!$D$66*Assumptions!$D$53) -> 83.38913255 | AA120: =AA5*(Users!W14*Assumptions!$D$66*Assumptions!$D$53) -> 84.81937259 | AB120: =AB5*(Users!X14*Assumptions!$D$66*Assumptions!$D$53) -> 86.27414324 | AC120: =AC5*(Users!Y14*Assumptions!$D$66*Assumptions!$D$53) -> 87.75386525 | AD120: =AD5*(Users!Z14*Assumptions!$D$66*Assumptions!$D$53) -> 89.25896655 | AE120: =AE5*(Users!AA14*Assumptions!$D$66*Assumptions!$D$53) -> 90.78988244 | AF120: =AF5*(Users!AB14*Assumptions!$D$66*Assumptions!$D$53) -> 92.34705567 | AG120: =AG5*(Users!AC14*Assumptions!$D$66*Assumptions!$D$53) -> 93.9309366 | AH120: =AH5*(Users!AD14*Assumptions!$D$66*Assumptions!$D$53) -> 95.5419833 | AI120: =AI5*(Users!AE14*Assumptions!$D$66*Assumptions!$D$53) -> 97.1806617 | AJ120: =AJ5*(Users!AF14*Assumptions!$D$66*Assumptions!$D$53) -> 98.84744572 | AK120: =AK5*(Users!AG14*Assumptions!$D$66*Assumptions!$D$53) -> 100.5428174 | AL120: =AL5*(Users!AH14*Assumptions!$D$66*Assumptions!$D$53) -> 102.2672671 | AM120: =AM5*(Users!AI14*Assumptions!$D$66*Assumptions!$D$53) -> 104.0212935 | AN120: =AN5*(Users!AJ14*Assumptions!$D$66*Assumptions!$D$53) -> 105.8054039
C121: Existing pedestrians | F121: =F5*(Users!B16*Assumptions!$D$65*Assumptions!$D$66) -> 0 | G121: =G5*(Users!C16*Assumptions!$D$65*Assumptions!$D$66) -> 0 | H121: =H5*(Users!D16*Assumptions!$D$65*Assumptions!$D$66) -> 0 | I121: =I5*(Users!E16*Assumptions!$D$65*Assumptions!$D$66) -> 398.7380487 | J121: =J5*(Users!F16*Assumptions!$D$65*Assumptions!$D$66) -> 418.9439316 | K121: =K5*(Users!G16*Assumptions!$D$65*Assumptions!$D$66) -> 440.1737391 | L121: =L5*(Users!H16*Assumptions!$D$65*Assumptions!$D$66) -> 462.4793581 | M121: =M5*(Users!I16*Assumptions!$D$65*Assumptions!$D$66) -> 485.9153051 | N121: =N5*(Users!J16*Assumptions!$D$65*Assumptions!$D$66) -> 510.5388587 | O121: =O5*(Users!K16*Assumptions!$D$65*Assumptions!$D$66) -> 536.4102006 | P121: =P5*(Users!L16*Assumptions!$D$65*Assumptions!$D$66) -> 563.5925619 | Q121: =Q5*(Users!M16*Assumptions!$D$65*Assumptions!$D$66) -> 592.1523779 | R121: =R5*(Users!N16*Assumptions!$D$65*Assumptions!$D$66) -> 622.1594505 | S121: =S5*(Users!O16*Assumptions!$D$65*Assumptions!$D$66) -> 653.687119 | T121: =T5*(Users!P16*Assumptions!$D$65*Assumptions!$D$66) -> 686.8124388 | U121: =U5*(Users!Q16*Assumptions!$D$65*Assumptions!$D$66) -> 721.6163702 | V121: =V5*(Users!R16*Assumptions!$D$65*Assumptions!$D$66) -> 758.1839762 | W121: =W5*(Users!S16*Assumptions!$D$65*Assumptions!$D$66) -> 796.6046302 | X121: =X5*(Users!T16*Assumptions!$D$65*Assumptions!$D$66) -> 836.9722348 | Y121: =Y5*(Users!U16*Assumptions!$D$65*Assumptions!$D$66) -> 879.3854507 | Z121: =Z5*(Users!V16*Assumptions!$D$65*Assumptions!$D$66) -> 923.9479385 | AA121: =AA5*(Users!W16*Assumptions!$D$65*Assumptions!$D$66) -> 970.7686116 | AB121: =AB5*(Users!X16*Assumptions!$D$65*Assumptions!$D$66) -> 1019.961903 | AC121: =AC5*(Users!Y16*Assumptions!$D$65*Assumptions!$D$66) -> 1071.648043 | AD121: =AD5*(Users!Z16*Assumptions!$D$65*Assumptions!$D$66) -> 1125.953357 | AE121: =AE5*(Users!AA16*Assumptions!$D$65*Assumptions!$D$66) -> 1183.010569 | AF121: =AF5*(Users!AB16*Assumptions!$D$65*Assumptions!$D$66) -> 1242.959132 | AG121: =AG5*(Users!AC16*Assumptions!$D$65*Assumptions!$D$66) -> 1305.945564 | AH121: =AH5*(Users!AD16*Assumptions!$D$65*Assumptions!$D$66) -> 1372.123806 | AI121: =AI5*(Users!AE16*Assumptions!$D$65*Assumptions!$D$66) -> 1441.655602 | AJ121: =AJ5*(Users!AF16*Assumptions!$D$65*Assumptions!$D$66) -> 1514.710893 | AK121: =AK5*(Users!AG16*Assumptions!$D$65*Assumptions!$D$66) -> 1591.468231 | AL121: =AL5*(Users!AH16*Assumptions!$D$65*Assumptions!$D$66) -> 1672.115214 | AM121: =AM5*(Users!AI16*Assumptions!$D$65*Assumptions!$D$66) -> 1756.848949 | AN121: =AN5*(Users!AJ16*Assumptions!$D$65*Assumptions!$D$66) -> 1845.87653
C122: Total Undiscounted | F122: =SUM(F119:F121) -> 0 | G122: =SUM(G119:G121) -> 0 | H122: 0 | I122: 4720.833562 | J122: 4742.110603 | K122: 4764.429941 | L122: 4787.843777 | M122: 4812.406949 | N122: 4838.177061 | O122: 4865.214626 | P122: 4893.583213 | Q122: 4923.3496 | R122: 4954.583938 | S122: 4987.359922 | T122: 5021.754967 | U122: 5057.850401 | V122: 5095.731661 | W122: 5135.4885 | X122: 5177.215206 | Y122: 5221.010835 | Z122: 5266.979446 | AA122: 5315.230359 | AB122: 5365.878421 | AC122: 5419.044283 | AD122: =SUM(AD119:AD121) -> 5474.854698 | AE122: 5533.442827 | AF122: 5594.948563 | AG122: 5659.518875 | AH122: 5727.308164 | AI122: 5798.478639 | AJ122: =SUM(AJ119:AJ121) -> 5873.200714 | AK122: =SUM(AK119:AK121) -> 5951.653423 | AL122: =SUM(AL119:AL121) -> 6034.024856 | AM122: =SUM(AM119:AM121) -> 6120.512617 | AN122: =SUM(AN119:AN121) -> 6211.324309
C123: Total DIscounted | F123: =F122*F6 -> 0 | G123: 0 | H123: 0 | I123: 3601.501321 | J123: 3381.059321 | K123: 3174.740842 | L123: 2981.628476 | M123: 2800.864659 | N123: 2631.647756 | O123: 2473.228411 | P123: 2324.906133 | Q123: 2186.026102 | R123: 2055.976189 | S123: 1934.184165 | T123: 1820.115099 | U123: 1713.268921 | V123: 1613.178144 | W123: 1519.40574 | X123: 1431.543146 | Y123: 1349.208414 | Z123: 1272.044464 | AA123: 1199.717468 | AB123: 1131.915329 | AC123: 1068.346264 | AD123: 1008.737475 | AE123: 952.8339156 | AF123: 900.3971273 | AG123: 851.2041601 | AH123: 805.0465599 | AI123: 761.7294227 | AJ123: 721.0705105 | AK123: 682.8994257 | AL123: 647.0568381 | AM123: 613.3937637 | AN123: 581.7708897
B124: Property Value Premium
C125: Total Undiscounted Avg Value <800' | F125: =IF(OR(F$3<Assumptions!$D$90,F$3>Assumptions!$D$92),0,IF('BCA Calcs TIGER Benefits'!F$3<(Assumptions!$D$90+Assumptions!$D$80),((1-Assumptions!$D$79)*Assumptions!$D$85)*(('BCA Calcs TIGER Benefits'!F$3-Assumptions!$D$90)+1)/Assumptions!$D$80/(1+1/Assumptions!$D$79)+(Assumptions!$D$79*Assumptions!$D$85),Assumptions!$D$85)) -> 0 | G125: =IF(OR(G$3<Assumptions!$D$90,G$3>Assumptions!$D$92),0,IF('BCA Calcs TIGER Benefits'!G$3<(Assumptions!$D$90+Assumptions!$D$80),((1-Assumptions!$D$79)*Assumptions!$D$85)*(('BCA Calcs TIGER Benefits'!G$3-Assumptions!$D$90)+1)/Assumptions!$D$80/(1+1/Assumptions!$D$79)+(Assumptions!$D$79*Assumptions!$D$85),Assumptions!$D$85)) -> 0 | H125: =IF(OR(H$3<Assumptions!$D$90,H$3>Assumptions!$D$92),0,IF('BCA Calcs TIGER Benefits'!H$3<(Assumptions!$D$90+Assumptions!$D$80),((1-Assumptions!$D$79)*Assumptions!$D$85)*(('BCA Calcs TIGER Benefits'!H$3-Assumptions!$D$90)+1)/Assumptions!$D$80/(1+1/Assumptions!$D$79)+(Assumptions!$D$79*Assumptions!$D$85),Assumptions!$D$85)) -> 0 | I125: =IF(OR(I$3<Assumptions!$D$90,I$3>Assumptions!$D$92),0,IF('BCA Calcs TIGER Benefits'!I$3<(Assumptions!$D$90+Assumptions!$D$80),((1-Assumptions!$D$79)*Assumptions!$D$85)*(('BCA Calcs TIGER Benefits'!I$3-Assumptions!$D$90)+1)/Assumptions!$D$80/(1+1/Assumptions!$D$79)+(Assumptions!$D$79*Assumptions!$D$85),Assumptions!$D$85)) -> 67.74369842 | J125: =IF(OR(J$3<Assumptions!$D$90,J$3>Assumptions!$D$92),0,IF('BCA Calcs TIGER Benefits'!J$3<(Assumptions!$D$90+Assumptions!$D$80),((1-Assumptions!$D$79)*Assumptions!$D$85)*(('BCA Calcs TIGER Benefits'!J$3-Assumptions!$D$90)+1)/Assumptions!$D$80/(1+1/Assumptions!$D$79)+(Assumptions!$D$79*Assumptions!$D$85),Assumptions!$D$85)) -> 70.52768602 | K125: =IF(OR(K$3<Assumptions!$D$90,K$3>Assumptions!$D$92),0,IF('BCA Calcs TIGER Benefits'!K$3<(Assumptions!$D$90+Assumptions!$D$80),((1-Assumptions!$D$79)*Assumptions!$D$85)*(('BCA Calcs TIGER Benefits'!K$3-Assumptions!$D$90)+1)/Assumptions!$D$80/(1+1/Assumptions!$D$79)+(Assumptions!$D$79*Assumptions!$D$85),Assumptions!$D$85)) -> 73.31167363 | L125: =IF(OR(L$3<Assumptions!$D$90,L$3>Assumptions!$D$92),0,IF('BCA Calcs TIGER Benefits'!L$3<(Assumptions!$D$90+Assumptions!$D$80),((1-Assumptions!$D$79)*Assumptions!$D$85)*(('BCA Calcs TIGER Benefits'!L$3-Assumptions!$D$90)+1)/Assumptions!$D$80/(1+1/Assumptions!$D$79)+(Assumptions!$D$79*Assumptions!$D$85),Assumptions!$D$85)) -> 76.09566124 | M125: =IF(OR(M$3<Assumptions!$D$90,M$3>Assumptions!$D$92),0,IF('BCA Calcs TIGER Benefits'!M$3<(Assumptions!$D$90+Assumptions!$D$80),((1-Assumptions!$D$79)*Assumptions!$D$85)*(('BCA Calcs TIGER Benefits'!M$3-Assumptions!$D$90)+1)/Assumptions!$D$80/(1+1/Assumptions!$D$79)+(Assumptions!$D$79*Assumptions!$D$85),Assumptions!$D$85)) -> 78.87964884 | N125: =IF(OR(N$3<Assumptions!$D$90,N$3>Assumptions!$D$92),0,IF('BCA Calcs TIGER Benefits'!N$3<(Assumptions!$D$90+Assumptions!$D$80),((1-Assumptions!$D$79)*Assumptions!$D$85)*(('BCA Calcs TIGER Benefits'!N$3-Assumptions!$D$90)+1)/Assumptions!$D$80/(1+1/Assumptions!$D$79)+(Assumptions!$D$79*Assumptions!$D$85),Assumptions!$D$85)) -> 81.66363645 | O125: =IF(OR(O$3<Assumptions!$D$90,O$3>Assumptions!$D$92),0,IF('BCA Calcs TIGER Benefits'!O$3<(Assumptions!$D$90+Assumptions!$D$80),((1-Assumptions!$D$79)*Assumptions!$D$85)*(('BCA Calcs TIGER Benefits'!O$3-Assumptions!$D$90)+1)/Assumptions!$D$80/(1+1/Assumptions!$D$79)+(Assumptions!$D$79*Assumptions!$D$85),Assumptions!$D$85)) -> 84.44762406 | P125: =IF(OR(P$3<Assumptions!$D$90,P$3>Assumptions!$D$92),0,IF('BCA Calcs TIGER Benefits'!P$3<(Assumptions!$D$90+Assumptions!$D$80),((1-Assumptions!$D$79)*Assumptions!$D$85)*(('BCA Calcs TIGER Benefits'!P$3-Assumptions!$D$90)+1)/Assumptions!$D$80/(1+1/Assumptions!$D$79)+(Assumptions!$D$79*Assumptions!$D$85),Assumptions!$D$85)) -> 87.23161166 | Q125: =IF(OR(Q$3<Assumptions!$D$90,Q$3>Assumptions!$D$92),0,IF('BCA Calcs TIGER Benefits'!Q$3<(Assumptions!$D$90+Assumptions!$D$80),((1-Assumptions!$D$79)*Assumptions!$D$85)*(('BCA Calcs TIGER Benefits'!Q$3-Assumptions!$D$90)+1)/Assumptions!$D$80/(1+1/Assumptions!$D$79)+(Assumptions!$D$79*Assumptions!$D$85),Assumptions!$D$85)) -> 90.01559927 | R125: =IF(OR(R$3<Assumptions!$D$90,R$3>Assumptions!$D$92),0,IF('BCA Calcs TIGER Benefits'!R$3<(Assumptions!$D$90+Assumptions!$D$80),((1-Assumptions!$D$79)*Assumptions!$D$85)*(('BCA Calcs TIGER Benefits'!R$3-Assumptions!$D$90)+1)/Assumptions!$D$80/(1+1/Assumptions!$D$79)+(Assumptions!$D$79*Assumptions!$D$85),Assumptions!$D$85)) -> 92.79958687 | S125: =IF(OR(S$3<Assumptions!$D$90,S$3>Assumptions!$D$92),0,IF('BCA Calcs TIGER Benefits'!S$3<(Assumptions!$D$90+Assumptions!$D$80),((1-Assumptions!$D$79)*Assumptions!$D$85)*(('BCA Calcs TIGER Benefits'!S$3-Assumptions!$D$90)+1)/Assumptions!$D$80/(1+1/Assumptions!$D$79)+(Assumptions!$D$79*Assumptions!$D$85),Assumptions!$D$85)) -> 162.399277 | T125: =IF(OR(T$3<Assumptions!$D$90,T$3>Assumptions!$D$92),0,IF('BCA Calcs TIGER Benefits'!T$3<(Assumptions!$D$90+Assumptions!$D$80),((1-Assumptions!$D$79)*Assumptions!$D$85)*(('BCA Calcs TIGER Benefits'!T$3-Assumptions!$D$90)+1)/Assumptions!$D$80/(1+1/Assumptions!$D$79)+(Assumptions!$D$79*Assumptions!$D$85),Assumptions!$D$85)) -> 162.399277 | U125: =IF(OR(U$3<Assumptions!$D$90,U$3>Assumptions!$D$92),0,IF('BCA Calcs TIGER Benefits'!U$3<(Assumptions!$D$90+Assumptions!$D$80),((1-Assumptions!$D$79)*Assumptions!$D$85)*(('BCA Calcs TIGER Benefits'!U$3-Assumptions!$D$90)+1)/Assumptions!$D$80/(1+1/Assumptions!$D$79)+(Assumptions!$D$79*Assumptions!$D$85),Assumptions!$D$85)) -> 162.399277 | V125: =IF(OR(V$3<Assumptions!$D$90,V$3>Assumptions!$D$92),0,IF('BCA Calcs TIGER Benefits'!V$3<(Assumptions!$D$90+Assumptions!$D$80),((1-Assumptions!$D$79)*Assumptions!$D$85)*(('BCA Calcs TIGER Benefits'!V$3-Assumptions!$D$90)+1)/Assumptions!$D$80/(1+1/Assumptions!$D$79)+(Assumptions!$D$79*Assumptions!$D$85),Assumptions!$D$85)) -> 162.399277 | W125: =IF(OR(W$3<Assumptions!$D$90,W$3>Assumptions!$D$92),0,IF('BCA Calcs TIGER Benefits'!W$3<(Assumptions!$D$90+Assumptions!$D$80),((1-Assumptions!$D$79)*Assumptions!$D$85)*(('BCA Calcs TIGER Benefits'!W$3-Assumptions!$D$90)+1)/Assumptions!$D$80/(1+1/Assumptions!$D$79)+(Assumptions!$D$79*Assumptions!$D$85),Assumptions!$D$85)) -> 162.399277 | X125: =IF(OR(X$3<Assumptions!$D$90,X$3>Assumptions!$D$92),0,IF('BCA Calcs TIGER Benefits'!X$3<(Assumptions!$D$90+Assumptions!$D$80),((1-Assumptions!$D$79)*Assumptions!$D$85)*(('BCA Calcs TIGER Benefits'!X$3-Assumptions!$D$90)+1)/Assumptions!$D$80/(1+1/Assumptions!$D$79)+(Assumptions!$D$79*Assumptions!$D$85),Assumptions!$D$85)) -> 162.399277 | Y125: =IF(OR(Y$3<Assumptions!$D$90,Y$3>Assumptions!$D$92),0,IF('BCA Calcs TIGER Benefits'!Y$3<(Assumptions!$D$90+Assumptions!$D$80),((1-Assumptions!$D$79)*Assumptions!$D$85)*(('BCA Calcs TIGER Benefits'!Y$3-Assumptions!$D$90)+1)/Assumptions!$D$80/(1+1/Assumptions!$D$79)+(Assumptions!$D$79*Assumptions!$D$85),Assumptions!$D$85)) -> 162.399277 | Z125: =IF(OR(Z$3<Assumptions!$D$90,Z$3>Assumptions!$D$92),0,IF('BCA Calcs TIGER Benefits'!Z$3<(Assumptions!$D$90+Assumptions!$D$80),((1-Assumptions!$D$79)*Assumptions!$D$85)*(('BCA Calcs TIGER Benefits'!Z$3-Assumptions!$D$90)+1)/Assumptions!$D$80/(1+1/Assumptions!$D$79)+(Assumptions!$D$79*Assumptions!$D$85),Assumptions!$D$85)) -> 162.399277 | AA125: =IF(OR(AA$3<Assumptions!$D$90,AA$3>Assumptions!$D$92),0,IF('BCA Calcs TIGER Benefits'!AA$3<(Assumptions!$D$90+Assumptions!$D$80),((1-Assumptions!$D$79)*Assumptions!$D$85)*(('BCA Calcs TIGER Benefits'!AA$3-Assumptions!$D$90)+1)/Assumptions!$D$80/(1+1/Assumptions!$D$79)+(Assumptions!$D$79*Assumptions!$D$85),Assumptions!$D$85)) -> 162.399277 | AB125: =IF(OR(AB$3<Assumptions!$D$90,AB$3>Assumptions!$D$92),0,IF('BCA Calcs TIGER Benefits'!AB$3<(Assumptions!$D$90+Assumptions!$D$80),((1-Assumptions!$D$79)*Assumptions!$D$85)*(('BCA Calcs TIGER Benefits'!AB$3-Assumptions!$D$90)+1)/Assumptions!$D$80/(1+1/Assumptions!$D$79)+(Assumptions!$D$79*Assumptions!$D$85),Assumptions!$D$85)) -> 162.399277 | AC125: =IF(OR(AC$3<Assumptions!$D$90,AC$3>Assumptions!$D$92),0,IF('BCA Calcs TIGER Benefits'!AC$3<(Assumptions!$D$90+Assumptions!$D$80),((1-Assumptions!$D$79)*Assumptions!$D$85)*(('BCA Calcs TIGER Benefits'!AC$3-Assumptions!$D$90)+1)/Assumptions!$D$80/(1+1/Assumptions!$D$79)+(Assumptions!$D$79*Assumptions!$D$85),Assumptions!$D$85)) -> 162.399277 | AD125: =IF(OR(AD$3<Assumptions!$D$90,AD$3>Assumptions!$D$92),0,IF('BCA Calcs TIGER Benefits'!AD$3<(Assumptions!$D$90+Assumptions!$D$80),((1-Assumptions!$D$79)*Assumptions!$D$85)*(('BCA Calcs TIGER Benefits'!AD$3-Assumptions!$D$90)+1)/Assumptions!$D$80/(1+1/Assumptions!$D$79)+(Assumptions!$D$79*Assumptions!$D$85),Assumptions!$D$85)) -> 162.399277 | AE125: =IF(OR(AE$3<Assumptions!$D$90,AE$3>Assumptions!$D$92),0,IF('BCA Calcs TIGER Benefits'!AE$3<(Assumptions!$D$90+Assumptions!$D$80),((1-Assumptions!$D$79)*Assumptions!$D$85)*(('BCA Calcs TIGER Benefits'!AE$3-Assumptions!$D$90)+1)/Assumptions!$D$80/(1+1/Assumptions!$D$79)+(Assumptions!$D$79*Assumptions!$D$85),Assumptions!$D$85)) -> 162.399277 | AF125: =IF(OR(AF$3<Assumptions!$D$90,AF$3>Assumptions!$D$92),0,IF('BCA Calcs TIGER Benefits'!AF$3<(Assumptions!$D$90+Assumptions!$D$80),((1-Assumptions!$D$79)*Assumptions!$D$85)*(('BCA Calcs TIGER Benefits'!AF$3-Assumptions!$D$90)+1)/Assumptions!$D$80/(1+1/Assumptions!$D$79)+(Assumptions!$D$79*Assumptions!$D$85),Assumptions!$D$85)) -> 162.399277 | AG125: =IF(OR(AG$3<Assumptions!$D$90,AG$3>Assumptions!$D$92),0,IF('BCA Calcs TIGER Benefits'!AG$3<(Assumptions!$D$90+Assumptions!$D$80),((1-Assumptions!$D$79)*Assumptions!$D$85)*(('BCA Calcs TIGER Benefits'!AG$3-Assumptions!$D$90)+1)/Assumptions!$D$80/(1+1/Assumptions!$D$79)+(Assumptions!$D$79*Assumptions!$D$85),Assumptions!$D$85)) -> 162.399277 | AH125: =IF(OR(AH$3<Assumptions!$D$90,AH$3>Assumptions!$D$92),0,IF('BCA Calcs TIGER Benefits'!AH$3<(Assumptions!$D$90+Assumptions!$D$80),((1-Assumptions!$D$79)*Assumptions!$D$85)*(('BCA Calcs TIGER Benefits'!AH$3-Assumptions!$D$90)+1)/Assumptions!$D$80/(1+1/Assumptions!$D$79)+(Assumptions!$D$79*Assumptions!$D$85),Assumptions!$D$85)) -> 162.399277 | AI125: =IF(OR(AI$3<Assumptions!$D$90,AI$3>Assumptions!$D$92),0,IF('BCA Calcs TIGER Benefits'!AI$3<(Assumptions!$D$90+Assumptions!$D$80),((1-Assumptions!$D$79)*Assumptions!$D$85)*(('BCA Calcs TIGER Benefits'!AI$3-Assumptions!$D$90)+1)/Assumptions!$D$80/(1+1/Assumptions!$D$79)+(Assumptions!$D$79*Assumptions!$D$85),Assumptions!$D$85)) -> 162.399277 | AJ125: =IF(OR(AJ$3<Assumptions!$D$90,AJ$3>Assumptions!$D$92),0,IF('BCA Calcs TIGER Benefits'!AJ$3<(Assumptions!$D$90+Assumptions!$D$80),((1-Assumptions!$D$79)*Assumptions!$D$85)*(('BCA Calcs TIGER Benefits'!AJ$3-Assumptions!$D$90)+1)/Assumptions!$D$80/(1+1/Assumptions!$D$79)+(Assumptions!$D$79*Assumptions!$D$85),Assumptions!$D$85)) -> 162.399277 | AK125: =IF(OR(AK$3<Assumptions!$D$90,AK$3>Assumptions!$D$92),0,IF('BCA Calcs TIGER Benefits'!AK$3<(Assumptions!$D$90+Assumptions!$D$80),((1-Assumptions!$D$79)*Assumptions!$D$85)*(('BCA Calcs TIGER Benefits'!AK$3-Assumptions!$D$90)+1)/Assumptions!$D$80/(1+1/Assumptions!$D$79)+(Assumptions!$D$79*Assumptions!$D$85),Assumptions!$D$85)) -> 162.399277 | AL125: =IF(OR(AL$3<Assumptions!$D$90,AL$3>Assumptions!$D$92),0,IF('BCA Calcs TIGER Benefits'!AL$3<(Assumptions!$D$90+Assumptions!$D$80),((1-Assumptions!$D$79)*Assumptions!$D$85)*(('BCA Calcs TIGER Benefits'!AL$3-Assumptions!$D$90)+1)/Assumptions!$D$80/(1+1/Assumptions!$D$79)+(Assumptions!$D$79*Assumptions!$D$85),Assumptions!$D$85)) -> 162.399277 | AM125: =IF(OR(AM$3<Assumptions!$D$90,AM$3>Assumptions!$D$92),0,IF('BCA Calcs TIGER Benefits'!AM$3<(Assumptions!$D$90+Assumptions!$D$80),((1-Assumptions!$D$79)*Assumptions!$D$85)*(('BCA Calcs TIGER Benefits'!AM$3-Assumptions!$D$90)+1)/Assumptions!$D$80/(1+1/Assumptions!$D$79)+(Assumptions!$D$79*Assumptions!$D$85),Assumptions!$D$85)) -> 162.399277 | AN125: =IF(OR(AN$3<Assumptions!$D$90,AN$3>Assumptions!$D$92),0,IF('BCA Calcs TIGER Benefits'!AN$3<(Assumptions!$D$90+Assumptions!$D$80),((1-Assumptions!$D$79)*Assumptions!$D$85)*(('BCA Calcs TIGER Benefits'!AN$3-Assumptions!$D$90)+1)/Assumptions!$D$80/(1+1/Assumptions!$D$79)+(Assumptions!$D$79*Assumptions!$D$85),Assumptions!$D$85)) -> 162.399277
C126: Total Undiscounted Avg Value <1,500' | F126: =IF(OR(F$3<Assumptions!$D$90,F$3>Assumptions!$D$92),0,IF('BCA Calcs TIGER Benefits'!F$3<(Assumptions!$D$90+Assumptions!$D$80),((1-Assumptions!$D$79)*Assumptions!$D$86)*(('BCA Calcs TIGER Benefits'!F$3-Assumptions!$D$90)+1)/Assumptions!$D$80/(1+1/Assumptions!$D$79)+(Assumptions!$D$79*Assumptions!$D$86),Assumptions!$D$86)) -> 0 | G126: =IF(OR(G$3<Assumptions!$D$90,G$3>Assumptions!$D$92),0,IF('BCA Calcs TIGER Benefits'!G$3<(Assumptions!$D$90+Assumptions!$D$80),((1-Assumptions!$D$79)*Assumptions!$D$86)*(('BCA Calcs TIGER Benefits'!G$3-Assumptions!$D$90)+1)/Assumptions!$D$80/(1+1/Assumptions!$D$79)+(Assumptions!$D$79*Assumptions!$D$86),Assumptions!$D$86)) -> 0 | H126: =IF(OR(H$3<Assumptions!$D$90,H$3>Assumptions!$D$92),0,IF('BCA Calcs TIGER Benefits'!H$3<(Assumptions!$D$90+Assumptions!$D$80),((1-Assumptions!$D$79)*Assumptions!$D$86)*(('BCA Calcs TIGER Benefits'!H$3-Assumptions!$D$90)+1)/Assumptions!$D$80/(1+1/Assumptions!$D$79)+(Assumptions!$D$79*Assumptions!$D$86),Assumptions!$D$86)) -> 0 | I126: =IF(OR(I$3<Assumptions!$D$90,I$3>Assumptions!$D$92),0,IF('BCA Calcs TIGER Benefits'!I$3<(Assumptions!$D$90+Assumptions!$D$80),((1-Assumptions!$D$79)*Assumptions!$D$86)*(('BCA Calcs TIGER Benefits'!I$3-Assumptions!$D$90)+1)/Assumptions!$D$80/(1+1/Assumptions!$D$79)+(Assumptions!$D$79*Assumptions!$D$86),Assumptions!$D$86)) -> 658.3690725 | J126: =IF(OR(J$3<Assumptions!$D$90,J$3>Assumptions!$D$92),0,IF('BCA Calcs TIGER Benefits'!J$3<(Assumptions!$D$90+Assumptions!$D$80),((1-Assumptions!$D$79)*Assumptions!$D$86)*(('BCA Calcs TIGER Benefits'!J$3-Assumptions!$D$90)+1)/Assumptions!$D$80/(1+1/Assumptions!$D$79)+(Assumptions!$D$79*Assumptions!$D$86),Assumptions!$D$86)) -> 685.4253357 | K126: =IF(OR(K$3<Assumptions!$D$90,K$3>Assumptions!$D$92),0,IF('BCA Calcs TIGER Benefits'!K$3<(Assumptions!$D$90+Assumptions!$D$80),((1-Assumptions!$D$79)*Assumptions!$D$86)*(('BCA Calcs TIGER Benefits'!K$3-Assumptions!$D$90)+1)/Assumptions!$D$80/(1+1/Assumptions!$D$79)+(Assumptions!$D$79*Assumptions!$D$86),Assumptions!$D$86)) -> 712.481599 | L126: =IF(OR(L$3<Assumptions!$D$90,L$3>Assumptions!$D$92),0,IF('BCA Calcs TIGER Benefits'!L$3<(Assumptions!$D$90+Assumptions!$D$80),((1-Assumptions!$D$79)*Assumptions!$D$86)*(('BCA Calcs TIGER Benefits'!L$3-Assumptions!$D$90)+1)/Assumptions!$D$80/(1+1/Assumptions!$D$79)+(Assumptions!$D$79*Assumptions!$D$86),Assumptions!$D$86)) -> 739.5378622 | M126: =IF(OR(M$3<Assumptions!$D$90,M$3>Assumptions!$D$92),0,IF('BCA Calcs TIGER Benefits'!M$3<(Assumptions!$D$90+Assumptions!$D$80),((1-Assumptions!$D$79)*Assumptions!$D$86)*(('BCA Calcs TIGER Benefits'!M$3-Assumptions!$D$90)+1)/Assumptions!$D$80/(1+1/Assumptions!$D$79)+(Assumptions!$D$79*Assumptions!$D$86),Assumptions!$D$86)) -> 766.5941255 | N126: =IF(OR(N$3<Assumptions!$D$90,N$3>Assumptions!$D$92),0,IF('BCA Calcs TIGER Benefits'!N$3<(Assumptions!$D$90+Assumptions!$D$80),((1-Assumptions!$D$79)*Assumptions!$D$86)*(('BCA Calcs TIGER Benefits'!N$3-Assumptions!$D$90)+1)/Assumptions!$D$80/(1+1/Assumptions!$D$79)+(Assumptions!$D$79*Assumptions!$D$86),Assumptions!$D$86)) -> 793.6503888 | O126: =IF(OR(O$3<Assumptions!$D$90,O$3>Assumptions!$D$92),0,IF('BCA Calcs TIGER Benefits'!O$3<(Assumptions!$D$90+Assumptions!$D$80),((1-Assumptions!$D$79)*Assumptions!$D$86)*(('BCA Calcs TIGER Benefits'!O$3-Assumptions!$D$90)+1)/Assumptions!$D$80/(1+1/Assumptions!$D$79)+(Assumptions!$D$79*Assumptions!$D$86),Assumptions!$D$86)) -> 820.706652 | P126: =IF(OR(P$3<Assumptions!$D$90,P$3>Assumptions!$D$92),0,IF('BCA Calcs TIGER Benefits'!P$3<(Assumptions!$D$90+Assumptions!$D$80),((1-Assumptions!$D$79)*Assumptions!$D$86)*(('BCA Calcs TIGER Benefits'!P$3-Assumptions!$D$90)+1)/Assumptions!$D$80/(1+1/Assumptions!$D$79)+(Assumptions!$D$79*Assumptions!$D$86),Assumptions!$D$86)) -> 847.7629153 | Q126: =IF(OR(Q$3<Assumptions!$D$90,Q$3>Assumptions!$D$92),0,IF('BCA Calcs TIGER Benefits'!Q$3<(Assumptions!$D$90+Assumptions!$D$80),((1-Assumptions!$D$79)*Assumptions!$D$86)*(('BCA Calcs TIGER Benefits'!Q$3-Assumptions!$D$90)+1)/Assumptions!$D$80/(1+1/Assumptions!$D$79)+(Assumptions!$D$79*Assumptions!$D$86),Assumptions!$D$86)) -> 874.8191785 | R126: =IF(OR(R$3<Assumptions!$D$90,R$3>Assumptions!$D$92),0,IF('BCA Calcs TIGER Benefits'!R$3<(Assumptions!$D$90+Assumptions!$D$80),((1-Assumptions!$D$79)*Assumptions!$D$86)*(('BCA Calcs TIGER Benefits'!R$3-Assumptions!$D$90)+1)/Assumptions!$D$80/(1+1/Assumptions!$D$79)+(Assumptions!$D$79*Assumptions!$D$86),Assumptions!$D$86)) -> 901.8754418 | S126: =IF(OR(S$3<Assumptions!$D$90,S$3>Assumptions!$D$92),0,IF('BCA Calcs TIGER Benefits'!S$3<(Assumptions!$D$90+Assumptions!$D$80),((1-Assumptions!$D$79)*Assumptions!$D$86)*(('BCA Calcs TIGER Benefits'!S$3-Assumptions!$D$90)+1)/Assumptions!$D$80/(1+1/Assumptions!$D$79)+(Assumptions!$D$79*Assumptions!$D$86),Assumptions!$D$86)) -> 1578.282023 | T126: =IF(OR(T$3<Assumptions!$D$90,T$3>Assumptions!$D$92),0,IF('BCA Calcs TIGER Benefits'!T$3<(Assumptions!$D$90+Assumptions!$D$80),((1-Assumptions!$D$79)*Assumptions!$D$86)*(('BCA Calcs TIGER Benefits'!T$3-Assumptions!$D$90)+1)/Assumptions!$D$80/(1+1/Assumptions!$D$79)+(Assumptions!$D$79*Assumptions!$D$86),Assumptions!$D$86)) -> 1578.282023 | U126: =IF(OR(U$3<Assumptions!$D$90,U$3>Assumptions!$D$92),0,IF('BCA Calcs TIGER Benefits'!U$3<(Assumptions!$D$90+Assumptions!$D$80),((1-Assumptions!$D$79)*Assumptions!$D$86)*(('BCA Calcs TIGER Benefits'!U$3-Assumptions!$D$90)+1)/Assumptions!$D$80/(1+1/Assumptions!$D$79)+(Assumptions!$D$79*Assumptions!$D$86),Assumptions!$D$86)) -> 1578.282023 | V126: =IF(OR(V$3<Assumptions!$D$90,V$3>Assumptions!$D$92),0,IF('BCA Calcs TIGER Benefits'!V$3<(Assumptions!$D$90+Assumptions!$D$80),((1-Assumptions!$D$79)*Assumptions!$D$86)*(('BCA Calcs TIGER Benefits'!V$3-Assumptions!$D$90)+1)/Assumptions!$D$80/(1+1/Assumptions!$D$79)+(Assumptions!$D$79*Assumptions!$D$86),Assumptions!$D$86)) -> 1578.282023 | W126: =IF(OR(W$3<Assumptions!$D$90,W$3>Assumptions!$D$92),0,IF('BCA Calcs TIGER Benefits'!W$3<(Assumptions!$D$90+Assumptions!$D$80),((1-Assumptions!$D$79)*Assumptions!$D$86)*(('BCA Calcs TIGER Benefits'!W$3-Assumptions!$D$90)+1)/Assumptions!$D$80/(1+1/Assumptions!$D$79)+(Assumptions!$D$79*Assumptions!$D$86),Assumptions!$D$86)) -> 1578.282023 | X126: =IF(OR(X$3<Assumptions!$D$90,X$3>Assumptions!$D$92),0,IF('BCA Calcs TIGER Benefits'!X$3<(Assumptions!$D$90+Assumptions!$D$80),((1-Assumptions!$D$79)*Assumptions!$D$86)*(('BCA Calcs TIGER Benefits'!X$3-Assumptions!$D$90)+1)/Assumptions!$D$80/(1+1/Assumptions!$D$79)+(Assumptions!$D$79*Assumptions!$D$86),Assumptions!$D$86)) -> 1578.282023 | Y126: =IF(OR(Y$3<Assumptions!$D$90,Y$3>Assumptions!$D$92),0,IF('BCA Calcs TIGER Benefits'!Y$3<(Assumptions!$D$90+Assumptions!$D$80),((1-Assumptions!$D$79)*Assumptions!$D$86)*(('BCA Calcs TIGER Benefits'!Y$3-Assumptions!$D$90)+1)/Assumptions!$D$80/(1+1/Assumptions!$D$79)+(Assumptions!$D$79*Assumptions!$D$86),Assumptions!$D$86)) -> 1578.282023 | Z126: =IF(OR(Z$3<Assumptions!$D$90,Z$3>Assumptions!$D$92),0,IF('BCA Calcs TIGER Benefits'!Z$3<(Assumptions!$D$90+Assumptions!$D$80),((1-Assumptions!$D$79)*Assumptions!$D$86)*(('BCA Calcs TIGER Benefits'!Z$3-Assumptions!$D$90)+1)/Assumptions!$D$80/(1+1/Assumptions!$D$79)+(Assumptions!$D$79*Assumptions!$D$86),Assumptions!$D$86)) -> 1578.282023 | AA126: =IF(OR(AA$3<Assumptions!$D$90,AA$3>Assumptions!$D$92),0,IF('BCA Calcs TIGER Benefits'!AA$3<(Assumptions!$D$90+Assumptions!$D$80),((1-Assumptions!$D$79)*Assumptions!$D$86)*(('BCA Calcs TIGER Benefits'!AA$3-Assumptions!$D$90)+1)/Assumptions!$D$80/(1+1/Assumptions!$D$79)+(Assumptions!$D$79*Assumptions!$D$86),Assumptions!$D$86)) -> 1578.282023 | AB126: =IF(OR(AB$3<Assumptions!$D$90,AB$3>Assumptions!$D$92),0,IF('BCA Calcs TIGER Benefits'!AB$3<(Assumptions!$D$90+Assumptions!$D$80),((1-Assumptions!$D$79)*Assumptions!$D$86)*(('BCA Calcs TIGER Benefits'!AB$3-Assumptions!$D$90)+1)/Assumptions!$D$80/(1+1/Assumptions!$D$79)+(Assumptions!$D$79*Assumptions!$D$86),Assumptions!$D$86)) -> 1578.282023 | AC126: =IF(OR(AC$3<Assumptions!$D$90,AC$3>Assumptions!$D$92),0,IF('BCA Calcs TIGER Benefits'!AC$3<(Assumptions!$D$90+Assumptions!$D$80),((1-Assumptions!$D$79)*Assumptions!$D$86)*(('BCA Calcs TIGER Benefits'!AC$3-Assumptions!$D$90)+1)/Assumptions!$D$80/(1+1/Assumptions!$D$79)+(Assumptions!$D$79*Assumptions!$D$86),Assumptions!$D$86)) -> 1578.282023 | AD126: =IF(OR(AD$3<Assumptions!$D$90,AD$3>Assumptions!$D$92),0,IF('BCA Calcs TIGER Benefits'!AD$3<(Assumptions!$D$90+Assumptions!$D$80),((1-Assumptions!$D$79)*Assumptions!$D$86)*(('BCA Calcs TIGER Benefits'!AD$3-Assumptions!$D$90)+1)/Assumptions!$D$80/(1+1/Assumptions!$D$79)+(Assumptions!$D$79*Assumptions!$D$86),Assumptions!$D$86)) -> 1578.282023 | AE126: =IF(OR(AE$3<Assumptions!$D$90,AE$3>Assumptions!$D$92),0,IF('BCA Calcs TIGER Benefits'!AE$3<(Assumptions!$D$90+Assumptions!$D$80),((1-Assumptions!$D$79)*Assumptions!$D$86)*(('BCA Calcs TIGER Benefits'!AE$3-Assumptions!$D$90)+1)/Assumptions!$D$80/(1+1/Assumptions!$D$79)+(Assumptions!$D$79*Assumptions!$D$86),Assumptions!$D$86)) -> 1578.282023 | AF126: =IF(OR(AF$3<Assumptions!$D$90,AF$3>Assumptions!$D$92),0,IF('BCA Calcs TIGER Benefits'!AF$3<(Assumptions!$D$90+Assumptions!$D$80),((1-Assumptions!$D$79)*Assumptions!$D$86)*(('BCA Calcs TIGER Benefits'!AF$3-Assumptions!$D$90)+1)/Assumptions!$D$80/(1+1/Assumptions!$D$79)+(Assumptions!$D$79*Assumptions!$D$86),Assumptions!$D$86)) -> 1578.282023 | AG126: =IF(OR(AG$3<Assumptions!$D$90,AG$3>Assumptions!$D$92),0,IF('BCA Calcs TIGER Benefits'!AG$3<(Assumptions!$D$90+Assumptions!$D$80),((1-Assumptions!$D$79)*Assumptions!$D$86)*(('BCA Calcs TIGER Benefits'!AG$3-Assumptions!$D$90)+1)/Assumptions!$D$80/(1+1/Assumptions!$D$79)+(Assumptions!$D$79*Assumptions!$D$86),Assumptions!$D$86)) -> 1578.282023 | AH126: =IF(OR(AH$3<Assumptions!$D$90,AH$3>Assumptions!$D$92),0,IF('BCA Calcs TIGER Benefits'!AH$3<(Assumptions!$D$90+Assumptions!$D$80),((1-Assumptions!$D$79)*Assumptions!$D$86)*(('BCA Calcs TIGER Benefits'!AH$3-Assumptions!$D$90)+1)/Assumptions!$D$80/(1+1/Assumptions!$D$79)+(Assumptions!$D$79*Assumptions!$D$86),Assumptions!$D$86)) -> 1578.282023 | AI126: =IF(OR(AI$3<Assumptions!$D$90,AI$3>Assumptions!$D$92),0,IF('BCA Calcs TIGER Benefits'!AI$3<(Assumptions!$D$90+Assumptions!$D$80),((1-Assumptions!$D$79)*Assumptions!$D$86)*(('BCA Calcs TIGER Benefits'!AI$3-Assumptions!$D$90)+1)/Assumptions!$D$80/(1+1/Assumptions!$D$79)+(Assumptions!$D$79*Assumptions!$D$86),Assumptions!$D$86)) -> 1578.282023 | AJ126: =IF(OR(AJ$3<Assumptions!$D$90,AJ$3>Assumptions!$D$92),0,IF('BCA Calcs TIGER Benefits'!AJ$3<(Assumptions!$D$90+Assumptions!$D$80),((1-Assumptions!$D$79)*Assumptions!$D$86)*(('BCA Calcs TIGER Benefits'!AJ$3-Assumptions!$D$90)+1)/Assumptions!$D$80/(1+1/Assumptions!$D$79)+(Assumptions!$D$79*Assumptions!$D$86),Assumptions!$D$86)) -> 1578.282023 | AK126: =IF(OR(AK$3<Assumptions!$D$90,AK$3>Assumptions!$D$92),0,IF('BCA Calcs TIGER Benefits'!AK$3<(Assumptions!$D$90+Assumptions!$D$80),((1-Assumptions!$D$79)*Assumptions!$D$86)*(('BCA Calcs TIGER Benefits'!AK$3-Assumptions!$D$90)+1)/Assumptions!$D$80/(1+1/Assumptions!$D$79)+(Assumptions!$D$79*Assumptions!$D$86),Assumptions!$D$86)) -> 1578.282023 | AL126: =IF(OR(AL$3<Assumptions!$D$90,AL$3>Assumptions!$D$92),0,IF('BCA Calcs TIGER Benefits'!AL$3<(Assumptions!$D$90+Assumptions!$D$80),((1-Assumptions!$D$79)*Assumptions!$D$86)*(('BCA Calcs TIGER Benefits'!AL$3-Assumptions!$D$90)+1)/Assumptions!$D$80/(1+1/Assumptions!$D$79)+(Assumptions!$D$79*Assumptions!$D$86),Assumptions!$D$86)) -> 1578.282023 | AM126: =IF(OR(AM$3<Assumptions!$D$90,AM$3>Assumptions!$D$92),0,IF('BCA Calcs TIGER Benefits'!AM$3<(Assumptions!$D$90+Assumptions!$D$80),((1-Assumptions!$D$79)*Assumptions!$D$86)*(('BCA Calcs TIGER Benefits'!AM$3-Assumptions!$D$90)+1)/Assumptions!$D$80/(1+1/Assumptions!$D$79)+(Assumptions!$D$79*Assumptions!$D$86),Assumptions!$D$86)) -> 1578.282023 | AN126: =IF(OR(AN$3<Assumptions!$D$90,AN$3>Assumptions!$D$92),0,IF('BCA Calcs TIGER Benefits'!AN$3<(Assumptions!$D$90+Assumptions!$D$80),((1-Assumptions!$D$79)*Assumptions!$D$86)*(('BCA Calcs TIGER Benefits'!AN$3-Assumptions!$D$90)+1)/Assumptions!$D$80/(1+1/Assumptions!$D$79)+(Assumptions!$D$79*Assumptions!$D$86),Assumptions!$D$86)) -> 1578.282023
C127: Total Undiscounted Value <800' | F127: =F125*Assumptions!$D$69 -> 0 | G127: =G125*Assumptions!$D$69 -> 0 | H127: =H125*Assumptions!$D$69 -> 0 | I127: =I125*Assumptions!$D$69 -> 12126.12202 | J127: =J125*Assumptions!$D$69 -> 12624.4558 | K127: =K125*Assumptions!$D$69 -> 13122.78958 | L127: =L125*Assumptions!$D$69 -> 13621.12336 | M127: =M125*Assumptions!$D$69 -> 14119.45714 | N127: =N125*Assumptions!$D$69 -> 14617.79092 | O127: =O125*Assumptions!$D$69 -> 15116.12471 | P127: =P125*Assumptions!$D$69 -> 15614.45849 | Q127: =Q125*Assumptions!$D$69 -> 16112.79227 | R127: =R125*Assumptions!$D$69 -> 16611.12605 | S127: =S125*Assumptions!$D$69 -> 29069.47059 | T127: =T125*Assumptions!$D$69 -> 29069.47059 | U127: =U125*Assumptions!$D$69 -> 29069.47059 | V127: =V125*Assumptions!$D$69 -> 29069.47059 | W127: =W125*Assumptions!$D$69 -> 29069.47059 | X127: =X125*Assumptions!$D$69 -> 29069.47059 | Y127: =Y125*Assumptions!$D$69 -> 29069.47059 | Z127: =Z125*Assumptions!$D$69 -> 29069.47059 | AA127: =AA125*Assumptions!$D$69 -> 29069.47059 | AB127: =AB125*Assumptions!$D$69 -> 29069.47059 | AC127: =AC125*Assumptions!$D$69 -> 29069.47059 | AD127: =AD125*Assumptions!$D$69 -> 29069.47059 | AE127: =AE125*Assumptions!$D$69 -> 29069.47059 | AF127: =AF125*Assumptions!$D$69 -> 29069.47059 | AG127: =AG125*Assumptions!$D$69 -> 29069.47059 | AH127: =AH125*Assumptions!$D$69 -> 29069.47059 | AI127: =AI125*Assumptions!$D$69 -> 29069.47059 | AJ127: =AJ125*Assumptions!$D$69 -> 29069.47059 | AK127: =AK125*Assumptions!$D$69 -> 29069.47059 | AL127: =AL125*Assumptions!$D$69 -> 29069.47059 | AM127: =AM125*Assumptions!$D$69 -> 29069.47059 | AN127: =AN125*Assumptions!$D$69 -> 29069.47059
C128: Total Undiscounted Value <1,500' | F128: =F125*Assumptions!$D$73 -> 0 | G128: =G125*Assumptions!$D$73 -> 0 | H128: =H125*Assumptions!$D$73 -> 0 | I128: =I125*Assumptions!$D$73 -> 7248.575731 | J128: =J125*Assumptions!$D$73 -> 7546.462405 | K128: =K125*Assumptions!$D$73 -> 7844.349078 | L128: =L125*Assumptions!$D$73 -> 8142.235752 | M128: =M125*Assumptions!$D$73 -> 8440.122426 | N128: =N125*Assumptions!$D$73 -> 8738.0091 | O128: =O125*Assumptions!$D$73 -> 9035.895774 | P128: =P125*Assumptions!$D$73 -> 9333.782448 | Q128: =Q125*Assumptions!$D$73 -> 9631.669122 | R128: =R125*Assumptions!$D$73 -> 9929.555796 | S128: =S125*Assumptions!$D$73 -> 17376.72264 | T128: =T125*Assumptions!$D$73 -> 17376.72264 | U128: =U125*Assumptions!$D$73 -> 17376.72264 | V128: =V125*Assumptions!$D$73 -> 17376.72264 | W128: =W125*Assumptions!$D$73 -> 17376.72264 | X128: =X125*Assumptions!$D$73 -> 17376.72264 | Y128: =Y125*Assumptions!$D$73 -> 17376.72264 | Z128: =Z125*Assumptions!$D$73 -> 17376.72264 | AA128: =AA125*Assumptions!$D$73 -> 17376.72264 | AB128: =AB125*Assumptions!$D$73 -> 17376.72264 | AC128: =AC125*Assumptions!$D$73 -> 17376.72264 | AD128: =AD125*Assumptions!$D$73 -> 17376.72264 | AE128: =AE125*Assumptions!$D$73 -> 17376.72264 | AF128: =AF125*Assumptions!$D$73 -> 17376.72264 | AG128: =AG125*Assumptions!$D$73 -> 17376.72264 | AH128: =AH125*Assumptions!$D$73 -> 17376.72264 | AI128: =AI125*Assumptions!$D$73 -> 17376.72264 | AJ128: =AJ125*Assumptions!$D$73 -> 17376.72264 | AK128: =AK125*Assumptions!$D$73 -> 17376.72264 | AL128: =AL125*Assumptions!$D$73 -> 17376.72264 | AM128: =AM125*Assumptions!$D$73 -> 17376.72264 | AN128: =AN125*Assumptions!$D$73 -> 17376.72264
C129: Total Undiscounted | F129: =SUM(F127:F128) -> 0 | G129: =SUM(G127:G128) -> 0 | H129: 0 | I129: 19374.69775 | J129: 20170.9182 | K129: 20967.13866 | L129: 21763.35911 | M129: 22559.57957 | N129: 23355.80002 | O129: 24152.02048 | P129: 24948.24094 | Q129: 25744.46139 | R129: 26540.68185 | S129: 46446.19323 | T129: 46446.19323 | U129: 46446.19323 | V129: 46446.19323 | W129: 46446.19323 | X129: 46446.19323 | Y129: 46446.19323 | Z129: 46446.19323 | AA129: 46446.19323 | AB129: 46446.19323 | AC129: 46446.19323 | AD129: 46446.19323 | AE129: 46446.19323 | AF129: 46446.19323 | AG129: 46446.19323 | AH129: 46446.19323 | AI129: 46446.19323 | AJ129: 46446.19323 | AK129: 46446.19323 | AL129: 46446.19323 | AM129: 46446.19323 | AN129: 46446.19323
C130: Total Discounted | F130: =F129*F6 -> 0 | G130: 0 | H130: 0 | I130: 14780.86415 | J130: 14381.58591 | K130: 13971.2898 | L130: 13553.12627 | M130: 13129.8807 | N130: 12704.00772 | O130: 12277.66251 | P130: 11852.72955 | Q130: 11430.84874 | R130: 11013.43939 | S130: 18012.63451 | T130: 16834.23786 | U130: 15732.93258 | V130: 14703.67531 | W130: 13741.75263 | X130: 12842.75946 | Y130: 12002.57894 | Z130: 11217.36349 | AA130: 10483.51728 | AB130: 9797.679705 | AC130: 9156.710005 | AD130: 8557.672902 | AE130: 7997.825142 | AF130: 7474.602936 | AG130: 6985.610221 | AH130: 6528.607683 | AI130: 6101.502507 | AJ130: 5702.338792 | AK130: 5329.288591 | AL130: 4980.643543 | AM130: 4654.807049 | AN130: 4350.286962
B131: Total Benefits
C132: Total benefits - undiscounted | F132: =F42+F48+F71+F76+F80+F112+F116+F122+F129 -> 0 | G132: 0 | H132: 0 | I132: 901024.7078 | J132: 954404.2403 | K132: 1015150.794 | L132: 1084493.621 | M132: 1163876.666 | N132: 1254996.729 | O132: 1359848.457 | P132: 1480777.398 | Q132: 1562638.185 | R132: 1652194.701 | S132: 1769374.122 | T132: 1876051.352 | U132: 1993142.806 | V132: 2121751.274 | W132: 2263103.06 | X132: 2418556.962 | Y132: 2589618.654 | Z132: 2777956.627 | AA132: 2985419.873 | AB132: 3214057.484 | AC132: 3466140.399 | AD132: 3744173.552 | AE132: 4050955.958 | AF132: 4389579.126 | AG132: 4763469.722 | AH132: 5176426.027 | AI132: 5632658.368 | AJ132: 6136833.964 | AK132: 6694126.657 | AL132: 7310272.084 | AM132: 7991628.856 | AN132: 8745246.428
C133: Total Benefits - discounted | F133: =F43+F49+F72+F77+F81+F113+F117+F123+F130 -> 0 | G133: =G43+G49+G72+G77+G81+G113+G117+G123+G130 -> 0 | H133: 0 | I133: 687392.4295 | J133: 680484.1992 | K133: 676447.7058 | L133: 675381.3282 | M133: 677404.1212 | N133: 682657.3825 | O133: 691306.4105 | P133: 703542.4719 | Q133: 693872.0435 | R133: 685650.9873 | S133: 686251.5175 | T133: 680032.5612 | U133: 675221.1682 | V133: 671777.4209 | W133: 669667.5376 | X133: 668861.0975 | Y133: 669330.9116 | Z133: 671052.9023 | AA133: 674005.9922 | AB133: 678172.0019 | AC133: 683535.5555 | AD133: 690078.2864 | AE133: 697795.0524 | AF133: 706678.3106 | AG133: 716723.0125 | AH133: 727926.5452 | AI133: 740288.6791 | AJ133: 753811.5221 | AK133: 768499.4796 | AL133: 784359.2195 | AM133: 801399.644 | AN133: 819631.866
C134: Total Undiscounted | F134: =SUM(F132:AN132) -> 104539948.9
C135: Total Discounted 7% | F135: =SUM(F133:AN133) -> 22489239.36
C137: Total Discounted 3% | F137: =F132*F7 -> 0 | G137: 0 | H137: 0 | I137: 800548.7828 | J137: 823277.4815 | K137: 850172.8084 | L137: 881792.5574 | M137: 918774.9879 | N137: 961850.4924 | O137: 1011854.962 | P137: 1069745.098 | Q137: 1096002.983 | R137: 1125064.196 | S137: 1169764.737 | T137: 1204165.974 | U137: 1242060.702 | V137: 1283694.415 | W137: 1329334.534 | X137: 1379269.24 | Y137: 1433809.061 | Z137: 1493288.573 | AA137: 1558068.243 | AB137: 1628536.406 | AC137: 1705111.397 | AD137: 1788238.141 | AE137: 1878406.919 | AF137: 1976140.482 | AG137: 2082001.88 | AH137: 2196597.554 | AI137: 2320580.669 | AJ137: 2454654.697 | AK137: 2599577.292 | AL137: 2756164.446 | AM137: 2925294.983 | AN137: 3107915.39
C138: Total Discounted 3% | F138: =SUM(F137:AN137) -> 51051760.09
A140: Total Costs
C141: Capital Costs - undiscounted | F141: 0 | G141: =Assumptions!D110/3 -> 8813333.333 | H141: =2*(Assumptions!D110/3) -> 17626666.67 | I141: 0 | J141: 0 | K141: 0 | L141: 0 | M141: 0 | N141: 0 | O141: 0 | P141: 0 | Q141: 0 | R141: 0 | S141: 0 | T141: 0 | U141: 0 | V141: 0 | W141: 0 | X141: 0 | Y141: 0 | Z141: 0 | AA141: 0 | AB141: 0 | AC141: 0 | AD141: 0 | AE141: 0 | AF141: 0 | AG141: 0 | AH141: 0 | AI141: 0 | AJ141: 0 | AK141: 0 | AL141: 0 | AM141: 0 | AN141: 0
C142: Capital Costs - discounted | F142: =F141*F6 -> 0 | G142: =G141*G6 -> 7697906.659 | H142: =H141*H6 -> 14388610.58 | I142: 0 | J142: 0 | K142: =K141*K6 -> 0 | L142: 0 | M142: 0 | N142: 0 | O142: 0 | P142: 0 | Q142: 0 | R142: 0 | S142: 0 | T142: 0 | U142: 0 | V142: 0 | W142: 0 | X142: 0 | Y142: 0 | Z142: 0 | AA142: 0 | AB142: 0 | AC142: 0 | AD142: 0 | AE142: 0 | AF142: 0 | AG142: 0 | AH142: 0 | AI142: 0 | AJ142: 0 | AK142: 0 | AL142: 0 | AM142: 0 | AN142: 0
C143: O&M Costs - undiscounted | F143: =IF(F5=1,Assumptions!$D$109,0) -> 0 | G143: =IF(G5=1,Assumptions!$D$109,0) -> 0 | H143: =IF(H5=1,Assumptions!$D$109,0) -> 0 | I143: =IF(I5=1,Assumptions!$D$109,0) -> 165000 | J143: =IF(J5=1,Assumptions!$D$109,0) -> 165000 | K143: =IF(K5=1,Assumptions!$D$109,0) -> 165000 | L143: =IF(L5=1,Assumptions!$D$109,0) -> 165000 | M143: =IF(M5=1,Assumptions!$D$109,0) -> 165000 | N143: =IF(N5=1,Assumptions!$D$109,0) -> 165000 | O143: =IF(O5=1,Assumptions!$D$109,0) -> 165000 | P143: =IF(P5=1,Assumptions!$D$109,0) -> 165000 | Q143: =IF(Q5=1,Assumptions!$D$109,0) -> 165000 | R143: =IF(R5=1,Assumptions!$D$109,0) -> 165000 | S143: =IF(S5=1,Assumptions!$D$109,0) -> 165000 | T143: =IF(T5=1,Assumptions!$D$109,0) -> 165000 | U143: =IF(U5=1,Assumptions!$D$109,0) -> 165000 | V143: =IF(V5=1,Assumptions!$D$109,0) -> 165000 | W143: =IF(W5=1,Assumptions!$D$109,0) -> 165000 | X143: =IF(X5=1,Assumptions!$D$109,0) -> 165000 | Y143: =IF(Y5=1,Assumptions!$D$109,0) -> 165000 | Z143: =IF(Z5=1,Assumptions!$D$109,0) -> 165000 | AA143: =IF(AA5=1,Assumptions!$D$109,0) -> 165000 | AB143: =IF(AB5=1,Assumptions!$D$109,0) -> 165000 | AC143: =IF(AC5=1,Assumptions!$D$109,0) -> 165000 | AD143: =IF(AD5=1,Assumptions!$D$109,0) -> 165000 | AE143: =IF(AE5=1,Assumptions!$D$109,0) -> 165000 | AF143: =IF(AF5=1,Assumptions!$D$109,0) -> 165000 | AG143: =IF(AG5=1,Assumptions!$D$109,0) -> 165000 | AH143: =IF(AH5=1,Assumptions!$D$109,0) -> 165000 | AI143: =IF(AI5=1,Assumptions!$D$109,0) -> 165000 | AJ143: =IF(AJ5=1,Assumptions!$D$109,0) -> 165000 | AK143: =IF(AK5=1,Assumptions!$D$109,0) -> 165000 | AL143: =IF(AL5=1,Assumptions!$D$109,0) -> 165000 | AM143: =IF(AM5=1,Assumptions!$D$109,0) -> 165000 | AN143: =IF(AN5=1,Assumptions!$D$109,0) -> 165000
C144: O&M Costs - discounted | F144: =F143*F6 -> 0 | G144: 0 | H144: 0 | I144: 125877.71 | J144: 117642.7196 | K144: 109946.4669 | L144: 102753.7074 | M144: 96031.50225 | N144: 89749.06753 | O144: 83877.6332 | P144: 78390.3114 | Q144: 73261.97327 | R144: 68469.1339 | S144: 63989.84477 | T144: 59803.59324 | U144: 55891.20864 | V144: 52234.77443 | W144: 48817.54619 | X144: 45623.87495 | Y144: 42639.13546 | Z144: 39849.65931 | AA144: 37242.67225 | AB144: 34806.23575 | AC144: 32529.19229 | AD144: 30401.11429 | AE144: 28412.25635 | AF144: 26553.5106 | AG144: 24816.36505 | AH144: 23192.86453 | AI144: 21675.57433 | AJ144: 20257.5461 | AK144: 18932.28608 | AL144: 17693.72531 | AM144: 16536.19188 | AN144: 15454.38493
C145: Total Costs - undiscounted | F145: =SUM(F141:AJ141)+SUM(F143:AN143) -> 31720000
C146: Total Costs - discounted | F146: =SUM(F142:AJ142)+SUM(F144:AN144) -> 23789871.02
A147: Net Benefits Calculations
C148: TIGER APPROVED BENEFITS
C149: Benefit Cost Ratio | F149: =F135/F146 -> 0.9453283436
C150: Net Present Value | F150: =F135-F146 -> -1300631.654
C151: First Year Rate of Return | F151: =I132/SUM(F141:H141) -> 0.03407809031
C152: Undiscounted NPV | F152: =F132-F141-(F143/F6) -> 0 | G152: =G132-G141-(G143/G6) -> -8813333.333 | H152: -17626666.67 | I152: 684743.3662 | J152: 722983.2047 | K152: 767530.2863 | L152: 819539.6775 | M152: 880375.9465 | N152: 951650.9593 | O152: 1035268.483 | P152: 1133476.826 | Q152: 1191026.573 | R152: 1254570.276 | S152: 1343915.987 | T152: 1420811.148 | U152: 1506035.787 | V152: 1600546.764 | W152: 1705414.234 | X152: 1821829.919 | Y152: 1951120.717 | Z152: 2094763.835 | AA152: 2254403.585 | AB152: 2431870.057 | AC152: 2629199.852 | AD152: 2848647.167 | AE152: 3092742.725 | AF152: 3364290.967 | AG152: 3666411.392 | AH152: 4002573.614 | AI152: 4376636.286 | AJ152: 4792890.336 | AK152: 5256106.975 | AL152: 5771591.025 | AM152: 6345240.123 | AN152: 6983610.483
C153: IRR | F153: =IRR(F152:AN152,0.5) -> 0.05521637747

Sheet Assumptions
B1: NCHRP variable name | D1: In Use | E1: NCHRP Values | F1: Other | G1: Units | H1: Source notes
B3: Existing | C3: Existing riders per year | D3: =Users!D4+Users!D5 -> 71549.85 | G3: annual riders | H3: 2.2% of study area commuters - based on Pittsburgh share of cyclist commuters and Census data for study area
C4: Existing pedestrians (runners/walkers) per year | D4: =Users!D7 -> 1643500 | G4: annual walkers | H4: HDR pedestrian counts in proximity of CAP
B6: Safety | C6: Bike Crashes per year | D6: =1/6 -> 0.1666666667 | G6: cyclist | H6: http://newsinteractive.post-gazette.com/bikeAccidents/
C7: Accident reduction per year | D7: 1 | G7: percent | H7: HDR assumption -- Vision Zero
C8: Bike Crash Reduction per year | D8: =D6*D7 -> 0.1666666667 | G8: cyclist | H8: HDR calculation
C9: Pedestrian crashes per year | D9: =SUM('Accident Data'!B13:B16) -> 1.4 | G9: walker | H9: 1 accident at this intersection in five years -- PENNDOT
C10: Accident reduction per year | D10: 1 | G10: percent | H10: HDR assumption -- Vision Zero
C11: Pedestrian Crash Reduction per year | D11: =D9*D10 -> 1.4 | G11: walker | H11: HDR calculation
C13: % Pittsburgh commuters who bike | D13: 0.022 | G13: percent | H13: American Community Survey Table S0801, 2008–2012 ACS, available on American Factfinder at <www.Factfinder2.census.gov>,
C14: % existing riders are commuters | D14: =Users!D4/(Users!D4+Users!D5) -> 0.140459414 | H14: ACS Bike Commute Share for Census Tracts
C16: % existing walkers are commuters | D16: =Users!B11 -> 0.7207179799 | G16: percent | H16: HDR Assumption
C17: % existing walkers are destination (non recreational, non commuter) | D17: =(100%-D16)*('Additional References'!R13+'Additional References'!R14+'Additional References'!R19) -> 0.1069590715 | G17: percent | H17: Attitudinal Survey
C19: Health Benefit Assumptions
C20: Pedestrian Health Benefits - Yes=1, No=0 | D20: 1
C21: Annual health benefit per cyclist | D21: =E21*('PRICES AND ECI 2013'!$AA$4/'PRICES AND ECI 2013'!$T$4) -> 147.9112698 | E21: 128 | G21: per person | H21: 2006 NCHRP, adjusted to 2013 with CPI
C22: Annual pedestrian health benefit per mile | D22: =0.48*('PRICES AND ECI 2013'!$AA$4/'PRICES AND ECI 2013'!$U$4) -> 0.5393066528 | F22: 0.48 | G22: per mile | H22: $2007 ($0.48/mile) Victoria Transport, p. 13, http://www.vtpi.org/walkability.pdf
C23: Annual trips required to provide health benefit cyclist | D23: =52*4 -> 208 | G23: assumes that there is a need to go 4x per week | H23: HDR assumption
C24: Annual health benefit per pedestrian | D24: 0 | G24: not in use | H24: not in use - recreational users have health benefit included in the recreation benefit
C25: Calories burned biking | D25: 422 | F25: 422 | H25: One hour of biking at a moderate effort of 10 miles per hour burns 422 calories. http://www.nutristrategy.com/activitylist.htm
C26: Calories burned running | D26: 774 | F26: 774 | H26: One hour at a moderate running pace of 6.7 miles per hour burns 774 calories for a 155 pound person. http://www.nutristrategy.com/activitylist.htm
C27: Ratio of physical activity biking to running | D27: =D25/D26 -> 0.5452196382 | F27: =F25/F26 -> 0.5452196382
C28: Annual Health factor | D28: 1 | E28: 1
C30: Recreational Benefit Assumptions
C31: Annual Recreational factor | D31: 1 | E31: 1 | F31: 1 | H31: This differs from atlanta beltline that was based on daily rides
B32: D | C32: Value of Recreational Day | D32: =E32*('PRICES AND ECI 2013'!$AA$4/'PRICES AND ECI 2013'!$T$4) -> 11.55556796 | E32: 10 | F32: 5 | H32: 2006 NCHRP= $10, Adjusted to 2013 with CPI; HDR estimate=$5
C33: Existing User Benefit: Journey Ambience benefit for Off-road segregated cycle track relative to no facility (1996 British pounds) | D33: 0.0473 | G33: per minute per cyclist | H33: Hopkinson & Wardman (1996)
C34: 1996 Exchange Rate (1 British pounds sterling = 1.5545 US dollars) mid year July 1 1996 | D34: 1.5545 | G34: 1 pound in 1996 dollars | H34: http://www.x-rates.com/cgi-bin/hlookup.cgi
C35: Existing User Benefit per min (2010 US $) | D35: =D33*D34*(1+('PRICES AND ECI 2013'!$AA$4/'PRICES AND ECI 2013'!$T$4)-1) -> 0.08496560674 | H35: Adjusted to 2013 with CPI and converted to US $
C36: Existing User Benefit per trip | D36: =D35*40 -> 3.398624269 | G36: per trip for total TIGER II BeltLine trails | H36: Assumed to be a 40 min trip, NHTS and NCHRP | J36: =1.3*3.3 -> 4.29
C37: Existing User Benefit per trip for Segment B | D37: =D36 -> 3.398624269 | G37: per trip for total TIGER II BeltLine trails
C38: Existing User Benefit per trip for Segment G | D38: =D37 -> 3.398624269 | G38: per trip for total TIGER II BeltLine trails
C39: Existing User Benefit per trip for Segment F | D39: =D38 -> 3.398624269 | G39: per trip for total TIGER II BeltLine trails
C40: Existing User Benefit per trip for Segment I | D40: =D39 -> 3.398624269 | G40: per trip for total TIGER II BeltLine trails
C42: Mobility Benefit Assumptions - for cyclists (pedestrians are total counts)
C43: Seasonal Use Days | D43: 95 | F43: 110
C44: Rain Days | D44: 95 | F44: 135
C45: Commuter Days | D45: =F45 -> 250 | F45: =50*5 -> 250 | H45: http://www.worldweather.org/093/c00268.htm
C46: Commuter Annual factor | D46: 2 | E46: 2 | F46: 2 | G46: 2 trips per day (out and back) | H46: This differs from atlanta beltline that was based on daily rides
C47: Destination Days | D47: 365 | F47: 365 | H47: http://www.worldweather.org/093/c00268.htm
C48: Destination Annual Factor | D48: 2 | E48: 2 | F48: 2 | G48: 2 trips per day (out and back) | H48: This differs from atlanta beltline that was based on daily rides
C50: Reduced Auto Use Assumptions
C51: Congestion savings per mile | D51: =E51*('PRICES AND ECI 2013'!$AA$4/'PRICES AND ECI 2013'!$T$4) -> 0.1502223834 | E51: 0.13 | G51: per mile | H51: 2006 NCHRP savings for urban areas; adjusted to 2013 with CPI
C52: Trips per year | D52: 1 | G52: Assumes that the original data is in annual trips | H52: This differs from atlanta beltline that was based on daily rides
C53: Average trip length cycling | D53: =D58 -> 4.521714286 | G53: miles | H53: HDR Calculation based on average commutes
C54: Percent drivers diverting to bike | D54: 0.1
C56: Reduced Pavement Maintenance Assumptions
C57: Reduced Pavement per mile | D57: =E57*('PRICES AND ECI 2013'!$AA$4/'PRICES AND ECI 2013'!$T$4) -> 0.1560001674 | E57: 0.135 | G57: per mile | H57: 2006 NCHRP savings for urban areas; adjusted to 2015 with CPI
C58: Average trip length cycling (miles) | D58: =(D100/60)*D98 -> 4.521714286 | G58: miles | H58: HDR Calculation based on average commutes
C59: Average trip length walking (miles) | D59: =(D101/60)*D99 -> 0.6708333333 | G59: miles | H59: HDR Calculation based on average commutes
C61: Other Benefits
C62: Accident reduction near Cap | D62: ='Accident Data'!B19 -> 0.6 | H62: PennDOT
C63: Percent Accident reduction for areas near Cap | D63: 0.2 | H63: HDR Assumption
C64: Total Daily Time Saved by Existing Pedestrians | D64: ='Pedestrian Counts'!B26 -> 4653.571429 | G64: minutes/day | H64: HDR Calculation based on pedestrian counts/times
C65: Distance of Unsafe Mixed Traffic Travel near CAP | D65: ='Pedestrian Counts'!B23/5280 -> 0.2585312261 | G65: km (.26 miles = .42 km) | H65: HDR Calculation
C66: Insecurity in Walking/Biking in Mixed Traffic | D66: 0.25 | F66: .25 USD = 2.1 Norwegian Krones | G66: per kilometer | H66: Statens vegvesen, Handbok 140, 2006 from Norway.
C68: Total Residential Property Value w/in 800 feet of CAP | D68: 16472700 | G68: dollars | H68: GIS Tax Assessor Data for properties w/in 800 feet of CAP
C69: # of properties w/in 800 feet of CAP | D69: 179 | G69: number residences
C70: Average value w/in 800 feet of CAP | D70: =D68/D69 -> 92026.25698 | G70: dollars
C72: Total Residential Property Value w/in 1,500 feet of CAP | D72: 114835800 | G72: dollars | H72: GIS Tax Assessor Data for properties w/in 1,500 feet of CAP
C73: # of properties w/in 1,500 feet of CAP | D73: 107 | G73: number residences
C74: Average value w/in 1,500 feet of CAP | D74: =D72/D73 -> 1073231.776 | G74: dollars
C76: Property Value Premium w/in 800 feet of CAP | D76: 0.03 | G76: 2-3% of total property values | H76: Measuring the Impact of Parks on Property Values, By Sarah Nicholls, Ph.D
C77: Property Value Premium w/in 1,500 feet of CAP | D77: 0.025 | G77: 1-3% of total property values | H77: Measuring the Impact of Parks on Property Values, By Sarah Nicholls, Ph.D
C79: Starting percentage for premium | D79: 0.4 | G79: percent | H79: HDR assumption
C80: Period for full premium | D80: 10 | G80: years | H80: HDR assumption
C81: Period for premium | D81: 20 | G81: years
C83: Lifetime premium w/in 800 feet | D83: =D70*D76 -> 2760.787709 | G83: dollars
C84: Lifetime premium w/in 1,500 feet | D84: =D74*D77 -> 26830.79439 | G84: dollars
C85: Average annual premium w/in 800 feet | D85: =D83/($D$81+0.5*$D$80*($D$79-1)) -> 162.399277 | G85: dollars
C86: Average annual premium w/in 1,500 feet | D86: =D84/($D$81+0.5*$D$80*($D$79-1)) -> 1578.282023 | G86: dollars
C88: General Assumptions
C89: Discount rate | D89: 0.07 | F89: 0.07
C90: Construction Complete | D90: 2019
C91: Year 1 of Benefits Path | D91: 2019
C92: Last Year of Benefits | D92: 2050
C93: Annualization Factor | D93: =D45 -> 250
C94: Value of time (cycling) | D94: ='VALUE OF TIME'!C46 -> 13.6006149 | F94: 13.6 | G94: per hour | H94: USDOT TIGER VIII All purposes value of time
C95: Value of time (walk) | D95: 25.8 | F95: 25.8 | G95: per hour | H95: USDOT TIGER BCA guidance
C96: Value of time growth rate | D96: 0.01 | G96: percent | H96: USDOT TIGER BCA guidance
C97: Willingness to Travel | D97: 19.8 | E97: 19.8 | F97: 15 | H97: NCHRP Report 552 - appendix D - Table 24
C98: Cycling Speed | D98: =(14.6*2.5+12.7)/3.5 -> 14.05714286 | G98: mph | H98: Average speed for U.S. male cyclist is 14.6 mph; female U.S. cyclist is 12.7 mph - 2.5 more men commute by bike than women (http://www.sgbtoday.com/outdoor/2015-strava-insights-detail-u-s-cycling-and-running-landscape/)
C99: Walking Speed | D99: 3.5 | G99: mph | H99: HDR assumption
C100: Average US Commute Time - Cyclists | D100: 19.3 | G100: mins | H100: http://www.census.gov/hhes/commuting/files/2014/acs-25.pdf
C101: Average US Commute Time - Pedestrians | D101: 11.5 | G101: mins | H101: http://www.census.gov/hhes/commuting/files/2014/acs-25.pdf
C102: Pedestrian commuter mode share Allegheny County | D102: 0.044 | G102: percent | H102: PA ACS data
C103: Pedestrian commuter mode share Lower Hill District | D103: 0.13 | G103: percent | H103: ACS and median income from Census for Lower Hill Census Tracts
C104: Cyclist commuter mode share Lower Hill District | D104: 0.007 | G104: percent | H104: ACS and median income from Census for Lower Hill Census Tracts
C105: Population Lower Hill District | D105: 9457 | G105: people | H105: Lower Hill Census Tracts Total - US Bureau of the Census compiled by SEACAP
C106: Total Commuters Lower Hill District | D106: 2913 | G106: people | H106: Lower Hill Census Tracts Total - US Bureau of the Census compiled by SEACAP
C108: Cost Assumptions
C109: Total O&M Cost | D109: 165000 | H109: HDR Calculation
C110: Total Capital Cost | D110: =26440000 -> 26440000 | H110: HDR Estimate
C112: New Users
C113: New User Factor - Cyclists | D113: =Users!I63 -> 1.462 | E113: 2.93 to 1.39 | H113: NCHRP New User factor adjusted by cyclist location
C114: New User Factor - Pedestrians | D114: 1.25 | H114: HDR Assumption
C116: Growth Rate Assumptions - Bike Riders - No Build
C117: Growth Rate | D117: =Population!C11 -> 0.01715139608 | G117: percent | H117: Calculated based on 2013 Lower Hill population and anticipated development
C119: Growth Rate Assumption - Ped - No Build
C120: Growth Rate | D120: =(D103/D102)*Population!C11 -> 0.05067457934 | G120: percent | H120: Adjusted Lower Hill population growth rate estimate to reflect larger share of pedestrians in Census Tracts
C122: Growth Rate Assumptions - Bike New Riders - Build
C123: 1-4 year annual growth rate | D123: ='Bicyclist Data'!C15 -> 0.1765 | G123: percent | H123: Pittsburgh cyclist growth rate 2000-2012
C124: 5-10 year annual growth rate | D124: ='Bicyclist Data'!C15 -> 0.1765 | G124: percent | H124: Pittsburgh cyclist growth rate 2000-2012
C125: 10+ year annual growth rate | D125: ='Bicyclist Data'!C16 -> 0.105 | G125: percent | H125: Pittsburgh cyclist growth rate 1990-2013
C127: Growth Rate Assumptions - Ped New Walkers - Build
C128: 1-4 year annual growth rate | D128: =($D$103/$D$102)*2.4% -> 0.07090909091 | G128: percent | H128: 2012 Downtown Pittsburgh Pedestrian Traffic Study. Executive Summary, p 1. Adjusted 2.4% pedestrian growth in Pittsburgh Downtown to reflect higher share of pedestrian commuters in Lower Hill.
C129: 5-10 year annual growth rate | D129: =($D$103/$D$102)*2.4% -> 0.07090909091 | G129: percent | H129: 2013 Downtown Pittsburgh Pedestrian Traffic Study. Executive Summary, p 1. Adjusted 2.4% pedestrian growth in Pittsburgh Downtown to reflect higher share of pedestrian commuters in Lower Hill.
C130: 10+ year annual growth rate | D130: 0.024 | G130: percent | H130: 2014 Downtown Pittsburgh Pedestrian Traffic Study. Executive Summary, p 1. 2.4% pedestrian growth in Pittsburgh Downtown.
C131: Pedestrian Environment Impacts | D131: =($D$103/$D$102)*2.4% -> 0.07090909091
C132: Street lightings | D132: 0.07090909091 | G132: per kilometer | H132: Heuman 2005
C133: Crowding | D133: 0.07090909091 | G133: per kilometer | H133: Heuman 2005
C134: Kerb level | D134: 0.07090909091 | G134: per kilometer | H134: Heuman 2005
C135: Information Panels | D135: 0.07090909091 | G135: per kilometer | H135: Heuman 2005
C136: Pavement Evenness | D136: 0.07090909091 | G136: per kilometer | H136: Heuman 2005
C137: Directional signage | D137: 0.07090909091 | G137: per kilometer | H137: Heuman 2005
C138: Benches | D138: 0.07090909091 | G138: per kilometer | H138: Heuman 2005
C139: Total Pedestrian Environment Impacts (2005 British Pounds) | D139: 0.07090909091 | G139: per kilometer | H139: Sum of values for Lighting, Informational Panels, Directional signage, and benches
C140: Miles per km | D140: 0.07090909091 | G140: per kilometer
C141: 2005 Exchange Rate | D141: 0.07090909091 | G141: 1 pound in 2005 dollars | H141: http://www.x-rates.com/cgi-bin/hlookup.cgi
C142: Total Pedestrian Environment Impacts (2010 $) per mile | D142: 0.07090909091 | G142: per mile | H142: Adjusted to 2013 with CPI and converted to US$
C143: Total Pedestrian Environment Impacts per hour | D143: 0.07090909091 | G143: per hour
C144: Total Pedestrian Environment Impacts for all segments | D144: 0.07090909091 | G144: for total TIGER II BeltLine trails | H144: Assumes 1/2 hour recreational walk
C145: Total Pedestrian Environment Impacts for SRT | D145: 0.07090909091
C146: Total Pedestrian Environment Impacts for North | D146: 0.07090909091
C147: Total Pedestrian Environment Impacts for South | D147: 0.07090909091
C148: Total Pedestrian Environment Impacts for Seg I | D148: 0.07090909091 | H148: Deleted 2014
C149: Miles traveled per hour of walking | D149: 0.07090909091 | G149: mph for walking | H149: Assumption
C150: Miles traveled per half hour of walking | D150: 0.07090909091 | G150: miles per half hour of walking
D151: 0.07090909091
C152: Commuting Pedestrian Benefit per trip | D152: 0.07090909091 | G152: assumes walk half mile to MARTA rail station
C153: Transit dependent population in project area | D153: 0.07090909091 | G153: percent
C154: Transit dependent population in project area | D154: 0.07090909091 | G154: percent
C155: Transit dependent population in project area | D155: 0.07090909091 | G155: percent | H155: Deleted 2014
D156: 0.07090909091
C157: Costs include Transit Prep costs (Yes =1, No =0) | D157: 0.07090909091 | G157: Transit prep costs include concrete walls, masonry and metal | H157: IM NOT TOUCHING THIS<,BUT THEY DO NOT INCLUDE TRANSIT PREP 2013

Sheet Users
A1: TIGER APPLICATION USERS
A2: User | B2: Current
B3: Weekday | D3: Annually
A4: Bicyclists - Commuter | B4: ='Bicyclist Data'!B4 -> 40.1994 | D4: =B4*Assumptions!$D$93 -> 10049.85
A5: Bike Share | B5: ='Bicyclist Data'!B11 -> 246 | D5: =B5*Assumptions!$D$93 -> 61500
A6: Pedestrians - Commuter | B6: ='Pedestrian Counts'!B21 -> 5319 | D6: =B6*Assumptions!$D$93 -> 1329750
A7: Pedestrians | B7: ='Pedestrian Counts'!B20 -> 6574 | D7: =B7*Assumptions!$D$93 -> 1643500
A9: Source: Pedestrian counts obtained by HDR
A11: Pedestrian Commuters/Total Pedestrians | B11: =(B31+C31)/B7 -> 0.7207179799
A13: NO-BUILD DEMAND | B13: 2016 | C13: 2017 | D13: =C13+1 -> 2018 | E13: =D13+1 -> 2019 | F13: 2020 | G13: 2021 | H13: 2022 | I13: 2023 | J13: 2024 | K13: 2025 | L13: 2026 | M13: 2027 | N13: 2028 | O13: 2029 | P13: 2030 | Q13: 2031 | R13: 2032 | S13: 2033 | T13: 2034 | U13: 2035 | V13: 2036 | W13: 2037 | X13: 2038 | Y13: 2039 | Z13: 2040 | AA13: =Z13+1 -> 2041 | AB13: 2042 | AC13: 2043 | AD13: 2044 | AE13: 2045 | AF13: 2046 | AG13: 2047 | AH13: 2048 | AI13: 2049 | AJ13: 2050 | AK13: 2051 | AL13: 2052 | AM13: 2053 | AN13: 2054 | AO13: 2055
A14: Bicyclists - Commuter | B14: =B4+B5*'Additional References'!R3 -> 52.4994 | C14: =B14*(1+Assumptions!$D$117) -> 53.399838 | D14: =C14*(1+Assumptions!$D$117) -> 54.31571978 | E14: =D14*(1+Assumptions!$D$117) -> 55.2473102 | F14: =E14*(1+Assumptions!$D$117) -> 56.1948787 | G14: =F14*(1+Assumptions!$D$117) -> 57.15869932 | H14: =G14*(1+Assumptions!$D$117) -> 58.13905081 | I14: =H14*(1+Assumptions!$D$117) -> 59.1362167 | J14: =I14*(1+Assumptions!$D$117) -> 60.15048538 | K14: =J14*(1+Assumptions!$D$117) -> 61.18215018 | L14: =K14*(1+Assumptions!$D$117) -> 62.23150947 | M14: =L14*(1+Assumptions!$D$117) -> 63.29886673 | N14: =M14*(1+Assumptions!$D$117) -> 64.38453067 | O14: =N14*(1+Assumptions!$D$117) -> 65.48881526 | P14: =O14*(1+Assumptions!$D$117) -> 66.61203987 | Q14: =P14*(1+Assumptions!$D$117) -> 67.75452935 | R14: =Q14*(1+Assumptions!$D$117) -> 68.91661412 | S14: =R14*(1+Assumptions!$D$117) -> 70.09863026 | T14: =S14*(1+Assumptions!$D$117) -> 71.30091963 | U14: =T14*(1+Assumptions!$D$117) -> 72.52382995 | V14: =U14*(1+Assumptions!$D$117) -> 73.76771488 | W14: =V14*(1+Assumptions!$D$117) -> 75.03293418 | X14: =W14*(1+Assumptions!$D$117) -> 76.31985375 | Y14: =X14*(1+Assumptions!$D$117) -> 77.62884579 | Z14: =Y14*(1+Assumptions!$D$117) -> 78.96028887 | AA14: =Z14*(1+Assumptions!$D$117) -> 80.31456806 | AB14: =AA14*(1+Assumptions!$D$117) -> 81.69207503 | AC14: =AB14*(1+Assumptions!$D$117) -> 83.09320816 | AD14: =AC14*(1+Assumptions!$D$117) -> 84.51837269 | AE14: =AD14*(1+Assumptions!$D$117) -> 85.96798078 | AF14: =AE14*(1+Assumptions!$D$117) -> 87.44245166 | AG14: =AF14*(1+Assumptions!$D$117) -> 88.94221179 | AH14: =AG14*(1+Assumptions!$D$117) -> 90.46769489 | AI14: =AH14*(1+Assumptions!$D$117) -> 92.01934216 | AJ14: =AI14*(1+Assumptions!$D$117) -> 93.59760234 | AK14: =AJ14*(1+Assumptions!$D$117) -> 95.20293189 | AL14: =AK14*(1+Assumptions!$D$117) -> 96.83579509 | AM14: =AL14*(1+Assumptions!$D$117) -> 98.49666416 | AN14: =AM14*(1+Assumptions!$D$117) -> 100.1860195 | AO14: =AN14*(1+Assumptions!$D$117) -> 101.9043496
A15: Bicyclists - Utility | B15: =(B5-B5*'Additional References'!R3)*('Additional References'!R18+'Additional References'!R19+'Additional References'!R18) -> 84.52978723 | C15: =B15*(1+Assumptions!$D$117) -> 85.9795911 | D15: =C15*(1+Assumptions!$D$117) -> 87.45426112 | E15: =D15*(1+Assumptions!$D$117) -> 88.95422379 | F15: =E15*(1+Assumptions!$D$117) -> 90.47991291 | G15: =F15*(1+Assumptions!$D$117) -> 92.03176974 | H15: =G15*(1+Assumptions!$D$117) -> 93.61024307 | I15: =H15*(1+Assumptions!$D$117) -> 95.21578943 | J15: =I15*(1+Assumptions!$D$117) -> 96.84887315 | K15: =J15*(1+Assumptions!$D$117) -> 98.50996653 | L15: =K15*(1+Assumptions!$D$117) -> 100.19955 | M15: =L15*(1+Assumptions!$D$117) -> 101.9181122 | N15: =M15*(1+Assumptions!$D$117) -> 103.6661501 | O15: =N15*(1+Assumptions!$D$117) -> 105.4441693 | P15: =O15*(1+Assumptions!$D$117) -> 107.252684 | Q15: =P15*(1+Assumptions!$D$117) -> 109.0922172 | R15: =Q15*(1+Assumptions!$D$117) -> 110.9633011 | S15: =R15*(1+Assumptions!$D$117) -> 112.8664766 | T15: =S15*(1+Assumptions!$D$117) -> 114.8022942 | U15: =T15*(1+Assumptions!$D$117) -> 116.7713139 | V15: =U15*(1+Assumptions!$D$117) -> 118.7741049 | W15: =V15*(1+Assumptions!$D$117) -> 120.8112466 | X15: =W15*(1+Assumptions!$D$117) -> 122.8833282 | Y15: =X15*(1+Assumptions!$D$117) -> 124.9909488 | Z15: =Y15*(1+Assumptions!$D$117) -> 127.1347181 | AA15: =Z15*(1+Assumptions!$D$117) -> 129.315256 | AB15: =AA15*(1+Assumptions!$D$117) -> 131.5331932 | AC15: =AB15*(1+Assumptions!$D$117) -> 133.7891711 | AD15: =AC15*(1+Assumptions!$D$117) -> 136.0838421 | AE15: =AD15*(1+Assumptions!$D$117) -> 138.41787 | AF15: =AE15*(1+Assumptions!$D$117) -> 140.7919297 | AG15: =AF15*(1+Assumptions!$D$117) -> 143.2067079 | AH15: =AG15*(1+Assumptions!$D$117) -> 145.6629028 | AI15: =AH15*(1+Assumptions!$D$117) -> 148.161225 | AJ15: =AI15*(1+Assumptions!$D$117) -> 150.7023968 | AK15: =AJ15*(1+Assumptions!$D$117) -> 153.2871533 | AL15: =AK15*(1+Assumptions!$D$117) -> 155.916242 | AM15: =AL15*(1+Assumptions!$D$117) -> 158.5904232 | AN15: =AM15*(1+Assumptions!$D$117) -> 161.3104704 | AO15: =AN15*(1+Assumptions!$D$117) -> 164.0771702
A16: Pedestrians - Commuter | B16: =B6 -> 5319 | C16: =B16*(1+Assumptions!$D$120) -> 5588.538087 | D16: =C16*(1+Assumptions!$D$120) -> 5871.734904 | E16: =D16*(1+Assumptions!$D$120) -> 6169.2826 | F16: =E16*(1+Assumptions!$D$120) -> 6481.908401 | G16: =F16*(1+Assumptions!$D$120) -> 6810.376382 | H16: =G16*(1+Assumptions!$D$120) -> 7155.489341 | I16: =H16*(1+Assumptions!$D$120) -> 7518.090753 | J16: =I16*(1+Assumptions!$D$120) -> 7899.066839 | K16: =J16*(1+Assumptions!$D$120) -> 8299.348729 | L16: =K16*(1+Assumptions!$D$120) -> 8719.914734 | M16: =L16*(1+Assumptions!$D$120) -> 9161.792745 | N16: =M16*(1+Assumptions!$D$120) -> 9626.062739 | O16: =N16*(1+Assumptions!$D$120) -> 10113.85942 | P16: =O16*(1+Assumptions!$D$120) -> 10626.37499 | Q16: =P16*(1+Assumptions!$D$120) -> 11164.86207 | R16: =Q16*(1+Assumptions!$D$120) -> 11730.63676 | S16: =R16*(1+Assumptions!$D$120) -> 12325.08184 | T16: =S16*(1+Assumptions!$D$120) -> 12949.65018 | U16: =T16*(1+Assumptions!$D$120) -> 13605.86826 | V16: =U16*(1+Assumptions!$D$120) -> 14295.33991 | W16: =V16*(1+Assumptions!$D$120) -> 15019.75024 | X16: =W16*(1+Assumptions!$D$120) -> 15780.86977 | Y16: =X16*(1+Assumptions!$D$120) -> 16580.55871 | Z16: =Y16*(1+Assumptions!$D$120) -> 17420.77154 | AA16: =Z16*(1+Assumptions!$D$120) -> 18303.56181 | AB16: =AA16*(1+Assumptions!$D$120) -> 19231.08711 | AC16: =AB16*(1+Assumptions!$D$120) -> 20205.61436 | AD16: =AC16*(1+Assumptions!$D$120) -> 21229.52537 | AE16: =AD16*(1+Assumptions!$D$120) -> 22305.32263 | AF16: =AE16*(1+Assumptions!$D$120) -> 23435.63548 | AG16: =AF16*(1+Assumptions!$D$120) -> 24623.22645 | AH16: =AG16*(1+Assumptions!$D$120) -> 25870.99809 | AI16: =AH16*(1+Assumptions!$D$120) -> 27182.00003 | AJ16: =AI16*(1+Assumptions!$D$120) -> 28559.43645 | AK16: =AJ16*(1+Assumptions!$D$120) -> 30006.67388 | AL16: =AK16*(1+Assumptions!$D$120) -> 31527.24945 | AM16: =AL16*(1+Assumptions!$D$120) -> 33124.87956 | AN16: =AM16*(1+Assumptions!$D$120) -> 34803.46889 | AO16: =AN16*(1+Assumptions!$D$120) -> 36567.12004
A17: Pedestrians - Utility | B17: =(B7-B16)*Assumptions!D17 -> 134.2336348 | C17: =B17*(1+Assumptions!$D$120) -> 141.0358677 | D17: =C17*(1+Assumptions!$D$120) -> 148.182801 | E17: =D17*(1+Assumptions!$D$120) -> 155.6919021 | F17: =E17*(1+Assumptions!$D$120) -> 163.5815238 | G17: =F17*(1+Assumptions!$D$120) -> 171.8709487 | H17: =G17*(1+Assumptions!$D$120) -> 180.5804367 | I17: =H17*(1+Assumptions!$D$120) -> 189.7312743 | J17: =I17*(1+Assumptions!$D$120) -> 199.3458269 | K17: =J17*(1+Assumptions!$D$120) -> 209.4475928 | L17: =K17*(1+Assumptions!$D$120) -> 220.0612614 | M17: =L17*(1+Assumptions!$D$120) -> 231.2127733 | N17: =M17*(1+Assumptions!$D$120) -> 242.9293833 | O17: =N17*(1+Assumptions!$D$120) -> 255.2397276 | P17: =O17*(1+Assumptions!$D$120) -> 268.1738934 | Q17: =P17*(1+Assumptions!$D$120) -> 281.7634927 | R17: =Q17*(1+Assumptions!$D$120) -> 296.0417391 | S17: =R17*(1+Assumptions!$D$120) -> 311.0435297 | T17: =S17*(1+Assumptions!$D$120) -> 326.8055298 | U17: =T17*(1+Assumptions!$D$120) -> 343.3662625 | V17: =U17*(1+Assumptions!$D$120) -> 360.7662034 | W17: =V17*(1+Assumptions!$D$120) -> 379.047879 | X17: =W17*(1+Assumptions!$D$120) -> 398.2559708 | Y17: =X17*(1+Assumptions!$D$120) -> 418.4374246 | Z17: =Y17*(1+Assumptions!$D$120) -> 439.6415651 | AA17: =Z17*(1+Assumptions!$D$120) -> 461.9202165 | AB17: =AA17*(1+Assumptions!$D$120) -> 485.3278291 | AC17: =AB17*(1+Assumptions!$D$120) -> 509.9216127 | AD17: =AC17*(1+Assumptions!$D$120) -> 535.7616759 | AE17: =AD17*(1+Assumptions!$D$120) -> 562.9111735 | AF17: =AE17*(1+Assumptions!$D$120) -> 591.4364604 | AG17: =AF17*(1+Assumptions!$D$120) -> 621.4072542 | AH17: =AG17*(1+Assumptions!$D$120) -> 652.8968054 | AI17: =AH17*(1+Assumptions!$D$120) -> 685.9820764 | AJ17: =AI17*(1+Assumptions!$D$120) -> 720.7439295 | AK17: =AJ17*(1+Assumptions!$D$120) -> 757.267325 | AL17: =AK17*(1+Assumptions!$D$120) -> 795.6415281 | AM17: =AL17*(1+Assumptions!$D$120) -> 835.9603279 | AN17: =AM17*(1+Assumptions!$D$120) -> 878.3222658 | AO17: =AN17*(1+Assumptions!$D$120) -> 922.8308771
A20: BUILD | B20: 2016 | C20: 2017 | D20: =C20+1 -> 2018 | E20: =D20+1 -> 2019 | F20: 2020 | G20: 2021 | H20: 2022 | I20: 2023 | J20: 2024 | K20: 2025 | L20: 2026 | M20: 2027 | N20: 2028 | O20: 2029 | P20: 2030 | Q20: 2031 | R20: 2032 | S20: 2033 | T20: 2034 | U20: 2035 | V20: 2036 | W20: 2037 | X20: 2038 | Y20: 2039 | Z20: 2040 | AA20: =Z20+1 -> 2041 | AB20: 2042 | AC20: 2043 | AD20: 2044 | AE20: 2045 | AF20: 2046 | AG20: 2047 | AH20: 2048 | AI20: 2049 | AJ20: 2050 | AK20: 2051 | AL20: 2052 | AM20: 2053 | AN20: 2054 | AO20: 2055
A21: Bicyclists - Commuter | B21: =B14*(Assumptions!$D$113-1) -> 24.2547228 | C21: =B21*(1+Assumptions!$D$123) -> 28.53568137 | D21: =C21*(1+Assumptions!$D$123) -> 33.57222914 | E21: =D21*(1+Assumptions!$D$123) -> 39.49772758 | F21: =E21*(1+Assumptions!$D$123) -> 46.4690765 | G21: =F21*(1+Assumptions!$D$124) -> 54.6708685 | H21: =G21*(1+Assumptions!$D$124) -> 64.32027679 | I21: =H21*(1+Assumptions!$D$124) -> 75.67280564 | J21: =I21*(1+Assumptions!$D$124) -> 89.02905584 | K21: =J21*(1+Assumptions!$D$124) -> 104.7426842 | L21: =K21*(1+Assumptions!$D$124) -> 123.229768 | M21: =L21*(1+Assumptions!$D$125) -> 136.1688936 | N21: =M21*(1+Assumptions!$D$125) -> 150.4666274 | O21: =N21*(1+Assumptions!$D$125) -> 166.2656233 | P21: =O21*(1+Assumptions!$D$125) -> 183.7235137 | Q21: =P21*(1+Assumptions!$D$125) -> 203.0144827 | R21: =Q21*(1+Assumptions!$D$125) -> 224.3310034 | S21: =R21*(1+Assumptions!$D$125) -> 247.8857587 | T21: =S21*(1+Assumptions!$D$125) -> 273.9137634 | U21: =T21*(1+Assumptions!$D$125) -> 302.6747085 | V21: =U21*(1+Assumptions!$D$125) -> 334.4555529 | W21: =V21*(1+Assumptions!$D$125) -> 369.573386 | X21: =W21*(1+Assumptions!$D$125) -> 408.3785915 | Y21: =X21*(1+Assumptions!$D$125) -> 451.2583436 | Z21: =Y21*(1+Assumptions!$D$125) -> 498.6404697 | AA21: =Z21*(1+Assumptions!$D$125) -> 550.997719 | AB21: =AA21*(1+Assumptions!$D$125) -> 608.8524795 | AC21: =AB21*(1+Assumptions!$D$125) -> 672.7819899 | AD21: =AC21*(1+Assumptions!$D$125) -> 743.4240988 | AE21: =AD21*(1+Assumptions!$D$125) -> 821.4836292 | AF21: =AE21*(1+Assumptions!$D$125) -> 907.7394103 | AG21: =AF21*(1+Assumptions!$D$125) -> 1003.052048 | AH21: =AG21*(1+Assumptions!$D$125) -> 1108.372513 | AI21: =AH21*(1+Assumptions!$D$125) -> 1224.751627 | AJ21: =AI21*(1+Assumptions!$D$125) -> 1353.350548 | AK21: =AJ21*(1+Assumptions!$D$125) -> 1495.452356 | AL21: =AK21*(1+Assumptions!$D$125) -> 1652.474853 | AM21: =AL21*(1+Assumptions!$D$125) -> 1825.984713 | AN21: =AM21*(1+Assumptions!$D$125) -> 2017.713108 | AO21: =AN21*(1+Assumptions!$D$125) -> 2229.572984
A22: Bicyclists - Utility | B22: =B15*(Assumptions!$D$113-1) -> 39.0527617 | C22: =B22*(1+Assumptions!$D$123) -> 45.94557414 | D22: =C22*(1+Assumptions!$D$123) -> 54.05496798 | E22: =D22*(1+Assumptions!$D$123) -> 63.59566983 | F22: =E22*(1+Assumptions!$D$123) -> 74.82030555 | G22: =F22*(1+Assumptions!$D$124) -> 88.02608948 | H22: =G22*(1+Assumptions!$D$124) -> 103.5626943 | I22: =H22*(1+Assumptions!$D$124) -> 121.8415098 | J22: =I22*(1+Assumptions!$D$124) -> 143.3465363 | K22: =J22*(1+Assumptions!$D$124) -> 168.6472 | L22: =K22*(1+Assumptions!$D$124) -> 198.4134307 | M22: =L22*(1+Assumptions!$D$125) -> 219.246841 | N22: =M22*(1+Assumptions!$D$125) -> 242.2677593 | O22: =N22*(1+Assumptions!$D$125) -> 267.705874 | P22: =O22*(1+Assumptions!$D$125) -> 295.8149908 | Q22: =P22*(1+Assumptions!$D$125) -> 326.8755648 | R22: =Q22*(1+Assumptions!$D$125) -> 361.1974991 | S22: =R22*(1+Assumptions!$D$125) -> 399.1232365 | T22: =S22*(1+Assumptions!$D$125) -> 441.0311763 | U22: =T22*(1+Assumptions!$D$125) -> 487.3394499 | V22: =U22*(1+Assumptions!$D$125) -> 538.5100921 | W22: =V22*(1+Assumptions!$D$125) -> 595.0536518 | X22: =W22*(1+Assumptions!$D$125) -> 657.5342852 | Y22: =X22*(1+Assumptions!$D$125) -> 726.5753851 | Z22: =Y22*(1+Assumptions!$D$125) -> 802.8658006 | AA22: =Z22*(1+Assumptions!$D$125) -> 887.1667096 | AB22: =AA22*(1+Assumptions!$D$125) -> 980.3192142 | AC22: =AB22*(1+Assumptions!$D$125) -> 1083.252732 | AD22: =AC22*(1+Assumptions!$D$125) -> 1196.994268 | AE22: =AD22*(1+Assumptions!$D$125) -> 1322.678667 | AF22: =AE22*(1+Assumptions!$D$125) -> 1461.559927 | AG22: =AF22*(1+Assumptions!$D$125) -> 1615.023719 | AH22: =AG22*(1+Assumptions!$D$125) -> 1784.601209 | AI22: =AH22*(1+Assumptions!$D$125) -> 1971.984336 | AJ22: =AI22*(1+Assumptions!$D$125) -> 2179.042692 | AK22: =AJ22*(1+Assumptions!$D$125) -> 2407.842174 | AL22: =AK22*(1+Assumptions!$D$125) -> 2660.665603 | AM22: =AL22*(1+Assumptions!$D$125) -> 2940.035491 | AN22: =AM22*(1+Assumptions!$D$125) -> 3248.739218 | AO22: =AN22*(1+Assumptions!$D$125) -> 3589.856835
A23: Pedestrians - Commuter | B23: =B16*(Assumptions!$D$114-1) -> 1329.75 | C23: =B23*(1+Assumptions!$D$128) -> 1424.041364 | D23: =C23*(1+Assumptions!$D$128) -> 1525.018842 | E23: =D23*(1+Assumptions!$D$128) -> 1633.156542 | F23: =E23*(1+Assumptions!$D$128) -> 1748.962188 | G23: =F23*(1+Assumptions!$D$129) -> 1872.979506 | H23: =G23*(1+Assumptions!$D$129) -> 2005.79078 | I23: =H23*(1+Assumptions!$D$129) -> 2148.019581 | J23: =I23*(1+Assumptions!$D$129) -> 2300.333697 | K23: =J23*(1+Assumptions!$D$129) -> 2463.448268 | L23: =K23*(1+Assumptions!$D$129) -> 2638.129145 | M23: =L23*(1+Assumptions!$D$130) -> 2701.444245 | N23: =M23*(1+Assumptions!$D$130) -> 2766.278907 | O23: =N23*(1+Assumptions!$D$130) -> 2832.669601 | P23: =O23*(1+Assumptions!$D$130) -> 2900.653671 | Q23: =P23*(1+Assumptions!$D$130) -> 2970.269359 | R23: =Q23*(1+Assumptions!$D$130) -> 3041.555824 | S23: =R23*(1+Assumptions!$D$130) -> 3114.553163 | T23: =S23*(1+Assumptions!$D$130) -> 3189.302439 | U23: =T23*(1+Assumptions!$D$130) -> 3265.845698 | V23: =U23*(1+Assumptions!$D$130) -> 3344.225995 | W23: =V23*(1+Assumptions!$D$130) -> 3424.487418 | X23: =W23*(1+Assumptions!$D$130) -> 3506.675117 | Y23: =X23*(1+Assumptions!$D$130) -> 3590.835319 | Z23: =Y23*(1+Assumptions!$D$130) -> 3677.015367 | AA23: =Z23*(1+Assumptions!$D$130) -> 3765.263736 | AB23: =AA23*(1+Assumptions!$D$130) -> 3855.630065 | AC23: =AB23*(1+Assumptions!$D$130) -> 3948.165187 | AD23: =AC23*(1+Assumptions!$D$130) -> 4042.921152 | AE23: =AD23*(1+Assumptions!$D$130) -> 4139.951259 | AF23: =AE23*(1+Assumptions!$D$130) -> 4239.310089 | AG23: =AF23*(1+Assumptions!$D$130) -> 4341.053532 | AH23: =AG23*(1+Assumptions!$D$130) -> 4445.238816 | AI23: =AH23*(1+Assumptions!$D$130) -> 4551.924548 | AJ23: =AI23*(1+Assumptions!$D$130) -> 4661.170737 | AK23: =AJ23*(1+Assumptions!$D$130) -> 4773.038835 | AL23: =AK23*(1+Assumptions!$D$130) -> 4887.591767 | AM23: =AL23*(1+Assumptions!$D$130) -> 5004.893969 | AN23: =AM23*(1+Assumptions!$D$130) -> 5125.011424 | AO23: =AN23*(1+Assumptions!$D$130) -> 5248.011699
A24: Pedestrians - Utility | B24: =B17*(Assumptions!$D$114-1) -> 33.55840869 | C24: =B24*(1+Assumptions!$D$128) -> 35.93800494 | D24: =C24*(1+Assumptions!$D$128) -> 38.4863362 | E24: =D24*(1+Assumptions!$D$128) -> 41.21536731 | F24: =E24*(1+Assumptions!$D$128) -> 44.13791154 | G24: =F24*(1+Assumptions!$D$129) -> 47.26769072 | H24: =G24*(1+Assumptions!$D$129) -> 50.6193997 | I24: =H24*(1+Assumptions!$D$129) -> 54.20877532 | J24: =I24*(1+Assumptions!$D$129) -> 58.05267029 | K24: =J24*(1+Assumptions!$D$129) -> 62.16913237 | L24: =K24*(1+Assumptions!$D$129) -> 66.57748903 | M24: =L24*(1+Assumptions!$D$130) -> 68.17534877 | N24: =M24*(1+Assumptions!$D$130) -> 69.81155714 | O24: =N24*(1+Assumptions!$D$130) -> 71.48703451 | P24: =O24*(1+Assumptions!$D$130) -> 73.20272334 | Q24: =P24*(1+Assumptions!$D$130) -> 74.9595887 | R24: =Q24*(1+Assumptions!$D$130) -> 76.75861882 | S24: =R24*(1+Assumptions!$D$130) -> 78.60082568 | T24: =S24*(1+Assumptions!$D$130) -> 80.48724549 | U24: =T24*(1+Assumptions!$D$130) -> 82.41893938 | V24: =U24*(1+Assumptions!$D$130) -> 84.39699393 | W24: =V24*(1+Assumptions!$D$130) -> 86.42252178 | X24: =W24*(1+Assumptions!$D$130) -> 88.49666231 | Y24: =X24*(1+Assumptions!$D$130) -> 90.6205822 | Z24: =Y24*(1+Assumptions!$D$130) -> 92.79547617 | AA24: =Z24*(1+Assumptions!$D$130) -> 95.0225676 | AB24: =AA24*(1+Assumptions!$D$130) -> 97.30310922 | AC24: =AB24*(1+Assumptions!$D$130) -> 99.63838385 | AD24: =AC24*(1+Assumptions!$D$130) -> 102.0297051 | AE24: =AD24*(1+Assumptions!$D$130) -> 104.478418 | AF24: =AE24*(1+Assumptions!$D$130) -> 106.9859 | AG24: =AF24*(1+Assumptions!$D$130) -> 109.5535616 | AH24: =AG24*(1+Assumptions!$D$130) -> 112.1828471 | AI24: =AH24*(1+Assumptions!$D$130) -> 114.8752354 | AJ24: =AI24*(1+Assumptions!$D$130) -> 117.6322411 | AK24: =AJ24*(1+Assumptions!$D$130) -> 120.4554149 | AL24: =AK24*(1+Assumptions!$D$130) -> 123.3463448 | AM24: =AL24*(1+Assumptions!$D$130) -> 126.3066571 | AN24: =AM24*(1+Assumptions!$D$130) -> 129.3380169 | AO24: =AN24*(1+Assumptions!$D$130) -> 132.4421293
A27: COMMUTER PEDESTRIANS | B27: 6:30-9:15 | C27: 3:00-6:00 | F27: Bedford Avenue Park Sidewalk to Nowhere
A28: Chatham | B28: =82+265+222+33+23 -> 625 | C28: =151+261+166+28 -> 606 | F28: Friday April 8, 2016
A29: Centre | B29: =108+461+418+36+30 -> 1053 | C29: =406+560+401+77 -> 1444 | F29: TIME | G29: To Lower Hill | H29: To Downtown
A30: Bigelow | B30: =90+189+153+20+18 -> 470 | C30: =129+231+161+19 -> 540 | F30: 6:30 - 6:45 AM | G30: 0 | H30: 9
B31: =SUM(B28:B30) -> 2148 | C31: =SUM(C28:C30) -> 2590 | F31: 6:45 - 7:00 AM | G31: 0 | H31: 5
F32: 7:00 - 7:15 AM | G32: 0 | H32: 4
A33: Dangerous walkers during commute times | B33: =G40+H40+G51+H51 -> 101 | F33: 7:15 - 7:30 AM | G33: 0 | H33: 4
A34: Estimated dangerous walkers utility | B34: =(B33*B15)/B14 -> 162.6210683 | F34: 7:30 - 7:45 AM | G34: 0 | H34: 3
F35: 7:45 - 8:00 AM | G35: 0 | H35: 6
F36: 8:00 - 8:15 AM | G36: 0 | H36: 3
F37: 8:15 - 8:30 AM | G37: 0 | H37: 2
F38: 8:30 - 8:45 AM | G38: 0 | H38: 2
F39: 8:45 - 9:00 AM | G39: 0 | H39: 1
G40: =SUM(G30:G39) -> 0 | H40: =SUM(H30:H39) -> 39
F41: Thursday April 7, 2016
F42: TIME | G42: To Lower Hill | H42: To Downtown
F43: 4:00 - 4:15 PM | G43: 22 | H43: 2
F44: 4:15 - 4:30 PM | G44: 5 | H44: 1
F45: 4:30 - 4:45 PM | G45: 14 | H45: 1
F46: 4:45 - 5:00 PM | G46: 2 | H46: 1
F47: 5:00 - 5:15 PM | G47: 7 | H47: 0
F48: 5:15 - 5:30 PM | G48: 3 | H48: 0
F49: 5:30 - 5:45 PM | G49: 3 | H49: 0
F50: 5:45 - 6:00 PM | G50: 0 | H50: 1
G51: =SUM(G43:G50) -> 56 | H51: =SUM(H43:H50) -> 6
A54: Row Labels | B54: Sum of Walk | C54: Sum of Bicycle | D54: Sum of Walk mode share | E54: Sum of Bicycle mode share | F54: Sum of Population | G54: Sum of Total commuters | H54: Total Population | I54: NCHRP Factor
A55: Census Tract 305, Allegheny County, Pennsylvania | B55: 55 | C55: 2 | D55: 0.124 | E55: 0.005 | F55: 2304 | G55: 444 | H55: 2256 | I55: 2.11
A56: Census Tract 501, Allegheny County, Pennsylvania | B56: 35 | C56: 0 | D56: 0.05 | E56: 0 | F56: 1805 | G56: 702 | H56: 1707 | I56: 2.11
A57: Census Tract 506, Allegheny County, Pennsylvania | B57: 36 | C57: 0 | D57: 0.054 | E57: 0 | F57: 1850 | G57: 668 | H57: 2057 | I57: n/a
A58: Census Tract 509, Allegheny County, Pennsylvania | B58: 32 | C58: 0 | D58: 0.152 | E58: 0 | F58: 1024 | G58: 210 | H58: 1202 | I58: 2.11
A59: Census Tract 510, Allegheny County, Pennsylvania | B59: 224 | C59: 18 | D59: 0.39 | E59: 0.031 | F59: 1940 | G59: 574 | H59: 2106 | I59: 1.39
A60: Census Tract 511, Allegheny County, Pennsylvania | B60: 5 | C60: 0 | D60: 0.016 | E60: 0 | F60: 891 | G60: 315 | H60: 1122 | I60: 2.11
A61: Grand Total | B61: 387 | C61: 20 | D61: 0.786 | E61: 0.036 | F61: 9814 | G61: 2913 | H61: 10450
A62: Source: ACS data by Census Tract
H63: Weighted NCHRP | I63: =(C55/C61)*I55+(C59/C61)*I59 -> 1.462
B64: 0.1328527291 | C64: 0.006865774116
A66: meters | B66: NCHRP factor | C66: Miles --> Meters
A67: 400 | B67: 2.93 | C67: 804.672
A68: 800 | B68: 2.11 | C68: 1609.34
A69: 1600 | B69: 1.38 | C69: 3218.69

Sheet Accident Data
B1: PEDESTRIAN + BIKE
A2: injury | B2: accident type | C2: # of Accidents | D2: Percent of Total
A3: 0 | B3: not injured | D3: =C3/$C$8 -> 0
A4: 1 | B4: possible injury | C4: 31 | D4: =C4/$C$8 -> 0.6326530612
A5: 2 | B5: non-incapacitating injury | C5: 18 | D5: =C5/$C$8 -> 0.3673469388
A6: 3 | B6: incapacitating | C6: 0 | D6: =C6/$C$8 -> 0
A7: 4 | B7: fatal | C7: 0 | D7: =C7/$C$8 -> 0
B8: total accidents | C8: =SUM(C3:C7) -> 49
A10: Accidents currently account for all pedestrian accidents located at CAP intersections
A12: Accident Location | B12: Pedestrian Crash/Year | C12: Accident Type
A13: Centre Ave & Chatham | B13: =1/2 -> 0.5 | C13: Minor or Unknown Severity
A14: Centre Ave & Washington | B14: =2/5 -> 0.4 | C14: No detail on pedestrian accidents. 0 fatal, 1 major inj, 7 mod inj, 9 min inj, 25 unk severity, 4 unk injured
A15: Bigelow & Chatham | B15: =1/2 -> 0.5 | C15: No detail on pedestrian accidents. 1 moderate inj, 1 unk injured
A16: Bigelow & Wash Place | B16: 0 | C16: No pedestrian accidents reported
A18: 3 Accidents Bedford and Ramps | B18: Annual
A19: Accidents | B19: =3/5 -> 0.6

Sheet PRICES AND ECI 2013
D1: 1990 | E1: 1991 | F1: 1992 | G1: 1993 | H1: 1994 | I1: 1995 | J1: 1996 | K1: 1997 | L1: 1998 | M1: 1999 | N1: 2000 | O1: 2001 | P1: 2002 | Q1: 2003 | R1: 2004 | S1: 2005 | T1: 2006 | U1: 2007 | V1: 2008 | W1: 2009 | X1: 2010 | Y1: 2011 | Z1: 2012 | AA1: 2013 | AF1: Jan | AG1: Feb | AH1: Mar | AI1: Apr | AJ1: May | AK1: Jun | AL1: Jul | AM1: Aug | AN1: Sep | AO1: Oct | AP1: Nov | AQ1: Dec | AR1: Avg
B2: PRICE DATA
AD3: Consumer Price Index - All Urban Consumers | AE3: 2002 | AF3: 177.7 | AG3: 178 | AH3: 178.5 | AI3: 179.3 | AJ3: 179.5 | AK3: 179.6 | AL3: 180 | AM3: 180.5 | AN3: 180.8 | AO3: 181.2 | AP3: 181.5 | AQ3: 181.8 | AR3: =AVERAGE(AF3:AQ3) -> 179.8666667
B4: CPI - All Urban Consumers, U.S. City Average, All Items, ANNUAL AVERAGE, CUUR0000SA0 (UPDATED) | D4: 130.7 | E4: 136.2 | F4: 140.3 | G4: 144.5 | H4: 148.2 | I4: 152.4 | J4: 156.9 | K4: 160.5 | L4: 163 | M4: 166.6 | N4: 172.2 | O4: 177.1 | P4: 179.9 | Q4: 184 | R4: 188.9 | S4: 195.3 | T4: 201.6 | U4: 207.342 | V4: 215.303 | W4: 214.537 | X4: 218.056 | Y4: 224.939 | Z4: 229.594 | AA4: =AR14 -> 232.96025 | AD4: CUSR0000SA0 | AE4: 2003 | AF4: 182.6 | AG4: 183.6 | AH4: 183.9 | AI4: 183.2 | AJ4: 182.9 | AK4: 183.1 | AL4: 183.7 | AM4: 184.5 | AN4: 185.1 | AO4: 184.9 | AP4: 185 | AQ4: 185.5 | AR4: 184
B5: http://www.bls.gov/data/ | E5: =E4/D4-1 -> 0.04208110176 | F5: 0.03010279001 | G5: 0.02993585175 | H5: 0.02560553633 | I5: 0.02834008097 | J5: 0.02952755906 | K5: 0.02294455067 | L5: 0.01557632399 | M5: 0.02208588957 | N5: 0.03361344538 | O5: 0.02845528455 | P5: 0.01581027668 | Q5: 0.02279043913 | R5: 0.02663043478 | S5: 0.03388035998 | T5: 0.03225806452 | U5: 0.02848214286 | V5: 0.03839550115 | W5: -0.003557776715 | X5: 0.01640276502 | Y5: =Y4/X4-1 -> 0.03156528598 | Z5: =Z4/Y4-1 -> 0.0206944994 | AA5: =AA4/Z4-1 -> 0.01466175074 | AD5: Seasonally Adjusted | AE5: 2004 | AF5: 186.3 | AG5: 186.7 | AH5: 187.1 | AI5: 187.4 | AJ5: 188.2 | AK5: 188.9 | AL5: 189.1 | AM5: 189.2 | AN5: 189.8 | AO5: 190.8 | AP5: 191.7 | AQ5: 191.7 | AR5: 188.9083333
AE6: 2005 | AF6: 191.6 | AG6: 192.4 | AH6: 193.1 | AI6: 193.7 | AJ6: 193.6 | AK6: 193.7 | AL6: 194.9 | AM6: 196.1 | AN6: 198.8 | AO6: 199.1 | AP6: 198.1 | AQ6: 198.1 | AR6: 195.2666667
B7: PPI - All commodities, ANNUAL AVERAGE, WPU00000000 (UPDATED) | D7: 116.3 | E7: 116.5 | F7: 117.2 | G7: 118.9 | H7: 120.4 | I7: 124.7 | J7: 127.7 | K7: 127.6 | L7: 124.4 | M7: 125.5 | N7: 132.7 | O7: 134.2 | P7: 131.1 | Q7: 138.1 | R7: 146.7 | S7: 157.4 | T7: 164.7 | U7: 172.6 | V7: 189.6 | W7: 172.9 | X7: 184.7 | Y7: 201 | Z7: 202.2 | AE7: 2006 | AF7: 199.3 | AG7: 199.4 | AH7: 199.7 | AI7: 200.7 | AJ7: 201.3 | AK7: 201.8 | AL7: 202.9 | AM7: 203.8 | AN7: 202.8 | AO7: 201.9 | AP7: 202 | AQ7: 203.1 | AR7: 201.5583333
B8: http://www.bls.gov/data/ | E8: =E7/D7-1 -> 0.001719690456 | F8: 0.006008583691 | G8: 0.01450511945 | H8: 0.0126156434 | I8: 0.03571428571 | J8: 0.02405773857 | K8: -0.0007830853563 | L8: -0.02507836991 | M8: 0.00884244373 | N8: 0.05737051793 | O8: 0.01130369254 | P8: -0.02309985097 | Q8: 0.05339435545 | R8: 0.0622737147 | S8: 0.07293796864 | T8: 0.04637865311 | U8: 0.04796599879 | V8: 0.09849362688 | W8: -0.08808016878 | X8: 0.06824754193 | Y8: =Y7/X7-1 -> 0.08825121819 | Z8: =Z7/Y7-1 -> 0.005970149254 | AE8: 2007 | AF8: 203.437 | AG8: 204.226 | AH8: 205.288 | AI8: 205.904 | AJ8: 206.755 | AK8: 207.234 | AL8: 207.603 | AM8: 207.667 | AN8: 208.547 | AO8: 209.19 | AP8: 210.834 | AQ8: 211.445 | AR8: 207.3441667
AE9: 2008 | AF9: 212.174 | AG9: 212.687 | AH9: 213.448 | AI9: 213.942 | AJ9: 215.208 | AK9: 217.463 | AL9: 219.016 | AM9: 218.69 | AN9: 218.877 | AO9: 216.995 | AP9: 213.153 | AQ9: 211.398 | AR9: 215.25425
AE10: 2009 | AF10: 211.933 | AG10: 212.705 | AH10: 212.495 | AI10: 212.709 | AJ10: 213.022 | AK10: 214.79 | AL10: 214.726 | AM10: 215.445 | AN10: 215.861 | AO10: 216.509 | AP10: 217.234 | AQ10: 217.347 | AR10: 214.5646667
AE11: 2010 | AF11: 217.466 | AG11: 217.251 | AH11: 217.305 | AI11: 217.376 | AJ11: 217.299 | AK11: 217.285 | AL11: 217.677 | AM11: 218.012 | AN11: 218.281 | AO11: 219.024 | AP11: 219.544 | AQ11: 220.437 | AR11: =AVERAGE(AF11:AQ11) -> 218.07975
AE12: 2011 | AF12: 221.082 | AG12: 221.816 | AH12: 222.955 | AI12: 224.056 | AJ12: 224.918 | AK12: 224.99 | AL12: 225.553 | AM12: 226.149 | AN12: 226.674 | AO12: 226.761 | AP12: 227.136 | AQ12: 227.093 | AR12: =AVERAGE(AF12:AQ12) -> 224.9319167
AE13: 2012 | AF13: 227.666 | AG13: 228.138 | AH13: 228.732 | AI13: 229.184 | AJ13: 228.884 | AK13: 228.825 | AL13: 228.779 | AM13: 229.952 | AN13: 231.086 | AO13: 231.652 | AP13: 231.19 | AQ13: 231.099 | AR13: =AVERAGE(AF13:AQ13) -> 229.5989167
B14: Employment Cost Index, DECEMBER 2005 = 100, CONSTANT DOLLARS (UPDATED) | AE14: 2013 | AF14: 231.321 | AG14: 232.599 | AH14: 232.075 | AI14: 231.707 | AJ14: 232.124 | AK14: 232.86 | AL14: 233.252 | AM14: 233.433 | AN14: 233.743 | AO14: 233.782 | AP14: 234.033 | AQ14: 234.594 | AR14: =AVERAGE(AF14:AQ14) -> 232.96025
B15: Total compensation, All Civilian, All workers, Not Seasonally Adjusted | AE15: 2014 | AF15: 234.933
B16: March | D16: 88.6 | E16: 88.3 | F16: 89 | G16: 89.3 | H16: 90.1 | I16: 90.1 | J16: 90.1 | K16: 90.1 | L16: 91.8 | M16: 93 | N16: 93.5 | O16: 94.6 | P16: 96.8 | Q16: 97.5 | R16: 99.4 | S16: 99.7 | T16: 99.2 | U16: 99.8 | V16: 99.2 | W16: 101.7 | X16: 101.1 | Y16: 100.4 | Z16: 99.7 | AA16: 100
B17: June | D17: 88.6 | E17: 88.6 | F17: 89 | G17: 89.5 | H17: 90.1 | I17: 90 | J17: 90.1 | K17: 90.5 | L17: 92.1 | M17: 93.2 | N17: 93.8 | O17: 94.5 | P17: 97.1 | Q17: 98.5 | R17: 99.1 | S17: 99.7 | T17: 98.5 | U17: 99.2 | V17: 97.4 | W17: 100.6 | X17: 101.4 | Y17: 100 | Z17: 100.2
B18: September | D18: 88 | E18: 88.8 | F18: 89.3 | G18: 90 | H18: 90.1 | I18: 90.3 | J18: 90.1 | K18: 90.8 | L18: 92.8 | M18: 93.2 | N18: 94 | O18: 95.5 | P18: 97.3 | Q18: 98.8 | R18: 100 | S18: 98.4 | T18: 99.6 | U18: 100.1 | V18: 98.2 | W18: 100.9 | X18: 101.7 | Y18: 99.9 | Z18: 99.9
B19: December | D19: 87.9 | E19: 88.9 | F19: 89.3 | G19: 90.1 | H19: 90.3 | I19: 90.5 | J19: 90.1 | K19: 91.5 | L19: 93.2 | M19: 93.8 | N19: 94.5 | O19: 97 | P19: 97.9 | Q19: 99.8 | R19: 100.3 | S19: 100 | T19: 100.8 | U19: 100 | V19: 102.5 | W19: 101.2 | X19: 101.7 | Y19: 100.7 | Z19: 100.9
B20: Annual (simple average) | D20: =AVERAGE(D16:D19) -> 88.275 | E20: 88.65 | F20: 89.15 | G20: 89.725 | H20: 90.15 | I20: 90.225 | J20: 90.1 | K20: 90.725 | L20: 92.475 | M20: 93.3 | N20: 93.95 | O20: =AVERAGE(O16:O19) -> 95.4 | P20: =AVERAGE(P16:P19) -> 97.275 | Q20: 98.65 | R20: 99.7 | S20: 99.45 | T20: 99.525 | U20: 99.775 | V20: 99.325 | W20: 101.1 | X20: =AVERAGE(X16:X19) -> 101.475 | Y20: =AVERAGE(Y16:Y19) -> 100.25 | Z20: =AVERAGE(Z16:Z19) -> 100.175
B21: ftp://ftp.bls.gov/pub/suppl/eci.ecconstnaics.txt
B22: ftp://ftp.bls.gov/pub/suppl/eci.ecconst.txt
B23: http://www.bls.gov/ncs/ect/#tables
B25: See DOT adjustment to VSL, footnote 1 page 2, at:
B26: http://regs.dot.gov/docs/Value_of_Life_July_29_2011.pdf
P27: Annual | S27: Percent Change
B28: U.S. Department Of Labor | C28: Year | D28: Jan. | E28: Feb. | F28: Mar. | G28: Apr. | H28: May | I28: June | J28: July | K28: Aug. | L28: Sep. | M28: Oct. | N28: Nov. | O28: Dec. | P28: Avg | Q28: HALF 1 | R28: HALF 2 | S28: Dec-Dec | T28: Avg-Avg
B29: Bureau of Labor Statistics | C29: 1970 | D29: 37.8 | E29: 38 | F29: 38.2 | G29: 38.5 | H29: 38.6 | I29: 38.8 | J29: 39 | K29: 39 | L29: 39.2 | M29: 39.4 | N29: 39.6 | O29: 39.8 | P29: 38.8 | S29: 5.6 | T29: 5.7
B30: Washington, D.C. 20212 | C30: 1971 | D30: 39.8 | E30: 39.9 | F30: 40 | G30: 40.1 | H30: 40.3 | I30: 40.6 | J30: 40.7 | K30: 40.8 | L30: 40.8 | M30: 40.9 | N30: 40.9 | O30: 41.1 | P30: 40.5 | S30: 3.3 | T30: 4.4
B31: Consumer Price Index - NOT SEASONALLY ADJUSTED (UPDATED) | C31: 1972 | D31: 41.1 | E31: 41.3 | F31: 41.4 | G31: 41.5 | H31: 41.6 | I31: 41.7 | J31: 41.9 | K31: 42 | L31: 42.1 | M31: 42.3 | N31: 42.4 | O31: 42.5 | P31: 41.8 | S31: 3.4 | T31: 3.2
B32: All Urban Consumers - (CPI-U) | C32: 1973 | D32: 42.6 | E32: 42.9 | F32: 43.3 | G32: 43.6 | H32: 43.9 | I32: 44.2 | J32: 44.3 | K32: 45.1 | L32: 45.2 | M32: 45.6 | N32: 45.9 | O32: 46.2 | P32: 44.4 | S32: 8.7 | T32: 6.2
B33: U.S. city average | C33: 1974 | D33: 46.6 | E33: 47.2 | F33: 47.8 | G33: 48 | H33: 48.6 | I33: 49 | J33: 49.4 | K33: 50 | L33: 50.6 | M33: 51.1 | N33: 51.5 | O33: 51.9 | P33: 49.3 | S33: 12.3 | T33: 11
B34: All items | C34: 1975 | D34: 52.1 | E34: 52.5 | F34: 52.7 | G34: 52.9 | H34: 53.2 | I34: 53.6 | J34: 54.2 | K34: 54.3 | L34: 54.6 | M34: 54.9 | N34: 55.3 | O34: 55.5 | P34: 53.8 | S34: 6.9 | T34: 9.1
B35: 1982-84=100 | C35: 1976 | D35: 55.6 | E35: 55.8 | F35: 55.9 | G35: 56.1 | H35: 56.5 | I35: 56.8 | J35: 57.1 | K35: 57.4 | L35: 57.6 | M35: 57.9 | N35: 58 | O35: 58.2 | P35: 56.9 | S35: 4.9 | T35: 5.8
B36: ftp://ftp.bls.gov/pub/special.requests/cpi/cpiai.txt | C36: 1977 | D36: 58.5 | E36: 59.1 | F36: 59.5 | G36: 60 | H36: 60.3 | I36: 60.7 | J36: 61 | K36: 61.2 | L36: 61.4 | M36: 61.6 | N36: 61.9 | O36: 62.1 | P36: 60.6 | S36: 6.7 | T36: 6.5
B37: http://www.bls.gov/data/#prices | C37: 1978 | D37: 62.5 | E37: 62.9 | F37: 63.4 | G37: 63.9 | H37: 64.5 | I37: 65.2 | J37: 65.7 | K37: 66 | L37: 66.5 | M37: 67.1 | N37: 67.4 | O37: 67.7 | P37: 65.2 | S37: 9 | T37: 7.6
C38: 1979 | D38: 68.3 | E38: 69.1 | F38: 69.8 | G38: 70.6 | H38: 71.5 | I38: 72.3 | J38: 73.1 | K38: 73.8 | L38: 74.6 | M38: 75.2 | N38: 75.9 | O38: 76.7 | P38: 72.6 | S38: 13.3 | T38: 11.3
C39: 1980 | D39: 77.8 | E39: 78.9 | F39: 80.1 | G39: 81 | H39: 81.8 | I39: 82.7 | J39: 82.7 | K39: 83.3 | L39: 84 | M39: 84.8 | N39: 85.5 | O39: 86.3 | P39: 82.4 | S39: 12.5 | T39: 13.5
C40: 1981 | D40: 87 | E40: 87.9 | F40: 88.5 | G40: 89.1 | H40: 89.8 | I40: 90.6 | J40: 91.6 | K40: 92.3 | L40: 93.2 | M40: 93.4 | N40: 93.7 | O40: 94 | P40: 90.9 | S40: 8.9 | T40: 10.3
C41: 1982 | D41: 94.3 | E41: 94.6 | F41: 94.5 | G41: 94.9 | H41: 95.8 | I41: 97 | J41: 97.5 | K41: 97.7 | L41: 97.9 | M41: 98.2 | N41: 98 | O41: 97.6 | P41: 96.5 | S41: 3.8 | T41: 6.2
C42: 1983 | D42: 97.8 | E42: 97.9 | F42: 97.9 | G42: 98.6 | H42: 99.2 | I42: 99.5 | J42: 99.9 | K42: 100.2 | L42: 100.7 | M42: 101 | N42: 101.2 | O42: 101.3 | P42: 99.6 | S42: 3.8 | T42: 3.2
C43: 1984 | D43: 101.9 | E43: 102.4 | F43: 102.6 | G43: 103.1 | H43: 103.4 | I43: 103.7 | J43: 104.1 | K43: 104.5 | L43: 105 | M43: 105.3 | N43: 105.3 | O43: 105.3 | P43: 103.9 | Q43: 102.9 | R43: 104.9 | S43: 3.9 | T43: 4.3
C44: 1985 | D44: 105.5 | E44: 106 | F44: 106.4 | G44: 106.9 | H44: 107.3 | I44: 107.6 | J44: 107.8 | K44: 108 | L44: 108.3 | M44: 108.7 | N44: 109 | O44: 109.3 | P44: 107.6 | Q44: 106.6 | R44: 108.5 | S44: 3.8 | T44: 3.6
C45: 1986 | D45: 109.6 | E45: 109.3 | F45: 108.8 | G45: 108.6 | H45: 108.9 | I45: 109.5 | J45: 109.5 | K45: 109.7 | L45: 110.2 | M45: 110.3 | N45: 110.4 | O45: 110.5 | P45: 109.6 | Q45: 109.1 | R45: 110.1 | S45: 1.1 | T45: 1.9
C46: 1987 | D46: 111.2 | E46: 111.6 | F46: 112.1 | G46: 112.7 | H46: 113.1 | I46: 113.5 | J46: 113.8 | K46: 114.4 | L46: 115 | M46: 115.3 | N46: 115.4 | O46: 115.4 | P46: 113.6 | Q46: 112.4 | R46: 114.9 | S46: 4.4 | T46: 3.6
C47: 1988 | D47: 115.7 | E47: 116 | F47: 116.5 | G47: 117.1 | H47: 117.5 | I47: 118 | J47: 118.5 | K47: 119 | L47: 119.8 | M47: 120.2 | N47: 120.3 | O47: 120.5 | P47: 118.3 | Q47: 116.8 | R47: 119.7 | S47: 4.4 | T47: 4.1
C48: 1989 | D48: 121.1 | E48: 121.6 | F48: 122.3 | G48: 123.1 | H48: 123.8 | I48: 124.1 | J48: 124.4 | K48: 124.6 | L48: 125 | M48: 125.6 | N48: 125.9 | O48: 126.1 | P48: 124 | Q48: 122.7 | R48: 125.3 | S48: 4.6 | T48: 4.8
C49: 1990 | D49: 127.4 | E49: 128 | F49: 128.7 | G49: 128.9 | H49: 129.2 | I49: 129.9 | J49: 130.4 | K49: 131.6 | L49: 132.7 | M49: 133.5 | N49: 133.8 | O49: 133.8 | P49: 130.7 | Q49: 128.7 | R49: 132.6 | S49: 6.1 | T49: 5.4
C50: 1991 | D50: 134.6 | E50: 134.8 | F50: 135 | G50: 135.2 | H50: 135.6 | I50: 136 | J50: 136.2 | K50: 136.6 | L50: 137.2 | M50: 137.4 | N50: 137.8 | O50: 137.9 | P50: 136.2 | Q50: 135.2 | R50: 137.2 | S50: 3.1 | T50: 4.2
C51: 1992 | D51: 138.1 | E51: 138.6 | F51: 139.3 | G51: 139.5 | H51: 139.7 | I51: 140.2 | J51: 140.5 | K51: 140.9 | L51: 141.3 | M51: 141.8 | N51: 142 | O51: 141.9 | P51: 140.3 | Q51: 139.2 | R51: 141.4 | S51: 2.9 | T51: 3
C52: 1993 | D52: 142.6 | E52: 143.1 | F52: 143.6 | G52: 144 | H52: 144.2 | I52: 144.4 | J52: 144.4 | K52: 144.8 | L52: 145.1 | M52: 145.7 | N52: 145.8 | O52: 145.8 | P52: 144.5 | Q52: 143.7 | R52: 145.3 | S52: 2.7 | T52: 3
C53: 1994 | D53: 146.2 | E53: 146.7 | F53: 147.2 | G53: 147.4 | H53: 147.5 | I53: 148 | J53: 148.4 | K53: 149 | L53: 149.4 | M53: 149.5 | N53: 149.7 | O53: 149.7 | P53: 148.2 | Q53: 147.2 | R53: 149.3 | S53: 2.7 | T53: 2.6
C54: 1995 | D54: 150.3 | E54: 150.9 | F54: 151.4 | G54: 151.9 | H54: 152.2 | I54: 152.5 | J54: 152.5 | K54: 152.9 | L54: 153.2 | M54: 153.7 | N54: 153.6 | O54: 153.5 | P54: 152.4 | Q54: 151.5 | R54: 153.2 | S54: 2.5 | T54: 2.8
C55: 1996 | D55: 154.4 | E55: 154.9 | F55: 155.7 | G55: 156.3 | H55: 156.6 | I55: 156.7 | J55: 157 | K55: 157.3 | L55: 157.8 | M55: 158.3 | N55: 158.6 | O55: 158.6 | P55: 156.9 | Q55: 155.8 | R55: 157.9 | S55: 3.3 | T55: 3
C56: 1997 | D56: 159.1 | E56: 159.6 | F56: 160 | G56: 160.2 | H56: 160.1 | I56: 160.3 | J56: 160.5 | K56: 160.8 | L56: 161.2 | M56: 161.6 | N56: 161.5 | O56: 161.3 | P56: 160.5 | Q56: 159.9 | R56: 161.2 | S56: 1.7 | T56: 2.3
C57: 1998 | D57: 161.6 | E57: 161.9 | F57: 162.2 | G57: 162.5 | H57: 162.8 | I57: 163 | J57: 163.2 | K57: 163.4 | L57: 163.6 | M57: 164 | N57: 164 | O57: 163.9 | P57: 163 | Q57: 162.3 | R57: 163.7 | S57: 1.6 | T57: 1.6
C58: 1999 | D58: 164.3 | E58: 164.5 | F58: 165 | G58: 166.2 | H58: 166.2 | I58: 166.2 | J58: 166.7 | K58: 167.1 | L58: 167.9 | M58: 168.2 | N58: 168.3 | O58: 168.3 | P58: 166.6 | Q58: 165.4 | R58: 167.8 | S58: 2.7 | T58: 2.2
C59: 2000 | D59: 168.8 | E59: 169.8 | F59: 171.2 | G59: 171.3 | H59: 171.5 | I59: 172.4 | J59: 172.8 | K59: 172.8 | L59: 173.7 | M59: 174 | N59: 174.1 | O59: 174 | P59: 172.2 | Q59: 170.8 | R59: 173.6 | S59: 3.4 | T59: 3.4
C60: 2001 | D60: 175.1 | E60: 175.8 | F60: 176.2 | G60: 176.9 | H60: 177.7 | I60: 178 | J60: 177.5 | K60: 177.5 | L60: 178.3 | M60: 177.7 | N60: 177.4 | O60: 176.7 | P60: 177.1 | Q60: 176.6 | R60: 177.5 | S60: 1.6 | T60: 2.8
C61: 2002 | D61: 177.1 | E61: 177.8 | F61: 178.8 | G61: 179.8 | H61: 179.8 | I61: 179.9 | J61: 180.1 | K61: 180.7 | L61: 181 | M61: 181.3 | N61: 181.3 | O61: 180.9 | P61: 179.9 | Q61: 178.9 | R61: 180.9 | S61: 2.4 | T61: 1.6
C62: 2003 | D62: 181.7 | E62: 183.1 | F62: 184.2 | G62: 183.8 | H62: 183.5 | I62: 183.7 | J62: 183.9 | K62: 184.6 | L62: 185.2 | M62: 185 | N62: 184.5 | O62: 184.3 | P62: 184 | Q62: 183.3 | R62: 184.6 | S62: 1.9 | T62: 2.3
C63: 2004 | D63: 185.2 | E63: 186.2 | F63: 187.4 | G63: 188 | H63: 189.1 | I63: 189.7 | J63: 189.4 | K63: 189.5 | L63: 189.9 | M63: 190.9 | N63: 191 | O63: 190.3 | P63: 188.9 | Q63: 187.6 | R63: 190.2 | S63: 3.3 | T63: 2.7
C64: 2005 | D64: 190.7 | E64: 191.8 | F64: 193.3 | G64: 194.6 | H64: 194.4 | I64: 194.5 | J64: 195.4 | K64: 196.4 | L64: 198.8 | M64: 199.2 | N64: 197.6 | O64: 196.8 | P64: 195.3 | Q64: 193.2 | R64: 197.4 | S64: 3.4 | T64: 3.4
C65: 2006 | D65: 198.3 | E65: 198.7 | F65: 199.8 | G65: 201.5 | H65: 202.5 | I65: 202.9 | J65: 203.5 | K65: 203.9 | L65: 202.9 | M65: 201.8 | N65: 201.5 | O65: 201.8 | P65: 201.6 | Q65: 200.6 | R65: 202.6 | S65: 2.5 | T65: 3.2
C66: 2007 | D66: 202.416 | E66: 203.499 | F66: 205.352 | G66: 206.686 | H66: 207.949 | I66: 208.352 | J66: 208.299 | K66: 207.917 | L66: 208.49 | M66: 208.936 | N66: 210.177 | O66: 210.036 | P66: 207.342 | Q66: 205.709 | R66: 208.976 | S66: 4.1 | T66: 2.8 | V66: =AVERAGE(D69:O69) -> 218.0555
C67: 2008 | D67: 211.08 | E67: 211.693 | F67: 213.528 | G67: 214.823 | H67: 216.632 | I67: 218.815 | J67: 219.964 | K67: 219.086 | L67: 218.783 | M67: 216.573 | N67: 212.425 | O67: 210.228 | P67: 215.303 | Q67: 214.429 | R67: 216.177 | S67: 0.1 | T67: 3.8 | V67: =AVERAGE(D70:I70) -> 223.5985 | W67: =V67/V66-1 -> 0.02542013387
C68: 2009 | D68: 211.143 | E68: 212.193 | F68: 212.709 | G68: 213.24 | H68: 213.856 | I68: 215.693 | J68: 215.351 | K68: 215.834 | L68: 215.969 | M68: 216.177 | N68: 216.33 | O68: 215.949 | P68: 214.537 | Q68: 213.139 | R68: 215.935 | S68: 2.7 | T68: -0.4
C69: 2010 | D69: 216.687 | E69: 216.741 | F69: 217.631 | G69: 218.009 | H69: 218.178 | I69: 217.965 | J69: 218.011 | K69: 218.312 | L69: 218.439 | M69: 218.711 | N69: 218.803 | O69: 219.179 | P69: 218.056 | Q69: 217.535 | R69: 218.576 | S69: 1.5 | T69: 1.6 | V69: =AVERAGE(D69:I69) -> 217.5351667
C70: 2011 | D70: 220.223 | E70: 221.309 | F70: 223.467 | G70: 224.906 | H70: 225.964 | I70: 225.722 | J70: 225.922 | K70: 226.545 | L70: 226.889 | M70: 226.421 | N70: 226.23 | O70: 225.672 | P70: 224.939 | Q70: 223.598 | R70: 226.28 | S70: =((O70-O69)/O69)*100 -> 2.962418845 | T70: =((P70-P69)/P69)*100 -> 3.156528598 | V70: =AVERAGE(D70:I70) -> 223.5985 | W70: =V70/V69-1 -> 0.02787288799
C71: 2012 | D71: 226.665 | E71: 227.663 | F71: 229.392 | G71: 230.085 | H71: 229.815 | I71: 229.478 | J71: 229.104 | K71: 230.379 | L71: 231.407 | M71: 231.317 | N71: 230.221 | O71: 229.601 | P71: 229.594
C72: 2013 | D72: 230.28 | E72: 232.166 | F72: 232.773 | P72: =AVERAGE(D72:O72) -> 231.7396667
B75: U.S. Department Of Labor | C75: Year | D75: Jan. | E75: Feb. | F75: Mar. | G75: Apr. | H75: May | I75: June | J75: July | K75: Aug. | L75: Sep. | M75: Oct. | N75: Nov. | O75: Dec.
B76: Bureau of Labor Statistics | C76: 1970 | D76: 37.9 | E76: 38.1 | F76: 38.3 | G76: 38.5 | H76: 38.6 | I76: 38.8 | J76: 38.9 | K76: 39 | L76: 39.2 | M76: 39.4 | N76: 39.6 | O76: 39.8 | P76: =AVERAGE(D76:O76) -> 38.84166667
B77: Washington, D.C. 20212 | C77: 1971 | D77: 39.9 | E77: 39.9 | F77: 40 | G77: 40.1 | H77: 40.3 | I77: 40.5 | J77: 40.6 | K77: 40.7 | L77: 40.8 | M77: 40.9 | N77: 41 | O77: 41.1 | P77: =AVERAGE(D77:O77) -> 40.48333333 | Q77: =(P77/P76-1)*100 -> 4.226560824
B78: Consumer Price Index - SEASONALLY ADJUSTED (UPDATED) | C78: 1972 | D78: 41.2 | E78: 41.4 | F78: 41.4 | G78: 41.5 | H78: 41.6 | I78: 41.7 | J78: 41.8 | K78: 41.9 | L78: 42.1 | M78: 42.2 | N78: 42.4 | O78: 42.5 | P78: 41.80833333 | Q78: =(P78/P77-1)*100 -> 3.272951832
B79: All Urban Consumers - (CPI-U) | C79: 1973 | D79: 42.7 | E79: 43 | F79: 43.4 | G79: 43.7 | H79: 43.9 | I79: 44.2 | J79: 44.2 | K79: 45 | L79: 45.2 | M79: 45.6 | N79: 45.9 | O79: 46.3 | P79: 44.425 | Q79: 6.258720351
B80: U.S. city average | C80: 1974 | D80: 46.8 | E80: 47.3 | F80: 47.8 | G80: 48.1 | H80: 48.6 | I80: 49 | J80: 49.3 | K80: 49.9 | L80: 50.6 | M80: 51 | N80: 51.5 | O80: 51.9 | P80: =AVERAGE(D80:O80) -> 49.31666667 | Q80: 11.01106734
